Workbook

Sheet смета на 2025 г.СОШ44
J1: Приложение № 1
J2: к Порядку составления, утверждения
J3: и ведения бюджетных смет Администрации
J4: Прионежского муниципального района
J5: и казенных учреждений, находящихся
J6: в ведении Администрации Прионежского
J7: муниципального района
J8: от 09 августа 2022 № 831
F10: УТВЕРЖДАЮ
F11: Главы Администрации Прионежского муниципального района
F12: (наименование должности лица, согласующего бюджетную смету)
F14: Администрация Прионежского муниципального района
F15: (наименование главного распорядителя (распорядителя) бюджетных средств; учреждения)
I17: Г.Н. Шемет
F18: (подпись) (расшифровка подписи)
F19: "17" декабря 2024 г.
A21: БЮДЖЕТНАЯ СМЕТА НА 2025 ФИНАНСОВЫЙ ГОД И ПЛАНОВЫЙ ПЕРИОД 2026 И 2027 ГОДОВ
B23: № 015/00402/002 от 17 декабря 2024 года
B24: (№, дата, справки об изменении ЛБО) | J24: КОДЫ
I25: Форма по ОКУД | J25: 0501012
I26: Дата | J26: 2024-12-17
I27: по ОКПО | J27: 51326281
A28: Получатель бюджетных средств | B28: Муниципальное общеобразовательное учреждение "Средняя общеобразовательная школа № 44"
A29: Распорядитель бюджетных средств | B29: Администрация Прионежского муниципального района Республики Карелия
A30: Главный распорядитель бюджетных средств | B30: Администрация Прионежского муниципального района Республики Карелия | I30: Глава по БК | J30: 015
A31: Наименование бюджета | B31: Бюджет Прионежского муниципального района | I31: по ОКТМО | J31: 86636410
A32: Единица измерения: | B32: руб. | I32: по ОКЕЙ | J32: 383
A34: Наименование показателя (детализация кода бюджетной классификации) | B34: РЗ | C34: ПР | D34: ЦСР | E34: Вид расхода | F34: Детализация | G34: Вид целевых средств | H34: Сумма на текущий 2025 год | I34: Сумма на первый год планового периода | J34: Сумма на второй год планового периода
A35: 1 | B35: =SUM(A35+1) -> 2 | C35: 3 | D35: 4 | E35: 5 | F35: 6 | G35: 7 | H35: 8 | I35: 9 | J35: 10
A36: Средства местного бюджета (КЦ 1000)
A37: Заработная плата | B37: 07 | C37: 02 | D37: 0220270210 | E37: 111 | F37: 211000 | G37: 1000 | H37: 451,164.48 | I37: 451,164.48 | J37: 451,164.48
A38: Расходы по оплате проезда к месту отпуска и обратно отдельным категориям лиц (для лиц, работающих в районах Крайнего Севера и приравненных к ним местностям, и членов их семей) | B38: 07 | C38: 02 | D38: 0220270210 | E38: 112 | F38: 214000 | G38: 1000 | H38: 30,000.00 | I38: 20,000.00 | J38: 20,000.00
A39: Начисления на выплаты по оплате труда | B39: 07 | C39: 02 | D39: 0220270210 | E39: 119 | F39: 213000 | G39: 1000 | H39: 136,251.67 | I39: 136,261.67 | J39: 136,251.67
A40: Услуги связи (телефон) | B40: 07 | C40: 02 | D40: 0220270210 | E40: 244 | F40: 221100 | G40: 1000 | H40: 7,416.00 | I40: 9,270.00 | J40: 11,587.50
A41: Транспортные услуги | B41: 07 | C41: 02 | D41: 0220270210 | E41: 244 | F41: 222000 | G41: 1000 | H41: 46,442.50 | I41: 58,053.13 | J41: 67,566.41
A42: Услуги связи (почта) | B42: 07 | C42: 02 | D42: 0220270210 | E42: 244 | F42: 221300 | G42: 1000 | H42: 0.00 | I42: 0.00 | J42: 0.00
A43: Обращение с твердыми коммунальными отходами (вывоз ТБО) | B43: 07 | C43: 02 | D43: 0220270210 | E43: 244 | F43: 223500 | G43: 1000 | H43: 36,117.96 | I43: 39,466.11 | J43: 41,301.62
A44: Санитарная и противопожарная (дезинфекция, дезинсекция, дератизация, газация, огнезащитная) обработка помещений | B44: 07 | C44: 02 | D44: 0220270210 | E44: 244 | F44: 225600 | G44: 1000 | H44: 39,096.90 | I44: 48,871.13 | J44: 61,088.91
A45: Содержание, обслуживание помещений и сетей инженерно-технического обеспечения | B45: 07 | C45: 02 | D45: 0220270210 | E45: 244 | F45: 225700 | G45: 1000 | H45: 196,537.10 | I45: 245,671.38 | J45: 307,089.22
A46: Другие расходы | B46: 07 | C46: 02 | D46: 0220270210 | E46: 244 | F46: 225900 | G46: 1000 | H46: 73,625.00 | I46: 86,875.00 | J46: 102,921.88
A47: Охрана ведомственная, вневедомственная, пожарная | B47: 07 | C47: 02 | D47: 0220270210 | E47: 244 | F47: 226400 | G47: 1000 | H47: 73,072.68 | I47: 83,840.84 | J47: 97,301.05
A48: Мероприятия по переподготовке и повышению квалификации кадров | B48: 07 | C48: 02 | D48: 0220270210 | E48: 244 | F48: 226700 | G48: 1000 | H48: 0.00 | I48: 0.00 | J48: 0.00
A49: Медицинский осмотр работников учреждения, за исключением водителей трансртных средств | B49: 07 | C49: 02 | D49: 0220270210 | E49: 244 | F49: 226800 | G49: 1000 | H49: 164,784.00 | I49: 214,562.50 | J49: 268,203.13
A50: Другие расходы | B50: 07 | C50: 02 | D50: 0220270210 | E50: 244 | F50: 226900 | G50: 1000 | H50: 100,000.00 | I50: 100,000.00 | J50: 100,000.00
A51: Социальные пособия и компенсации персоналу в денежной форме (пособие за первые три дня временной нетрудоспособности за счет средств работодателя) | B51: 07 | C51: 02 | D51: 0220270210 | E51: 111 | F51: 266100 | G51: 1000 | H51: 0.00 | I51: 0.00 | J51: 0.00
A52: Социальные пособия и компенсации персоналу в денежной форме (ежемесячные компенсационные выплаты в размере 50 рублей сотрудникам (работникам), находящимся в отпуске по уходу за ребенком до остижения им возраста 3 лет) | B52: 07 | C52: 02 | D52: 0220270210 | E52: 112 | F52: 266200 | G52: 1000 | H52: 0.00 | I52: 0.00 | J52: 0.00
A53: Другие расходы стоимостью до 3000,00 рублей | B53: 07 | C53: 02 | D53: 0220270210 | E53: 244 | F53: 310900 | G53: 1000 | H53: 0.00 | I53: 0.00 | J53: 0.00
A54: Увеличение стоимости лекарственных препаратов и материало, применяемых в медецинских целях | B54: 07 | C54: 02 | D54: 0220270210 | E54: 244 | F54: 341000 | G54: 1000 | H54: 9,900.00 | I54: 12,375.00 | J54: 15,468.75
A55: Топливо и ГСМ | B55: 07 | C55: 02 | D55: 0220270210 | E55: 244 | F55: 343000 | G55: 1000 | H55: 0.00 | I55: 0.00 | J55: 0.00
A56: Приобретение строительных материалов | B56: 07 | C56: 02 | D56: 0220270210 | E56: 244 | F56: 344000 | G56: 1000 | H56: 20,000.00 | I56: 20,000.00 | J56: 20,000.00
A57: Мягкий инвентарь | B57: 07 | C57: 02 | D57: 0220270210 | E57: 244 | F57: 345000 | G57: 1000 | H57: 10,000.00 | I57: 10,000.00 | J57: 10,000.00
A58: Увеличение стоимости прочих оборотных запасов (материалов) | B58: 07 | C58: 02 | D58: 0220270210 | E58: 244 | F58: 346000 | G58: 1000 | H58: 80,000.00 | I58: 80,000.00 | J58: 80,000.00
A59: Отопление, горячее водоснабжение и газоснабжение | B59: 07 | C59: 02 | D59: 0220270210 | E59: 247 | F59: 223100 | G59: 1000 | H59: 1,670,000.00 | I59: 2,040,114.43 | J59: 2,197,930.77
A60: Электроэнергия | B60: 07 | C60: 02 | D60: 0220270210 | E60: 247 | F60: 223200 | G60: 1000 | H60: 580,000.00 | I60: 684,490.00 | J60: 740,100.00
A61: Холодное водоснабжение | B61: 07 | C61: 02 | D61: 0220270210 | E61: 247 | F61: 223300 | G61: 1000 | H61: 59,330.00 | I61: 64,908.00 | J61: 69,775.59
A62: Водоотведение | B62: 07 | C62: 02 | D62: 0220270210 | E62: 247 | F62: 223400 | G62: 1000 | H62: 34,472.25 | I62: 37,710.00 | J62: 40,538.89
A63: Налог на имущство | B63: 07 | C63: 02 | D63: 0220270210 | E63: 851 | F63: 291200 | G63: 1000 | H63: 9,252.00 | I63: 9,252.00 | J63: 9,252.00
A64: Налог на имущство | B64: 07 | C64: 02 | D64: 0220270210 | E64: 851 | F64: 291300 | G64: 1000 | H64: 27,461.00 | I64: 27,461.00 | J64: 27,461.00
A65: Итого по КЦ 1000 (0702) | H65: =SUM(H37:H64) -> 3,854,923.54 | I65: =SUM(I37:I64) -> 4,480,346.67 | J65: 4,875,002.87
A66: Субсидии местным бюджетам на реализацию мероприятий государственной программы Республики Карелия "Совершенствование социальной защиты" в целях организации адресной социальной помощи семьям, имеющим детей" (КЦ24316)
A67: Пособия по социальной помощи населению в натуральной форме | B67: 10 | C67: 03 | D67: 0320243210 | E67: 323 | F67: 263000 | G67: 24316 | H67: 0.00 | I67: 0.00 | J67: 0.00
A68: Итого по КЦ 24316 | H68: =SUM(H67) -> 0.00 | I68: =SUM(I67) -> 0.00 | J68: =SUM(J67) -> 0.00
G69: Всего | H69: =H65 -> 3,854,923.54 | I69: =I65 -> 4,480,346.67 | J69: 4,875,002.87
A74: Директор | F74: И.А. Сидорова
B75: (подпись) | F75: (расшифровка подписи)
A77: Гл.бухгалтер МУ "ЦБ № 1" | F77: И.В.Ананьева
A78: (уполномоченное лицо) | B78: (подпись) | F78: (расшифровка подписи)
A80: Главный экономист ПЭО МУ "ЦБ № 1" | F80: Е. Л. Герасимова
A81: (исполнитель) | B81: (подпись) | F81: (расшифровка подписи)
A83: =F19 -> "17" декабря 2024 г.

Sheet 15.01
P1: Приложение № 2
P2: к Порядку составления, утверждения
P3: и ведения бюджетных смет Администрации
P4: Прионежского муниципального района
P5: и казенных учреждений, находящихся
P6: в ведении Администрации Прионежского
P7: муниципального района
P8: от 09 августа 2022 № 831
L10: УТВЕРЖДАЮ
L11: Глава Администрации Прионежского муниципального района
L12: (наименование должности лица, согласующего бюджетную смету)
L13: Администрация Прионежского муниципального района
L14: (наименование главного распорядителя (распорядителя) бюджетных средств; учреждения)
L16: Г. Н. Шемет
L17: (подпись) | N17: (расшифровка подписи)
L18: "15" января 2025 г.
A20: ИЗМЕНЕНИЕ К БЮДЖЕТНОЙ СМЕТЕ НА 2025 ФИНАНСОВЫЙ ГОД И ПЛАНОВЫЙ ПЕРИОД 2026 И 2027 ГОДОВ
B22: №№ 015/00402/003 от | H22: =L18 -> "15" января 2025 г.
A23: (№, дата, справки об изменении ЛБО) | P23: КОДЫ
O24: Форма по ОКУД | P24: 0501012
O25: Дата | P25: =L18 -> "15" января 2025 г.
O26: по ОКПО | P26: 51326281
A27: Получатель бюджетных средств | B27: Муниципальное общеобразовательное учреждение "Средняя общеобразовательная школа № 44"
A28: Распорядитель бюджетных средств | B28: Администрация Прионежского муниципального района Республики Карелия
A29: Главный распорядитель бюджетных средств | B29: Администрация Прионежского муниципального района Республики Карелия | O29: Глава по БК | P29: 015
A30: Наименование бюджета | B30: Бюджет Прионежского муниципального района | O30: по ОКТМО | P30: 86636410
A31: Единица измерения: | B31: руб. | O31: по ОКЕЙ | P31: 383
A33: Наименование показателя (детализация кода бюджетной классификации) | B33: РЗ | C33: ПР | D33: ЦСР | E33: Вид расхода | F33: Детализация | G33: Вид целевых средств | H33: Сумма на текущий 2025 год | K33: Сумма на первый год планового периода | N33: Сумма на второй год планового периода
H34: на 17.12.2024 г | I34: изменения(+;-) | J34: Итого | K34: =H34 -> на 17.12.2024 г | L34: изменения(+;-) | M34: Итого | N34: =H34 -> на 17.12.2024 г | O34: изменения(+;-) | P34: Итого
A35: 1 | B35: =SUM(A35+1) -> 2 | C35: 3 | D35: 4 | E35: 5 | F35: 6 | G35: 7 | H35: 8 | I35: 9 | J35: 10 | K35: 11 | L35: 12 | M35: 13 | N35: 14 | O35: 15 | P35: 16
A36: Средства местного бюджета (КЦ 1000) 0702
A37: Заработная плата | B37: 07 | C37: 02 | D37: 0220270210 | E37: 111 | F37: 211000 | G37: 1000 | H37: 451,164.48 | J37: =H37+I37 -> 451,164.48 | K37: 451,164.48 | M37: =K37+L37 -> 451,164.48 | N37: 451,164.48 | P37: =N37+O37 -> 451,164.48
A38: Социальные пособия и компенсации персоналу в денежной форме (пособие за первые три дня временной нетрудоспособности за счет средств работодателя) | B38: 07 | C38: 02 | D38: 0220270210 | E38: 111 | F38: 266100 | G38: 1000 | H38: 0.00 | J38: 0.00 | K38: 0.00 | M38: 0.00 | N38: 0.00 | P38: 0.00
A39: Расходы по оплате проезда к месту отпуска и обратно отдельным категориям лиц (для лиц, работающих в районах Крайнего Севера и приравненных к ним местностям, и членов их семей) | B39: 07 | C39: 02 | D39: 0220270210 | E39: 112 | F39: 214000 | G39: 1000 | H39: 30,000.00 | J39: 30,000.00 | K39: 20,000.00 | M39: 20,000.00 | N39: 20,000.00 | P39: 20,000.00
A40: Начисления на выплаты по оплате труда | B40: 07 | C40: 02 | D40: 0220270210 | E40: 119 | F40: 213000 | G40: 1000 | H40: 136,251.67 | J40: 136,251.67 | K40: 136,261.67 | M40: 136,261.67 | N40: 136,251.67 | P40: 136,251.67
A41: Услуги связи (телефон) | B41: 07 | C41: 02 | D41: 0220270210 | E41: 244 | F41: 221100 | G41: 1000 | H41: 7,416.00 | J41: 7,416.00 | K41: 9,270.00 | M41: 9,270.00 | N41: 11,587.50 | P41: 11,587.50
A42: Услуги связи (почта) | B42: 07 | C42: 02 | D42: 0220270210 | E42: 244 | F42: 221300 | G42: 1000 | H42: 0.00 | J42: 0.00 | K42: 0.00 | M42: 0.00 | N42: 0.00 | P42: 0.00
A43: Транспортные услуги | B43: 07 | C43: 02 | D43: 0220270210 | E43: 244 | F43: 222000 | G43: 1000 | H43: 46,442.50 | J43: =H43+I43 -> 46,442.50 | K43: 58,053.13 | M43: =K43+L43 -> 58,053.13 | N43: 67,566.41 | P43: =N43+O43 -> 67,566.41
A44: Холодное водоснабжение | B44: 07 | C44: 02 | D44: 0220270210 | E44: 244 | F44: 223300 | G44: 1000 | H44: 0.00 | J44: 0.00 | K44: 0.00 | M44: 0.00 | N44: 0.00 | P44: 0.00
A45: Водоотведение | B45: 07 | C45: 02 | D45: 0220270210 | E45: 244 | F45: 223400 | G45: 1000 | H45: 0.00 | J45: 0.00 | K45: 0.00 | M45: 0.00 | N45: 0.00 | P45: 0.00
A46: Обращение с твердыми коммунальными отходами (вывоз ТБО) | B46: 07 | C46: 02 | D46: 0220270210 | E46: 244 | F46: 223500 | G46: 1000 | H46: 36,117.96 | J46: 36,117.96 | K46: 39,466.11 | M46: 39,466.11 | N46: 41,301.62 | P46: 41,301.62
A47: Техническое обслуживание внутренних сетей отопления и горячего водоснабжения | B47: 07 | C47: 02 | D47: 0220270210 | E47: 244 | F47: 225200 | G47: 1000 | H47: 0.00 | J47: 0.00 | K47: 0.00 | M47: 0.00 | N47: 0.00 | P47: 0.00
A48: Санитарная и противопожарная (дезинфекция, дезинсекция, дератизация, газация, огнезащитная) обработка помещений | B48: 07 | C48: 02 | D48: 0220270210 | E48: 244 | F48: 225600 | G48: 1000 | H48: 39,096.90 | J48: 39,096.90 | K48: 48,871.13 | M48: 48,871.13 | N48: 61,088.91 | P48: 61,088.91
A49: Содержание, обслуживание помещений и сетей инженерно-технического обеспечения | B49: 07 | C49: 02 | D49: 0220270210 | E49: 244 | F49: 225700 | G49: 1000 | H49: 196,537.10 | J49: 196,537.10 | K49: 245,671.38 | M49: 245,671.38 | N49: 307,089.22 | P49: 307,089.22
A50: Текущий ремонт помещений и сетей инженерно-технического обеспечения | B50: 07 | C50: 02 | D50: 0220270210 | E50: 244 | F50: 225800 | G50: 1000 | H50: 0.00 | J50: 0.00 | K50: 0.00 | M50: 0.00 | N50: 0.00 | P50: 0.00
A51: Другие расходы | B51: 07 | C51: 02 | D51: 0220270210 | E51: 244 | F51: 225900 | G51: 1000 | H51: 73,625.00 | I51: 20,000.00 | J51: 93,625.00 | K51: 86,875.00 | M51: 86,875.00 | N51: 102,921.88 | P51: 102,921.88
A52: Аттестация | B52: 07 | C52: 02 | D52: 0220270210 | E52: 244 | F52: 226200 | G52: 1000 | H52: 0.00 | J52: =H52+I52 -> 0.00 | K52: 0.00 | M52: =K52+L52 -> 0.00 | N52: 0.00 | P52: =N52+O52 -> 0.00
A53: Охрана ведомственная, вневедомственная, пожарная | B53: 07 | C53: 02 | D53: 0220270210 | E53: 244 | F53: 226400 | G53: 1000 | H53: 73,072.68 | J53: 73,072.68 | K53: 83,840.84 | M53: 83,840.84 | N53: 97,301.05 | P53: 97,301.05
A54: Мероприятия по переподготовке и повышению квалификации кадров | B54: 07 | C54: 02 | D54: 0220270210 | E54: 244 | F54: 226700 | G54: 1000 | H54: 0.00 | J54: 0.00 | K54: 0.00 | M54: 0.00 | N54: 0.00 | P54: 0.00
A55: Медицинский осмотр работников учреждения, за исключением водителей трансртных средств | B55: 07 | C55: 02 | D55: 0220270210 | E55: 244 | F55: 226800 | G55: 1000 | H55: 164,784.00 | J55: 164,784.00 | K55: 214,562.50 | M55: 214,562.50 | N55: 268,203.13 | P55: 268,203.13
A56: Другие расходы | B56: 07 | C56: 02 | D56: 0220270210 | E56: 244 | F56: 226900 | G56: 1000 | H56: 100,000.00 | J56: 100,000.00 | K56: 100,000.00 | M56: 100,000.00 | N56: 100,000.00 | P56: 100,000.00
A57: Обязательное страхование автогражданской ответственности | B57: 07 | C57: 02 | D57: 0220270210 | E57: 244 | F57: 227200 | G57: 1000 | H57: 0.00 | J57: =H57+I57 -> 0.00 | K57: 0.00 | M57: =K57+L57 -> 0.00 | N57: 0.00 | P57: =N57+O57 -> 0.00
A58: Расходы на оплату услуг по страхованию здоровья | B58: 07 | C58: 02 | D58: 0220270210 | E58: 244 | F58: 227300 | G58: 1000 | H58: 0.00 | J58: =H58+I58 -> 0.00 | K58: 0.00 | M58: =K58+L58 -> 0.00 | N58: 0.00 | P58: =N58+O58 -> 0.00
A59: Приобретение предметов длительного пользования (оборудование, мебель, компьютерная техника и т.п) стоимостью свыше 3000 рублей | B59: 07 | C59: 02 | D59: 0220270210 | E59: 244 | F59: 310100 | G59: 1000 | H59: 0.00 | J59: 0.00 | K59: 0.00 | M59: 0.00 | N59: 0.00 | P59: 0.00
A60: Другие расходы стоимостью до 3000,00 рублей | B60: 07 | C60: 02 | D60: 0220270210 | E60: 244 | F60: 310900 | G60: 1000 | H60: 0.00 | J60: 0.00 | K60: 0.00 | M60: 0.00 | N60: 0.00 | P60: 0.00
A61: Увеличение стоимости лекарственных препаратов и материалов, применяемых в медицинских целях | B61: 07 | C61: 02 | D61: 0220270210 | E61: 244 | F61: 341000 | G61: 1000 | H61: 9,900.00 | J61: =H61+I61 -> 9,900.00 | K61: 12,375.00 | M61: =K61+L61 -> 12,375.00 | N61: 15,468.75 | P61: =N61+O61 -> 15,468.75
A62: Приобретение строительных материалов | B62: 07 | C62: 02 | D62: 0220270210 | E62: 244 | F62: 344000 | G62: 1000 | H62: 20,000.00 | J62: 20,000.00 | K62: 20,000.00 | M62: 20,000.00 | N62: 20,000.00 | P62: 20,000.00
A63: Мягкий инвентарь | B63: 07 | C63: 02 | D63: 0220270210 | E63: 244 | F63: 345000 | G63: 1000 | H63: 10,000.00 | J63: =H63+I63 -> 10,000.00 | K63: 10,000.00 | M63: =K63+L63 -> 10,000.00 | N63: 10,000.00 | P63: =N63+O63 -> 10,000.00
A64: Увеличение стоимости прочих оборотных запасов (материалов) | B64: 07 | C64: 02 | D64: 0220270210 | E64: 244 | F64: 346000 | G64: 1000 | H64: 80,000.00 | J64: 80,000.00 | K64: 80,000.00 | M64: 80,000.00 | N64: 80,000.00 | P64: 80,000.00
A65: Увеличение стоимости прочих оборотных запасов однократного применения | B65: 07 | C65: 02 | D65: 0220270210 | E65: 244 | F65: 349100 | G65: 1000 | H65: 0.00 | J65: 0.00 | K65: 0.00 | M65: 0.00 | N65: 0.00 | P65: 0.00
A66: Отопление, горячее водоснабжение и газоснабжение | B66: 07 | C66: 02 | D66: 0220270210 | E66: 247 | F66: 223100 | G66: 1000 | H66: 1,670,000.00 | J66: 1,670,000.00 | K66: 2,040,114.43 | M66: 2,040,114.43 | N66: 2,197,930.77 | P66: 2,197,930.77
A67: Электроэнергия | B67: 07 | C67: 02 | D67: 0220270210 | E67: 247 | F67: 223200 | G67: 1000 | H67: 580,000.00 | J67: 580,000.00 | K67: 684,490.00 | M67: 684,490.00 | N67: 740,100.00 | P67: 740,100.00
A68: Холодное водоснабжение | B68: 07 | C68: 02 | D68: 0220270210 | E68: 247 | F68: 223300 | G68: 1000 | H68: 59,330.00 | J68: 59,330.00 | K68: 64,908.00 | M68: 64,908.00 | N68: 69,775.59 | P68: 69,775.59
A69: Водоотведение | B69: 07 | C69: 02 | D69: 0220270210 | E69: 247 | F69: 223400 | G69: 1000 | H69: 34,472.25 | J69: 34,472.25 | K69: 37,710.00 | M69: 37,710.00 | N69: 40,538.89 | P69: 40,538.89
A70: Пособия по социальной помощи населению в натуральной форме | B70: 07 | C70: 02 | D70: 0220270210 | E70: 323 | F70: 263000 | G70: 1000 | H70: 0.00 | J70: =H70+I70 -> 0.00 | K70: 0.00 | M70: 0.00 | N70: 0.00 | P70: 0.00
A71: Налог на имущство | B71: 07 | C71: 02 | D71: 0220270210 | E71: 851 | F71: 291200 | G71: 1000 | H71: 9,252.00 | J71: 9,252.00 | K71: 9,252.00 | M71: 9,252.00 | N71: 9,252.00 | P71: 9,252.00
A72: Земельный налог, в том числе в период строительства объекта | B72: 07 | C72: 02 | D72: 0220270210 | E72: 851 | F72: 291300 | G72: 1000 | H72: 27,461.00 | J72: 27,461.00 | K72: 27,461.00 | M72: 27,461.00 | N72: 27,461.00 | P72: 27,461.00
A73: Штрафы за нарушение законодательства о налогах и сборах, законодательства о страховых взносах | B73: 07 | C73: 02 | D73: 0220270210 | E73: 853 | F73: 292000 | G73: 1000 | J73: =H73+I73 -> 0.00 | M73: =K73+L73 -> 0.00 | P73: =N73+O73 -> 0.00
A74: Иные выплаты текущего характера физическим лицам (возмещение убытков, вреда и судебных издержек) | B74: 07 | C74: 02 | D74: 0220270210 | E74: 853 | F74: 296100 | G74: 1000 | J74: =H74+I74 -> 0.00 | M74: =K74+L74 -> 0.00 | P74: =N74+O74 -> 0.00
A75: Транспортный налог | B75: 07 | C75: 02 | D75: 0220270210 | E75: 852 | F75: 291400 | G75: 1000 | J75: 0.00 | M75: 0.00 | P75: 0.00
A76: Штрафы за нарушение законодательства о закупках и нарушенияе условий контракта (договоров) | B76: 07 | C76: 02 | D76: 0220270210 | E76: 831 | F76: 293000 | G76: 1000 | J76: 0.00 | M76: 0.00 | P76: 0.00
A77: Другие экономические санкции | B77: 07 | C77: 02 | D77: 0220270210 | E77: 853 | F77: 295000 | G77: 1000 | J77: 0.00 | M77: 0.00 | P77: 0.00
A78: Иные выплаты текущего характера организациям (возмещение убытков, вред и судебных издержек) | B78: 07 | C78: 02 | D78: 0220270210 | E78: 851 | F78: 297100 | G78: 1000 | J78: 0.00 | M78: 0.00 | P78: 0.00
A79: Другие расходы | B79: 07 | C79: 02 | D79: 0400072910 | E79: 244 | F79: 226900 | G79: 1000 | J79: 0.00 | M79: 0.00 | P79: 0.00
A80: Заработная плата | B80: 07 | C80: 02 | D80: 0920070260 | E80: 111 | F80: 211000 | G80: 1000 | J80: 0.00 | M80: 0.00 | P80: 0.00
A81: Начисления на выплаты по оплате труда | B81: 07 | C81: 02 | D81: 0920070260 | E81: 119 | F81: 213000 | G81: 1000 | J81: 0.00 | M81: 0.00 | P81: 0.00
A82: Итого по КЦ 1000 | H82: =SUM(H37:H81) -> 3,854,923.54 | I82: 20,000.00 | J82: 3,874,923.54 | K82: 4,480,346.67 | L82: 0.00 | M82: 4,480,346.67 | N82: 4,875,002.87 | O82: 0.00 | P82: 4,875,002.87
A83: Субвенция на обеспечение государственных гарантий реализации прав на получение общедоступного и бесплатного дошкольного образования в муниципальных дошкольных образовательных организациях, общедоступного и бесплатного дошкольного, начального общего, основного общего, среднего общего образования в муниципальных общеобразовательных организациях, обеспечение дополнительного образования детей в муниципальных общеобразовательных организациях (КЦ 24424219000219)
A84: Заработная плата | B84: 07 | C84: 02 | D84: 0220242190 | E84: 111 | F84: 211000 | G84: 24424219000219 | J84: =H84+I84 -> 0.00 | K84: 0.00 | M84: =K84+L84 -> 0.00 | N84: 0.00 | P84: =N84+O84 -> 0.00
A85: Социальные пособия и компенсации персоналу в денежной форме (пособие за первые три дня временной нетрудоспособности за счет средств работодателя) | B85: 07 | C85: 02 | D85: 0220242190 | E85: 111 | F85: 266100 | G85: 24424219000219 | J85: 0.00 | K85: 0.00 | M85: 0.00 | N85: 0.00 | P85: 0.00
A86: Начисления на выплаты по оплате труда | B86: 07 | C86: 02 | D86: 0220242190 | E86: 119 | F86: 213000 | G86: 24424219000219 | J86: 0.00 | K86: 0.00 | M86: 0.00 | N86: 0.00 | P86: 0.00
A87: Услуги связи (интернет) | B87: 07 | C87: 02 | D87: 0220242190 | E87: 244 | F87: 221200 | G87: 24424219000219 | J87: 0.00 | M87: 0.00 | P87: 0.00
A88: Услуги связи (интернет) | B88: 07 | C88: 02 | D88: 0220242190 | E88: 244 | F88: 221200 | G88: 24424219000219 | J88: =H88+I88 -> 0.00 | K88: 0.00 | M88: =K88+L88 -> 0.00 | N88: 0.00 | P88: =N88+O88 -> 0.00
A89: Транспортные услуги | B89: 07 | C89: 02 | D89: 0220242190 | E89: 244 | F89: 222000 | G89: 24424219000219 | J89: 0.00 | K89: 0.00 | M89: 0.00 | N89: 0.00 | P89: 0.00
A90: Другие расходы | B90: 07 | C90: 02 | D90: 0220242190 | E90: 244 | F90: 226900 | G90: 24424219000219 | J90: =H90+I90 -> 0.00 | K90: 0.00 | M90: =K90+L90 -> 0.00 | N90: 0.00 | P90: =N90+O90 -> 0.00
A91: Приобретение предметов длительного пользования (оборудование, мебель, компьютерная техника и т.п.) стоимостью свыше 3000,00 руб. | B91: 07 | C91: 02 | D91: 0220242190 | E91: 244 | F91: 310100 | G91: 24424219000219 | J91: =H91+I91 -> 0.00 | K91: 0.00 | M91: =K91+L91 -> 0.00 | N91: 0.00 | P91: =N91+O91 -> 0.00
A92: Комплектование библиотечного фонда | B92: 07 | C92: 02 | D92: 0220242190 | E92: 244 | F92: 310200 | G92: 24424219000219 | J92: 0.00 | K92: 0.00 | M92: 0.00 | N92: 0.00 | P92: 0.00
A93: Другие расходы стоимостью до 3000,00 рублей | B93: 07 | C93: 02 | D93: 0220242190 | E93: 244 | F93: 310900 | G93: 24424219000219 | J93: 0.00 | K93: 0.00 | M93: 0.00 | N93: 0.00 | P93: 0.00
A94: Мягкий инвентарь | B94: 07 | C94: 02 | D94: 0220242190 | E94: 244 | F94: 345000 | G94: 24424219000219 | J94: 0.00 | M94: 0.00 | P94: 0.00
A95: Увеличение стоимости прочих оборотных запасов (материалов) | B95: 07 | C95: 02 | D95: 0220242190 | E95: 244 | F95: 346000 | G95: 24424219000219 | J95: 0.00 | K95: 0.00 | M95: 0.00 | N95: 0.00 | P95: 0.00
A96: Увеличение стоимости прочих материальных запасов однократного применения | B96: 07 | C96: 02 | D96: 0220242190 | E96: 244 | F96: 349100 | G96: 24424219000219 | J96: 0.00 | K96: 0.00 | M96: 0.00 | N96: 0.00 | P96: 0.00
A97: Мероприятия по переподготовке и повышению квалификации кадров | B97: 07 | C97: 05 | D97: 0220242190 | E97: 244 | F97: 226700 | G97: 23424219000219 | J97: 0.00 | K97: 0.00 | M97: 0.00 | N97: 0.00 | P97: 0.00
A98: Итого по КЦ 24424219000219 | H98: =SUM(H84:H97) -> 0.00 | I98: 0.00 | J98: 0.00 | K98: 0.00 | L98: 0.00 | M98: 0.00 | N98: 0.00 | O98: 0.00 | P98: 0.00
A99: Иные межбюджетные трансферты на ежемесячное денежное вознаграждение за классное руководство педагогическим работникам государственных и муниципальных образовательных организаций, реализующих образовательные программы начального общего образования, образовательные программы основного общего образования, образовательные программы среднего общего образования (КЦ 24-53030-00000-00000)
A100: Заработная плата | B100: 07 | C100: 02 | D100: 0220253030 | E100: 111 | F100: 211000 | G100: 24-53030-00000-00000 | J100: =H100+I100 -> 0.00 | K100: 0.00 | M100: =K100+L100 -> 0.00 | N100: 0.00 | P100: =N100+O100 -> 0.00
A101: Начисления на выплаты по оплате труда | B101: 07 | C101: 02 | D101: 0220253030 | E101: 119 | F101: 213000 | G101: 24-53030-00000-00000 | J101: =H101+I101 -> 0.00 | K101: 0.00 | M101: =K101+L101 -> 0.00 | N101: 0.00 | P101: =N101+O101 -> 0.00
A102: Итого по КЦ 24-53030-00000-00000 | H102: =SUM(H100:H101) -> 0.00 | I102: 0.00 | J102: 0.00 | K102: 0.00 | L102: 0.00 | M102: 0.00 | N102: 0.00 | O102: 0.00 | P102: 0.00
A103: Иные межбюджетные трансферты на обеспечение выплат ежемесячного денежного вознаграждения советникам директоров по воспитанию и взаимодействию с детскими общественными объединениями государственных, муниципальных общеобразовательных организаций, профессиональных образовательных организацийх (КЦ 24-50500-00000-00000 )
A104: Заработная плата | B104: 07 | C104: 02 | D104: 0220250500 | E104: 111 | F104: 211000 | G104: 24-50500-00000-00000 | J104: =H104+I104 -> 0.00 | K104: 0.00 | M104: =K104+L104 -> 0.00 | N104: 0.00 | P104: =N104+O104 -> 0.00
A105: Начисления на выплаты по оплате труда | B105: 07 | C105: 02 | D105: 0220250500 | E105: 119 | F105: 213000 | G105: 24-50500-00000-00000 | J105: =H105+I105 -> 0.00 | K105: 0.00 | M105: =K105+L105 -> 0.00 | N105: 0.00 | P105: =N105+O105 -> 0.00
A106: Итого по КЦ 24-53030-00000-00000 | H106: =SUM(H104:H105) -> 0.00 | I106: 0.00 | J106: 0.00 | K106: 0.00 | L106: 0.00 | M106: 0.00 | N106: 0.00 | O106: 0.00 | P106: 0.00
A107: Субвенции на осуществление государственных полномочий РеспубликиКарелия по представлению предусмотренных пунктом 5 части 1 статьи 9 Закона Республики Карелия от 20 декабря 2013 гоа № 1755_ЗРК "Об образовании" мер социальной поддержки и социального обслуживания (КЦ 24424210000210)
A108: Увеличение стоимости прочих оборотных запасов (материалов) | B108: 07 | C108: 02 | D108: 0220242100 | E108: 244 | F108: 346000 | G108: 24424210000210 | J108: =H108+I108 -> 0.00 | K108: 0.00 | M108: =K108+L108 -> 0.00 | N108: 0.00 | P108: =N108+O108 -> 0.00
A109: Пособия по социальной помощи населению в натуральной форме | B109: 07 | C109: 02 | D109: 0220242100 | E109: 323 | F109: 263000 | G109: 24424210000210 | J109: =H109+I109 -> 0.00 | K109: 0.00 | M109: =K109+L109 -> 0.00 | N109: 0.00 | P109: =N109+O109 -> 0.00
A110: Увеличение стоимости прочих оборотных запасов (материалов) | B110: 07 | C110: 02 | D110: 0220242100 | E110: 323 | F110: 346000 | G110: 23424210000210 | J110: =H110+I110 -> 0.00 | K110: 0.00 | M110: =K110+L110 -> 0.00 | N110: 0.00 | P110: =N110+O110 -> 0.00
A111: Итого по КЦ 24424210000210 | H111: =SUM(H108:H110) -> 0.00 | I111: 0.00 | J111: 0.00 | K111: 0.00 | L111: 0.00 | M111: 0.00 | N111: 0.00 | O111: 0.00 | P111: 0.00
A112: Субвенции на осуществление государственных полномочий Республики Карелия по выплате компенсации платы, взимаемой с родителей (законных представителей) за присмотр и уход за детьми, осваивающими образовательные программы дошкольного образования в организа
A113: Пособия по социальной помощи населению в натуральной форме | B113: 10 | C113: 04 | D113: 0220142030 | E113: 323 | F113: 263000 | G113: 23424203000203 | J113: =H113+I113 -> 0.00 | K113: 0.00 | M113: =K113+L113 -> 0.00 | N113: 0.00 | P113: =N113+O113 -> 0.00
A114: Итого по КЦ 23424203000203 | H114: =SUM(H113) -> 0.00 | I114: 0.00 | J114: 0.00 | K114: 0.00 | L114: 0.00 | M114: 0.00 | N114: 0.00 | O114: 0.00 | P114: 0.00
A115: Субсидии на организацию бесплатного горячего питания обучающихся, получающих начальное общее образование в государственных и муниципальных образовательных организациях (КЦ 24-53040-00000-00002)
A116: Другие расходы | B116: 07 | C116: 02 | D116: 02202L3040 | E116: 244 | F116: 226900 | G116: 24-53040-00000-00002 | H116: 0.00 | J116: =H116+I116 -> 0.00 | K116: 0.00 | M116: =K116+L116 -> 0.00 | N116: 0.00 | P116: =N116+O116 -> 0.00
A117: Итого по КЦ 24-53040-00000-00002 | H117: =SUM(H116:H116) -> 0.00 | I117: 0.00 | J117: 0.00 | K117: 0.00 | L117: 0.00 | M117: 0.00 | N117: 0.00 | O117: 0.00 | P117: 0.00
A118: Субсидии на организацию бесплатного горячего питания обучающихся, получающих начальное общее образование в государственных и муниципальных образовательных организациях (КЦ 24-53040-00000-00000)
A119: Другие расходы | B119: 07 | C119: 02 | D119: 02202L3040 | E119: 244 | F119: 226900 | G119: 24-53040-00000-00000 | J119: =H119+I119 -> 0.00 | K119: 0.00 | M119: =K119+L119 -> 0.00 | N119: 0.00 | P119: =N119+O119 -> 0.00
A120: Итого по КЦ 24-53040-00000-00000 | H120: =SUM(H119:H119) -> 0.00 | I120: 0.00 | J120: 0.00 | K120: 0.00 | L120: 0.00 | M120: 0.00 | N120: 0.00 | O120: 0.00 | P120: 0.00
A121: Субсидия на реализацию мероприятий государственной программы Республики Карелия "Совершенствование социальной защиты граждан" в целях организации адресной социальной помощи семьям, имеющим детей (КЦ 24434321000316)
A122: Пособия по социальной помощи населению в натуральной форме | B122: 10 | C122: 03 | D122: 0320243210 | E122: 323 | F122: 263000 | G122: 24434321000316 | J122: =H122+I122 -> 0.00 | K122: 0.00 | M122: =K122+L122 -> 0.00 | N122: 0.00 | P122: =N122+O122 -> 0.00
A123: Пособия по социальной помощи населению в натуральной форме | B123: 10 | C123: 03 | D123: 0320243210 | E123: 323 | F123: 263000 | G123: 24434321000316 | J123: =H123+I123 -> 0.00 | K123: 0.00 | M123: =K123+L123 -> 0.00 | N123: 0.00 | P123: =N123+O123 -> 0.00
A124: Итого по КЦ 24434321000316 | H124: =SUM(H122:H123) -> 0.00 | I124: =SUM(I122:I123) -> 0.00 | J124: =SUM(J122:J123) -> 0.00 | K124: =SUM(K123) -> 0.00 | L124: 0.00 | M124: 0.00 | N124: 0.00 | O124: 0.00 | P124: 0.00
A125: Пособия по социальной помощи населению в натуральной форме | B125: 10 | C125: 03 | D125: 03202S3210 | E125: 323 | F125: 263000 | G125: 1000 | J125: =H125+I125 -> 0.00 | K125: 0.00 | M125: 0.00 | N125: 0.00 | P125: 0.00
A126: Итого по КЦ 1000 | H126: =SUM(H125:H125) -> 0.00 | I126: 0.00 | J126: 0.00 | K126: 0.00 | L126: 0.00 | M126: 0.00 | N126: 0.00 | O126: 0.00 | P126: 0.00
A127: Субсидия местным бюджетам на реализацию мероприятий государственной программы Республики Карелия "Совершенствование социальной защиты граждан" (КЦ 2343432000321)
A128: Увеличение стоимости прочих оборотных запасов (материалов) | B128: 07 | C128: 09 | D128: 0220243210 | E128: 244 | F128: 346000 | G128: 2343432000321 | J128: =H128+I128 -> 0.00 | K128: 0.00 | M128: =K128+L128 -> 0.00 | N128: 0.00 | P128: =N128+O128 -> 0.00
A129: Другие расходы | B129: 07 | C129: 09 | D129: 0220243210 | E129: 244 | F129: 226900 | G129: 2343432000321 | J129: 0.00 | K129: 0.00 | M129: 0.00 | N129: 0.00 | P129: 0.00
A130: Транспортные услуги | B130: 07 | C130: 09 | D130: 0220243210 | E130: 244 | F130: 222000 | G130: 2343432000321 | J130: 0.00 | K130: 0.00 | M130: 0.00 | N130: 0.00 | P130: 0.00
A131: Увеличение стоимости прочих оборотных запасов (материалов) | B131: 07 | C131: 09 | D131: 02202S3210 | E131: 244 | F131: 346000 | G131: 1000 | J131: 0.00 | K131: 0.00 | M131: 0.00 | N131: 0.00 | P131: 0.00
A132: Другие расходы | B132: 07 | C132: 09 | D132: 02202S3210 | E132: 244 | F132: 226900 | G132: 1000 | J132: 0.00 | K132: 0.00 | M132: 0.00 | N132: 0.00 | P132: 0.00
A133: Транспортные услуги | B133: 07 | C133: 09 | D133: 02202S3210 | E133: 244 | F133: 222000 | G133: 1000 | J133: 0.00 | K133: 0.00 | M133: 0.00 | N133: 0.00 | P133: 0.00
A134: Итого по КЦ 2343432000321 | H134: =SUM(H128:H133) -> 0.00 | I134: 0.00 | J134: 0.00 | K134: 0.00 | L134: 0.00 | M134: 0.00 | N134: 0.00 | O134: 0.00 | P134: 0.00
A135: Иные межбюджетные трансферты на компенсацию затрат, связанных с освобождением членов семей постоянно проживающих на территории Республики Карелия граждан, призванных военным комиссариатом Республики Карелия на военную службу по мобилизации, а также гражд
A136: Продукты питания | B136: 07 | C136: 01 | D136: 0220175040 | E136: 244 | F136: 342000 | G136: 234475040П0514 | J136: =H136+I136 -> 0.00 | K136: 0.00 | M136: =K136+L136 -> 0.00 | N136: 0.00 | O136: =M136+N136 -> 0.00 | P136: =N136+O136 -> 0.00
A137: Итого по КЦ 234475040П0514 | H137: =SUM(H136) -> 0.00 | I137: 0.00 | J137: 0.00 | K137: 0.00 | L137: 0.00 | M137: 0.00 | N137: 0.00 | O137: 0.00 | P137: 0.00
A138: Субсидии на проведение мероприятий по обеспечению деятельности советников директора по воспитанию и взаимодействию с детскими общественными объединениями в общеобразовательных организация (КЦ 23-51790-00000-00000)
A139: Заработная плата | B139: 07 | C139: 02 | D139: 022ЕВ51790 | E139: 111 | F139: 211000 | G139: 23-51790-00000-00000 | H139: 0.00 | J139: =H139+I139 -> 0.00 | K139: 0.00 | M139: =K139+L139 -> 0.00 | N139: 0.00 | P139: =N139+O139 -> 0.00
A140: Начисления на выплаты по оплате труда | B140: 07 | C140: 02 | D140: 022ЕВ51790 | E140: 119 | F140: 213000 | G140: 23-51790-00000-00000 | H140: 0.00 | J140: =H140+I140 -> 0.00 | K140: 0.00 | M140: =K140+L140 -> 0.00 | N140: 0.00 | P140: =N140+O140 -> 0.00
A141: Итого по КЦ 23-51790-00000-00000 | H141: =SUM(H139:H140) -> 0.00 | I141: 0.00 | J141: 0.00 | K141: 0.00 | L141: 0.00 | M141: 0.00 | N141: 0.00 | O141: 0.00 | P141: 0.00
A142: Субсидии на проведение мероприятий по обеспечению деятельности советников директора по воспитанию и взаимодействию с детскими общественными объединениями в общеобразовательных организация (КЦ 24-51790-00000-00000)
A143: Заработная плата | B143: 07 | C143: 02 | D143: 022ЕВ51790 | E143: 111 | F143: 211000 | G143: 24-51790-00000-00000 | J143: =H143+I143 -> 0.00 | K143: 0.00 | M143: =K143+L143 -> 0.00 | N143: 0.00 | P143: =N143+O143 -> 0.00
A144: Начисления на выплаты по оплате труда | B144: 07 | C144: 02 | D144: 022ЕВ51790 | E144: 119 | F144: 213000 | G144: 24-51790-00000-00000 | J144: =H144+I144 -> 0.00 | K144: 0.00 | M144: =K144+L144 -> 0.00 | N144: 0.00 | P144: =N144+O144 -> 0.00
A145: Итого по КЦ 24-51790-00000-00000 | H145: =SUM(H143:H144) -> 0.00 | I145: 0.00 | J145: 0.00 | K145: 0.00 | L145: 0.00 | M145: 0.00 | N145: 0.00 | O145: 0.00 | P145: 0.00
G146: Всего | H146: =H82+H98+H111+H114+H117+H124+H126+H145+H141+H106+H102+H120 -> 3,854,923.54 | I146: =I82+I98+I111+I114+I117+I124+I126+I145+I141+I106+I102+I120 -> 20,000.00 | J146: 3,874,923.54 | K146: 4,480,346.67 | L146: 0.00 | M146: 4,480,346.67 | N146: 4,875,002.87 | O146: 0.00 | P146: 4,875,002.87
A150: Директор | F150: И.А. Сидорова
B151: (подпись) | F151: (расшифровка подписи)
A153: Гл.бухгалтер МУ "ЦБ № 1" | F153: И.В. Ананьева
A154: (уполномоченное лицо) | B154: (подпись) | F154: (расшифровка подписи)
A156: Главный экономист ПЭО МУ "ЦБ № 1" | F156: Е.Л. Герасимова
A157: (исполнитель) | B157: (подпись) | F157: (расшифровка подписи)
A159: =L18 -> "15" января 2025 г.

Sheet 17.01
P1: Приложение № 2
P2: к Порядку составления, утверждения
P3: и ведения бюджетных смет Администрации
P4: Прионежского муниципального района
P5: и казенных учреждений, находящихся
P6: в ведении Администрации Прионежского
P7: муниципального района
P8: от 09 августа 2022 № 831
L10: УТВЕРЖДАЮ
L11: Глава Администрации Прионежского муниципального района
L12: (наименование должности лица, согласующего бюджетную смету)
L13: Администрация Прионежского муниципального района
L14: (наименование главного распорядителя (распорядителя) бюджетных средств; учреждения)
L16: Г. Н. Шемет
L17: (подпись) | N17: (расшифровка подписи)
L18: "17" января 2025 г.
A20: ИЗМЕНЕНИЕ К БЮДЖЕТНОЙ СМЕТЕ НА 2025 ФИНАНСОВЫЙ ГОД И ПЛАНОВЫЙ ПЕРИОД 2026 И 2027 ГОДОВ
B22: №№ 015/00402/005 от | H22: =L18 -> "17" января 2025 г.
A23: (№, дата, справки об изменении ЛБО) | P23: КОДЫ
O24: Форма по ОКУД | P24: 0501012
O25: Дата | P25: =L18 -> "17" января 2025 г.
O26: по ОКПО | P26: 51326281
A27: Получатель бюджетных средств | B27: Муниципальное общеобразовательное учреждение "Средняя общеобразовательная школа № 44"
A28: Распорядитель бюджетных средств | B28: Администрация Прионежского муниципального района Республики Карелия
A29: Главный распорядитель бюджетных средств | B29: Администрация Прионежского муниципального района Республики Карелия | O29: Глава по БК | P29: 015
A30: Наименование бюджета | B30: Бюджет Прионежского муниципального района | O30: по ОКТМО | P30: 86636410
A31: Единица измерения: | B31: руб. | O31: по ОКЕЙ | P31: 383
A33: Наименование показателя (детализация кода бюджетной классификации) | B33: РЗ | C33: ПР | D33: ЦСР | E33: Вид расхода | F33: Детализация | G33: Вид целевых средств | H33: Сумма на текущий 2025 год | K33: Сумма на первый год планового периода | N33: Сумма на второй год планового периода
H34: на 15.01.2025 г | I34: изменения(+;-) | J34: Итого | K34: =H34 -> на 15.01.2025 г | L34: изменения(+;-) | M34: Итого | N34: =H34 -> на 15.01.2025 г | O34: изменения(+;-) | P34: Итого
A35: 1 | B35: =SUM(A35+1) -> 2 | C35: 3 | D35: 4 | E35: 5 | F35: 6 | G35: 7 | H35: 8 | I35: 9 | J35: 10 | K35: 11 | L35: 12 | M35: 13 | N35: 14 | O35: 15 | P35: 16
A36: Средства местного бюджета (КЦ 1000) 0702
A37: Заработная плата | B37: 07 | C37: 02 | D37: 0220270210 | E37: 111 | F37: 211000 | G37: 1000 | H37: 451,164.48 | J37: =H37+I37 -> 451,164.48 | K37: 451,164.48 | M37: =K37+L37 -> 451,164.48 | N37: 451,164.48 | P37: =N37+O37 -> 451,164.48
A38: Социальные пособия и компенсации персоналу в денежной форме (пособие за первые три дня временной нетрудоспособности за счет средств работодателя) | B38: 07 | C38: 02 | D38: 0220270210 | E38: 111 | F38: 266100 | G38: 1000 | H38: 0.00 | J38: 0.00 | K38: 0.00 | M38: 0.00 | N38: 0.00 | P38: 0.00
A39: Расходы по оплате проезда к месту отпуска и обратно отдельным категориям лиц (для лиц, работающих в районах Крайнего Севера и приравненных к ним местностям, и членов их семей) | B39: 07 | C39: 02 | D39: 0220270210 | E39: 112 | F39: 214000 | G39: 1000 | H39: 30,000.00 | J39: 30,000.00 | K39: 20,000.00 | M39: 20,000.00 | N39: 20,000.00 | P39: 20,000.00
A40: Начисления на выплаты по оплате труда | B40: 07 | C40: 02 | D40: 0220270210 | E40: 119 | F40: 213000 | G40: 1000 | H40: 136,251.67 | J40: 136,251.67 | K40: 136,261.67 | M40: 136,261.67 | N40: 136,251.67 | P40: 136,251.67
A41: Услуги связи (телефон) | B41: 07 | C41: 02 | D41: 0220270210 | E41: 244 | F41: 221100 | G41: 1000 | H41: 7,416.00 | J41: 7,416.00 | K41: 9,270.00 | M41: 9,270.00 | N41: 11,587.50 | P41: 11,587.50
A42: Услуги связи (почта) | B42: 07 | C42: 02 | D42: 0220270210 | E42: 244 | F42: 221300 | G42: 1000 | H42: 0.00 | J42: 0.00 | K42: 0.00 | M42: 0.00 | N42: 0.00 | P42: 0.00
A43: Транспортные услуги | B43: 07 | C43: 02 | D43: 0220270210 | E43: 244 | F43: 222000 | G43: 1000 | H43: 46,442.50 | J43: =H43+I43 -> 46,442.50 | K43: 58,053.13 | M43: =K43+L43 -> 58,053.13 | N43: 67,566.41 | P43: =N43+O43 -> 67,566.41
A44: Холодное водоснабжение | B44: 07 | C44: 02 | D44: 0220270210 | E44: 244 | F44: 223300 | G44: 1000 | H44: 0.00 | J44: 0.00 | K44: 0.00 | M44: 0.00 | N44: 0.00 | P44: 0.00
A45: Водоотведение | B45: 07 | C45: 02 | D45: 0220270210 | E45: 244 | F45: 223400 | G45: 1000 | H45: 0.00 | J45: 0.00 | K45: 0.00 | M45: 0.00 | N45: 0.00 | P45: 0.00
A46: Обращение с твердыми коммунальными отходами (вывоз ТБО) | B46: 07 | C46: 02 | D46: 0220270210 | E46: 244 | F46: 223500 | G46: 1000 | H46: 36,117.96 | J46: 36,117.96 | K46: 39,466.11 | M46: 39,466.11 | N46: 41,301.62 | P46: 41,301.62
A47: Техническое обслуживание внутренних сетей отопления и горячего водоснабжения | B47: 07 | C47: 02 | D47: 0220270210 | E47: 244 | F47: 225200 | G47: 1000 | H47: 0.00 | J47: 0.00 | K47: 0.00 | M47: 0.00 | N47: 0.00 | P47: 0.00
A48: Санитарная и противопожарная (дезинфекция, дезинсекция, дератизация, газация, огнезащитная) обработка помещений | B48: 07 | C48: 02 | D48: 0220270210 | E48: 244 | F48: 225600 | G48: 1000 | H48: 39,096.90 | J48: 39,096.90 | K48: 48,871.13 | M48: 48,871.13 | N48: 61,088.91 | P48: 61,088.91
A49: Содержание, обслуживание помещений и сетей инженерно-технического обеспечения | B49: 07 | C49: 02 | D49: 0220270210 | E49: 244 | F49: 225700 | G49: 1000 | H49: 196,537.10 | J49: 196,537.10 | K49: 245,671.38 | M49: 245,671.38 | N49: 307,089.22 | P49: 307,089.22
A50: Текущий ремонт помещений и сетей инженерно-технического обеспечения | B50: 07 | C50: 02 | D50: 0220270210 | E50: 244 | F50: 225800 | G50: 1000 | H50: 0.00 | J50: 0.00 | K50: 0.00 | M50: 0.00 | N50: 0.00 | P50: 0.00
A51: Другие расходы | B51: 07 | C51: 02 | D51: 0220270210 | E51: 244 | F51: 225900 | G51: 1000 | H51: 93,625.00 | J51: 93,625.00 | K51: 86,875.00 | M51: 86,875.00 | N51: 102,921.88 | P51: 102,921.88
A52: Аттестация | B52: 07 | C52: 02 | D52: 0220270210 | E52: 244 | F52: 226200 | G52: 1000 | H52: 0.00 | J52: =H52+I52 -> 0.00 | K52: 0.00 | M52: =K52+L52 -> 0.00 | N52: 0.00 | P52: =N52+O52 -> 0.00
A53: Охрана ведомственная, вневедомственная, пожарная | B53: 07 | C53: 02 | D53: 0220270210 | E53: 244 | F53: 226400 | G53: 1000 | H53: 73,072.68 | J53: 73,072.68 | K53: 83,840.84 | M53: 83,840.84 | N53: 97,301.05 | P53: 97,301.05
A54: Мероприятия по переподготовке и повышению квалификации кадров | B54: 07 | C54: 02 | D54: 0220270210 | E54: 244 | F54: 226700 | G54: 1000 | H54: 0.00 | J54: 0.00 | K54: 0.00 | M54: 0.00 | N54: 0.00 | P54: 0.00
A55: Медицинский осмотр работников учреждения, за исключением водителей трансртных средств | B55: 07 | C55: 02 | D55: 0220270210 | E55: 244 | F55: 226800 | G55: 1000 | H55: 164,784.00 | J55: 164,784.00 | K55: 214,562.50 | M55: 214,562.50 | N55: 268,203.13 | P55: 268,203.13
A56: Другие расходы | B56: 07 | C56: 02 | D56: 0220270210 | E56: 244 | F56: 226900 | G56: 1000 | H56: 100,000.00 | J56: 100,000.00 | K56: 100,000.00 | M56: 100,000.00 | N56: 100,000.00 | P56: 100,000.00
A57: Обязательное страхование автогражданской ответственности | B57: 07 | C57: 02 | D57: 0220270210 | E57: 244 | F57: 227200 | G57: 1000 | H57: 0.00 | J57: =H57+I57 -> 0.00 | K57: 0.00 | M57: =K57+L57 -> 0.00 | N57: 0.00 | P57: =N57+O57 -> 0.00
A58: Расходы на оплату услуг по страхованию здоровья | B58: 07 | C58: 02 | D58: 0220270210 | E58: 244 | F58: 227300 | G58: 1000 | H58: 0.00 | J58: =H58+I58 -> 0.00 | K58: 0.00 | M58: =K58+L58 -> 0.00 | N58: 0.00 | P58: =N58+O58 -> 0.00
A59: Приобретение предметов длительного пользования (оборудование, мебель, компьютерная техника и т.п) стоимостью свыше 3000 рублей | B59: 07 | C59: 02 | D59: 0220270210 | E59: 244 | F59: 310100 | G59: 1000 | H59: 0.00 | J59: 0.00 | K59: 0.00 | M59: 0.00 | N59: 0.00 | P59: 0.00
A60: Другие расходы стоимостью до 3000,00 рублей | B60: 07 | C60: 02 | D60: 0220270210 | E60: 244 | F60: 310900 | G60: 1000 | H60: 0.00 | J60: 0.00 | K60: 0.00 | M60: 0.00 | N60: 0.00 | P60: 0.00
A61: Увеличение стоимости лекарственных препаратов и материалов, применяемых в медицинских целях | B61: 07 | C61: 02 | D61: 0220270210 | E61: 244 | F61: 341000 | G61: 1000 | H61: 9,900.00 | J61: =H61+I61 -> 9,900.00 | K61: 12,375.00 | M61: =K61+L61 -> 12,375.00 | N61: 15,468.75 | P61: =N61+O61 -> 15,468.75
A62: Приобретение строительных материалов | B62: 07 | C62: 02 | D62: 0220270210 | E62: 244 | F62: 344000 | G62: 1000 | H62: 20,000.00 | J62: 20,000.00 | K62: 20,000.00 | M62: 20,000.00 | N62: 20,000.00 | P62: 20,000.00
A63: Мягкий инвентарь | B63: 07 | C63: 02 | D63: 0220270210 | E63: 244 | F63: 345000 | G63: 1000 | H63: 10,000.00 | J63: =H63+I63 -> 10,000.00 | K63: 10,000.00 | M63: =K63+L63 -> 10,000.00 | N63: 10,000.00 | P63: =N63+O63 -> 10,000.00
A64: Увеличение стоимости прочих оборотных запасов (материалов) | B64: 07 | C64: 02 | D64: 0220270210 | E64: 244 | F64: 346000 | G64: 1000 | H64: 80,000.00 | J64: 80,000.00 | K64: 80,000.00 | M64: 80,000.00 | N64: 80,000.00 | P64: 80,000.00
A65: Увеличение стоимости прочих оборотных запасов однократного применения | B65: 07 | C65: 02 | D65: 0220270210 | E65: 244 | F65: 349100 | G65: 1000 | H65: 0.00 | J65: 0.00 | K65: 0.00 | M65: 0.00 | N65: 0.00 | P65: 0.00
A66: Отопление, горячее водоснабжение и газоснабжение | B66: 07 | C66: 02 | D66: 0220270210 | E66: 247 | F66: 223100 | G66: 1000 | H66: 1,670,000.00 | J66: 1,670,000.00 | K66: 2,040,114.43 | M66: 2,040,114.43 | N66: 2,197,930.77 | P66: 2,197,930.77
A67: Электроэнергия | B67: 07 | C67: 02 | D67: 0220270210 | E67: 247 | F67: 223200 | G67: 1000 | H67: 580,000.00 | J67: 580,000.00 | K67: 684,490.00 | M67: 684,490.00 | N67: 740,100.00 | P67: 740,100.00
A68: Холодное водоснабжение | B68: 07 | C68: 02 | D68: 0220270210 | E68: 247 | F68: 223300 | G68: 1000 | H68: 59,330.00 | J68: 59,330.00 | K68: 64,908.00 | M68: 64,908.00 | N68: 69,775.59 | P68: 69,775.59
A69: Водоотведение | B69: 07 | C69: 02 | D69: 0220270210 | E69: 247 | F69: 223400 | G69: 1000 | H69: 34,472.25 | J69: 34,472.25 | K69: 37,710.00 | M69: 37,710.00 | N69: 40,538.89 | P69: 40,538.89
A70: Пособия по социальной помощи населению в натуральной форме | B70: 07 | C70: 02 | D70: 0220270210 | E70: 323 | F70: 263000 | G70: 1000 | H70: 0.00 | J70: =H70+I70 -> 0.00 | K70: 0.00 | M70: 0.00 | N70: 0.00 | P70: 0.00
A71: Налог на имущство | B71: 07 | C71: 02 | D71: 0220270210 | E71: 851 | F71: 291200 | G71: 1000 | H71: 9,252.00 | J71: 9,252.00 | K71: 9,252.00 | M71: 9,252.00 | N71: 9,252.00 | P71: 9,252.00
A72: Земельный налог, в том числе в период строительства объекта | B72: 07 | C72: 02 | D72: 0220270210 | E72: 851 | F72: 291300 | G72: 1000 | H72: 27,461.00 | J72: 27,461.00 | K72: 27,461.00 | M72: 27,461.00 | N72: 27,461.00 | P72: 27,461.00
A73: Штрафы за нарушение законодательства о налогах и сборах, законодательства о страховых взносах | B73: 07 | C73: 02 | D73: 0220270210 | E73: 853 | F73: 292000 | G73: 1000 | J73: =H73+I73 -> 0.00 | M73: =K73+L73 -> 0.00 | P73: =N73+O73 -> 0.00
A74: Иные выплаты текущего характера физическим лицам (возмещение убытков, вреда и судебных издержек) | B74: 07 | C74: 02 | D74: 0220270210 | E74: 853 | F74: 296100 | G74: 1000 | J74: =H74+I74 -> 0.00 | M74: =K74+L74 -> 0.00 | P74: =N74+O74 -> 0.00
A75: Транспортный налог | B75: 07 | C75: 02 | D75: 0220270210 | E75: 852 | F75: 291400 | G75: 1000 | J75: 0.00 | M75: 0.00 | P75: 0.00
A76: Штрафы за нарушение законодательства о закупках и нарушенияе условий контракта (договоров) | B76: 07 | C76: 02 | D76: 0220270210 | E76: 831 | F76: 293000 | G76: 1000 | J76: 0.00 | M76: 0.00 | P76: 0.00
A77: Другие экономические санкции | B77: 07 | C77: 02 | D77: 0220270210 | E77: 853 | F77: 295000 | G77: 1000 | J77: 0.00 | M77: 0.00 | P77: 0.00
A78: Иные выплаты текущего характера организациям (возмещение убытков, вред и судебных издержек) | B78: 07 | C78: 02 | D78: 0220270210 | E78: 851 | F78: 297100 | G78: 1000 | J78: 0.00 | M78: 0.00 | P78: 0.00
A79: Другие расходы | B79: 07 | C79: 02 | D79: 0400072910 | E79: 244 | F79: 226900 | G79: 1000 | J79: 0.00 | M79: 0.00 | P79: 0.00
A80: Заработная плата | B80: 07 | C80: 02 | D80: 0920070260 | E80: 111 | F80: 211000 | G80: 1000 | J80: 0.00 | M80: 0.00 | P80: 0.00
A81: Начисления на выплаты по оплате труда | B81: 07 | C81: 02 | D81: 0920070260 | E81: 119 | F81: 213000 | G81: 1000 | J81: 0.00 | M81: 0.00 | P81: 0.00
A82: Итого по КЦ 1000 | H82: =SUM(H37:H81) -> 3,874,923.54 | I82: 0.00 | J82: 3,874,923.54 | K82: 4,480,346.67 | L82: 0.00 | M82: 4,480,346.67 | N82: 4,875,002.87 | O82: 0.00 | P82: 4,875,002.87
A83: Субвенция на обеспечение государственных гарантий реализации прав на получение общедоступного и бесплатного дошкольного образования в муниципальных дошкольных образовательных организациях, общедоступного и бесплатного дошкольного, начального общего, основного общего, среднего общего образования в муниципальных общеобразовательных организациях, обеспечение дополнительного образования детей в муниципальных общеобразовательных организациях (КЦ 24424219000219)
A84: Заработная плата | B84: 07 | C84: 02 | D84: 0220242190 | E84: 111 | F84: 211000 | G84: 24424219000219 | J84: =H84+I84 -> 0.00 | K84: 0.00 | M84: =K84+L84 -> 0.00 | N84: 0.00 | P84: =N84+O84 -> 0.00
A85: Социальные пособия и компенсации персоналу в денежной форме (пособие за первые три дня временной нетрудоспособности за счет средств работодателя) | B85: 07 | C85: 02 | D85: 0220242190 | E85: 111 | F85: 266100 | G85: 24424219000219 | J85: 0.00 | K85: 0.00 | M85: 0.00 | N85: 0.00 | P85: 0.00
A86: Начисления на выплаты по оплате труда | B86: 07 | C86: 02 | D86: 0220242190 | E86: 119 | F86: 213000 | G86: 24424219000219 | J86: 0.00 | K86: 0.00 | M86: 0.00 | N86: 0.00 | P86: 0.00
A87: Услуги связи (интернет) | B87: 07 | C87: 02 | D87: 0220242190 | E87: 244 | F87: 221200 | G87: 24424219000219 | J87: 0.00 | M87: 0.00 | P87: 0.00
A88: Услуги связи (интернет) | B88: 07 | C88: 02 | D88: 0220242190 | E88: 244 | F88: 221200 | G88: 24424219000219 | J88: =H88+I88 -> 0.00 | K88: 0.00 | M88: =K88+L88 -> 0.00 | N88: 0.00 | P88: =N88+O88 -> 0.00
A89: Транспортные услуги | B89: 07 | C89: 02 | D89: 0220242190 | E89: 244 | F89: 222000 | G89: 24424219000219 | J89: 0.00 | K89: 0.00 | M89: 0.00 | N89: 0.00 | P89: 0.00
A90: Другие расходы | B90: 07 | C90: 02 | D90: 0220242190 | E90: 244 | F90: 226900 | G90: 24424219000219 | J90: =H90+I90 -> 0.00 | K90: 0.00 | M90: =K90+L90 -> 0.00 | N90: 0.00 | P90: =N90+O90 -> 0.00
A91: Приобретение предметов длительного пользования (оборудование, мебель, компьютерная техника и т.п.) стоимостью свыше 3000,00 руб. | B91: 07 | C91: 02 | D91: 0220242190 | E91: 244 | F91: 310100 | G91: 24424219000219 | J91: =H91+I91 -> 0.00 | K91: 0.00 | M91: =K91+L91 -> 0.00 | N91: 0.00 | P91: =N91+O91 -> 0.00
A92: Комплектование библиотечного фонда | B92: 07 | C92: 02 | D92: 0220242190 | E92: 244 | F92: 310200 | G92: 24424219000219 | J92: 0.00 | K92: 0.00 | M92: 0.00 | N92: 0.00 | P92: 0.00
A93: Другие расходы стоимостью до 3000,00 рублей | B93: 07 | C93: 02 | D93: 0220242190 | E93: 244 | F93: 310900 | G93: 24424219000219 | J93: 0.00 | K93: 0.00 | M93: 0.00 | N93: 0.00 | P93: 0.00
A94: Мягкий инвентарь | B94: 07 | C94: 02 | D94: 0220242190 | E94: 244 | F94: 345000 | G94: 24424219000219 | J94: 0.00 | M94: 0.00 | P94: 0.00
A95: Увеличение стоимости прочих оборотных запасов (материалов) | B95: 07 | C95: 02 | D95: 0220242190 | E95: 244 | F95: 346000 | G95: 24424219000219 | J95: 0.00 | K95: 0.00 | M95: 0.00 | N95: 0.00 | P95: 0.00
A96: Увеличение стоимости прочих материальных запасов однократного применения | B96: 07 | C96: 02 | D96: 0220242190 | E96: 244 | F96: 349100 | G96: 24424219000219 | J96: 0.00 | K96: 0.00 | M96: 0.00 | N96: 0.00 | P96: 0.00
A97: Мероприятия по переподготовке и повышению квалификации кадров | B97: 07 | C97: 05 | D97: 0220242190 | E97: 244 | F97: 226700 | G97: 23424219000219 | J97: 0.00 | K97: 0.00 | M97: 0.00 | N97: 0.00 | P97: 0.00
A98: Итого по КЦ 24424219000219 | H98: =SUM(H84:H97) -> 0.00 | I98: 0.00 | J98: 0.00 | K98: 0.00 | L98: 0.00 | M98: 0.00 | N98: 0.00 | O98: 0.00 | P98: 0.00
A99: Иные межбюджетные трансферты на ежемесячное денежное вознаграждение за классное руководство педагогическим работникам государственных и муниципальных образовательных организаций, реализующих образовательные программы начального общего образования, образовательные программы основного общего образования, образовательные программы среднего общего образования (КЦ 24-53030-00000-00000)
A100: Заработная плата | B100: 07 | C100: 02 | D100: 0220253030 | E100: 111 | F100: 211000 | G100: 24-53030-00000-00000 | J100: =H100+I100 -> 0.00 | K100: 0.00 | M100: =K100+L100 -> 0.00 | N100: 0.00 | P100: =N100+O100 -> 0.00
A101: Начисления на выплаты по оплате труда | B101: 07 | C101: 02 | D101: 0220253030 | E101: 119 | F101: 213000 | G101: 24-53030-00000-00000 | J101: =H101+I101 -> 0.00 | K101: 0.00 | M101: =K101+L101 -> 0.00 | N101: 0.00 | P101: =N101+O101 -> 0.00
A102: Итого по КЦ 24-53030-00000-00000 | H102: =SUM(H100:H101) -> 0.00 | I102: 0.00 | J102: 0.00 | K102: 0.00 | L102: 0.00 | M102: 0.00 | N102: 0.00 | O102: 0.00 | P102: 0.00
A103: Иные межбюджетные трансферты на обеспечение выплат ежемесячного денежного вознаграждения советникам директоров по воспитанию и взаимодействию с детскими общественными объединениями государственных, муниципальных общеобразовательных организаций, профессиональных образовательных организацийх (КЦ 24-50500-00000-00000 )
A104: Заработная плата | B104: 07 | C104: 02 | D104: 0220250500 | E104: 111 | F104: 211000 | G104: 24-50500-00000-00000 | J104: =H104+I104 -> 0.00 | K104: 0.00 | M104: =K104+L104 -> 0.00 | N104: 0.00 | P104: =N104+O104 -> 0.00
A105: Начисления на выплаты по оплате труда | B105: 07 | C105: 02 | D105: 0220250500 | E105: 119 | F105: 213000 | G105: 24-50500-00000-00000 | J105: =H105+I105 -> 0.00 | K105: 0.00 | M105: =K105+L105 -> 0.00 | N105: 0.00 | P105: =N105+O105 -> 0.00
A106: Итого по КЦ 24-53030-00000-00000 | H106: =SUM(H104:H105) -> 0.00 | I106: 0.00 | J106: 0.00 | K106: 0.00 | L106: 0.00 | M106: 0.00 | N106: 0.00 | O106: 0.00 | P106: 0.00
A107: Субвенции на осуществление государственных полномочий РеспубликиКарелия по представлению предусмотренных пунктом 5 части 1 статьи 9 Закона Республики Карелия от 20 декабря 2013 гоа № 1755_ЗРК "Об образовании" мер социальной поддержки и социального обслуживания (КЦ 254242100000210)
A108: Увеличение стоимости прочих оборотных запасов (материалов) | B108: 07 | C108: 02 | D108: 0220242100 | E108: 244 | F108: 346000 | G108: 24424210000210 | J108: =H108+I108 -> 0.00 | K108: 0.00 | M108: =K108+L108 -> 0.00 | N108: 0.00 | P108: =N108+O108 -> 0.00
A109: Пособия по социальной помощи населению в натуральной форме | B109: 07 | C109: 02 | D109: 0220242100 | E109: 323 | F109: 263000 | G109: 254242100000210 | H109: 0.00 | I109: 152,545.00 | J109: =H109+I109 -> 152,545.00 | K109: 0.00 | M109: =K109+L109 -> 0.00 | N109: 0.00 | P109: =N109+O109 -> 0.00
A110: Увеличение стоимости прочих оборотных запасов (материалов) | B110: 07 | C110: 02 | D110: 0220242100 | E110: 323 | F110: 346000 | G110: 23424210000210 | J110: =H110+I110 -> 0.00 | K110: 0.00 | M110: =K110+L110 -> 0.00 | N110: 0.00 | P110: =N110+O110 -> 0.00
A111: Итого по КЦ 254242100000210 | H111: =SUM(H108:H110) -> 0.00 | I111: 152,545.00 | J111: 152,545.00 | K111: 0.00 | L111: 0.00 | M111: 0.00 | N111: 0.00 | O111: 0.00 | P111: 0.00
A112: Субвенции на осуществление государственных полномочий Республики Карелия по выплате компенсации платы, взимаемой с родителей (законных представителей) за присмотр и уход за детьми, осваивающими образовательные программы дошкольного образования в организа
A113: Пособия по социальной помощи населению в натуральной форме | B113: 10 | C113: 04 | D113: 0220142030 | E113: 323 | F113: 263000 | G113: 23424203000203 | J113: =H113+I113 -> 0.00 | K113: 0.00 | M113: =K113+L113 -> 0.00 | N113: 0.00 | P113: =N113+O113 -> 0.00
A114: Итого по КЦ 23424203000203 | H114: =SUM(H113) -> 0.00 | I114: 0.00 | J114: 0.00 | K114: 0.00 | L114: 0.00 | M114: 0.00 | N114: 0.00 | O114: 0.00 | P114: 0.00
A115: Субсидии на организацию бесплатного горячего питания обучающихся, получающих начальное общее образование в государственных и муниципальных образовательных организациях (КЦ 24-53040-00000-00002)
A116: Другие расходы | B116: 07 | C116: 02 | D116: 02202L3040 | E116: 244 | F116: 226900 | G116: 24-53040-00000-00002 | H116: 0.00 | J116: =H116+I116 -> 0.00 | K116: 0.00 | M116: =K116+L116 -> 0.00 | N116: 0.00 | P116: =N116+O116 -> 0.00
A117: Итого по КЦ 24-53040-00000-00002 | H117: =SUM(H116:H116) -> 0.00 | I117: 0.00 | J117: 0.00 | K117: 0.00 | L117: 0.00 | M117: 0.00 | N117: 0.00 | O117: 0.00 | P117: 0.00
A118: Субсидии на организацию бесплатного горячего питания обучающихся, получающих начальное общее образование в государственных и муниципальных образовательных организациях (КЦ 24-53040-00000-00000)
A119: Другие расходы | B119: 07 | C119: 02 | D119: 02202L3040 | E119: 244 | F119: 226900 | G119: 24-53040-00000-00000 | J119: =H119+I119 -> 0.00 | K119: 0.00 | M119: =K119+L119 -> 0.00 | N119: 0.00 | P119: =N119+O119 -> 0.00
A120: Итого по КЦ 24-53040-00000-00000 | H120: =SUM(H119:H119) -> 0.00 | I120: 0.00 | J120: 0.00 | K120: 0.00 | L120: 0.00 | M120: 0.00 | N120: 0.00 | O120: 0.00 | P120: 0.00
A121: Субсидия на реализацию мероприятий государственной программы Республики Карелия "Совершенствование социальной защиты граждан" в целях организации адресной социальной помощи семьям, имеющим детей (КЦ 24434321000316)
A122: Пособия по социальной помощи населению в натуральной форме | B122: 10 | C122: 03 | D122: 0320243210 | E122: 323 | F122: 263000 | G122: 24434321000316 | J122: =H122+I122 -> 0.00 | K122: 0.00 | M122: =K122+L122 -> 0.00 | N122: 0.00 | P122: =N122+O122 -> 0.00
A123: Пособия по социальной помощи населению в натуральной форме | B123: 10 | C123: 03 | D123: 0320243210 | E123: 323 | F123: 263000 | G123: 24434321000316 | J123: =H123+I123 -> 0.00 | K123: 0.00 | M123: =K123+L123 -> 0.00 | N123: 0.00 | P123: =N123+O123 -> 0.00
A124: Итого по КЦ 24434321000316 | H124: =SUM(H122:H123) -> 0.00 | I124: =SUM(I122:I123) -> 0.00 | J124: =SUM(J122:J123) -> 0.00 | K124: =SUM(K123) -> 0.00 | L124: 0.00 | M124: 0.00 | N124: 0.00 | O124: 0.00 | P124: 0.00
A125: Пособия по социальной помощи населению в натуральной форме | B125: 10 | C125: 03 | D125: 03202S3210 | E125: 323 | F125: 263000 | G125: 1000 | J125: =H125+I125 -> 0.00 | K125: 0.00 | M125: 0.00 | N125: 0.00 | P125: 0.00
A126: Итого по КЦ 1000 | H126: =SUM(H125:H125) -> 0.00 | I126: 0.00 | J126: 0.00 | K126: 0.00 | L126: 0.00 | M126: 0.00 | N126: 0.00 | O126: 0.00 | P126: 0.00
A127: Субсидия местным бюджетам на реализацию мероприятий государственной программы Республики Карелия "Совершенствование социальной защиты граждан" (КЦ 2343432000321)
A128: Увеличение стоимости прочих оборотных запасов (материалов) | B128: 07 | C128: 09 | D128: 0220243210 | E128: 244 | F128: 346000 | G128: 2343432000321 | J128: =H128+I128 -> 0.00 | K128: 0.00 | M128: =K128+L128 -> 0.00 | N128: 0.00 | P128: =N128+O128 -> 0.00
A129: Другие расходы | B129: 07 | C129: 09 | D129: 0220243210 | E129: 244 | F129: 226900 | G129: 2343432000321 | J129: 0.00 | K129: 0.00 | M129: 0.00 | N129: 0.00 | P129: 0.00
A130: Транспортные услуги | B130: 07 | C130: 09 | D130: 0220243210 | E130: 244 | F130: 222000 | G130: 2343432000321 | J130: 0.00 | K130: 0.00 | M130: 0.00 | N130: 0.00 | P130: 0.00
A131: Увеличение стоимости прочих оборотных запасов (материалов) | B131: 07 | C131: 09 | D131: 02202S3210 | E131: 244 | F131: 346000 | G131: 1000 | J131: 0.00 | K131: 0.00 | M131: 0.00 | N131: 0.00 | P131: 0.00
A132: Другие расходы | B132: 07 | C132: 09 | D132: 02202S3210 | E132: 244 | F132: 226900 | G132: 1000 | J132: 0.00 | K132: 0.00 | M132: 0.00 | N132: 0.00 | P132: 0.00
A133: Транспортные услуги | B133: 07 | C133: 09 | D133: 02202S3210 | E133: 244 | F133: 222000 | G133: 1000 | J133: 0.00 | K133: 0.00 | M133: 0.00 | N133: 0.00 | P133: 0.00
A134: Итого по КЦ 2343432000321 | H134: =SUM(H128:H133) -> 0.00 | I134: 0.00 | J134: 0.00 | K134: 0.00 | L134: 0.00 | M134: 0.00 | N134: 0.00 | O134: 0.00 | P134: 0.00
A135: Иные межбюджетные трансферты на компенсацию затрат, связанных с освобождением членов семей постоянно проживающих на территории Республики Карелия граждан, призванных военным комиссариатом Республики Карелия на военную службу по мобилизации, а также гражд
A136: Продукты питания | B136: 07 | C136: 01 | D136: 0220175040 | E136: 244 | F136: 342000 | G136: 234475040П0514 | J136: =H136+I136 -> 0.00 | K136: 0.00 | M136: =K136+L136 -> 0.00 | N136: 0.00 | O136: =M136+N136 -> 0.00 | P136: =N136+O136 -> 0.00
A137: Итого по КЦ 234475040П0514 | H137: =SUM(H136) -> 0.00 | I137: 0.00 | J137: 0.00 | K137: 0.00 | L137: 0.00 | M137: 0.00 | N137: 0.00 | O137: 0.00 | P137: 0.00
A138: Субсидии на проведение мероприятий по обеспечению деятельности советников директора по воспитанию и взаимодействию с детскими общественными объединениями в общеобразовательных организация (КЦ 23-51790-00000-00000)
A139: Заработная плата | B139: 07 | C139: 02 | D139: 022ЕВ51790 | E139: 111 | F139: 211000 | G139: 23-51790-00000-00000 | H139: 0.00 | J139: =H139+I139 -> 0.00 | K139: 0.00 | M139: =K139+L139 -> 0.00 | N139: 0.00 | P139: =N139+O139 -> 0.00
A140: Начисления на выплаты по оплате труда | B140: 07 | C140: 02 | D140: 022ЕВ51790 | E140: 119 | F140: 213000 | G140: 23-51790-00000-00000 | H140: 0.00 | J140: =H140+I140 -> 0.00 | K140: 0.00 | M140: =K140+L140 -> 0.00 | N140: 0.00 | P140: =N140+O140 -> 0.00
A141: Итого по КЦ 23-51790-00000-00000 | H141: =SUM(H139:H140) -> 0.00 | I141: 0.00 | J141: 0.00 | K141: 0.00 | L141: 0.00 | M141: 0.00 | N141: 0.00 | O141: 0.00 | P141: 0.00
A142: Субсидии на проведение мероприятий по обеспечению деятельности советников директора по воспитанию и взаимодействию с детскими общественными объединениями в общеобразовательных организация (КЦ 24-51790-00000-00000)
A143: Заработная плата | B143: 07 | C143: 02 | D143: 022ЕВ51790 | E143: 111 | F143: 211000 | G143: 24-51790-00000-00000 | J143: =H143+I143 -> 0.00 | K143: 0.00 | M143: =K143+L143 -> 0.00 | N143: 0.00 | P143: =N143+O143 -> 0.00
A144: Начисления на выплаты по оплате труда | B144: 07 | C144: 02 | D144: 022ЕВ51790 | E144: 119 | F144: 213000 | G144: 24-51790-00000-00000 | J144: =H144+I144 -> 0.00 | K144: 0.00 | M144: =K144+L144 -> 0.00 | N144: 0.00 | P144: =N144+O144 -> 0.00
A145: Итого по КЦ 24-51790-00000-00000 | H145: =SUM(H143:H144) -> 0.00 | I145: 0.00 | J145: 0.00 | K145: 0.00 | L145: 0.00 | M145: 0.00 | N145: 0.00 | O145: 0.00 | P145: 0.00
G146: Всего | H146: =H82+H98+H111+H114+H117+H124+H126+H145+H141+H106+H102+H120 -> 3,874,923.54 | I146: =I82+I98+I111+I114+I117+I124+I126+I145+I141+I106+I102+I120 -> 152,545.00 | J146: 4,027,468.54 | K146: 4,480,346.67 | L146: 0.00 | M146: 4,480,346.67 | N146: 4,875,002.87 | O146: 0.00 | P146: 4,875,002.87
A150: Директор | F150: И.А. Сидорова
B151: (подпись) | F151: (расшифровка подписи)
A153: Гл.бухгалтер МУ "ЦБ № 1" | F153: И.В. Ананьева
A154: (уполномоченное лицо) | B154: (подпись) | F154: (расшифровка подписи)
A156: Главный экономист ПЭО МУ "ЦБ № 1" | F156: Е.Л. Герасимова
A157: (исполнитель) | B157: (подпись) | F157: (расшифровка подписи)
A159: =L18 -> "17" января 2025 г.

Sheet 21.01
P1: Приложение № 2
P2: к Порядку составления, утверждения
P3: и ведения бюджетных смет Администрации
P4: Прионежского муниципального района
P5: и казенных учреждений, находящихся
P6: в ведении Администрации Прионежского
P7: муниципального района
P8: от 09 августа 2022 № 831
L10: УТВЕРЖДАЮ
L11: Глава Администрации Прионежского муниципального района
L12: (наименование должности лица, согласующего бюджетную смету)
L13: Администрация Прионежского муниципального района
L14: (наименование главного распорядителя (распорядителя) бюджетных средств; учреждения)
L16: Г. Н. Шемет
L17: (подпись) | N17: (расшифровка подписи)
L18: "21" января 2025 г.
A20: ИЗМЕНЕНИЕ К БЮДЖЕТНОЙ СМЕТЕ НА 2025 ФИНАНСОВЫЙ ГОД И ПЛАНОВЫЙ ПЕРИОД 2026 И 2027 ГОДОВ
B22: №№ 015/00402/006 от | H22: =L18 -> "21" января 2025 г.
A23: (№, дата, справки об изменении ЛБО) | P23: КОДЫ
O24: Форма по ОКУД | P24: 0501012
O25: Дата | P25: =L18 -> "21" января 2025 г.
O26: по ОКПО | P26: 51326281
A27: Получатель бюджетных средств | B27: Муниципальное общеобразовательное учреждение "Средняя общеобразовательная школа № 44"
A28: Распорядитель бюджетных средств | B28: Администрация Прионежского муниципального района Республики Карелия
A29: Главный распорядитель бюджетных средств | B29: Администрация Прионежского муниципального района Республики Карелия | O29: Глава по БК | P29: 015
A30: Наименование бюджета | B30: Бюджет Прионежского муниципального района | O30: по ОКТМО | P30: 86636410
A31: Единица измерения: | B31: руб. | O31: по ОКЕЙ | P31: 383
A33: Наименование показателя (детализация кода бюджетной классификации) | B33: РЗ | C33: ПР | D33: ЦСР | E33: Вид расхода | F33: Детализация | G33: Вид целевых средств | H33: Сумма на текущий 2025 год | K33: Сумма на первый год планового периода | N33: Сумма на второй год планового периода
H34: на 17.01.2025 г | I34: изменения(+;-) | J34: Итого | K34: =H34 -> на 17.01.2025 г | L34: изменения(+;-) | M34: Итого | N34: =H34 -> на 17.01.2025 г | O34: изменения(+;-) | P34: Итого
A35: 1 | B35: =SUM(A35+1) -> 2 | C35: 3 | D35: 4 | E35: 5 | F35: 6 | G35: 7 | H35: 8 | I35: 9 | J35: 10 | K35: 11 | L35: 12 | M35: 13 | N35: 14 | O35: 15 | P35: 16
A36: Средства местного бюджета (КЦ 1000) 0702
A37: Заработная плата | B37: 07 | C37: 02 | D37: 0220270210 | E37: 111 | F37: 211000 | G37: 1000 | H37: 451,164.48 | J37: =H37+I37 -> 451,164.48 | K37: 451,164.48 | M37: =K37+L37 -> 451,164.48 | N37: 451,164.48 | P37: =N37+O37 -> 451,164.48
A38: Социальные пособия и компенсации персоналу в денежной форме (пособие за первые три дня временной нетрудоспособности за счет средств работодателя) | B38: 07 | C38: 02 | D38: 0220270210 | E38: 111 | F38: 266100 | G38: 1000 | H38: 0.00 | J38: 0.00 | K38: 0.00 | M38: 0.00 | N38: 0.00 | P38: 0.00
A39: Расходы по оплате проезда к месту отпуска и обратно отдельным категориям лиц (для лиц, работающих в районах Крайнего Севера и приравненных к ним местностям, и членов их семей) | B39: 07 | C39: 02 | D39: 0220270210 | E39: 112 | F39: 214000 | G39: 1000 | H39: 30,000.00 | J39: 30,000.00 | K39: 20,000.00 | M39: 20,000.00 | N39: 20,000.00 | P39: 20,000.00
A40: Начисления на выплаты по оплате труда | B40: 07 | C40: 02 | D40: 0220270210 | E40: 119 | F40: 213000 | G40: 1000 | H40: 136,251.67 | J40: 136,251.67 | K40: 136,261.67 | M40: 136,261.67 | N40: 136,251.67 | P40: 136,251.67
A41: Услуги связи (телефон) | B41: 07 | C41: 02 | D41: 0220270210 | E41: 244 | F41: 221100 | G41: 1000 | H41: 7,416.00 | J41: 7,416.00 | K41: 9,270.00 | M41: 9,270.00 | N41: 11,587.50 | P41: 11,587.50
A42: Услуги связи (почта) | B42: 07 | C42: 02 | D42: 0220270210 | E42: 244 | F42: 221300 | G42: 1000 | H42: 0.00 | J42: 0.00 | K42: 0.00 | M42: 0.00 | N42: 0.00 | P42: 0.00
A43: Транспортные услуги | B43: 07 | C43: 02 | D43: 0220270210 | E43: 244 | F43: 222000 | G43: 1000 | H43: 46,442.50 | J43: =H43+I43 -> 46,442.50 | K43: 58,053.13 | M43: =K43+L43 -> 58,053.13 | N43: 67,566.41 | P43: =N43+O43 -> 67,566.41
A44: Холодное водоснабжение | B44: 07 | C44: 02 | D44: 0220270210 | E44: 244 | F44: 223300 | G44: 1000 | H44: 0.00 | J44: 0.00 | K44: 0.00 | M44: 0.00 | N44: 0.00 | P44: 0.00
A45: Водоотведение | B45: 07 | C45: 02 | D45: 0220270210 | E45: 244 | F45: 223400 | G45: 1000 | H45: 0.00 | J45: 0.00 | K45: 0.00 | M45: 0.00 | N45: 0.00 | P45: 0.00
A46: Обращение с твердыми коммунальными отходами (вывоз ТБО) | B46: 07 | C46: 02 | D46: 0220270210 | E46: 244 | F46: 223500 | G46: 1000 | H46: 36,117.96 | J46: 36,117.96 | K46: 39,466.11 | M46: 39,466.11 | N46: 41,301.62 | P46: 41,301.62
A47: Техническое обслуживание внутренних сетей отопления и горячего водоснабжения | B47: 07 | C47: 02 | D47: 0220270210 | E47: 244 | F47: 225200 | G47: 1000 | H47: 0.00 | J47: 0.00 | K47: 0.00 | M47: 0.00 | N47: 0.00 | P47: 0.00
A48: Санитарная и противопожарная (дезинфекция, дезинсекция, дератизация, газация, огнезащитная) обработка помещений | B48: 07 | C48: 02 | D48: 0220270210 | E48: 244 | F48: 225600 | G48: 1000 | H48: 39,096.90 | J48: 39,096.90 | K48: 48,871.13 | M48: 48,871.13 | N48: 61,088.91 | P48: 61,088.91
A49: Содержание, обслуживание помещений и сетей инженерно-технического обеспечения | B49: 07 | C49: 02 | D49: 0220270210 | E49: 244 | F49: 225700 | G49: 1000 | H49: 196,537.10 | J49: 196,537.10 | K49: 245,671.38 | M49: 245,671.38 | N49: 307,089.22 | P49: 307,089.22
A50: Текущий ремонт помещений и сетей инженерно-технического обеспечения | B50: 07 | C50: 02 | D50: 0220270210 | E50: 244 | F50: 225800 | G50: 1000 | H50: 0.00 | J50: 0.00 | K50: 0.00 | M50: 0.00 | N50: 0.00 | P50: 0.00
A51: Другие расходы | B51: 07 | C51: 02 | D51: 0220270210 | E51: 244 | F51: 225900 | G51: 1000 | H51: 93,625.00 | J51: 93,625.00 | K51: 86,875.00 | M51: 86,875.00 | N51: 102,921.88 | P51: 102,921.88
A52: Аттестация | B52: 07 | C52: 02 | D52: 0220270210 | E52: 244 | F52: 226200 | G52: 1000 | H52: 0.00 | J52: =H52+I52 -> 0.00 | K52: 0.00 | M52: =K52+L52 -> 0.00 | N52: 0.00 | P52: =N52+O52 -> 0.00
A53: Охрана ведомственная, вневедомственная, пожарная | B53: 07 | C53: 02 | D53: 0220270210 | E53: 244 | F53: 226400 | G53: 1000 | H53: 73,072.68 | J53: 73,072.68 | K53: 83,840.84 | M53: 83,840.84 | N53: 97,301.05 | P53: 97,301.05
A54: Мероприятия по переподготовке и повышению квалификации кадров | B54: 07 | C54: 02 | D54: 0220270210 | E54: 244 | F54: 226700 | G54: 1000 | H54: 0.00 | J54: 0.00 | K54: 0.00 | M54: 0.00 | N54: 0.00 | P54: 0.00
A55: Медицинский осмотр работников учреждения, за исключением водителей трансртных средств | B55: 07 | C55: 02 | D55: 0220270210 | E55: 244 | F55: 226800 | G55: 1000 | H55: 164,784.00 | J55: 164,784.00 | K55: 214,562.50 | M55: 214,562.50 | N55: 268,203.13 | P55: 268,203.13
A56: Другие расходы | B56: 07 | C56: 02 | D56: 0220270210 | E56: 244 | F56: 226900 | G56: 1000 | H56: 100,000.00 | J56: 100,000.00 | K56: 100,000.00 | M56: 100,000.00 | N56: 100,000.00 | P56: 100,000.00
A57: Обязательное страхование автогражданской ответственности | B57: 07 | C57: 02 | D57: 0220270210 | E57: 244 | F57: 227200 | G57: 1000 | H57: 0.00 | J57: =H57+I57 -> 0.00 | K57: 0.00 | M57: =K57+L57 -> 0.00 | N57: 0.00 | P57: =N57+O57 -> 0.00
A58: Расходы на оплату услуг по страхованию здоровья | B58: 07 | C58: 02 | D58: 0220270210 | E58: 244 | F58: 227300 | G58: 1000 | H58: 0.00 | J58: =H58+I58 -> 0.00 | K58: 0.00 | M58: =K58+L58 -> 0.00 | N58: 0.00 | P58: =N58+O58 -> 0.00
A59: Приобретение предметов длительного пользования (оборудование, мебель, компьютерная техника и т.п) стоимостью свыше 3000 рублей | B59: 07 | C59: 02 | D59: 0220270210 | E59: 244 | F59: 310100 | G59: 1000 | H59: 0.00 | J59: 0.00 | K59: 0.00 | M59: 0.00 | N59: 0.00 | P59: 0.00
A60: Другие расходы стоимостью до 3000,00 рублей | B60: 07 | C60: 02 | D60: 0220270210 | E60: 244 | F60: 310900 | G60: 1000 | H60: 0.00 | J60: 0.00 | K60: 0.00 | M60: 0.00 | N60: 0.00 | P60: 0.00
A61: Увеличение стоимости лекарственных препаратов и материалов, применяемых в медицинских целях | B61: 07 | C61: 02 | D61: 0220270210 | E61: 244 | F61: 341000 | G61: 1000 | H61: 9,900.00 | J61: =H61+I61 -> 9,900.00 | K61: 12,375.00 | M61: =K61+L61 -> 12,375.00 | N61: 15,468.75 | P61: =N61+O61 -> 15,468.75
A62: Приобретение строительных материалов | B62: 07 | C62: 02 | D62: 0220270210 | E62: 244 | F62: 344000 | G62: 1000 | H62: 20,000.00 | J62: 20,000.00 | K62: 20,000.00 | M62: 20,000.00 | N62: 20,000.00 | P62: 20,000.00
A63: Мягкий инвентарь | B63: 07 | C63: 02 | D63: 0220270210 | E63: 244 | F63: 345000 | G63: 1000 | H63: 10,000.00 | J63: =H63+I63 -> 10,000.00 | K63: 10,000.00 | M63: =K63+L63 -> 10,000.00 | N63: 10,000.00 | P63: =N63+O63 -> 10,000.00
A64: Увеличение стоимости прочих оборотных запасов (материалов) | B64: 07 | C64: 02 | D64: 0220270210 | E64: 244 | F64: 346000 | G64: 1000 | H64: 80,000.00 | J64: 80,000.00 | K64: 80,000.00 | M64: 80,000.00 | N64: 80,000.00 | P64: 80,000.00
A65: Увеличение стоимости прочих оборотных запасов однократного применения | B65: 07 | C65: 02 | D65: 0220270210 | E65: 244 | F65: 349100 | G65: 1000 | H65: 0.00 | J65: 0.00 | K65: 0.00 | M65: 0.00 | N65: 0.00 | P65: 0.00
A66: Отопление, горячее водоснабжение и газоснабжение | B66: 07 | C66: 02 | D66: 0220270210 | E66: 247 | F66: 223100 | G66: 1000 | H66: 1,670,000.00 | J66: 1,670,000.00 | K66: 2,040,114.43 | M66: 2,040,114.43 | N66: 2,197,930.77 | P66: 2,197,930.77
A67: Электроэнергия | B67: 07 | C67: 02 | D67: 0220270210 | E67: 247 | F67: 223200 | G67: 1000 | H67: 580,000.00 | J67: 580,000.00 | K67: 684,490.00 | M67: 684,490.00 | N67: 740,100.00 | P67: 740,100.00
A68: Холодное водоснабжение | B68: 07 | C68: 02 | D68: 0220270210 | E68: 247 | F68: 223300 | G68: 1000 | H68: 59,330.00 | J68: 59,330.00 | K68: 64,908.00 | M68: 64,908.00 | N68: 69,775.59 | P68: 69,775.59
A69: Водоотведение | B69: 07 | C69: 02 | D69: 0220270210 | E69: 247 | F69: 223400 | G69: 1000 | H69: 34,472.25 | J69: 34,472.25 | K69: 37,710.00 | M69: 37,710.00 | N69: 40,538.89 | P69: 40,538.89
A70: Пособия по социальной помощи населению в натуральной форме | B70: 07 | C70: 02 | D70: 0220270210 | E70: 323 | F70: 263000 | G70: 1000 | H70: 0.00 | J70: =H70+I70 -> 0.00 | K70: 0.00 | M70: 0.00 | N70: 0.00 | P70: 0.00
A71: Налог на имущство | B71: 07 | C71: 02 | D71: 0220270210 | E71: 851 | F71: 291200 | G71: 1000 | H71: 9,252.00 | J71: 9,252.00 | K71: 9,252.00 | M71: 9,252.00 | N71: 9,252.00 | P71: 9,252.00
A72: Земельный налог, в том числе в период строительства объекта | B72: 07 | C72: 02 | D72: 0220270210 | E72: 851 | F72: 291300 | G72: 1000 | H72: 27,461.00 | J72: 27,461.00 | K72: 27,461.00 | M72: 27,461.00 | N72: 27,461.00 | P72: 27,461.00
A73: Штрафы за нарушение законодательства о налогах и сборах, законодательства о страховых взносах | B73: 07 | C73: 02 | D73: 0220270210 | E73: 853 | F73: 292000 | G73: 1000 | J73: =H73+I73 -> 0.00 | M73: =K73+L73 -> 0.00 | P73: =N73+O73 -> 0.00
A74: Иные выплаты текущего характера физическим лицам (возмещение убытков, вреда и судебных издержек) | B74: 07 | C74: 02 | D74: 0220270210 | E74: 853 | F74: 296100 | G74: 1000 | J74: =H74+I74 -> 0.00 | M74: =K74+L74 -> 0.00 | P74: =N74+O74 -> 0.00
A75: Транспортный налог | B75: 07 | C75: 02 | D75: 0220270210 | E75: 852 | F75: 291400 | G75: 1000 | J75: 0.00 | M75: 0.00 | P75: 0.00
A76: Штрафы за нарушение законодательства о закупках и нарушенияе условий контракта (договоров) | B76: 07 | C76: 02 | D76: 0220270210 | E76: 831 | F76: 293000 | G76: 1000 | J76: 0.00 | M76: 0.00 | P76: 0.00
A77: Другие экономические санкции | B77: 07 | C77: 02 | D77: 0220270210 | E77: 853 | F77: 295000 | G77: 1000 | J77: 0.00 | M77: 0.00 | P77: 0.00
A78: Иные выплаты текущего характера организациям (возмещение убытков, вред и судебных издержек) | B78: 07 | C78: 02 | D78: 0220270210 | E78: 851 | F78: 297100 | G78: 1000 | J78: 0.00 | M78: 0.00 | P78: 0.00
A79: Другие расходы | B79: 07 | C79: 02 | D79: 0400072910 | E79: 244 | F79: 226900 | G79: 1000 | J79: 0.00 | M79: 0.00 | P79: 0.00
A80: Заработная плата | B80: 07 | C80: 02 | D80: 0920070260 | E80: 111 | F80: 211000 | G80: 1000 | J80: 0.00 | M80: 0.00 | P80: 0.00
A81: Начисления на выплаты по оплате труда | B81: 07 | C81: 02 | D81: 0920070260 | E81: 119 | F81: 213000 | G81: 1000 | J81: 0.00 | M81: 0.00 | P81: 0.00
A82: Итого по КЦ 1000 | H82: =SUM(H37:H81) -> 3,874,923.54 | I82: 0.00 | J82: 3,874,923.54 | K82: 4,480,346.67 | L82: 0.00 | M82: 4,480,346.67 | N82: 4,875,002.87 | O82: 0.00 | P82: 4,875,002.87
A83: Субвенция на обеспечение государственных гарантий реализации прав на получение общедоступного и бесплатного дошкольного образования в муниципальных дошкольных образовательных организациях, общедоступного и бесплатного дошкольного, начального общего, основного общего, среднего общего образования в муниципальных общеобразовательных организациях, обеспечение дополнительного образования детей в муниципальных общеобразовательных организациях (КЦ 254242190000219)
A84: Заработная плата | B84: 07 | C84: 02 | D84: 0220242190 | E84: 111 | F84: 211000 | G84: 254242190000219 | H84: 0.00 | I84: 17,927,463.66 | J84: =H84+I84 -> 17,927,463.66 | K84: 0.00 | M84: =K84+L84 -> 0.00 | N84: 0.00 | P84: =N84+O84 -> 0.00
A85: Социальные пособия и компенсации персоналу в денежной форме (пособие за первые три дня временной нетрудоспособности за счет средств работодателя) | B85: 07 | C85: 02 | D85: 0220242190 | E85: 111 | F85: 266100 | G85: 254242190000219 | J85: 0.00 | K85: 0.00 | M85: 0.00 | N85: 0.00 | P85: 0.00
A86: Начисления на выплаты по оплате труда | B86: 07 | C86: 02 | D86: 0220242190 | E86: 119 | F86: 213000 | G86: 254242190000219 | H86: 0.00 | I86: 4,060,570.52 | J86: 4,060,570.52 | K86: 0.00 | M86: 0.00 | N86: 0.00 | P86: 0.00
A87: Услуги связи (интернет) | B87: 07 | C87: 02 | D87: 0220242190 | E87: 244 | F87: 221200 | G87: 254242190000219 | H87: 0.00 | J87: =H87+I87 -> 0.00 | K87: 0.00 | M87: =K87+L87 -> 0.00 | N87: 0.00 | P87: =N87+O87 -> 0.00
A88: Транспортные услуги | B88: 07 | C88: 02 | D88: 0220242190 | E88: 244 | F88: 222000 | G88: 254242190000219 | J88: 0.00 | K88: 0.00 | M88: 0.00 | N88: 0.00 | P88: 0.00
A89: Другие расходы | B89: 07 | C89: 02 | D89: 0220242190 | E89: 244 | F89: 226900 | G89: 254242190000219 | J89: =H89+I89 -> 0.00 | K89: 0.00 | M89: =K89+L89 -> 0.00 | N89: 0.00 | P89: =N89+O89 -> 0.00
A90: Приобретение предметов длительного пользования (оборудование, мебель, компьютерная техника и т.п.) стоимостью свыше 3000,00 руб. | B90: 07 | C90: 02 | D90: 0220242190 | E90: 244 | F90: 310100 | G90: 254242190000219 | J90: =H90+I90 -> 0.00 | K90: 0.00 | M90: =K90+L90 -> 0.00 | N90: 0.00 | P90: =N90+O90 -> 0.00
A91: Комплектование библиотечного фонда | B91: 07 | C91: 02 | D91: 0220242190 | E91: 244 | F91: 310200 | G91: 254242190000219 | J91: 0.00 | K91: 0.00 | M91: 0.00 | N91: 0.00 | P91: 0.00
A92: Другие расходы стоимостью до 3000,00 рублей | B92: 07 | C92: 02 | D92: 0220242190 | E92: 244 | F92: 310900 | G92: 254242190000219 | J92: 0.00 | K92: 0.00 | M92: 0.00 | N92: 0.00 | P92: 0.00
A93: Мягкий инвентарь | B93: 07 | C93: 02 | D93: 0220242190 | E93: 244 | F93: 345000 | G93: 254242190000219 | J93: 0.00 | M93: 0.00 | P93: 0.00
A94: Увеличение стоимости прочих оборотных запасов (материалов) | B94: 07 | C94: 02 | D94: 0220242190 | E94: 244 | F94: 346000 | G94: 254242190000219 | J94: 0.00 | K94: 0.00 | M94: 0.00 | N94: 0.00 | P94: 0.00
A95: Увеличение стоимости прочих материальных запасов однократного применения | B95: 07 | C95: 02 | D95: 0220242190 | E95: 244 | F95: 349100 | G95: 254242190000219 | J95: 0.00 | K95: 0.00 | M95: 0.00 | N95: 0.00 | P95: 0.00
A96: Мероприятия по переподготовке и повышению квалификации кадров | B96: 07 | C96: 05 | D96: 0220242190 | E96: 244 | F96: 226700 | G96: 254242190000219 | J96: 0.00 | K96: 0.00 | M96: 0.00 | N96: 0.00 | P96: 0.00
A97: Итого по КЦ 254242190000219 | H97: =SUM(H84:H96) -> 0.00 | I97: 21,988,034.18 | J97: 21,988,034.18 | K97: 0.00 | L97: 0.00 | M97: 0.00 | N97: 0.00 | O97: 0.00 | P97: 0.00
A98: Иные межбюджетные трансферты на ежемесячное денежное вознаграждение за классное руководство педагогическим работникам государственных и муниципальных образовательных организаций, реализующих образовательные программы начального общего образования, образовательные программы основного общего образования, образовательные программы среднего общего образования (КЦ 24-53030-00000-00000)
A99: Заработная плата | B99: 07 | C99: 02 | D99: 0220253030 | E99: 111 | F99: 211000 | G99: 24-53030-00000-00000 | J99: =H99+I99 -> 0.00 | K99: 0.00 | M99: =K99+L99 -> 0.00 | N99: 0.00 | P99: =N99+O99 -> 0.00
A100: Начисления на выплаты по оплате труда | B100: 07 | C100: 02 | D100: 0220253030 | E100: 119 | F100: 213000 | G100: 24-53030-00000-00000 | J100: =H100+I100 -> 0.00 | K100: 0.00 | M100: =K100+L100 -> 0.00 | N100: 0.00 | P100: =N100+O100 -> 0.00
A101: Итого по КЦ 24-53030-00000-00000 | H101: =SUM(H99:H100) -> 0.00 | I101: 0.00 | J101: 0.00 | K101: 0.00 | L101: 0.00 | M101: 0.00 | N101: 0.00 | O101: 0.00 | P101: 0.00
A102: Иные межбюджетные трансферты на обеспечение выплат ежемесячного денежного вознаграждения советникам директоров по воспитанию и взаимодействию с детскими общественными объединениями государственных, муниципальных общеобразовательных организаций, профессиональных образовательных организацийх (КЦ 24-50500-00000-00000 )
A103: Заработная плата | B103: 07 | C103: 02 | D103: 0220250500 | E103: 111 | F103: 211000 | G103: 24-50500-00000-00000 | J103: =H103+I103 -> 0.00 | K103: 0.00 | M103: =K103+L103 -> 0.00 | N103: 0.00 | P103: =N103+O103 -> 0.00
A104: Начисления на выплаты по оплате труда | B104: 07 | C104: 02 | D104: 0220250500 | E104: 119 | F104: 213000 | G104: 24-50500-00000-00000 | J104: =H104+I104 -> 0.00 | K104: 0.00 | M104: =K104+L104 -> 0.00 | N104: 0.00 | P104: =N104+O104 -> 0.00
A105: Итого по КЦ 24-53030-00000-00000 | H105: =SUM(H103:H104) -> 0.00 | I105: 0.00 | J105: 0.00 | K105: 0.00 | L105: 0.00 | M105: 0.00 | N105: 0.00 | O105: 0.00 | P105: 0.00
A106: Субвенции на осуществление государственных полномочий РеспубликиКарелия по представлению предусмотренных пунктом 5 части 1 статьи 9 Закона Республики Карелия от 20 декабря 2013 гоа № 1755_ЗРК "Об образовании" мер социальной поддержки и социального обслуживания (КЦ 254242100000210)
A107: Увеличение стоимости прочих оборотных запасов (материалов) | B107: 07 | C107: 02 | D107: 0220242100 | E107: 244 | F107: 346000 | G107: 24424210000210 | J107: =H107+I107 -> 0.00 | K107: 0.00 | M107: =K107+L107 -> 0.00 | N107: 0.00 | P107: =N107+O107 -> 0.00
A108: Пособия по социальной помощи населению в натуральной форме | B108: 07 | C108: 02 | D108: 0220242100 | E108: 323 | F108: 263000 | G108: 254242100000210 | H108: 152,545.00 | J108: =H108+I108 -> 152,545.00 | K108: 0.00 | M108: =K108+L108 -> 0.00 | N108: 0.00 | P108: =N108+O108 -> 0.00
A109: Увеличение стоимости прочих оборотных запасов (материалов) | B109: 07 | C109: 02 | D109: 0220242100 | E109: 323 | F109: 346000 | G109: 23424210000210 | J109: =H109+I109 -> 0.00 | K109: 0.00 | M109: =K109+L109 -> 0.00 | N109: 0.00 | P109: =N109+O109 -> 0.00
A110: Итого по КЦ 254242100000210 | H110: =SUM(H107:H109) -> 152,545.00 | I110: 0.00 | J110: 152,545.00 | K110: 0.00 | L110: 0.00 | M110: 0.00 | N110: 0.00 | O110: 0.00 | P110: 0.00
A111: Субвенции на осуществление государственных полномочий Республики Карелия по выплате компенсации платы, взимаемой с родителей (законных представителей) за присмотр и уход за детьми, осваивающими образовательные программы дошкольного образования в организа
A112: Пособия по социальной помощи населению в натуральной форме | B112: 10 | C112: 04 | D112: 0220142030 | E112: 323 | F112: 263000 | G112: 23424203000203 | J112: =H112+I112 -> 0.00 | K112: 0.00 | M112: =K112+L112 -> 0.00 | N112: 0.00 | P112: =N112+O112 -> 0.00
A113: Итого по КЦ 23424203000203 | H113: =SUM(H112) -> 0.00 | I113: 0.00 | J113: 0.00 | K113: 0.00 | L113: 0.00 | M113: 0.00 | N113: 0.00 | O113: 0.00 | P113: 0.00
A114: Субсидии на организацию бесплатного горячего питания обучающихся, получающих начальное общее образование в государственных и муниципальных образовательных организациях (КЦ 24-53040-00000-00002)
A115: Другие расходы | B115: 07 | C115: 02 | D115: 02202L3040 | E115: 244 | F115: 226900 | G115: 24-53040-00000-00002 | H115: 0.00 | J115: =H115+I115 -> 0.00 | K115: 0.00 | M115: =K115+L115 -> 0.00 | N115: 0.00 | P115: =N115+O115 -> 0.00
A116: Итого по КЦ 24-53040-00000-00002 | H116: =SUM(H115:H115) -> 0.00 | I116: 0.00 | J116: 0.00 | K116: 0.00 | L116: 0.00 | M116: 0.00 | N116: 0.00 | O116: 0.00 | P116: 0.00
A117: Субсидии на организацию бесплатного горячего питания обучающихся, получающих начальное общее образование в государственных и муниципальных образовательных организациях (КЦ 24-53040-00000-00000)
A118: Другие расходы | B118: 07 | C118: 02 | D118: 02202L3040 | E118: 244 | F118: 226900 | G118: 24-53040-00000-00000 | J118: =H118+I118 -> 0.00 | K118: 0.00 | M118: =K118+L118 -> 0.00 | N118: 0.00 | P118: =N118+O118 -> 0.00
A119: Итого по КЦ 24-53040-00000-00000 | H119: =SUM(H118:H118) -> 0.00 | I119: 0.00 | J119: 0.00 | K119: 0.00 | L119: 0.00 | M119: 0.00 | N119: 0.00 | O119: 0.00 | P119: 0.00
A120: Субсидия на реализацию мероприятий государственной программы Республики Карелия "Совершенствование социальной защиты граждан" в целях организации адресной социальной помощи семьям, имеющим детей (КЦ 24434321000316)
A121: Пособия по социальной помощи населению в натуральной форме | B121: 10 | C121: 03 | D121: 0320243210 | E121: 323 | F121: 263000 | G121: 24434321000316 | J121: =H121+I121 -> 0.00 | K121: 0.00 | M121: =K121+L121 -> 0.00 | N121: 0.00 | P121: =N121+O121 -> 0.00
A122: Пособия по социальной помощи населению в натуральной форме | B122: 10 | C122: 03 | D122: 0320243210 | E122: 323 | F122: 263000 | G122: 24434321000316 | J122: =H122+I122 -> 0.00 | K122: 0.00 | M122: =K122+L122 -> 0.00 | N122: 0.00 | P122: =N122+O122 -> 0.00
A123: Итого по КЦ 24434321000316 | H123: =SUM(H121:H122) -> 0.00 | I123: =SUM(I121:I122) -> 0.00 | J123: =SUM(J121:J122) -> 0.00 | K123: =SUM(K122) -> 0.00 | L123: 0.00 | M123: 0.00 | N123: 0.00 | O123: 0.00 | P123: 0.00
A124: Пособия по социальной помощи населению в натуральной форме | B124: 10 | C124: 03 | D124: 03202S3210 | E124: 323 | F124: 263000 | G124: 1000 | J124: =H124+I124 -> 0.00 | K124: 0.00 | M124: 0.00 | N124: 0.00 | P124: 0.00
A125: Итого по КЦ 1000 | H125: =SUM(H124:H124) -> 0.00 | I125: 0.00 | J125: 0.00 | K125: 0.00 | L125: 0.00 | M125: 0.00 | N125: 0.00 | O125: 0.00 | P125: 0.00
A126: Субсидия местным бюджетам на реализацию мероприятий государственной программы Республики Карелия "Совершенствование социальной защиты граждан" (КЦ 2343432000321)
A127: Увеличение стоимости прочих оборотных запасов (материалов) | B127: 07 | C127: 09 | D127: 0220243210 | E127: 244 | F127: 346000 | G127: 2343432000321 | J127: =H127+I127 -> 0.00 | K127: 0.00 | M127: =K127+L127 -> 0.00 | N127: 0.00 | P127: =N127+O127 -> 0.00
A128: Другие расходы | B128: 07 | C128: 09 | D128: 0220243210 | E128: 244 | F128: 226900 | G128: 2343432000321 | J128: 0.00 | K128: 0.00 | M128: 0.00 | N128: 0.00 | P128: 0.00
A129: Транспортные услуги | B129: 07 | C129: 09 | D129: 0220243210 | E129: 244 | F129: 222000 | G129: 2343432000321 | J129: 0.00 | K129: 0.00 | M129: 0.00 | N129: 0.00 | P129: 0.00
A130: Увеличение стоимости прочих оборотных запасов (материалов) | B130: 07 | C130: 09 | D130: 02202S3210 | E130: 244 | F130: 346000 | G130: 1000 | J130: 0.00 | K130: 0.00 | M130: 0.00 | N130: 0.00 | P130: 0.00
A131: Другие расходы | B131: 07 | C131: 09 | D131: 02202S3210 | E131: 244 | F131: 226900 | G131: 1000 | J131: 0.00 | K131: 0.00 | M131: 0.00 | N131: 0.00 | P131: 0.00
A132: Транспортные услуги | B132: 07 | C132: 09 | D132: 02202S3210 | E132: 244 | F132: 222000 | G132: 1000 | J132: 0.00 | K132: 0.00 | M132: 0.00 | N132: 0.00 | P132: 0.00
A133: Итого по КЦ 2343432000321 | H133: =SUM(H127:H132) -> 0.00 | I133: 0.00 | J133: 0.00 | K133: 0.00 | L133: 0.00 | M133: 0.00 | N133: 0.00 | O133: 0.00 | P133: 0.00
A134: Иные межбюджетные трансферты на компенсацию затрат, связанных с освобождением членов семей постоянно проживающих на территории Республики Карелия граждан, призванных военным комиссариатом Республики Карелия на военную службу по мобилизации, а также гражд
A135: Продукты питания | B135: 07 | C135: 01 | D135: 0220175040 | E135: 244 | F135: 342000 | G135: 234475040П0514 | J135: =H135+I135 -> 0.00 | K135: 0.00 | M135: =K135+L135 -> 0.00 | N135: 0.00 | O135: =M135+N135 -> 0.00 | P135: =N135+O135 -> 0.00
A136: Итого по КЦ 234475040П0514 | H136: =SUM(H135) -> 0.00 | I136: 0.00 | J136: 0.00 | K136: 0.00 | L136: 0.00 | M136: 0.00 | N136: 0.00 | O136: 0.00 | P136: 0.00
A137: Субсидии на проведение мероприятий по обеспечению деятельности советников директора по воспитанию и взаимодействию с детскими общественными объединениями в общеобразовательных организация (КЦ 23-51790-00000-00000)
A138: Заработная плата | B138: 07 | C138: 02 | D138: 022ЕВ51790 | E138: 111 | F138: 211000 | G138: 23-51790-00000-00000 | H138: 0.00 | J138: =H138+I138 -> 0.00 | K138: 0.00 | M138: =K138+L138 -> 0.00 | N138: 0.00 | P138: =N138+O138 -> 0.00
A139: Начисления на выплаты по оплате труда | B139: 07 | C139: 02 | D139: 022ЕВ51790 | E139: 119 | F139: 213000 | G139: 23-51790-00000-00000 | H139: 0.00 | J139: =H139+I139 -> 0.00 | K139: 0.00 | M139: =K139+L139 -> 0.00 | N139: 0.00 | P139: =N139+O139 -> 0.00
A140: Итого по КЦ 23-51790-00000-00000 | H140: =SUM(H138:H139) -> 0.00 | I140: 0.00 | J140: 0.00 | K140: 0.00 | L140: 0.00 | M140: 0.00 | N140: 0.00 | O140: 0.00 | P140: 0.00
A141: Субсидии на проведение мероприятий по обеспечению деятельности советников директора по воспитанию и взаимодействию с детскими общественными объединениями в общеобразовательных организация (КЦ 24-51790-00000-00000)
A142: Заработная плата | B142: 07 | C142: 02 | D142: 022ЕВ51790 | E142: 111 | F142: 211000 | G142: 24-51790-00000-00000 | J142: =H142+I142 -> 0.00 | K142: 0.00 | M142: =K142+L142 -> 0.00 | N142: 0.00 | P142: =N142+O142 -> 0.00
A143: Начисления на выплаты по оплате труда | B143: 07 | C143: 02 | D143: 022ЕВ51790 | E143: 119 | F143: 213000 | G143: 24-51790-00000-00000 | J143: =H143+I143 -> 0.00 | K143: 0.00 | M143: =K143+L143 -> 0.00 | N143: 0.00 | P143: =N143+O143 -> 0.00
A144: Итого по КЦ 24-51790-00000-00000 | H144: =SUM(H142:H143) -> 0.00 | I144: 0.00 | J144: 0.00 | K144: 0.00 | L144: 0.00 | M144: 0.00 | N144: 0.00 | O144: 0.00 | P144: 0.00
G145: Всего | H145: =H82+H97+H110+H113+H116+H123+H125+H144+H140+H105+H101+H119 -> 4,027,468.54 | I145: 21,988,034.18 | J145: 26,015,502.72 | K145: 4,480,346.67 | L145: 0.00 | M145: 4,480,346.67 | N145: 4,875,002.87 | O145: 0.00 | P145: 4,875,002.87
A149: Директор | F149: И.А. Сидорова
B150: (подпись) | F150: (расшифровка подписи)
A152: Гл.бухгалтер МУ "ЦБ № 1" | F152: И.В. Ананьева
A153: (уполномоченное лицо) | B153: (подпись) | F153: (расшифровка подписи)
A155: Главный экономист ПЭО МУ "ЦБ № 1" | F155: Е.Л. Герасимова
A156: (исполнитель) | B156: (подпись) | F156: (расшифровка подписи)
A158: =L18 -> "21" января 2025 г.

Sheet 29.01
P1: Приложение № 2
P2: к Порядку составления, утверждения
P3: и ведения бюджетных смет Администрации
P4: Прионежского муниципального района
P5: и казенных учреждений, находящихся
P6: в ведении Администрации Прионежского
P7: муниципального района
P8: от 09 августа 2022 № 831
L10: УТВЕРЖДАЮ
L11: Глава Администрации Прионежского муниципального района
L12: (наименование должности лица, согласующего бюджетную смету)
L13: Администрация Прионежского муниципального района
L14: (наименование главного распорядителя (распорядителя) бюджетных средств; учреждения)
L16: Г. Н. Шемет
L17: (подпись) | N17: (расшифровка подписи)
L18: "29" января 2025 г.
A20: ИЗМЕНЕНИЕ К БЮДЖЕТНОЙ СМЕТЕ НА 2025 ФИНАНСОВЫЙ ГОД И ПЛАНОВЫЙ ПЕРИОД 2026 И 2027 ГОДОВ
B22: №№ 015/00402/007; 015/00402/008 от | H22: =L18 -> "29" января 2025 г.
A23: (№, дата, справки об изменении ЛБО) | P23: КОДЫ
O24: Форма по ОКУД | P24: 0501012
O25: Дата | P25: =L18 -> "29" января 2025 г.
O26: по ОКПО | P26: 51326281
A27: Получатель бюджетных средств | B27: Муниципальное общеобразовательное учреждение "Средняя общеобразовательная школа № 44"
A28: Распорядитель бюджетных средств | B28: Администрация Прионежского муниципального района Республики Карелия
A29: Главный распорядитель бюджетных средств | B29: Администрация Прионежского муниципального района Республики Карелия | O29: Глава по БК | P29: 015
A30: Наименование бюджета | B30: Бюджет Прионежского муниципального района | O30: по ОКТМО | P30: 86636410
A31: Единица измерения: | B31: руб. | O31: по ОКЕЙ | P31: 383
A33: Наименование показателя (детализация кода бюджетной классификации) | B33: РЗ | C33: ПР | D33: ЦСР | E33: Вид расхода | F33: Детализация | G33: Вид целевых средств | H33: Сумма на текущий 2025 год | K33: Сумма на первый год планового периода | N33: Сумма на второй год планового периода
H34: на 21.01.2025 г | I34: изменения(+;-) | J34: Итого | K34: =H34 -> на 21.01.2025 г | L34: изменения(+;-) | M34: Итого | N34: =H34 -> на 21.01.2025 г | O34: изменения(+;-) | P34: Итого
A35: 1 | B35: =SUM(A35+1) -> 2 | C35: 3 | D35: 4 | E35: 5 | F35: 6 | G35: 7 | H35: 8 | I35: 9 | J35: 10 | K35: 11 | L35: 12 | M35: 13 | N35: 14 | O35: 15 | P35: 16
A36: Средства местного бюджета (КЦ 1000) 0702
A37: Заработная плата | B37: 07 | C37: 02 | D37: 0220270210 | E37: 111 | F37: 211000 | G37: 1000 | H37: 451,164.48 | J37: =H37+I37 -> 451,164.48 | K37: 451,164.48 | M37: =K37+L37 -> 451,164.48 | N37: 451,164.48 | P37: =N37+O37 -> 451,164.48
A38: Социальные пособия и компенсации персоналу в денежной форме (пособие за первые три дня временной нетрудоспособности за счет средств работодателя) | B38: 07 | C38: 02 | D38: 0220270210 | E38: 111 | F38: 266100 | G38: 1000 | H38: 0.00 | J38: 0.00 | K38: 0.00 | M38: 0.00 | N38: 0.00 | P38: 0.00
A39: Расходы по оплате проезда к месту отпуска и обратно отдельным категориям лиц (для лиц, работающих в районах Крайнего Севера и приравненных к ним местностям, и членов их семей) | B39: 07 | C39: 02 | D39: 0220270210 | E39: 112 | F39: 214000 | G39: 1000 | H39: 30,000.00 | J39: 30,000.00 | K39: 20,000.00 | M39: 20,000.00 | N39: 20,000.00 | P39: 20,000.00
A40: Начисления на выплаты по оплате труда | B40: 07 | C40: 02 | D40: 0220270210 | E40: 119 | F40: 213000 | G40: 1000 | H40: 136,251.67 | J40: 136,251.67 | K40: 136,261.67 | M40: 136,261.67 | N40: 136,251.67 | P40: 136,251.67
A41: Услуги связи (телефон) | B41: 07 | C41: 02 | D41: 0220270210 | E41: 244 | F41: 221100 | G41: 1000 | H41: 7,416.00 | J41: 7,416.00 | K41: 9,270.00 | M41: 9,270.00 | N41: 11,587.50 | P41: 11,587.50
A42: Услуги связи (почта) | B42: 07 | C42: 02 | D42: 0220270210 | E42: 244 | F42: 221300 | G42: 1000 | H42: 0.00 | J42: 0.00 | K42: 0.00 | M42: 0.00 | N42: 0.00 | P42: 0.00
A43: Транспортные услуги | B43: 07 | C43: 02 | D43: 0220270210 | E43: 244 | F43: 222000 | G43: 1000 | H43: 46,442.50 | J43: =H43+I43 -> 46,442.50 | K43: 58,053.13 | M43: =K43+L43 -> 58,053.13 | N43: 67,566.41 | P43: =N43+O43 -> 67,566.41
A44: Холодное водоснабжение | B44: 07 | C44: 02 | D44: 0220270210 | E44: 244 | F44: 223300 | G44: 1000 | H44: 0.00 | J44: 0.00 | K44: 0.00 | M44: 0.00 | N44: 0.00 | P44: 0.00
A45: Водоотведение | B45: 07 | C45: 02 | D45: 0220270210 | E45: 244 | F45: 223400 | G45: 1000 | H45: 0.00 | J45: 0.00 | K45: 0.00 | M45: 0.00 | N45: 0.00 | P45: 0.00
A46: Обращение с твердыми коммунальными отходами (вывоз ТБО) | B46: 07 | C46: 02 | D46: 0220270210 | E46: 244 | F46: 223500 | G46: 1000 | H46: 36,117.96 | J46: 36,117.96 | K46: 39,466.11 | M46: 39,466.11 | N46: 41,301.62 | P46: 41,301.62
A47: Техническое обслуживание внутренних сетей отопления и горячего водоснабжения | B47: 07 | C47: 02 | D47: 0220270210 | E47: 244 | F47: 225200 | G47: 1000 | H47: 0.00 | J47: 0.00 | K47: 0.00 | M47: 0.00 | N47: 0.00 | P47: 0.00
A48: Санитарная и противопожарная (дезинфекция, дезинсекция, дератизация, газация, огнезащитная) обработка помещений | B48: 07 | C48: 02 | D48: 0220270210 | E48: 244 | F48: 225600 | G48: 1000 | H48: 39,096.90 | J48: 39,096.90 | K48: 48,871.13 | M48: 48,871.13 | N48: 61,088.91 | P48: 61,088.91
A49: Содержание, обслуживание помещений и сетей инженерно-технического обеспечения | B49: 07 | C49: 02 | D49: 0220270210 | E49: 244 | F49: 225700 | G49: 1000 | H49: 196,537.10 | J49: 196,537.10 | K49: 245,671.38 | M49: 245,671.38 | N49: 307,089.22 | P49: 307,089.22
A50: Текущий ремонт помещений и сетей инженерно-технического обеспечения | B50: 07 | C50: 02 | D50: 0220270210 | E50: 244 | F50: 225800 | G50: 1000 | H50: 0.00 | J50: 0.00 | K50: 0.00 | M50: 0.00 | N50: 0.00 | P50: 0.00
A51: Другие расходы | B51: 07 | C51: 02 | D51: 0220270210 | E51: 244 | F51: 225900 | G51: 1000 | H51: 93,625.00 | J51: 93,625.00 | K51: 86,875.00 | M51: 86,875.00 | N51: 102,921.88 | P51: 102,921.88
A52: Аттестация | B52: 07 | C52: 02 | D52: 0220270210 | E52: 244 | F52: 226200 | G52: 1000 | H52: 0.00 | J52: =H52+I52 -> 0.00 | K52: 0.00 | M52: =K52+L52 -> 0.00 | N52: 0.00 | P52: =N52+O52 -> 0.00
A53: Охрана ведомственная, вневедомственная, пожарная | B53: 07 | C53: 02 | D53: 0220270210 | E53: 244 | F53: 226400 | G53: 1000 | H53: 73,072.68 | J53: 73,072.68 | K53: 83,840.84 | M53: 83,840.84 | N53: 97,301.05 | P53: 97,301.05
A54: Мероприятия по переподготовке и повышению квалификации кадров | B54: 07 | C54: 02 | D54: 0220270210 | E54: 244 | F54: 226700 | G54: 1000 | H54: 0.00 | J54: 0.00 | K54: 0.00 | M54: 0.00 | N54: 0.00 | P54: 0.00
A55: Медицинский осмотр работников учреждения, за исключением водителей трансртных средств | B55: 07 | C55: 02 | D55: 0220270210 | E55: 244 | F55: 226800 | G55: 1000 | H55: 164,784.00 | J55: 164,784.00 | K55: 214,562.50 | M55: 214,562.50 | N55: 268,203.13 | P55: 268,203.13
A56: Другие расходы | B56: 07 | C56: 02 | D56: 0220270210 | E56: 244 | F56: 226900 | G56: 1000 | H56: 100,000.00 | J56: 100,000.00 | K56: 100,000.00 | M56: 100,000.00 | N56: 100,000.00 | P56: 100,000.00
A57: Обязательное страхование автогражданской ответственности | B57: 07 | C57: 02 | D57: 0220270210 | E57: 244 | F57: 227200 | G57: 1000 | H57: 0.00 | J57: =H57+I57 -> 0.00 | K57: 0.00 | M57: =K57+L57 -> 0.00 | N57: 0.00 | P57: =N57+O57 -> 0.00
A58: Расходы на оплату услуг по страхованию здоровья | B58: 07 | C58: 02 | D58: 0220270210 | E58: 244 | F58: 227300 | G58: 1000 | H58: 0.00 | J58: =H58+I58 -> 0.00 | K58: 0.00 | M58: =K58+L58 -> 0.00 | N58: 0.00 | P58: =N58+O58 -> 0.00
A59: Приобретение предметов длительного пользования (оборудование, мебель, компьютерная техника и т.п) стоимостью свыше 3000 рублей | B59: 07 | C59: 02 | D59: 0220270210 | E59: 244 | F59: 310100 | G59: 1000 | H59: 0.00 | J59: 0.00 | K59: 0.00 | M59: 0.00 | N59: 0.00 | P59: 0.00
A60: Другие расходы стоимостью до 3000,00 рублей | B60: 07 | C60: 02 | D60: 0220270210 | E60: 244 | F60: 310900 | G60: 1000 | H60: 0.00 | J60: 0.00 | K60: 0.00 | M60: 0.00 | N60: 0.00 | P60: 0.00
A61: Увеличение стоимости лекарственных препаратов и материалов, применяемых в медицинских целях | B61: 07 | C61: 02 | D61: 0220270210 | E61: 244 | F61: 341000 | G61: 1000 | H61: 9,900.00 | J61: =H61+I61 -> 9,900.00 | K61: 12,375.00 | M61: =K61+L61 -> 12,375.00 | N61: 15,468.75 | P61: =N61+O61 -> 15,468.75
A62: Приобретение строительных материалов | B62: 07 | C62: 02 | D62: 0220270210 | E62: 244 | F62: 344000 | G62: 1000 | H62: 20,000.00 | J62: 20,000.00 | K62: 20,000.00 | M62: 20,000.00 | N62: 20,000.00 | P62: 20,000.00
A63: Мягкий инвентарь | B63: 07 | C63: 02 | D63: 0220270210 | E63: 244 | F63: 345000 | G63: 1000 | H63: 10,000.00 | J63: =H63+I63 -> 10,000.00 | K63: 10,000.00 | M63: =K63+L63 -> 10,000.00 | N63: 10,000.00 | P63: =N63+O63 -> 10,000.00
A64: Увеличение стоимости прочих оборотных запасов (материалов) | B64: 07 | C64: 02 | D64: 0220270210 | E64: 244 | F64: 346000 | G64: 1000 | H64: 80,000.00 | J64: 80,000.00 | K64: 80,000.00 | M64: 80,000.00 | N64: 80,000.00 | P64: 80,000.00
A65: Увеличение стоимости прочих оборотных запасов однократного применения | B65: 07 | C65: 02 | D65: 0220270210 | E65: 244 | F65: 349100 | G65: 1000 | H65: 0.00 | J65: 0.00 | K65: 0.00 | M65: 0.00 | N65: 0.00 | P65: 0.00
A66: Отопление, горячее водоснабжение и газоснабжение | B66: 07 | C66: 02 | D66: 0220270210 | E66: 247 | F66: 223100 | G66: 1000 | H66: 1,670,000.00 | J66: 1,670,000.00 | K66: 2,040,114.43 | M66: 2,040,114.43 | N66: 2,197,930.77 | P66: 2,197,930.77
A67: Электроэнергия | B67: 07 | C67: 02 | D67: 0220270210 | E67: 247 | F67: 223200 | G67: 1000 | H67: 580,000.00 | J67: 580,000.00 | K67: 684,490.00 | M67: 684,490.00 | N67: 740,100.00 | P67: 740,100.00
A68: Холодное водоснабжение | B68: 07 | C68: 02 | D68: 0220270210 | E68: 247 | F68: 223300 | G68: 1000 | H68: 59,330.00 | J68: 59,330.00 | K68: 64,908.00 | M68: 64,908.00 | N68: 69,775.59 | P68: 69,775.59
A69: Водоотведение | B69: 07 | C69: 02 | D69: 0220270210 | E69: 247 | F69: 223400 | G69: 1000 | H69: 34,472.25 | J69: 34,472.25 | K69: 37,710.00 | M69: 37,710.00 | N69: 40,538.89 | P69: 40,538.89
A70: Пособия по социальной помощи населению в натуральной форме | B70: 07 | C70: 02 | D70: 0220270210 | E70: 323 | F70: 263000 | G70: 1000 | H70: 0.00 | J70: =H70+I70 -> 0.00 | K70: 0.00 | M70: 0.00 | N70: 0.00 | P70: 0.00
A71: Налог на имущство | B71: 07 | C71: 02 | D71: 0220270210 | E71: 851 | F71: 291200 | G71: 1000 | H71: 9,252.00 | J71: 9,252.00 | K71: 9,252.00 | M71: 9,252.00 | N71: 9,252.00 | P71: 9,252.00
A72: Земельный налог, в том числе в период строительства объекта | B72: 07 | C72: 02 | D72: 0220270210 | E72: 851 | F72: 291300 | G72: 1000 | H72: 27,461.00 | J72: 27,461.00 | K72: 27,461.00 | M72: 27,461.00 | N72: 27,461.00 | P72: 27,461.00
A73: Штрафы за нарушение законодательства о налогах и сборах, законодательства о страховых взносах | B73: 07 | C73: 02 | D73: 0220270210 | E73: 853 | F73: 292000 | G73: 1000 | J73: =H73+I73 -> 0.00 | M73: =K73+L73 -> 0.00 | P73: =N73+O73 -> 0.00
A74: Иные выплаты текущего характера физическим лицам (возмещение убытков, вреда и судебных издержек) | B74: 07 | C74: 02 | D74: 0220270210 | E74: 853 | F74: 296100 | G74: 1000 | J74: =H74+I74 -> 0.00 | M74: =K74+L74 -> 0.00 | P74: =N74+O74 -> 0.00
A75: Транспортный налог | B75: 07 | C75: 02 | D75: 0220270210 | E75: 852 | F75: 291400 | G75: 1000 | J75: 0.00 | M75: 0.00 | P75: 0.00
A76: Штрафы за нарушение законодательства о закупках и нарушенияе условий контракта (договоров) | B76: 07 | C76: 02 | D76: 0220270210 | E76: 831 | F76: 293000 | G76: 1000 | J76: 0.00 | M76: 0.00 | P76: 0.00
A77: Другие экономические санкции | B77: 07 | C77: 02 | D77: 0220270210 | E77: 853 | F77: 295000 | G77: 1000 | J77: 0.00 | M77: 0.00 | P77: 0.00
A78: Иные выплаты текущего характера организациям (возмещение убытков, вред и судебных издержек) | B78: 07 | C78: 02 | D78: 0220270210 | E78: 851 | F78: 297100 | G78: 1000 | J78: 0.00 | M78: 0.00 | P78: 0.00
A79: Другие расходы | B79: 07 | C79: 02 | D79: 0400072910 | E79: 244 | F79: 226900 | G79: 1000 | J79: 0.00 | M79: 0.00 | P79: 0.00
A80: Заработная плата | B80: 07 | C80: 02 | D80: 0920070260 | E80: 111 | F80: 211000 | G80: 1000 | J80: 0.00 | M80: 0.00 | P80: 0.00
A81: Начисления на выплаты по оплате труда | B81: 07 | C81: 02 | D81: 0920070260 | E81: 119 | F81: 213000 | G81: 1000 | J81: 0.00 | M81: 0.00 | P81: 0.00
A82: Итого по КЦ 1000 | H82: =SUM(H37:H81) -> 3,874,923.54 | I82: 0.00 | J82: 3,874,923.54 | K82: 4,480,346.67 | L82: 0.00 | M82: 4,480,346.67 | N82: 4,875,002.87 | O82: 0.00 | P82: 4,875,002.87
A83: Субвенция на обеспечение государственных гарантий реализации прав на получение общедоступного и бесплатного дошкольного образования в муниципальных дошкольных образовательных организациях, общедоступного и бесплатного дошкольного, начального общего, основного общего, среднего общего образования в муниципальных общеобразовательных организациях, обеспечение дополнительного образования детей в муниципальных общеобразовательных организациях (КЦ 254242190000219)
A84: Заработная плата | B84: 07 | C84: 02 | D84: 0220242190 | E84: 111 | F84: 211000 | G84: 254242190000219 | H84: 17,927,463.66 | J84: =H84+I84 -> 17,927,463.66 | K84: 0.00 | M84: =K84+L84 -> 0.00 | N84: 0.00 | P84: =N84+O84 -> 0.00
A85: Социальные пособия и компенсации персоналу в денежной форме (пособие за первые три дня временной нетрудоспособности за счет средств работодателя) | B85: 07 | C85: 02 | D85: 0220242190 | E85: 111 | F85: 266100 | G85: 254242190000219 | H85: 0.00 | J85: 0.00 | K85: 0.00 | M85: 0.00 | N85: 0.00 | P85: 0.00
A86: Начисления на выплаты по оплате труда | B86: 07 | C86: 02 | D86: 0220242190 | E86: 119 | F86: 213000 | G86: 254242190000219 | H86: 4,060,570.52 | J86: 4,060,570.52 | K86: 0.00 | M86: 0.00 | N86: 0.00 | P86: 0.00
A87: Услуги связи (интернет) | B87: 07 | C87: 02 | D87: 0220242190 | E87: 244 | F87: 221200 | G87: 254242190000219 | H87: 0.00 | J87: =H87+I87 -> 0.00 | K87: 0.00 | M87: =K87+L87 -> 0.00 | N87: 0.00 | P87: =N87+O87 -> 0.00
A88: Транспортные услуги | B88: 07 | C88: 02 | D88: 0220242190 | E88: 244 | F88: 222000 | G88: 254242190000219 | J88: 0.00 | K88: 0.00 | M88: 0.00 | N88: 0.00 | P88: 0.00
A89: Другие расходы | B89: 07 | C89: 02 | D89: 0220242190 | E89: 244 | F89: 226900 | G89: 254242190000219 | J89: =H89+I89 -> 0.00 | K89: 0.00 | M89: =K89+L89 -> 0.00 | N89: 0.00 | P89: =N89+O89 -> 0.00
A90: Приобретение предметов длительного пользования (оборудование, мебель, компьютерная техника и т.п.) стоимостью свыше 3000,00 руб. | B90: 07 | C90: 02 | D90: 0220242190 | E90: 244 | F90: 310100 | G90: 254242190000219 | J90: =H90+I90 -> 0.00 | K90: 0.00 | M90: =K90+L90 -> 0.00 | N90: 0.00 | P90: =N90+O90 -> 0.00
A91: Комплектование библиотечного фонда | B91: 07 | C91: 02 | D91: 0220242190 | E91: 244 | F91: 310200 | G91: 254242190000219 | J91: 0.00 | K91: 0.00 | M91: 0.00 | N91: 0.00 | P91: 0.00
A92: Другие расходы стоимостью до 3000,00 рублей | B92: 07 | C92: 02 | D92: 0220242190 | E92: 244 | F92: 310900 | G92: 254242190000219 | J92: 0.00 | K92: 0.00 | M92: 0.00 | N92: 0.00 | P92: 0.00
A93: Мягкий инвентарь | B93: 07 | C93: 02 | D93: 0220242190 | E93: 244 | F93: 345000 | G93: 254242190000219 | J93: 0.00 | M93: 0.00 | P93: 0.00
A94: Увеличение стоимости прочих оборотных запасов (материалов) | B94: 07 | C94: 02 | D94: 0220242190 | E94: 244 | F94: 346000 | G94: 254242190000219 | J94: 0.00 | K94: 0.00 | M94: 0.00 | N94: 0.00 | P94: 0.00
A95: Увеличение стоимости прочих материальных запасов однократного применения | B95: 07 | C95: 02 | D95: 0220242190 | E95: 244 | F95: 349100 | G95: 254242190000219 | J95: 0.00 | K95: 0.00 | M95: 0.00 | N95: 0.00 | P95: 0.00
A96: Мероприятия по переподготовке и повышению квалификации кадров | B96: 07 | C96: 05 | D96: 0220242190 | E96: 244 | F96: 226700 | G96: 254242190000219 | J96: 0.00 | K96: 0.00 | M96: 0.00 | N96: 0.00 | P96: 0.00
A97: Итого по КЦ 254242190000219 | H97: =SUM(H84:H96) -> 21,988,034.18 | I97: 0.00 | J97: 21,988,034.18 | K97: 0.00 | L97: 0.00 | M97: 0.00 | N97: 0.00 | O97: 0.00 | P97: 0.00
A98: Иные межбюджетные трансферты на ежемесячное денежное вознаграждение за классное руководство педагогическим работникам государственных и муниципальных образовательных организаций, реализующих образовательные программы начального общего образования, образовательные программы основного общего образования, образовательные программы среднего общего образования (КЦ 24-53030-00000-00000)
A99: Заработная плата | B99: 07 | C99: 02 | D99: 0220253030 | E99: 111 | F99: 211000 | G99: 24-53030-00000-00000 | J99: =H99+I99 -> 0.00 | K99: 0.00 | M99: =K99+L99 -> 0.00 | N99: 0.00 | P99: =N99+O99 -> 0.00
A100: Начисления на выплаты по оплате труда | B100: 07 | C100: 02 | D100: 0220253030 | E100: 119 | F100: 213000 | G100: 24-53030-00000-00000 | J100: =H100+I100 -> 0.00 | K100: 0.00 | M100: =K100+L100 -> 0.00 | N100: 0.00 | P100: =N100+O100 -> 0.00
A101: Итого по КЦ 24-53030-00000-00000 | H101: =SUM(H99:H100) -> 0.00 | I101: 0.00 | J101: 0.00 | K101: 0.00 | L101: 0.00 | M101: 0.00 | N101: 0.00 | O101: 0.00 | P101: 0.00
A102: Иные межбюджетные трансферты на обеспечение выплат ежемесячного денежного вознаграждения советникам директоров по воспитанию и взаимодействию с детскими общественными объединениями государственных, муниципальных общеобразовательных организаций, профессиональных образовательных организацийх (КЦ 24-50500-00000-00000 )
A103: Заработная плата | B103: 07 | C103: 02 | D103: 0220250500 | E103: 111 | F103: 211000 | G103: 24-50500-00000-00000 | J103: =H103+I103 -> 0.00 | K103: 0.00 | M103: =K103+L103 -> 0.00 | N103: 0.00 | P103: =N103+O103 -> 0.00
A104: Начисления на выплаты по оплате труда | B104: 07 | C104: 02 | D104: 0220250500 | E104: 119 | F104: 213000 | G104: 24-50500-00000-00000 | J104: =H104+I104 -> 0.00 | K104: 0.00 | M104: =K104+L104 -> 0.00 | N104: 0.00 | P104: =N104+O104 -> 0.00
A105: Итого по КЦ 24-53030-00000-00000 | H105: =SUM(H103:H104) -> 0.00 | I105: 0.00 | J105: 0.00 | K105: 0.00 | L105: 0.00 | M105: 0.00 | N105: 0.00 | O105: 0.00 | P105: 0.00
A106: Субвенции на осуществление государственных полномочий РеспубликиКарелия по представлению предусмотренных пунктом 5 части 1 статьи 9 Закона Республики Карелия от 20 декабря 2013 гоа № 1755_ЗРК "Об образовании" мер социальной поддержки и социального обслуживания (КЦ 254242100000210)
A107: Увеличение стоимости прочих оборотных запасов (материалов) | B107: 07 | C107: 02 | D107: 0220242100 | E107: 244 | F107: 346000 | G107: 24424210000210 | J107: =H107+I107 -> 0.00 | K107: 0.00 | M107: =K107+L107 -> 0.00 | N107: 0.00 | P107: =N107+O107 -> 0.00
A108: Пособия по социальной помощи населению в натуральной форме | B108: 07 | C108: 02 | D108: 0220242100 | E108: 323 | F108: 263000 | G108: 254242100000210 | H108: 152,545.00 | J108: =H108+I108 -> 152,545.00 | K108: 0.00 | M108: =K108+L108 -> 0.00 | N108: 0.00 | P108: =N108+O108 -> 0.00
A109: Увеличение стоимости прочих оборотных запасов (материалов) | B109: 07 | C109: 02 | D109: 0220242100 | E109: 323 | F109: 346000 | G109: 23424210000210 | J109: =H109+I109 -> 0.00 | K109: 0.00 | M109: =K109+L109 -> 0.00 | N109: 0.00 | P109: =N109+O109 -> 0.00
A110: Итого по КЦ 254242100000210 | H110: =SUM(H107:H109) -> 152,545.00 | I110: 0.00 | J110: 152,545.00 | K110: 0.00 | L110: 0.00 | M110: 0.00 | N110: 0.00 | O110: 0.00 | P110: 0.00
A111: Субвенции на осуществление государственных полномочий Республики Карелия по выплате компенсации платы, взимаемой с родителей (законных представителей) за присмотр и уход за детьми, осваивающими образовательные программы дошкольного образования в организа
A112: Пособия по социальной помощи населению в натуральной форме | B112: 10 | C112: 04 | D112: 0220142030 | E112: 323 | F112: 263000 | G112: 23424203000203 | J112: =H112+I112 -> 0.00 | K112: 0.00 | M112: =K112+L112 -> 0.00 | N112: 0.00 | P112: =N112+O112 -> 0.00
A113: Итого по КЦ 23424203000203 | H113: =SUM(H112) -> 0.00 | I113: 0.00 | J113: 0.00 | K113: 0.00 | L113: 0.00 | M113: 0.00 | N113: 0.00 | O113: 0.00 | P113: 0.00
A114: Субсидии на организацию бесплатного горячего питания обучающихся, получающих начальное общее образование в государственных и муниципальных образовательных организациях (КЦ 25-53040-00000-00000)
A115: Другие расходы | B115: 07 | C115: 02 | D115: 02202L3040 | E115: 244 | F115: 226900 | G115: 25-53040-00000-00000 | H115: 0.00 | I115: 800,000.00 | J115: =H115+I115 -> 800,000.00 | K115: 0.00 | M115: =K115+L115 -> 0.00 | N115: 0.00 | P115: =N115+O115 -> 0.00
A116: Итого по КЦ 25-53040-00000-00000 | H116: =SUM(H115:H115) -> 0.00 | I116: 800,000.00 | J116: 800,000.00 | K116: 0.00 | L116: 0.00 | M116: 0.00 | N116: 0.00 | O116: 0.00 | P116: 0.00
A117: Субсидия на реализацию мероприятий государственной программы Республики Карелия "Совершенствование социальной защиты граждан" в целях организации адресной социальной помощи семьям, имеющим детей (КЦ 254343210000316)
A118: Пособия по социальной помощи населению в натуральной форме | B118: 10 | C118: 03 | D118: 0320243210 | E118: 323 | F118: 263000 | G118: 254343210000316 | H118: 0.00 | I118: 175,000.00 | J118: =H118+I118 -> 175,000.00 | K118: 0.00 | M118: =K118+L118 -> 0.00 | N118: 0.00 | P118: =N118+O118 -> 0.00
A119: Итого по КЦ 254343210000316 | H119: =SUM(H118:H118) -> 0.00 | I119: =SUM(I118:I118) -> 175,000.00 | J119: =SUM(J118:J118) -> 175,000.00 | K119: =SUM(K118:K118) -> 0.00 | L119: =SUM(L118:L118) -> 0.00 | M119: 0.00 | N119: 0.00 | O119: 0.00 | P119: 0.00
A120: Пособия по социальной помощи населению в натуральной форме | B120: 10 | C120: 03 | D120: 03202S3210 | E120: 323 | F120: 263000 | G120: 1000 | H120: 0.00 | I120: 75,000.00 | J120: =H120+I120 -> 75,000.00 | K120: 0.00 | M120: 0.00 | N120: 0.00 | P120: 0.00
A121: Итого по КЦ 1000 | H121: =SUM(H120:H120) -> 0.00 | I121: 75,000.00 | J121: 75,000.00 | K121: 0.00 | L121: 0.00 | M121: 0.00 | N121: 0.00 | O121: 0.00 | P121: 0.00
A122: Субсидия местным бюджетам на реализацию мероприятий государственной программы Республики Карелия "Совершенствование социальной защиты граждан" (КЦ 2343432000321)
A123: Увеличение стоимости прочих оборотных запасов (материалов) | B123: 07 | C123: 09 | D123: 0220243210 | E123: 244 | F123: 346000 | G123: 2343432000321 | J123: =H123+I123 -> 0.00 | K123: 0.00 | M123: =K123+L123 -> 0.00 | N123: 0.00 | P123: =N123+O123 -> 0.00
A124: Другие расходы | B124: 07 | C124: 09 | D124: 0220243210 | E124: 244 | F124: 226900 | G124: 2343432000321 | J124: 0.00 | K124: 0.00 | M124: 0.00 | N124: 0.00 | P124: 0.00
A125: Транспортные услуги | B125: 07 | C125: 09 | D125: 0220243210 | E125: 244 | F125: 222000 | G125: 2343432000321 | J125: 0.00 | K125: 0.00 | M125: 0.00 | N125: 0.00 | P125: 0.00
A126: Увеличение стоимости прочих оборотных запасов (материалов) | B126: 07 | C126: 09 | D126: 02202S3210 | E126: 244 | F126: 346000 | G126: 1000 | J126: 0.00 | K126: 0.00 | M126: 0.00 | N126: 0.00 | P126: 0.00
A127: Другие расходы | B127: 07 | C127: 09 | D127: 02202S3210 | E127: 244 | F127: 226900 | G127: 1000 | J127: 0.00 | K127: 0.00 | M127: 0.00 | N127: 0.00 | P127: 0.00
A128: Транспортные услуги | B128: 07 | C128: 09 | D128: 02202S3210 | E128: 244 | F128: 222000 | G128: 1000 | J128: 0.00 | K128: 0.00 | M128: 0.00 | N128: 0.00 | P128: 0.00
A129: Итого по КЦ 2343432000321 | H129: =SUM(H123:H128) -> 0.00 | I129: 0.00 | J129: 0.00 | K129: 0.00 | L129: 0.00 | M129: 0.00 | N129: 0.00 | O129: 0.00 | P129: 0.00
A130: Иные межбюджетные трансферты на компенсацию затрат, связанных с освобождением членов семей постоянно проживающих на территории Республики Карелия граждан, призванных военным комиссариатом Республики Карелия на военную службу по мобилизации, а также гражд
A131: Продукты питания | B131: 07 | C131: 01 | D131: 0220175040 | E131: 244 | F131: 342000 | G131: 234475040П0514 | J131: =H131+I131 -> 0.00 | K131: 0.00 | M131: =K131+L131 -> 0.00 | N131: 0.00 | O131: =M131+N131 -> 0.00 | P131: =N131+O131 -> 0.00
A132: Итого по КЦ 234475040П0514 | H132: =SUM(H131) -> 0.00 | I132: 0.00 | J132: 0.00 | K132: 0.00 | L132: 0.00 | M132: 0.00 | N132: 0.00 | O132: 0.00 | P132: 0.00
A133: Субсидии на проведение мероприятий по обеспечению деятельности советников директора по воспитанию и взаимодействию с детскими общественными объединениями в общеобразовательных организация (КЦ 23-51790-00000-00000)
A134: Заработная плата | B134: 07 | C134: 02 | D134: 022ЕВ51790 | E134: 111 | F134: 211000 | G134: 23-51790-00000-00000 | H134: 0.00 | J134: =H134+I134 -> 0.00 | K134: 0.00 | M134: =K134+L134 -> 0.00 | N134: 0.00 | P134: =N134+O134 -> 0.00
A135: Начисления на выплаты по оплате труда | B135: 07 | C135: 02 | D135: 022ЕВ51790 | E135: 119 | F135: 213000 | G135: 23-51790-00000-00000 | H135: 0.00 | J135: =H135+I135 -> 0.00 | K135: 0.00 | M135: =K135+L135 -> 0.00 | N135: 0.00 | P135: =N135+O135 -> 0.00
A136: Итого по КЦ 23-51790-00000-00000 | H136: =SUM(H134:H135) -> 0.00 | I136: 0.00 | J136: 0.00 | K136: 0.00 | L136: 0.00 | M136: 0.00 | N136: 0.00 | O136: 0.00 | P136: 0.00
A137: Субсидии на проведение мероприятий по обеспечению деятельности советников директора по воспитанию и взаимодействию с детскими общественными объединениями в общеобразовательных организация (КЦ 24-51790-00000-00000)
A138: Заработная плата | B138: 07 | C138: 02 | D138: 022ЕВ51790 | E138: 111 | F138: 211000 | G138: 24-51790-00000-00000 | J138: =H138+I138 -> 0.00 | K138: 0.00 | M138: =K138+L138 -> 0.00 | N138: 0.00 | P138: =N138+O138 -> 0.00
A139: Начисления на выплаты по оплате труда | B139: 07 | C139: 02 | D139: 022ЕВ51790 | E139: 119 | F139: 213000 | G139: 24-51790-00000-00000 | J139: =H139+I139 -> 0.00 | K139: 0.00 | M139: =K139+L139 -> 0.00 | N139: 0.00 | P139: =N139+O139 -> 0.00
A140: Итого по КЦ 24-51790-00000-00000 | H140: =SUM(H138:H139) -> 0.00 | I140: 0.00 | J140: 0.00 | K140: 0.00 | L140: 0.00 | M140: 0.00 | N140: 0.00 | O140: 0.00 | P140: 0.00
G141: Всего | H141: =H82+H97+H110+H113+H116+H119+H121+H140+H136+H105+H101 -> 26,015,502.72 | I141: =I82+I97+I110+I113+I116+I119+I121+I140+I136+I105+I101 -> 1,050,000.00 | J141: 27,065,502.72 | K141: 4,480,346.67 | L141: 0.00 | M141: 4,480,346.67 | N141: 4,875,002.87 | O141: 0.00 | P141: 4,875,002.87
A145: Директор | F145: И.А. Сидорова
B146: (подпись) | F146: (расшифровка подписи)
A148: Гл.бухгалтер МУ "ЦБ № 1" | F148: И.В. Ананьева
A149: (уполномоченное лицо) | B149: (подпись) | F149: (расшифровка подписи)
A151: Главный экономист ПЭО МУ "ЦБ № 1" | F151: Е.Л. Герасимова
A152: (исполнитель) | B152: (подпись) | F152: (расшифровка подписи)
A154: =L18 -> "29" января 2025 г.

Sheet 03.02
P1: Приложение № 2
P2: к Порядку составления, утверждения
P3: и ведения бюджетных смет Администрации
P4: Прионежского муниципального района
P5: и казенных учреждений, находящихся
P6: в ведении Администрации Прионежского
P7: муниципального района
P8: от 09 августа 2022 № 831
L10: УТВЕРЖДАЮ
L11: Глава Администрации Прионежского муниципального района
L12: (наименование должности лица, согласующего бюджетную смету)
L13: Администрация Прионежского муниципального района
L14: (наименование главного распорядителя (распорядителя) бюджетных средств; учреждения)
L16: Г. Н. Шемет
L17: (подпись) | N17: (расшифровка подписи)
L18: "03" февраля 2025 г.
A20: ИЗМЕНЕНИЕ К БЮДЖЕТНОЙ СМЕТЕ НА 2025 ФИНАНСОВЫЙ ГОД И ПЛАНОВЫЙ ПЕРИОД 2026 И 2027 ГОДОВ
B22: №№ 015/00402/009; 015/00402/010 от | H22: =L18 -> "03" февраля 2025 г.
A23: (№, дата, справки об изменении ЛБО) | P23: КОДЫ
O24: Форма по ОКУД | P24: 0501012
O25: Дата | P25: =L18 -> "03" февраля 2025 г.
O26: по ОКПО | P26: 51326281
A27: Получатель бюджетных средств | B27: Муниципальное общеобразовательное учреждение "Средняя общеобразовательная школа № 44"
A28: Распорядитель бюджетных средств | B28: Администрация Прионежского муниципального района Республики Карелия
A29: Главный распорядитель бюджетных средств | B29: Администрация Прионежского муниципального района Республики Карелия | O29: Глава по БК | P29: 015
A30: Наименование бюджета | B30: Бюджет Прионежского муниципального района | O30: по ОКТМО | P30: 86636410
A31: Единица измерения: | B31: руб. | O31: по ОКЕЙ | P31: 383
A33: Наименование показателя (детализация кода бюджетной классификации) | B33: РЗ | C33: ПР | D33: ЦСР | E33: Вид расхода | F33: Детализация | G33: Вид целевых средств | H33: Сумма на текущий 2025 год | K33: Сумма на первый год планового периода | N33: Сумма на второй год планового периода
H34: на 29.01.2025 г | I34: изменения(+;-) | J34: Итого | K34: =H34 -> на 29.01.2025 г | L34: изменения(+;-) | M34: Итого | N34: =H34 -> на 29.01.2025 г | O34: изменения(+;-) | P34: Итого
A35: 1 | B35: =SUM(A35+1) -> 2 | C35: 3 | D35: 4 | E35: 5 | F35: 6 | G35: 7 | H35: 8 | I35: 9 | J35: 10 | K35: 11 | L35: 12 | M35: 13 | N35: 14 | O35: 15 | P35: 16
A36: Средства местного бюджета (КЦ 1000) 0702
A37: Заработная плата | B37: 07 | C37: 02 | D37: 0220270210 | E37: 111 | F37: 211000 | G37: 1000 | H37: 451,164.48 | J37: =H37+I37 -> 451,164.48 | K37: 451,164.48 | M37: =K37+L37 -> 451,164.48 | N37: 451,164.48 | P37: =N37+O37 -> 451,164.48
A38: Социальные пособия и компенсации персоналу в денежной форме (пособие за первые три дня временной нетрудоспособности за счет средств работодателя) | B38: 07 | C38: 02 | D38: 0220270210 | E38: 111 | F38: 266100 | G38: 1000 | H38: 0.00 | J38: 0.00 | K38: 0.00 | M38: 0.00 | N38: 0.00 | P38: 0.00
A39: Расходы по оплате проезда к месту отпуска и обратно отдельным категориям лиц (для лиц, работающих в районах Крайнего Севера и приравненных к ним местностям, и членов их семей) | B39: 07 | C39: 02 | D39: 0220270210 | E39: 112 | F39: 214000 | G39: 1000 | H39: 30,000.00 | J39: 30,000.00 | K39: 20,000.00 | M39: 20,000.00 | N39: 20,000.00 | P39: 20,000.00
A40: Начисления на выплаты по оплате труда | B40: 07 | C40: 02 | D40: 0220270210 | E40: 119 | F40: 213000 | G40: 1000 | H40: 136,251.67 | J40: 136,251.67 | K40: 136,261.67 | M40: 136,261.67 | N40: 136,251.67 | P40: 136,251.67
A41: Услуги связи (телефон) | B41: 07 | C41: 02 | D41: 0220270210 | E41: 244 | F41: 221100 | G41: 1000 | H41: 7,416.00 | J41: 7,416.00 | K41: 9,270.00 | M41: 9,270.00 | N41: 11,587.50 | P41: 11,587.50
A42: Услуги связи (почта) | B42: 07 | C42: 02 | D42: 0220270210 | E42: 244 | F42: 221300 | G42: 1000 | H42: 0.00 | J42: 0.00 | K42: 0.00 | M42: 0.00 | N42: 0.00 | P42: 0.00
A43: Транспортные услуги | B43: 07 | C43: 02 | D43: 0220270210 | E43: 244 | F43: 222000 | G43: 1000 | H43: 46,442.50 | J43: =H43+I43 -> 46,442.50 | K43: 58,053.13 | M43: =K43+L43 -> 58,053.13 | N43: 67,566.41 | P43: =N43+O43 -> 67,566.41
A44: Холодное водоснабжение | B44: 07 | C44: 02 | D44: 0220270210 | E44: 244 | F44: 223300 | G44: 1000 | H44: 0.00 | J44: 0.00 | K44: 0.00 | M44: 0.00 | N44: 0.00 | P44: 0.00
A45: Водоотведение | B45: 07 | C45: 02 | D45: 0220270210 | E45: 244 | F45: 223400 | G45: 1000 | H45: 0.00 | J45: 0.00 | K45: 0.00 | M45: 0.00 | N45: 0.00 | P45: 0.00
A46: Обращение с твердыми коммунальными отходами (вывоз ТБО) | B46: 07 | C46: 02 | D46: 0220270210 | E46: 244 | F46: 223500 | G46: 1000 | H46: 36,117.96 | J46: 36,117.96 | K46: 39,466.11 | M46: 39,466.11 | N46: 41,301.62 | P46: 41,301.62
A47: Техническое обслуживание внутренних сетей отопления и горячего водоснабжения | B47: 07 | C47: 02 | D47: 0220270210 | E47: 244 | F47: 225200 | G47: 1000 | H47: 0.00 | J47: 0.00 | K47: 0.00 | M47: 0.00 | N47: 0.00 | P47: 0.00
A48: Санитарная и противопожарная (дезинфекция, дезинсекция, дератизация, газация, огнезащитная) обработка помещений | B48: 07 | C48: 02 | D48: 0220270210 | E48: 244 | F48: 225600 | G48: 1000 | H48: 39,096.90 | J48: 39,096.90 | K48: 48,871.13 | M48: 48,871.13 | N48: 61,088.91 | P48: 61,088.91
A49: Содержание, обслуживание помещений и сетей инженерно-технического обеспечения | B49: 07 | C49: 02 | D49: 0220270210 | E49: 244 | F49: 225700 | G49: 1000 | H49: 196,537.10 | J49: 196,537.10 | K49: 245,671.38 | M49: 245,671.38 | N49: 307,089.22 | P49: 307,089.22
A50: Текущий ремонт помещений и сетей инженерно-технического обеспечения | B50: 07 | C50: 02 | D50: 0220270210 | E50: 244 | F50: 225800 | G50: 1000 | H50: 0.00 | J50: 0.00 | K50: 0.00 | M50: 0.00 | N50: 0.00 | P50: 0.00
A51: Другие расходы | B51: 07 | C51: 02 | D51: 0220270210 | E51: 244 | F51: 225900 | G51: 1000 | H51: 93,625.00 | J51: 93,625.00 | K51: 86,875.00 | M51: 86,875.00 | N51: 102,921.88 | P51: 102,921.88
A52: Аттестация | B52: 07 | C52: 02 | D52: 0220270210 | E52: 244 | F52: 226200 | G52: 1000 | H52: 0.00 | J52: =H52+I52 -> 0.00 | K52: 0.00 | M52: =K52+L52 -> 0.00 | N52: 0.00 | P52: =N52+O52 -> 0.00
A53: Охрана ведомственная, вневедомственная, пожарная | B53: 07 | C53: 02 | D53: 0220270210 | E53: 244 | F53: 226400 | G53: 1000 | H53: 73,072.68 | J53: 73,072.68 | K53: 83,840.84 | M53: 83,840.84 | N53: 97,301.05 | P53: 97,301.05
A54: Мероприятия по переподготовке и повышению квалификации кадров | B54: 07 | C54: 02 | D54: 0220270210 | E54: 244 | F54: 226700 | G54: 1000 | H54: 0.00 | J54: 0.00 | K54: 0.00 | M54: 0.00 | N54: 0.00 | P54: 0.00
A55: Медицинский осмотр работников учреждения, за исключением водителей трансртных средств | B55: 07 | C55: 02 | D55: 0220270210 | E55: 244 | F55: 226800 | G55: 1000 | H55: 164,784.00 | J55: 164,784.00 | K55: 214,562.50 | M55: 214,562.50 | N55: 268,203.13 | P55: 268,203.13
A56: Другие расходы | B56: 07 | C56: 02 | D56: 0220270210 | E56: 244 | F56: 226900 | G56: 1000 | H56: 100,000.00 | J56: 100,000.00 | K56: 100,000.00 | M56: 100,000.00 | N56: 100,000.00 | P56: 100,000.00
A57: Обязательное страхование автогражданской ответственности | B57: 07 | C57: 02 | D57: 0220270210 | E57: 244 | F57: 227200 | G57: 1000 | H57: 0.00 | J57: =H57+I57 -> 0.00 | K57: 0.00 | M57: =K57+L57 -> 0.00 | N57: 0.00 | P57: =N57+O57 -> 0.00
A58: Расходы на оплату услуг по страхованию здоровья | B58: 07 | C58: 02 | D58: 0220270210 | E58: 244 | F58: 227300 | G58: 1000 | H58: 0.00 | J58: =H58+I58 -> 0.00 | K58: 0.00 | M58: =K58+L58 -> 0.00 | N58: 0.00 | P58: =N58+O58 -> 0.00
A59: Приобретение предметов длительного пользования (оборудование, мебель, компьютерная техника и т.п) стоимостью свыше 3000 рублей | B59: 07 | C59: 02 | D59: 0220270210 | E59: 244 | F59: 310100 | G59: 1000 | H59: 0.00 | J59: 0.00 | K59: 0.00 | M59: 0.00 | N59: 0.00 | P59: 0.00
A60: Другие расходы стоимостью до 3000,00 рублей | B60: 07 | C60: 02 | D60: 0220270210 | E60: 244 | F60: 310900 | G60: 1000 | H60: 0.00 | J60: 0.00 | K60: 0.00 | M60: 0.00 | N60: 0.00 | P60: 0.00
A61: Увеличение стоимости лекарственных препаратов и материалов, применяемых в медицинских целях | B61: 07 | C61: 02 | D61: 0220270210 | E61: 244 | F61: 341000 | G61: 1000 | H61: 9,900.00 | J61: =H61+I61 -> 9,900.00 | K61: 12,375.00 | M61: =K61+L61 -> 12,375.00 | N61: 15,468.75 | P61: =N61+O61 -> 15,468.75
A62: Приобретение строительных материалов | B62: 07 | C62: 02 | D62: 0220270210 | E62: 244 | F62: 344000 | G62: 1000 | H62: 20,000.00 | J62: 20,000.00 | K62: 20,000.00 | M62: 20,000.00 | N62: 20,000.00 | P62: 20,000.00
A63: Мягкий инвентарь | B63: 07 | C63: 02 | D63: 0220270210 | E63: 244 | F63: 345000 | G63: 1000 | H63: 10,000.00 | J63: =H63+I63 -> 10,000.00 | K63: 10,000.00 | M63: =K63+L63 -> 10,000.00 | N63: 10,000.00 | P63: =N63+O63 -> 10,000.00
A64: Увеличение стоимости прочих оборотных запасов (материалов) | B64: 07 | C64: 02 | D64: 0220270210 | E64: 244 | F64: 346000 | G64: 1000 | H64: 80,000.00 | J64: 80,000.00 | K64: 80,000.00 | M64: 80,000.00 | N64: 80,000.00 | P64: 80,000.00
A65: Увеличение стоимости прочих оборотных запасов однократного применения | B65: 07 | C65: 02 | D65: 0220270210 | E65: 244 | F65: 349100 | G65: 1000 | H65: 0.00 | J65: 0.00 | K65: 0.00 | M65: 0.00 | N65: 0.00 | P65: 0.00
A66: Отопление, горячее водоснабжение и газоснабжение | B66: 07 | C66: 02 | D66: 0220270210 | E66: 247 | F66: 223100 | G66: 1000 | H66: 1,670,000.00 | J66: 1,670,000.00 | K66: 2,040,114.43 | M66: 2,040,114.43 | N66: 2,197,930.77 | P66: 2,197,930.77
A67: Электроэнергия | B67: 07 | C67: 02 | D67: 0220270210 | E67: 247 | F67: 223200 | G67: 1000 | H67: 580,000.00 | J67: 580,000.00 | K67: 684,490.00 | M67: 684,490.00 | N67: 740,100.00 | P67: 740,100.00
A68: Холодное водоснабжение | B68: 07 | C68: 02 | D68: 0220270210 | E68: 247 | F68: 223300 | G68: 1000 | H68: 59,330.00 | J68: 59,330.00 | K68: 64,908.00 | M68: 64,908.00 | N68: 69,775.59 | P68: 69,775.59
A69: Водоотведение | B69: 07 | C69: 02 | D69: 0220270210 | E69: 247 | F69: 223400 | G69: 1000 | H69: 34,472.25 | J69: 34,472.25 | K69: 37,710.00 | M69: 37,710.00 | N69: 40,538.89 | P69: 40,538.89
A70: Пособия по социальной помощи населению в натуральной форме | B70: 07 | C70: 02 | D70: 0220270210 | E70: 323 | F70: 263000 | G70: 1000 | H70: 0.00 | J70: =H70+I70 -> 0.00 | K70: 0.00 | M70: 0.00 | N70: 0.00 | P70: 0.00
A71: Налог на имущство | B71: 07 | C71: 02 | D71: 0220270210 | E71: 851 | F71: 291200 | G71: 1000 | H71: 9,252.00 | J71: 9,252.00 | K71: 9,252.00 | M71: 9,252.00 | N71: 9,252.00 | P71: 9,252.00
A72: Земельный налог, в том числе в период строительства объекта | B72: 07 | C72: 02 | D72: 0220270210 | E72: 851 | F72: 291300 | G72: 1000 | H72: 27,461.00 | J72: 27,461.00 | K72: 27,461.00 | M72: 27,461.00 | N72: 27,461.00 | P72: 27,461.00
A73: Штрафы за нарушение законодательства о налогах и сборах, законодательства о страховых взносах | B73: 07 | C73: 02 | D73: 0220270210 | E73: 853 | F73: 292000 | G73: 1000 | J73: =H73+I73 -> 0.00 | M73: =K73+L73 -> 0.00 | P73: =N73+O73 -> 0.00
A74: Иные выплаты текущего характера физическим лицам (возмещение убытков, вреда и судебных издержек) | B74: 07 | C74: 02 | D74: 0220270210 | E74: 853 | F74: 296100 | G74: 1000 | J74: =H74+I74 -> 0.00 | M74: =K74+L74 -> 0.00 | P74: =N74+O74 -> 0.00
A75: Транспортный налог | B75: 07 | C75: 02 | D75: 0220270210 | E75: 852 | F75: 291400 | G75: 1000 | J75: 0.00 | M75: 0.00 | P75: 0.00
A76: Штрафы за нарушение законодательства о закупках и нарушенияе условий контракта (договоров) | B76: 07 | C76: 02 | D76: 0220270210 | E76: 831 | F76: 293000 | G76: 1000 | J76: 0.00 | M76: 0.00 | P76: 0.00
A77: Другие экономические санкции | B77: 07 | C77: 02 | D77: 0220270210 | E77: 853 | F77: 295000 | G77: 1000 | J77: 0.00 | M77: 0.00 | P77: 0.00
A78: Иные выплаты текущего характера организациям (возмещение убытков, вред и судебных издержек) | B78: 07 | C78: 02 | D78: 0220270210 | E78: 851 | F78: 297100 | G78: 1000 | J78: 0.00 | M78: 0.00 | P78: 0.00
A79: Другие расходы | B79: 07 | C79: 02 | D79: 0400072910 | E79: 244 | F79: 226900 | G79: 1000 | J79: 0.00 | M79: 0.00 | P79: 0.00
A80: Заработная плата | B80: 07 | C80: 02 | D80: 0920070260 | E80: 111 | F80: 211000 | G80: 1000 | J80: 0.00 | M80: 0.00 | P80: 0.00
A81: Начисления на выплаты по оплате труда | B81: 07 | C81: 02 | D81: 0920070260 | E81: 119 | F81: 213000 | G81: 1000 | J81: 0.00 | M81: 0.00 | P81: 0.00
A82: Итого по КЦ 1000 | H82: =SUM(H37:H81) -> 3,874,923.54 | I82: 0.00 | J82: 3,874,923.54 | K82: 4,480,346.67 | L82: 0.00 | M82: 4,480,346.67 | N82: 4,875,002.87 | O82: 0.00 | P82: 4,875,002.87
A83: Субвенция на обеспечение государственных гарантий реализации прав на получение общедоступного и бесплатного дошкольного образования в муниципальных дошкольных образовательных организациях, общедоступного и бесплатного дошкольного, начального общего, основного общего, среднего общего образования в муниципальных общеобразовательных организациях, обеспечение дополнительного образования детей в муниципальных общеобразовательных организациях (КЦ 254242190000219)
A84: Заработная плата | B84: 07 | C84: 02 | D84: 0220242190 | E84: 111 | F84: 211000 | G84: 254242190000219 | H84: 17,927,463.66 | J84: =H84+I84 -> 17,927,463.66 | K84: 0.00 | M84: =K84+L84 -> 0.00 | N84: 0.00 | P84: =N84+O84 -> 0.00
A85: Социальные пособия и компенсации персоналу в денежной форме (пособие за первые три дня временной нетрудоспособности за счет средств работодателя) | B85: 07 | C85: 02 | D85: 0220242190 | E85: 111 | F85: 266100 | G85: 254242190000219 | H85: 0.00 | J85: 0.00 | K85: 0.00 | M85: 0.00 | N85: 0.00 | P85: 0.00
A86: Начисления на выплаты по оплате труда | B86: 07 | C86: 02 | D86: 0220242190 | E86: 119 | F86: 213000 | G86: 254242190000219 | H86: 4,060,570.52 | J86: 4,060,570.52 | K86: 0.00 | M86: 0.00 | N86: 0.00 | P86: 0.00
A87: Услуги связи (интернет) | B87: 07 | C87: 02 | D87: 0220242190 | E87: 244 | F87: 221200 | G87: 254242190000219 | H87: 0.00 | J87: =H87+I87 -> 0.00 | K87: 0.00 | M87: =K87+L87 -> 0.00 | N87: 0.00 | P87: =N87+O87 -> 0.00
A88: Транспортные услуги | B88: 07 | C88: 02 | D88: 0220242190 | E88: 244 | F88: 222000 | G88: 254242190000219 | J88: 0.00 | K88: 0.00 | M88: 0.00 | N88: 0.00 | P88: 0.00
A89: Другие расходы | B89: 07 | C89: 02 | D89: 0220242190 | E89: 244 | F89: 226900 | G89: 254242190000219 | J89: =H89+I89 -> 0.00 | K89: 0.00 | M89: =K89+L89 -> 0.00 | N89: 0.00 | P89: =N89+O89 -> 0.00
A90: Приобретение предметов длительного пользования (оборудование, мебель, компьютерная техника и т.п.) стоимостью свыше 3000,00 руб. | B90: 07 | C90: 02 | D90: 0220242190 | E90: 244 | F90: 310100 | G90: 254242190000219 | J90: =H90+I90 -> 0.00 | K90: 0.00 | M90: =K90+L90 -> 0.00 | N90: 0.00 | P90: =N90+O90 -> 0.00
A91: Комплектование библиотечного фонда | B91: 07 | C91: 02 | D91: 0220242190 | E91: 244 | F91: 310200 | G91: 254242190000219 | J91: 0.00 | K91: 0.00 | M91: 0.00 | N91: 0.00 | P91: 0.00
A92: Другие расходы стоимостью до 3000,00 рублей | B92: 07 | C92: 02 | D92: 0220242190 | E92: 244 | F92: 310900 | G92: 254242190000219 | J92: 0.00 | K92: 0.00 | M92: 0.00 | N92: 0.00 | P92: 0.00
A93: Мягкий инвентарь | B93: 07 | C93: 02 | D93: 0220242190 | E93: 244 | F93: 345000 | G93: 254242190000219 | J93: 0.00 | M93: 0.00 | P93: 0.00
A94: Увеличение стоимости прочих оборотных запасов (материалов) | B94: 07 | C94: 02 | D94: 0220242190 | E94: 244 | F94: 346000 | G94: 254242190000219 | J94: 0.00 | K94: 0.00 | M94: 0.00 | N94: 0.00 | P94: 0.00
A95: Увеличение стоимости прочих материальных запасов однократного применения | B95: 07 | C95: 02 | D95: 0220242190 | E95: 244 | F95: 349100 | G95: 254242190000219 | J95: 0.00 | K95: 0.00 | M95: 0.00 | N95: 0.00 | P95: 0.00
A96: Мероприятия по переподготовке и повышению квалификации кадров | B96: 07 | C96: 05 | D96: 0220242190 | E96: 244 | F96: 226700 | G96: 254242190000219 | J96: 0.00 | K96: 0.00 | M96: 0.00 | N96: 0.00 | P96: 0.00
A97: Итого по КЦ 254242190000219 | H97: =SUM(H84:H96) -> 21,988,034.18 | I97: 0.00 | J97: 21,988,034.18 | K97: 0.00 | L97: 0.00 | M97: 0.00 | N97: 0.00 | O97: 0.00 | P97: 0.00
A98: Субсидия на проведение мероприятий по обеспечению деятельности советников директора по воспитанию и взаимодействию с детскими общественными объединениями в общеобразовательных организациях (КЦ 25-51790-00000-00000)
A99: Заработная плата | B99: 07 | C99: 02 | D99: 022Ю651790 | E99: 111 | F99: 211000 | G99: 25-51790-00000-00000 | H99: 0.00 | I99: 251,508.00 | J99: =H99+I99 -> 251,508.00 | K99: 0.00 | M99: =K99+L99 -> 0.00 | N99: 0.00 | P99: =N99+O99 -> 0.00
A100: Начисления на выплаты по оплате труда | B100: 07 | C100: 02 | D100: 022Ю651790 | E100: 119 | F100: 213000 | G100: 25-51790-00000-00000 | H100: 0.00 | I100: 75,955.41 | J100: =H100+I100 -> 75,955.41 | K100: 0.00 | M100: =K100+L100 -> 0.00 | N100: 0.00 | P100: =N100+O100 -> 0.00
A101: Итого по КЦ 25-51790-00000-00000 | H101: =SUM(H99:H100) -> 0.00 | I101: 327,463.41 | J101: 327,463.41 | K101: 0.00 | L101: 0.00 | M101: 0.00 | N101: 0.00 | O101: 0.00 | P101: 0.00
A102: Иные межбюджетные трансферты на ежемесячное денежное вознаграждение за классное руководство педагогическим работникам государственных и муниципальных образовательных организаций, реализующих образовательные программы начального общего образования, образовательные программы основного общего образования, образовательные программы среднего общего образования (КЦ 2553030X298570000000)
A103: Заработная плата | B103: 07 | C103: 02 | D103: 022Ю653030 | E103: 111 | F103: 211000 | G103: 2553030X298570000000 | H103: 0.00 | I103: 2,178,000.00 | J103: =H103+I103 -> 2,178,000.00 | K103: 0.00 | M103: =K103+L103 -> 0.00 | N103: 0.00 | P103: =N103+O103 -> 0.00
A104: Начисления на выплаты по оплате труда | B104: 07 | C104: 02 | D104: 022Ю653030 | E104: 119 | F104: 213000 | G104: 2553030X298570000000 | H104: 0.00 | I104: 657,756.00 | J104: =H104+I104 -> 657,756.00 | K104: 0.00 | M104: =K104+L104 -> 0.00 | N104: 0.00 | P104: =N104+O104 -> 0.00
A105: Итого по КЦ 2553030X298570000000 | H105: =SUM(H103:H104) -> 0.00 | I105: 2,835,756.00 | J105: 2,835,756.00 | K105: 0.00 | L105: 0.00 | M105: 0.00 | N105: 0.00 | O105: 0.00 | P105: 0.00
A106: Субвенции на осуществление государственных полномочий РеспубликиКарелия по представлению предусмотренных пунктом 5 части 1 статьи 9 Закона Республики Карелия от 20 декабря 2013 гоа № 1755_ЗРК "Об образовании" мер социальной поддержки и социального обслуживания (КЦ 254242100000210)
A107: Увеличение стоимости прочих оборотных запасов (материалов) | B107: 07 | C107: 02 | D107: 0220242100 | E107: 244 | F107: 346000 | G107: 24424210000210 | J107: =H107+I107 -> 0.00 | K107: 0.00 | M107: =K107+L107 -> 0.00 | N107: 0.00 | P107: =N107+O107 -> 0.00
A108: Пособия по социальной помощи населению в натуральной форме | B108: 07 | C108: 02 | D108: 0220242100 | E108: 323 | F108: 263000 | G108: 254242100000210 | H108: 152,545.00 | J108: =H108+I108 -> 152,545.00 | K108: 0.00 | M108: =K108+L108 -> 0.00 | N108: 0.00 | P108: =N108+O108 -> 0.00
A109: Увеличение стоимости прочих оборотных запасов (материалов) | B109: 07 | C109: 02 | D109: 0220242100 | E109: 323 | F109: 346000 | G109: 23424210000210 | J109: =H109+I109 -> 0.00 | K109: 0.00 | M109: =K109+L109 -> 0.00 | N109: 0.00 | P109: =N109+O109 -> 0.00
A110: Итого по КЦ 254242100000210 | H110: =SUM(H107:H109) -> 152,545.00 | I110: 0.00 | J110: 152,545.00 | K110: 0.00 | L110: 0.00 | M110: 0.00 | N110: 0.00 | O110: 0.00 | P110: 0.00
A111: Субвенции на осуществление государственных полномочий Республики Карелия по выплате компенсации платы, взимаемой с родителей (законных представителей) за присмотр и уход за детьми, осваивающими образовательные программы дошкольного образования в организа
A112: Пособия по социальной помощи населению в натуральной форме | B112: 10 | C112: 04 | D112: 0220142030 | E112: 323 | F112: 263000 | G112: 23424203000203 | J112: =H112+I112 -> 0.00 | K112: 0.00 | M112: =K112+L112 -> 0.00 | N112: 0.00 | P112: =N112+O112 -> 0.00
A113: Итого по КЦ 23424203000203 | H113: =SUM(H112) -> 0.00 | I113: 0.00 | J113: 0.00 | K113: 0.00 | L113: 0.00 | M113: 0.00 | N113: 0.00 | O113: 0.00 | P113: 0.00
A114: Субсидии на организацию бесплатного горячего питания обучающихся, получающих начальное общее образование в государственных и муниципальных образовательных организациях (КЦ 25-53040-00000-00000)
A115: Другие расходы | B115: 07 | C115: 02 | D115: 02202L3040 | E115: 244 | F115: 226900 | G115: 25-53040-00000-00000 | H115: 800,000.00 | J115: =H115+I115 -> 800,000.00 | K115: 0.00 | M115: =K115+L115 -> 0.00 | N115: 0.00 | P115: =N115+O115 -> 0.00
A116: Итого по КЦ 25-53040-00000-00000 | H116: =SUM(H115:H115) -> 800,000.00 | I116: 0.00 | J116: 800,000.00 | K116: 0.00 | L116: 0.00 | M116: 0.00 | N116: 0.00 | O116: 0.00 | P116: 0.00
A117: Субсидия на реализацию мероприятий государственной программы Республики Карелия "Совершенствование социальной защиты граждан" в целях организации адресной социальной помощи семьям, имеющим детей (КЦ 254343210000316)
A118: Пособия по социальной помощи населению в натуральной форме | B118: 10 | C118: 03 | D118: 0320243210 | E118: 323 | F118: 263000 | G118: 254343210000316 | H118: 175,000.00 | J118: =H118+I118 -> 175,000.00 | K118: 0.00 | M118: =K118+L118 -> 0.00 | N118: 0.00 | P118: =N118+O118 -> 0.00
A119: Итого по КЦ 254343210000316 | H119: =SUM(H118:H118) -> 175,000.00 | I119: =SUM(I118:I118) -> 0.00 | J119: =SUM(J118:J118) -> 175,000.00 | K119: =SUM(K118:K118) -> 0.00 | L119: =SUM(L118:L118) -> 0.00 | M119: 0.00 | N119: 0.00 | O119: 0.00 | P119: 0.00
A120: Пособия по социальной помощи населению в натуральной форме | B120: 10 | C120: 03 | D120: 03202S3210 | E120: 323 | F120: 263000 | G120: 1000 | H120: 75,000.00 | J120: =H120+I120 -> 75,000.00 | K120: 0.00 | M120: 0.00 | N120: 0.00 | P120: 0.00
A121: Итого по КЦ 1000 | H121: =SUM(H120:H120) -> 75,000.00 | I121: 0.00 | J121: 75,000.00 | K121: 0.00 | L121: 0.00 | M121: 0.00 | N121: 0.00 | O121: 0.00 | P121: 0.00
A122: Субсидия местным бюджетам на реализацию мероприятий государственной программы Республики Карелия "Совершенствование социальной защиты граждан" (КЦ 2343432000321)
A123: Увеличение стоимости прочих оборотных запасов (материалов) | B123: 07 | C123: 09 | D123: 0220243210 | E123: 244 | F123: 346000 | G123: 2343432000321 | J123: =H123+I123 -> 0.00 | K123: 0.00 | M123: =K123+L123 -> 0.00 | N123: 0.00 | P123: =N123+O123 -> 0.00
A124: Другие расходы | B124: 07 | C124: 09 | D124: 0220243210 | E124: 244 | F124: 226900 | G124: 2343432000321 | J124: 0.00 | K124: 0.00 | M124: 0.00 | N124: 0.00 | P124: 0.00
A125: Транспортные услуги | B125: 07 | C125: 09 | D125: 0220243210 | E125: 244 | F125: 222000 | G125: 2343432000321 | J125: 0.00 | K125: 0.00 | M125: 0.00 | N125: 0.00 | P125: 0.00
A126: Увеличение стоимости прочих оборотных запасов (материалов) | B126: 07 | C126: 09 | D126: 02202S3210 | E126: 244 | F126: 346000 | G126: 1000 | J126: 0.00 | K126: 0.00 | M126: 0.00 | N126: 0.00 | P126: 0.00
A127: Другие расходы | B127: 07 | C127: 09 | D127: 02202S3210 | E127: 244 | F127: 226900 | G127: 1000 | J127: 0.00 | K127: 0.00 | M127: 0.00 | N127: 0.00 | P127: 0.00
A128: Транспортные услуги | B128: 07 | C128: 09 | D128: 02202S3210 | E128: 244 | F128: 222000 | G128: 1000 | J128: 0.00 | K128: 0.00 | M128: 0.00 | N128: 0.00 | P128: 0.00
A129: Итого по КЦ 2343432000321 | H129: =SUM(H123:H128) -> 0.00 | I129: 0.00 | J129: 0.00 | K129: 0.00 | L129: 0.00 | M129: 0.00 | N129: 0.00 | O129: 0.00 | P129: 0.00
A130: Иные межбюджетные трансферты на компенсацию затрат, связанных с освобождением членов семей постоянно проживающих на территории Республики Карелия граждан, призванных военным комиссариатом Республики Карелия на военную службу по мобилизации, а также гражд
A131: Продукты питания | B131: 07 | C131: 01 | D131: 0220175040 | E131: 244 | F131: 342000 | G131: 234475040П0514 | J131: =H131+I131 -> 0.00 | K131: 0.00 | M131: =K131+L131 -> 0.00 | N131: 0.00 | O131: =M131+N131 -> 0.00 | P131: =N131+O131 -> 0.00
A132: Итого по КЦ 234475040П0514 | H132: =SUM(H131) -> 0.00 | I132: 0.00 | J132: 0.00 | K132: 0.00 | L132: 0.00 | M132: 0.00 | N132: 0.00 | O132: 0.00 | P132: 0.00
G133: Всего | H133: =H82+H97+H110+H113+H116+H119+H121+H105+H101 -> 27,065,502.72 | I133: =I82+I97+I110+I113+I116+I119+I121+I105+I101 -> 3,163,219.41 | J133: 30,228,722.13 | K133: 4,480,346.67 | L133: 0.00 | M133: 4,480,346.67 | N133: 4,875,002.87 | O133: 0.00 | P133: 4,875,002.87
A137: Директор | F137: И.А. Сидорова
B138: (подпись) | F138: (расшифровка подписи)
A140: Гл.бухгалтер МУ "ЦБ № 1" | F140: И.В. Ананьева
A141: (уполномоченное лицо) | B141: (подпись) | F141: (расшифровка подписи)
A143: Главный экономист ПЭО МУ "ЦБ № 1" | F143: Е.Л. Герасимова
A144: (исполнитель) | B144: (подпись) | F144: (расшифровка подписи)
A146: =L18 -> "03" февраля 2025 г.

Sheet 07.02
P1: Приложение № 2
P2: к Порядку составления, утверждения
P3: и ведения бюджетных смет Администрации
P4: Прионежского муниципального района
P5: и казенных учреждений, находящихся
P6: в ведении Администрации Прионежского
P7: муниципального района
P8: от 09 августа 2022 № 831
L10: УТВЕРЖДАЮ
L11: Глава Администрации Прионежского муниципального района
L12: (наименование должности лица, согласующего бюджетную смету)
L13: Администрация Прионежского муниципального района
L14: (наименование главного распорядителя (распорядителя) бюджетных средств; учреждения)
L16: Г. Н. Шемет
L17: (подпись) | N17: (расшифровка подписи)
L18: "07" февраля 2025 г.
A20: ИЗМЕНЕНИЕ К БЮДЖЕТНОЙ СМЕТЕ НА 2025 ФИНАНСОВЫЙ ГОД И ПЛАНОВЫЙ ПЕРИОД 2026 И 2027 ГОДОВ
B22: №№ 015/00402/012 от | H22: =L18 -> "07" февраля 2025 г.
A23: (№, дата, справки об изменении ЛБО) | P23: КОДЫ
O24: Форма по ОКУД | P24: 0501012
O25: Дата | P25: =L18 -> "07" февраля 2025 г.
O26: по ОКПО | P26: 51326281
A27: Получатель бюджетных средств | B27: Муниципальное общеобразовательное учреждение "Средняя общеобразовательная школа № 44"
A28: Распорядитель бюджетных средств | B28: Администрация Прионежского муниципального района Республики Карелия
A29: Главный распорядитель бюджетных средств | B29: Администрация Прионежского муниципального района Республики Карелия | O29: Глава по БК | P29: 015
A30: Наименование бюджета | B30: Бюджет Прионежского муниципального района | O30: по ОКТМО | P30: 86636410
A31: Единица измерения: | B31: руб. | O31: по ОКЕЙ | P31: 383
A33: Наименование показателя (детализация кода бюджетной классификации) | B33: РЗ | C33: ПР | D33: ЦСР | E33: Вид расхода | F33: Детализация | G33: Вид целевых средств | H33: Сумма на текущий 2025 год | K33: Сумма на первый год планового периода | N33: Сумма на второй год планового периода
H34: на 03.02.2025 г | I34: изменения(+;-) | J34: Итого | K34: =H34 -> на 03.02.2025 г | L34: изменения(+;-) | M34: Итого | N34: =H34 -> на 03.02.2025 г | O34: изменения(+;-) | P34: Итого
A35: 1 | B35: =SUM(A35+1) -> 2 | C35: 3 | D35: 4 | E35: 5 | F35: 6 | G35: 7 | H35: 8 | I35: 9 | J35: 10 | K35: 11 | L35: 12 | M35: 13 | N35: 14 | O35: 15 | P35: 16
A36: Средства местного бюджета (КЦ 1000) 0702
A37: Заработная плата | B37: 07 | C37: 02 | D37: 0220270210 | E37: 111 | F37: 211000 | G37: 1000 | H37: 451,164.48 | J37: =H37+I37 -> 451,164.48 | K37: 451,164.48 | M37: =K37+L37 -> 451,164.48 | N37: 451,164.48 | P37: =N37+O37 -> 451,164.48
A38: Социальные пособия и компенсации персоналу в денежной форме (пособие за первые три дня временной нетрудоспособности за счет средств работодателя) | B38: 07 | C38: 02 | D38: 0220270210 | E38: 111 | F38: 266100 | G38: 1000 | H38: 0.00 | J38: 0.00 | K38: 0.00 | M38: 0.00 | N38: 0.00 | P38: 0.00
A39: Расходы по оплате проезда к месту отпуска и обратно отдельным категориям лиц (для лиц, работающих в районах Крайнего Севера и приравненных к ним местностям, и членов их семей) | B39: 07 | C39: 02 | D39: 0220270210 | E39: 112 | F39: 214000 | G39: 1000 | H39: 30,000.00 | J39: 30,000.00 | K39: 20,000.00 | M39: 20,000.00 | N39: 20,000.00 | P39: 20,000.00
A40: Начисления на выплаты по оплате труда | B40: 07 | C40: 02 | D40: 0220270210 | E40: 119 | F40: 213000 | G40: 1000 | H40: 136,251.67 | J40: 136,251.67 | K40: 136,261.67 | M40: 136,261.67 | N40: 136,251.67 | P40: 136,251.67
A41: Услуги связи (телефон) | B41: 07 | C41: 02 | D41: 0220270210 | E41: 244 | F41: 221100 | G41: 1000 | H41: 7,416.00 | J41: 7,416.00 | K41: 9,270.00 | M41: 9,270.00 | N41: 11,587.50 | P41: 11,587.50
A42: Услуги связи (почта) | B42: 07 | C42: 02 | D42: 0220270210 | E42: 244 | F42: 221300 | G42: 1000 | H42: 0.00 | J42: 0.00 | K42: 0.00 | M42: 0.00 | N42: 0.00 | P42: 0.00
A43: Транспортные услуги | B43: 07 | C43: 02 | D43: 0220270210 | E43: 244 | F43: 222000 | G43: 1000 | H43: 46,442.50 | J43: =H43+I43 -> 46,442.50 | K43: 58,053.13 | M43: =K43+L43 -> 58,053.13 | N43: 67,566.41 | P43: =N43+O43 -> 67,566.41
A44: Холодное водоснабжение | B44: 07 | C44: 02 | D44: 0220270210 | E44: 244 | F44: 223300 | G44: 1000 | H44: 0.00 | J44: 0.00 | K44: 0.00 | M44: 0.00 | N44: 0.00 | P44: 0.00
A45: Водоотведение | B45: 07 | C45: 02 | D45: 0220270210 | E45: 244 | F45: 223400 | G45: 1000 | H45: 0.00 | J45: 0.00 | K45: 0.00 | M45: 0.00 | N45: 0.00 | P45: 0.00
A46: Обращение с твердыми коммунальными отходами (вывоз ТБО) | B46: 07 | C46: 02 | D46: 0220270210 | E46: 244 | F46: 223500 | G46: 1000 | H46: 36,117.96 | J46: 36,117.96 | K46: 39,466.11 | M46: 39,466.11 | N46: 41,301.62 | P46: 41,301.62
A47: Техническое обслуживание внутренних сетей отопления и горячего водоснабжения | B47: 07 | C47: 02 | D47: 0220270210 | E47: 244 | F47: 225200 | G47: 1000 | H47: 0.00 | J47: 0.00 | K47: 0.00 | M47: 0.00 | N47: 0.00 | P47: 0.00
A48: Санитарная и противопожарная (дезинфекция, дезинсекция, дератизация, газация, огнезащитная) обработка помещений | B48: 07 | C48: 02 | D48: 0220270210 | E48: 244 | F48: 225600 | G48: 1000 | H48: 39,096.90 | J48: 39,096.90 | K48: 48,871.13 | M48: 48,871.13 | N48: 61,088.91 | P48: 61,088.91
A49: Содержание, обслуживание помещений и сетей инженерно-технического обеспечения | B49: 07 | C49: 02 | D49: 0220270210 | E49: 244 | F49: 225700 | G49: 1000 | H49: 196,537.10 | J49: 196,537.10 | K49: 245,671.38 | M49: 245,671.38 | N49: 307,089.22 | P49: 307,089.22
A50: Текущий ремонт помещений и сетей инженерно-технического обеспечения | B50: 07 | C50: 02 | D50: 0220270210 | E50: 244 | F50: 225800 | G50: 1000 | H50: 0.00 | I50: 46,750.00 | J50: 46,750.00 | K50: 0.00 | M50: 0.00 | N50: 0.00 | P50: 0.00
A51: Другие расходы | B51: 07 | C51: 02 | D51: 0220270210 | E51: 244 | F51: 225900 | G51: 1000 | H51: 93,625.00 | J51: 93,625.00 | K51: 86,875.00 | M51: 86,875.00 | N51: 102,921.88 | P51: 102,921.88
A52: Аттестация | B52: 07 | C52: 02 | D52: 0220270210 | E52: 244 | F52: 226200 | G52: 1000 | H52: 0.00 | J52: =H52+I52 -> 0.00 | K52: 0.00 | M52: =K52+L52 -> 0.00 | N52: 0.00 | P52: =N52+O52 -> 0.00
A53: Охрана ведомственная, вневедомственная, пожарная | B53: 07 | C53: 02 | D53: 0220270210 | E53: 244 | F53: 226400 | G53: 1000 | H53: 73,072.68 | J53: 73,072.68 | K53: 83,840.84 | M53: 83,840.84 | N53: 97,301.05 | P53: 97,301.05
A54: Мероприятия по переподготовке и повышению квалификации кадров | B54: 07 | C54: 02 | D54: 0220270210 | E54: 244 | F54: 226700 | G54: 1000 | H54: 0.00 | J54: 0.00 | K54: 0.00 | M54: 0.00 | N54: 0.00 | P54: 0.00
A55: Медицинский осмотр работников учреждения, за исключением водителей трансртных средств | B55: 07 | C55: 02 | D55: 0220270210 | E55: 244 | F55: 226800 | G55: 1000 | H55: 164,784.00 | J55: 164,784.00 | K55: 214,562.50 | M55: 214,562.50 | N55: 268,203.13 | P55: 268,203.13
A56: Другие расходы | B56: 07 | C56: 02 | D56: 0220270210 | E56: 244 | F56: 226900 | G56: 1000 | H56: 100,000.00 | J56: 100,000.00 | K56: 100,000.00 | M56: 100,000.00 | N56: 100,000.00 | P56: 100,000.00
A57: Обязательное страхование автогражданской ответственности | B57: 07 | C57: 02 | D57: 0220270210 | E57: 244 | F57: 227200 | G57: 1000 | H57: 0.00 | J57: =H57+I57 -> 0.00 | K57: 0.00 | M57: =K57+L57 -> 0.00 | N57: 0.00 | P57: =N57+O57 -> 0.00
A58: Расходы на оплату услуг по страхованию здоровья | B58: 07 | C58: 02 | D58: 0220270210 | E58: 244 | F58: 227300 | G58: 1000 | H58: 0.00 | J58: =H58+I58 -> 0.00 | K58: 0.00 | M58: =K58+L58 -> 0.00 | N58: 0.00 | P58: =N58+O58 -> 0.00
A59: Приобретение предметов длительного пользования (оборудование, мебель, компьютерная техника и т.п) стоимостью свыше 3000 рублей | B59: 07 | C59: 02 | D59: 0220270210 | E59: 244 | F59: 310100 | G59: 1000 | H59: 0.00 | J59: 0.00 | K59: 0.00 | M59: 0.00 | N59: 0.00 | P59: 0.00
A60: Другие расходы стоимостью до 3000,00 рублей | B60: 07 | C60: 02 | D60: 0220270210 | E60: 244 | F60: 310900 | G60: 1000 | H60: 0.00 | J60: 0.00 | K60: 0.00 | M60: 0.00 | N60: 0.00 | P60: 0.00
A61: Увеличение стоимости лекарственных препаратов и материалов, применяемых в медицинских целях | B61: 07 | C61: 02 | D61: 0220270210 | E61: 244 | F61: 341000 | G61: 1000 | H61: 9,900.00 | J61: =H61+I61 -> 9,900.00 | K61: 12,375.00 | M61: =K61+L61 -> 12,375.00 | N61: 15,468.75 | P61: =N61+O61 -> 15,468.75
A62: Приобретение строительных материалов | B62: 07 | C62: 02 | D62: 0220270210 | E62: 244 | F62: 344000 | G62: 1000 | H62: 20,000.00 | J62: 20,000.00 | K62: 20,000.00 | M62: 20,000.00 | N62: 20,000.00 | P62: 20,000.00
A63: Мягкий инвентарь | B63: 07 | C63: 02 | D63: 0220270210 | E63: 244 | F63: 345000 | G63: 1000 | H63: 10,000.00 | J63: =H63+I63 -> 10,000.00 | K63: 10,000.00 | M63: =K63+L63 -> 10,000.00 | N63: 10,000.00 | P63: =N63+O63 -> 10,000.00
A64: Увеличение стоимости прочих оборотных запасов (материалов) | B64: 07 | C64: 02 | D64: 0220270210 | E64: 244 | F64: 346000 | G64: 1000 | H64: 80,000.00 | J64: 80,000.00 | K64: 80,000.00 | M64: 80,000.00 | N64: 80,000.00 | P64: 80,000.00
A65: Увеличение стоимости прочих оборотных запасов однократного применения | B65: 07 | C65: 02 | D65: 0220270210 | E65: 244 | F65: 349100 | G65: 1000 | H65: 0.00 | J65: 0.00 | K65: 0.00 | M65: 0.00 | N65: 0.00 | P65: 0.00
A66: Отопление, горячее водоснабжение и газоснабжение | B66: 07 | C66: 02 | D66: 0220270210 | E66: 247 | F66: 223100 | G66: 1000 | H66: 1,670,000.00 | J66: 1,670,000.00 | K66: 2,040,114.43 | M66: 2,040,114.43 | N66: 2,197,930.77 | P66: 2,197,930.77
A67: Электроэнергия | B67: 07 | C67: 02 | D67: 0220270210 | E67: 247 | F67: 223200 | G67: 1000 | H67: 580,000.00 | J67: 580,000.00 | K67: 684,490.00 | M67: 684,490.00 | N67: 740,100.00 | P67: 740,100.00
A68: Холодное водоснабжение | B68: 07 | C68: 02 | D68: 0220270210 | E68: 247 | F68: 223300 | G68: 1000 | H68: 59,330.00 | J68: 59,330.00 | K68: 64,908.00 | M68: 64,908.00 | N68: 69,775.59 | P68: 69,775.59
A69: Водоотведение | B69: 07 | C69: 02 | D69: 0220270210 | E69: 247 | F69: 223400 | G69: 1000 | H69: 34,472.25 | J69: 34,472.25 | K69: 37,710.00 | M69: 37,710.00 | N69: 40,538.89 | P69: 40,538.89
A70: Пособия по социальной помощи населению в натуральной форме | B70: 07 | C70: 02 | D70: 0220270210 | E70: 323 | F70: 263000 | G70: 1000 | H70: 0.00 | J70: =H70+I70 -> 0.00 | K70: 0.00 | M70: 0.00 | N70: 0.00 | P70: 0.00
A71: Налог на имущство | B71: 07 | C71: 02 | D71: 0220270210 | E71: 851 | F71: 291200 | G71: 1000 | H71: 9,252.00 | J71: 9,252.00 | K71: 9,252.00 | M71: 9,252.00 | N71: 9,252.00 | P71: 9,252.00
A72: Земельный налог, в том числе в период строительства объекта | B72: 07 | C72: 02 | D72: 0220270210 | E72: 851 | F72: 291300 | G72: 1000 | H72: 27,461.00 | J72: 27,461.00 | K72: 27,461.00 | M72: 27,461.00 | N72: 27,461.00 | P72: 27,461.00
A73: Штрафы за нарушение законодательства о налогах и сборах, законодательства о страховых взносах | B73: 07 | C73: 02 | D73: 0220270210 | E73: 853 | F73: 292000 | G73: 1000 | J73: =H73+I73 -> 0.00 | M73: =K73+L73 -> 0.00 | P73: =N73+O73 -> 0.00
A74: Иные выплаты текущего характера физическим лицам (возмещение убытков, вреда и судебных издержек) | B74: 07 | C74: 02 | D74: 0220270210 | E74: 853 | F74: 296100 | G74: 1000 | J74: =H74+I74 -> 0.00 | M74: =K74+L74 -> 0.00 | P74: =N74+O74 -> 0.00
A75: Транспортный налог | B75: 07 | C75: 02 | D75: 0220270210 | E75: 852 | F75: 291400 | G75: 1000 | J75: 0.00 | M75: 0.00 | P75: 0.00
A76: Штрафы за нарушение законодательства о закупках и нарушенияе условий контракта (договоров) | B76: 07 | C76: 02 | D76: 0220270210 | E76: 831 | F76: 293000 | G76: 1000 | J76: 0.00 | M76: 0.00 | P76: 0.00
A77: Другие экономические санкции | B77: 07 | C77: 02 | D77: 0220270210 | E77: 853 | F77: 295000 | G77: 1000 | J77: 0.00 | M77: 0.00 | P77: 0.00
A78: Иные выплаты текущего характера организациям (возмещение убытков, вред и судебных издержек) | B78: 07 | C78: 02 | D78: 0220270210 | E78: 851 | F78: 297100 | G78: 1000 | J78: 0.00 | M78: 0.00 | P78: 0.00
A79: Другие расходы | B79: 07 | C79: 02 | D79: 0400072910 | E79: 244 | F79: 226900 | G79: 1000 | J79: 0.00 | M79: 0.00 | P79: 0.00
A80: Заработная плата | B80: 07 | C80: 02 | D80: 0920070260 | E80: 111 | F80: 211000 | G80: 1000 | J80: 0.00 | M80: 0.00 | P80: 0.00
A81: Начисления на выплаты по оплате труда | B81: 07 | C81: 02 | D81: 0920070260 | E81: 119 | F81: 213000 | G81: 1000 | J81: 0.00 | M81: 0.00 | P81: 0.00
A82: Итого по КЦ 1000 | H82: =SUM(H37:H81) -> 3,874,923.54 | I82: 46,750.00 | J82: 3,921,673.54 | K82: 4,480,346.67 | L82: 0.00 | M82: 4,480,346.67 | N82: 4,875,002.87 | O82: 0.00 | P82: 4,875,002.87
A83: Субвенция на обеспечение государственных гарантий реализации прав на получение общедоступного и бесплатного дошкольного образования в муниципальных дошкольных образовательных организациях, общедоступного и бесплатного дошкольного, начального общего, основного общего, среднего общего образования в муниципальных общеобразовательных организациях, обеспечение дополнительного образования детей в муниципальных общеобразовательных организациях (КЦ 254242190000219)
A84: Заработная плата | B84: 07 | C84: 02 | D84: 0220242190 | E84: 111 | F84: 211000 | G84: 254242190000219 | H84: 17,927,463.66 | J84: =H84+I84 -> 17,927,463.66 | K84: 0.00 | M84: =K84+L84 -> 0.00 | N84: 0.00 | P84: =N84+O84 -> 0.00
A85: Социальные пособия и компенсации персоналу в денежной форме (пособие за первые три дня временной нетрудоспособности за счет средств работодателя) | B85: 07 | C85: 02 | D85: 0220242190 | E85: 111 | F85: 266100 | G85: 254242190000219 | H85: 0.00 | J85: 0.00 | K85: 0.00 | M85: 0.00 | N85: 0.00 | P85: 0.00
A86: Начисления на выплаты по оплате труда | B86: 07 | C86: 02 | D86: 0220242190 | E86: 119 | F86: 213000 | G86: 254242190000219 | H86: 4,060,570.52 | J86: 4,060,570.52 | K86: 0.00 | M86: 0.00 | N86: 0.00 | P86: 0.00
A87: Услуги связи (интернет) | B87: 07 | C87: 02 | D87: 0220242190 | E87: 244 | F87: 221200 | G87: 254242190000219 | H87: 0.00 | J87: =H87+I87 -> 0.00 | K87: 0.00 | M87: =K87+L87 -> 0.00 | N87: 0.00 | P87: =N87+O87 -> 0.00
A88: Транспортные услуги | B88: 07 | C88: 02 | D88: 0220242190 | E88: 244 | F88: 222000 | G88: 254242190000219 | J88: 0.00 | K88: 0.00 | M88: 0.00 | N88: 0.00 | P88: 0.00
A89: Другие расходы | B89: 07 | C89: 02 | D89: 0220242190 | E89: 244 | F89: 226900 | G89: 254242190000219 | J89: =H89+I89 -> 0.00 | K89: 0.00 | M89: =K89+L89 -> 0.00 | N89: 0.00 | P89: =N89+O89 -> 0.00
A90: Приобретение предметов длительного пользования (оборудование, мебель, компьютерная техника и т.п.) стоимостью свыше 3000,00 руб. | B90: 07 | C90: 02 | D90: 0220242190 | E90: 244 | F90: 310100 | G90: 254242190000219 | J90: =H90+I90 -> 0.00 | K90: 0.00 | M90: =K90+L90 -> 0.00 | N90: 0.00 | P90: =N90+O90 -> 0.00
A91: Комплектование библиотечного фонда | B91: 07 | C91: 02 | D91: 0220242190 | E91: 244 | F91: 310200 | G91: 254242190000219 | J91: 0.00 | K91: 0.00 | M91: 0.00 | N91: 0.00 | P91: 0.00
A92: Другие расходы стоимостью до 3000,00 рублей | B92: 07 | C92: 02 | D92: 0220242190 | E92: 244 | F92: 310900 | G92: 254242190000219 | J92: 0.00 | K92: 0.00 | M92: 0.00 | N92: 0.00 | P92: 0.00
A93: Мягкий инвентарь | B93: 07 | C93: 02 | D93: 0220242190 | E93: 244 | F93: 345000 | G93: 254242190000219 | J93: 0.00 | M93: 0.00 | P93: 0.00
A94: Увеличение стоимости прочих оборотных запасов (материалов) | B94: 07 | C94: 02 | D94: 0220242190 | E94: 244 | F94: 346000 | G94: 254242190000219 | J94: 0.00 | K94: 0.00 | M94: 0.00 | N94: 0.00 | P94: 0.00
A95: Увеличение стоимости прочих материальных запасов однократного применения | B95: 07 | C95: 02 | D95: 0220242190 | E95: 244 | F95: 349100 | G95: 254242190000219 | J95: 0.00 | K95: 0.00 | M95: 0.00 | N95: 0.00 | P95: 0.00
A96: Мероприятия по переподготовке и повышению квалификации кадров | B96: 07 | C96: 05 | D96: 0220242190 | E96: 244 | F96: 226700 | G96: 254242190000219 | J96: 0.00 | K96: 0.00 | M96: 0.00 | N96: 0.00 | P96: 0.00
A97: Итого по КЦ 254242190000219 | H97: =SUM(H84:H96) -> 21,988,034.18 | I97: 0.00 | J97: 21,988,034.18 | K97: 0.00 | L97: 0.00 | M97: 0.00 | N97: 0.00 | O97: 0.00 | P97: 0.00
A98: Субсидия на проведение мероприятий по обеспечению деятельности советников директора по воспитанию и взаимодействию с детскими общественными объединениями в общеобразовательных организациях (КЦ 25-51790-00000-00000)
A99: Заработная плата | B99: 07 | C99: 02 | D99: 022Ю651790 | E99: 111 | F99: 211000 | G99: 25-51790-00000-00000 | H99: 251,508.00 | J99: =H99+I99 -> 251,508.00 | K99: 0.00 | M99: =K99+L99 -> 0.00 | N99: 0.00 | P99: =N99+O99 -> 0.00
A100: Начисления на выплаты по оплате труда | B100: 07 | C100: 02 | D100: 022Ю651790 | E100: 119 | F100: 213000 | G100: 25-51790-00000-00000 | H100: 75,955.41 | J100: =H100+I100 -> 75,955.41 | K100: 0.00 | M100: =K100+L100 -> 0.00 | N100: 0.00 | P100: =N100+O100 -> 0.00
A101: Итого по КЦ 25-51790-00000-00000 | H101: =SUM(H99:H100) -> 327,463.41 | I101: 0.00 | J101: 327,463.41 | K101: 0.00 | L101: 0.00 | M101: 0.00 | N101: 0.00 | O101: 0.00 | P101: 0.00
A102: Иные межбюджетные трансферты на ежемесячное денежное вознаграждение за классное руководство педагогическим работникам государственных и муниципальных образовательных организаций, реализующих образовательные программы начального общего образования, образовательные программы основного общего образования, образовательные программы среднего общего образования (КЦ 2553030X298570000000)
A103: Заработная плата | B103: 07 | C103: 02 | D103: 022Ю653030 | E103: 111 | F103: 211000 | G103: 2553030X298570000000 | H103: 2,178,000.00 | J103: =H103+I103 -> 2,178,000.00 | K103: 0.00 | M103: =K103+L103 -> 0.00 | N103: 0.00 | P103: =N103+O103 -> 0.00
A104: Начисления на выплаты по оплате труда | B104: 07 | C104: 02 | D104: 022Ю653030 | E104: 119 | F104: 213000 | G104: 2553030X298570000000 | H104: 657,756.00 | J104: =H104+I104 -> 657,756.00 | K104: 0.00 | M104: =K104+L104 -> 0.00 | N104: 0.00 | P104: =N104+O104 -> 0.00
A105: Итого по КЦ 2553030X298570000000 | H105: =SUM(H103:H104) -> 2,835,756.00 | I105: 0.00 | J105: 2,835,756.00 | K105: 0.00 | L105: 0.00 | M105: 0.00 | N105: 0.00 | O105: 0.00 | P105: 0.00
A106: Субвенции на осуществление государственных полномочий РеспубликиКарелия по представлению предусмотренных пунктом 5 части 1 статьи 9 Закона Республики Карелия от 20 декабря 2013 гоа № 1755_ЗРК "Об образовании" мер социальной поддержки и социального обслуживания (КЦ 254242100000210)
A107: Увеличение стоимости прочих оборотных запасов (материалов) | B107: 07 | C107: 02 | D107: 0220242100 | E107: 244 | F107: 346000 | G107: 24424210000210 | J107: =H107+I107 -> 0.00 | K107: 0.00 | M107: =K107+L107 -> 0.00 | N107: 0.00 | P107: =N107+O107 -> 0.00
A108: Пособия по социальной помощи населению в натуральной форме | B108: 07 | C108: 02 | D108: 0220242100 | E108: 323 | F108: 263000 | G108: 254242100000210 | H108: 152,545.00 | J108: =H108+I108 -> 152,545.00 | K108: 0.00 | M108: =K108+L108 -> 0.00 | N108: 0.00 | P108: =N108+O108 -> 0.00
A109: Увеличение стоимости прочих оборотных запасов (материалов) | B109: 07 | C109: 02 | D109: 0220242100 | E109: 323 | F109: 346000 | G109: 23424210000210 | J109: =H109+I109 -> 0.00 | K109: 0.00 | M109: =K109+L109 -> 0.00 | N109: 0.00 | P109: =N109+O109 -> 0.00
A110: Итого по КЦ 254242100000210 | H110: =SUM(H107:H109) -> 152,545.00 | I110: 0.00 | J110: 152,545.00 | K110: 0.00 | L110: 0.00 | M110: 0.00 | N110: 0.00 | O110: 0.00 | P110: 0.00
A111: Субвенции на осуществление государственных полномочий Республики Карелия по выплате компенсации платы, взимаемой с родителей (законных представителей) за присмотр и уход за детьми, осваивающими образовательные программы дошкольного образования в организа
A112: Пособия по социальной помощи населению в натуральной форме | B112: 10 | C112: 04 | D112: 0220142030 | E112: 323 | F112: 263000 | G112: 23424203000203 | J112: =H112+I112 -> 0.00 | K112: 0.00 | M112: =K112+L112 -> 0.00 | N112: 0.00 | P112: =N112+O112 -> 0.00
A113: Итого по КЦ 23424203000203 | H113: =SUM(H112) -> 0.00 | I113: 0.00 | J113: 0.00 | K113: 0.00 | L113: 0.00 | M113: 0.00 | N113: 0.00 | O113: 0.00 | P113: 0.00
A114: Субсидии на организацию бесплатного горячего питания обучающихся, получающих начальное общее образование в государственных и муниципальных образовательных организациях (КЦ 25-53040-00000-00000)
A115: Другие расходы | B115: 07 | C115: 02 | D115: 02202L3040 | E115: 244 | F115: 226900 | G115: 25-53040-00000-00000 | H115: 800,000.00 | J115: =H115+I115 -> 800,000.00 | K115: 0.00 | M115: =K115+L115 -> 0.00 | N115: 0.00 | P115: =N115+O115 -> 0.00
A116: Итого по КЦ 25-53040-00000-00000 | H116: =SUM(H115:H115) -> 800,000.00 | I116: 0.00 | J116: 800,000.00 | K116: 0.00 | L116: 0.00 | M116: 0.00 | N116: 0.00 | O116: 0.00 | P116: 0.00
A117: Субсидия на реализацию мероприятий государственной программы Республики Карелия "Совершенствование социальной защиты граждан" в целях организации адресной социальной помощи семьям, имеющим детей (КЦ 254343210000316)
A118: Пособия по социальной помощи населению в натуральной форме | B118: 10 | C118: 03 | D118: 0320243210 | E118: 323 | F118: 263000 | G118: 254343210000316 | H118: 175,000.00 | J118: =H118+I118 -> 175,000.00 | K118: 0.00 | M118: =K118+L118 -> 0.00 | N118: 0.00 | P118: =N118+O118 -> 0.00
A119: Итого по КЦ 254343210000316 | H119: =SUM(H118:H118) -> 175,000.00 | I119: =SUM(I118:I118) -> 0.00 | J119: =SUM(J118:J118) -> 175,000.00 | K119: =SUM(K118:K118) -> 0.00 | L119: =SUM(L118:L118) -> 0.00 | M119: 0.00 | N119: 0.00 | O119: 0.00 | P119: 0.00
A120: Пособия по социальной помощи населению в натуральной форме | B120: 10 | C120: 03 | D120: 03202S3210 | E120: 323 | F120: 263000 | G120: 1000 | H120: 75,000.00 | J120: =H120+I120 -> 75,000.00 | K120: 0.00 | M120: 0.00 | N120: 0.00 | P120: 0.00
A121: Итого по КЦ 1000 | H121: =SUM(H120:H120) -> 75,000.00 | I121: 0.00 | J121: 75,000.00 | K121: 0.00 | L121: 0.00 | M121: 0.00 | N121: 0.00 | O121: 0.00 | P121: 0.00
A122: Субсидия местным бюджетам на реализацию мероприятий государственной программы Республики Карелия "Совершенствование социальной защиты граждан" (КЦ 2343432000321)
A123: Увеличение стоимости прочих оборотных запасов (материалов) | B123: 07 | C123: 09 | D123: 0220243210 | E123: 244 | F123: 346000 | G123: 2343432000321 | J123: =H123+I123 -> 0.00 | K123: 0.00 | M123: =K123+L123 -> 0.00 | N123: 0.00 | P123: =N123+O123 -> 0.00
A124: Другие расходы | B124: 07 | C124: 09 | D124: 0220243210 | E124: 244 | F124: 226900 | G124: 2343432000321 | J124: 0.00 | K124: 0.00 | M124: 0.00 | N124: 0.00 | P124: 0.00
A125: Транспортные услуги | B125: 07 | C125: 09 | D125: 0220243210 | E125: 244 | F125: 222000 | G125: 2343432000321 | J125: 0.00 | K125: 0.00 | M125: 0.00 | N125: 0.00 | P125: 0.00
A126: Увеличение стоимости прочих оборотных запасов (материалов) | B126: 07 | C126: 09 | D126: 02202S3210 | E126: 244 | F126: 346000 | G126: 1000 | J126: 0.00 | K126: 0.00 | M126: 0.00 | N126: 0.00 | P126: 0.00
A127: Другие расходы | B127: 07 | C127: 09 | D127: 02202S3210 | E127: 244 | F127: 226900 | G127: 1000 | J127: 0.00 | K127: 0.00 | M127: 0.00 | N127: 0.00 | P127: 0.00
A128: Транспортные услуги | B128: 07 | C128: 09 | D128: 02202S3210 | E128: 244 | F128: 222000 | G128: 1000 | J128: 0.00 | K128: 0.00 | M128: 0.00 | N128: 0.00 | P128: 0.00
A129: Итого по КЦ 2343432000321 | H129: =SUM(H123:H128) -> 0.00 | I129: 0.00 | J129: 0.00 | K129: 0.00 | L129: 0.00 | M129: 0.00 | N129: 0.00 | O129: 0.00 | P129: 0.00
A130: Иные межбюджетные трансферты на компенсацию затрат, связанных с освобождением членов семей постоянно проживающих на территории Республики Карелия граждан, призванных военным комиссариатом Республики Карелия на военную службу по мобилизации, а также гражд
A131: Продукты питания | B131: 07 | C131: 01 | D131: 0220175040 | E131: 244 | F131: 342000 | G131: 234475040П0514 | J131: =H131+I131 -> 0.00 | K131: 0.00 | M131: =K131+L131 -> 0.00 | N131: 0.00 | O131: =M131+N131 -> 0.00 | P131: =N131+O131 -> 0.00
A132: Итого по КЦ 234475040П0514 | H132: =SUM(H131) -> 0.00 | I132: 0.00 | J132: 0.00 | K132: 0.00 | L132: 0.00 | M132: 0.00 | N132: 0.00 | O132: 0.00 | P132: 0.00
G133: Всего | H133: =H82+H97+H110+H113+H116+H119+H121+H105+H101 -> 30,228,722.13 | I133: =I82+I97+I110+I113+I116+I119+I121+I105+I101 -> 46,750.00 | J133: 30,275,472.13 | K133: 4,480,346.67 | L133: 0.00 | M133: 4,480,346.67 | N133: 4,875,002.87 | O133: 0.00 | P133: 4,875,002.87
A137: Директор | F137: И.А. Сидорова
B138: (подпись) | F138: (расшифровка подписи)
A140: Гл.бухгалтер МУ "ЦБ № 1" | F140: И.В. Ананьева
A141: (уполномоченное лицо) | B141: (подпись) | F141: (расшифровка подписи)
A143: Главный экономист ПЭО МУ "ЦБ № 1" | F143: Е.Л. Герасимова
A144: (исполнитель) | B144: (подпись) | F144: (расшифровка подписи)
A146: =L18 -> "07" февраля 2025 г.

Sheet 12.02
P1: Приложение № 2
P2: к Порядку составления, утверждения
P3: и ведения бюджетных смет Администрации
P4: Прионежского муниципального района
P5: и казенных учреждений, находящихся
P6: в ведении Администрации Прионежского
P7: муниципального района
P8: от 09 августа 2022 № 831
L10: УТВЕРЖДАЮ
L11: Глава Администрации Прионежского муниципального района
L12: (наименование должности лица, согласующего бюджетную смету)
L13: Администрация Прионежского муниципального района
L14: (наименование главного распорядителя (распорядителя) бюджетных средств; учреждения)
L16: Г. Н. Шемет
L17: (подпись) | N17: (расшифровка подписи)
L18: "12" февраля 2025 г.
A20: ИЗМЕНЕНИЕ К БЮДЖЕТНОЙ СМЕТЕ НА 2025 ФИНАНСОВЫЙ ГОД И ПЛАНОВЫЙ ПЕРИОД 2026 И 2027 ГОДОВ
B22: №№ 015/00402/019 от | H22: =L18 -> "12" февраля 2025 г.
A23: (№, дата, справки об изменении ЛБО) | P23: КОДЫ
O24: Форма по ОКУД | P24: 0501012
O25: Дата | P25: =L18 -> "12" февраля 2025 г.
O26: по ОКПО | P26: 51326281
A27: Получатель бюджетных средств | B27: Муниципальное общеобразовательное учреждение "Средняя общеобразовательная школа № 44"
A28: Распорядитель бюджетных средств | B28: Администрация Прионежского муниципального района Республики Карелия
A29: Главный распорядитель бюджетных средств | B29: Администрация Прионежского муниципального района Республики Карелия | O29: Глава по БК | P29: 015
A30: Наименование бюджета | B30: Бюджет Прионежского муниципального района | O30: по ОКТМО | P30: 86636410
A31: Единица измерения: | B31: руб. | O31: по ОКЕЙ | P31: 383
A33: Наименование показателя (детализация кода бюджетной классификации) | B33: РЗ | C33: ПР | D33: ЦСР | E33: Вид расхода | F33: Детализация | G33: Вид целевых средств | H33: Сумма на текущий 2025 год | K33: Сумма на первый год планового периода | N33: Сумма на второй год планового периода
H34: на 07.02.2025 г | I34: изменения(+;-) | J34: Итого | K34: =H34 -> на 07.02.2025 г | L34: изменения(+;-) | M34: Итого | N34: =H34 -> на 07.02.2025 г | O34: изменения(+;-) | P34: Итого
A35: 1 | B35: =SUM(A35+1) -> 2 | C35: 3 | D35: 4 | E35: 5 | F35: 6 | G35: 7 | H35: 8 | I35: 9 | J35: 10 | K35: 11 | L35: 12 | M35: 13 | N35: 14 | O35: 15 | P35: 16
A36: Средства местного бюджета (КЦ 1000) 0702
A37: Заработная плата | B37: 07 | C37: 02 | D37: 0220270210 | E37: 111 | F37: 211000 | G37: 1000 | H37: 451,164.48 | J37: =H37+I37 -> 451,164.48 | K37: 451,164.48 | M37: =K37+L37 -> 451,164.48 | N37: 451,164.48 | P37: =N37+O37 -> 451,164.48
A38: Социальные пособия и компенсации персоналу в денежной форме (пособие за первые три дня временной нетрудоспособности за счет средств работодателя) | B38: 07 | C38: 02 | D38: 0220270210 | E38: 111 | F38: 266100 | G38: 1000 | H38: 0.00 | J38: 0.00 | K38: 0.00 | M38: 0.00 | N38: 0.00 | P38: 0.00
A39: Расходы по оплате проезда к месту отпуска и обратно отдельным категориям лиц (для лиц, работающих в районах Крайнего Севера и приравненных к ним местностям, и членов их семей) | B39: 07 | C39: 02 | D39: 0220270210 | E39: 112 | F39: 214000 | G39: 1000 | H39: 30,000.00 | J39: 30,000.00 | K39: 20,000.00 | M39: 20,000.00 | N39: 20,000.00 | P39: 20,000.00
A40: Начисления на выплаты по оплате труда | B40: 07 | C40: 02 | D40: 0220270210 | E40: 119 | F40: 213000 | G40: 1000 | H40: 136,251.67 | J40: 136,251.67 | K40: 136,261.67 | M40: 136,261.67 | N40: 136,251.67 | P40: 136,251.67
A41: Услуги связи (телефон) | B41: 07 | C41: 02 | D41: 0220270210 | E41: 244 | F41: 221100 | G41: 1000 | H41: 7,416.00 | J41: 7,416.00 | K41: 9,270.00 | M41: 9,270.00 | N41: 11,587.50 | P41: 11,587.50
A42: Услуги связи (почта) | B42: 07 | C42: 02 | D42: 0220270210 | E42: 244 | F42: 221300 | G42: 1000 | H42: 0.00 | J42: 0.00 | K42: 0.00 | M42: 0.00 | N42: 0.00 | P42: 0.00
A43: Транспортные услуги | B43: 07 | C43: 02 | D43: 0220270210 | E43: 244 | F43: 222000 | G43: 1000 | H43: 46,442.50 | J43: =H43+I43 -> 46,442.50 | K43: 58,053.13 | M43: =K43+L43 -> 58,053.13 | N43: 67,566.41 | P43: =N43+O43 -> 67,566.41
A44: Холодное водоснабжение | B44: 07 | C44: 02 | D44: 0220270210 | E44: 244 | F44: 223300 | G44: 1000 | H44: 0.00 | J44: 0.00 | K44: 0.00 | M44: 0.00 | N44: 0.00 | P44: 0.00
A45: Водоотведение | B45: 07 | C45: 02 | D45: 0220270210 | E45: 244 | F45: 223400 | G45: 1000 | H45: 0.00 | J45: 0.00 | K45: 0.00 | M45: 0.00 | N45: 0.00 | P45: 0.00
A46: Обращение с твердыми коммунальными отходами (вывоз ТБО) | B46: 07 | C46: 02 | D46: 0220270210 | E46: 244 | F46: 223500 | G46: 1000 | H46: 36,117.96 | J46: 36,117.96 | K46: 39,466.11 | M46: 39,466.11 | N46: 41,301.62 | P46: 41,301.62
A47: Техническое обслуживание внутренних сетей отопления и горячего водоснабжения | B47: 07 | C47: 02 | D47: 0220270210 | E47: 244 | F47: 225200 | G47: 1000 | H47: 0.00 | J47: 0.00 | K47: 0.00 | M47: 0.00 | N47: 0.00 | P47: 0.00
A48: Санитарная и противопожарная (дезинфекция, дезинсекция, дератизация, газация, огнезащитная) обработка помещений | B48: 07 | C48: 02 | D48: 0220270210 | E48: 244 | F48: 225600 | G48: 1000 | H48: 39,096.90 | J48: 39,096.90 | K48: 48,871.13 | M48: 48,871.13 | N48: 61,088.91 | P48: 61,088.91
A49: Содержание, обслуживание помещений и сетей инженерно-технического обеспечения | B49: 07 | C49: 02 | D49: 0220270210 | E49: 244 | F49: 225700 | G49: 1000 | H49: 196,537.10 | J49: 196,537.10 | K49: 245,671.38 | M49: 245,671.38 | N49: 307,089.22 | P49: 307,089.22
A50: Текущий ремонт помещений и сетей инженерно-технического обеспечения | B50: 07 | C50: 02 | D50: 0220270210 | E50: 244 | F50: 225800 | G50: 1000 | H50: 46,750.00 | J50: 46,750.00 | K50: 0.00 | M50: 0.00 | N50: 0.00 | P50: 0.00
A51: Другие расходы | B51: 07 | C51: 02 | D51: 0220270210 | E51: 244 | F51: 225900 | G51: 1000 | H51: 93,625.00 | J51: 93,625.00 | K51: 86,875.00 | M51: 86,875.00 | N51: 102,921.88 | P51: 102,921.88
A52: Аттестация | B52: 07 | C52: 02 | D52: 0220270210 | E52: 244 | F52: 226200 | G52: 1000 | H52: 0.00 | J52: =H52+I52 -> 0.00 | K52: 0.00 | M52: =K52+L52 -> 0.00 | N52: 0.00 | P52: =N52+O52 -> 0.00
A53: Охрана ведомственная, вневедомственная, пожарная | B53: 07 | C53: 02 | D53: 0220270210 | E53: 244 | F53: 226400 | G53: 1000 | H53: 73,072.68 | J53: 73,072.68 | K53: 83,840.84 | M53: 83,840.84 | N53: 97,301.05 | P53: 97,301.05
A54: Мероприятия по переподготовке и повышению квалификации кадров | B54: 07 | C54: 02 | D54: 0220270210 | E54: 244 | F54: 226700 | G54: 1000 | H54: 0.00 | J54: 0.00 | K54: 0.00 | M54: 0.00 | N54: 0.00 | P54: 0.00
A55: Медицинский осмотр работников учреждения, за исключением водителей трансртных средств | B55: 07 | C55: 02 | D55: 0220270210 | E55: 244 | F55: 226800 | G55: 1000 | H55: 164,784.00 | J55: 164,784.00 | K55: 214,562.50 | M55: 214,562.50 | N55: 268,203.13 | P55: 268,203.13
A56: Другие расходы | B56: 07 | C56: 02 | D56: 0220270210 | E56: 244 | F56: 226900 | G56: 1000 | H56: 100,000.00 | J56: 100,000.00 | K56: 100,000.00 | M56: 100,000.00 | N56: 100,000.00 | P56: 100,000.00
A57: Обязательное страхование автогражданской ответственности | B57: 07 | C57: 02 | D57: 0220270210 | E57: 244 | F57: 227200 | G57: 1000 | H57: 0.00 | J57: =H57+I57 -> 0.00 | K57: 0.00 | M57: =K57+L57 -> 0.00 | N57: 0.00 | P57: =N57+O57 -> 0.00
A58: Расходы на оплату услуг по страхованию здоровья | B58: 07 | C58: 02 | D58: 0220270210 | E58: 244 | F58: 227300 | G58: 1000 | H58: 0.00 | J58: =H58+I58 -> 0.00 | K58: 0.00 | M58: =K58+L58 -> 0.00 | N58: 0.00 | P58: =N58+O58 -> 0.00
A59: Приобретение предметов длительного пользования (оборудование, мебель, компьютерная техника и т.п) стоимостью свыше 3000 рублей | B59: 07 | C59: 02 | D59: 0220270210 | E59: 244 | F59: 310100 | G59: 1000 | H59: 0.00 | J59: 0.00 | K59: 0.00 | M59: 0.00 | N59: 0.00 | P59: 0.00
A60: Другие расходы стоимостью до 3000,00 рублей | B60: 07 | C60: 02 | D60: 0220270210 | E60: 244 | F60: 310900 | G60: 1000 | H60: 0.00 | J60: 0.00 | K60: 0.00 | M60: 0.00 | N60: 0.00 | P60: 0.00
A61: Увеличение стоимости лекарственных препаратов и материалов, применяемых в медицинских целях | B61: 07 | C61: 02 | D61: 0220270210 | E61: 244 | F61: 341000 | G61: 1000 | H61: 9,900.00 | J61: =H61+I61 -> 9,900.00 | K61: 12,375.00 | M61: =K61+L61 -> 12,375.00 | N61: 15,468.75 | P61: =N61+O61 -> 15,468.75
A62: Приобретение строительных материалов | B62: 07 | C62: 02 | D62: 0220270210 | E62: 244 | F62: 344000 | G62: 1000 | H62: 20,000.00 | J62: 20,000.00 | K62: 20,000.00 | M62: 20,000.00 | N62: 20,000.00 | P62: 20,000.00
A63: Мягкий инвентарь | B63: 07 | C63: 02 | D63: 0220270210 | E63: 244 | F63: 345000 | G63: 1000 | H63: 10,000.00 | J63: =H63+I63 -> 10,000.00 | K63: 10,000.00 | M63: =K63+L63 -> 10,000.00 | N63: 10,000.00 | P63: =N63+O63 -> 10,000.00
A64: Увеличение стоимости прочих оборотных запасов (материалов) | B64: 07 | C64: 02 | D64: 0220270210 | E64: 244 | F64: 346000 | G64: 1000 | H64: 80,000.00 | J64: 80,000.00 | K64: 80,000.00 | M64: 80,000.00 | N64: 80,000.00 | P64: 80,000.00
A65: Увеличение стоимости прочих оборотных запасов однократного применения | B65: 07 | C65: 02 | D65: 0220270210 | E65: 244 | F65: 349100 | G65: 1000 | H65: 0.00 | J65: 0.00 | K65: 0.00 | M65: 0.00 | N65: 0.00 | P65: 0.00
A66: Отопление, горячее водоснабжение и газоснабжение | B66: 07 | C66: 02 | D66: 0220270210 | E66: 247 | F66: 223100 | G66: 1000 | H66: 1,670,000.00 | J66: 1,670,000.00 | K66: 2,040,114.43 | M66: 2,040,114.43 | N66: 2,197,930.77 | P66: 2,197,930.77
A67: Электроэнергия | B67: 07 | C67: 02 | D67: 0220270210 | E67: 247 | F67: 223200 | G67: 1000 | H67: 580,000.00 | J67: 580,000.00 | K67: 684,490.00 | M67: 684,490.00 | N67: 740,100.00 | P67: 740,100.00
A68: Холодное водоснабжение | B68: 07 | C68: 02 | D68: 0220270210 | E68: 247 | F68: 223300 | G68: 1000 | H68: 59,330.00 | J68: 59,330.00 | K68: 64,908.00 | M68: 64,908.00 | N68: 69,775.59 | P68: 69,775.59
A69: Водоотведение | B69: 07 | C69: 02 | D69: 0220270210 | E69: 247 | F69: 223400 | G69: 1000 | H69: 34,472.25 | J69: 34,472.25 | K69: 37,710.00 | M69: 37,710.00 | N69: 40,538.89 | P69: 40,538.89
A70: Пособия по социальной помощи населению в натуральной форме | B70: 07 | C70: 02 | D70: 0220270210 | E70: 323 | F70: 263000 | G70: 1000 | H70: 0.00 | J70: =H70+I70 -> 0.00 | K70: 0.00 | M70: 0.00 | N70: 0.00 | P70: 0.00
A71: Налог на имущство | B71: 07 | C71: 02 | D71: 0220270210 | E71: 851 | F71: 291200 | G71: 1000 | H71: 9,252.00 | J71: 9,252.00 | K71: 9,252.00 | M71: 9,252.00 | N71: 9,252.00 | P71: 9,252.00
A72: Земельный налог, в том числе в период строительства объекта | B72: 07 | C72: 02 | D72: 0220270210 | E72: 851 | F72: 291300 | G72: 1000 | H72: 27,461.00 | J72: 27,461.00 | K72: 27,461.00 | M72: 27,461.00 | N72: 27,461.00 | P72: 27,461.00
A73: Штрафы за нарушение законодательства о налогах и сборах, законодательства о страховых взносах | B73: 07 | C73: 02 | D73: 0220270210 | E73: 853 | F73: 292000 | G73: 1000 | J73: =H73+I73 -> 0.00 | M73: =K73+L73 -> 0.00 | P73: =N73+O73 -> 0.00
A74: Иные выплаты текущего характера физическим лицам (возмещение убытков, вреда и судебных издержек) | B74: 07 | C74: 02 | D74: 0220270210 | E74: 853 | F74: 296100 | G74: 1000 | J74: =H74+I74 -> 0.00 | M74: =K74+L74 -> 0.00 | P74: =N74+O74 -> 0.00
A75: Транспортный налог | B75: 07 | C75: 02 | D75: 0220270210 | E75: 852 | F75: 291400 | G75: 1000 | J75: 0.00 | M75: 0.00 | P75: 0.00
A76: Штрафы за нарушение законодательства о закупках и нарушенияе условий контракта (договоров) | B76: 07 | C76: 02 | D76: 0220270210 | E76: 831 | F76: 293000 | G76: 1000 | J76: 0.00 | M76: 0.00 | P76: 0.00
A77: Другие экономические санкции | B77: 07 | C77: 02 | D77: 0220270210 | E77: 853 | F77: 295000 | G77: 1000 | J77: 0.00 | M77: 0.00 | P77: 0.00
A78: Иные выплаты текущего характера организациям (возмещение убытков, вред и судебных издержек) | B78: 07 | C78: 02 | D78: 0220270210 | E78: 851 | F78: 297100 | G78: 1000 | J78: 0.00 | M78: 0.00 | P78: 0.00
A79: Другие расходы | B79: 07 | C79: 02 | D79: 0400072910 | E79: 244 | F79: 226900 | G79: 1000 | J79: 0.00 | M79: 0.00 | P79: 0.00
A80: Заработная плата | B80: 07 | C80: 02 | D80: 0920070260 | E80: 111 | F80: 211000 | G80: 1000 | J80: 0.00 | M80: 0.00 | P80: 0.00
A81: Начисления на выплаты по оплате труда | B81: 07 | C81: 02 | D81: 0920070260 | E81: 119 | F81: 213000 | G81: 1000 | J81: 0.00 | M81: 0.00 | P81: 0.00
A82: Итого по КЦ 1000 | H82: =SUM(H37:H81) -> 3,921,673.54 | I82: 0.00 | J82: 3,921,673.54 | K82: 4,480,346.67 | L82: 0.00 | M82: 4,480,346.67 | N82: 4,875,002.87 | O82: 0.00 | P82: 4,875,002.87
A83: Субвенция на обеспечение государственных гарантий реализации прав на получение общедоступного и бесплатного дошкольного образования в муниципальных дошкольных образовательных организациях, общедоступного и бесплатного дошкольного, начального общего, основного общего, среднего общего образования в муниципальных общеобразовательных организациях, обеспечение дополнительного образования детей в муниципальных общеобразовательных организациях (КЦ 254242190000219)
A84: Заработная плата | B84: 07 | C84: 02 | D84: 0220242190 | E84: 111 | F84: 211000 | G84: 254242190000219 | H84: 17,927,463.66 | J84: =H84+I84 -> 17,927,463.66 | K84: 0.00 | M84: =K84+L84 -> 0.00 | N84: 0.00 | P84: =N84+O84 -> 0.00
A85: Социальные пособия и компенсации персоналу в денежной форме (пособие за первые три дня временной нетрудоспособности за счет средств работодателя) | B85: 07 | C85: 02 | D85: 0220242190 | E85: 111 | F85: 266100 | G85: 254242190000219 | H85: 0.00 | J85: 0.00 | K85: 0.00 | M85: 0.00 | N85: 0.00 | P85: 0.00
A86: Начисления на выплаты по оплате труда | B86: 07 | C86: 02 | D86: 0220242190 | E86: 119 | F86: 213000 | G86: 254242190000219 | H86: 4,060,570.52 | J86: 4,060,570.52 | K86: 0.00 | M86: 0.00 | N86: 0.00 | P86: 0.00
A87: Услуги связи (интернет) | B87: 07 | C87: 02 | D87: 0220242190 | E87: 244 | F87: 221200 | G87: 254242190000219 | H87: 0.00 | J87: =H87+I87 -> 0.00 | K87: 0.00 | M87: =K87+L87 -> 0.00 | N87: 0.00 | P87: =N87+O87 -> 0.00
A88: Транспортные услуги | B88: 07 | C88: 02 | D88: 0220242190 | E88: 244 | F88: 222000 | G88: 254242190000219 | J88: 0.00 | K88: 0.00 | M88: 0.00 | N88: 0.00 | P88: 0.00
A89: Другие расходы | B89: 07 | C89: 02 | D89: 0220242190 | E89: 244 | F89: 226900 | G89: 254242190000219 | J89: =H89+I89 -> 0.00 | K89: 0.00 | M89: =K89+L89 -> 0.00 | N89: 0.00 | P89: =N89+O89 -> 0.00
A90: Приобретение предметов длительного пользования (оборудование, мебель, компьютерная техника и т.п.) стоимостью свыше 3000,00 руб. | B90: 07 | C90: 02 | D90: 0220242190 | E90: 244 | F90: 310100 | G90: 254242190000219 | J90: =H90+I90 -> 0.00 | K90: 0.00 | M90: =K90+L90 -> 0.00 | N90: 0.00 | P90: =N90+O90 -> 0.00
A91: Комплектование библиотечного фонда | B91: 07 | C91: 02 | D91: 0220242190 | E91: 244 | F91: 310200 | G91: 254242190000219 | J91: 0.00 | K91: 0.00 | M91: 0.00 | N91: 0.00 | P91: 0.00
A92: Другие расходы стоимостью до 3000,00 рублей | B92: 07 | C92: 02 | D92: 0220242190 | E92: 244 | F92: 310900 | G92: 254242190000219 | J92: 0.00 | K92: 0.00 | M92: 0.00 | N92: 0.00 | P92: 0.00
A93: Мягкий инвентарь | B93: 07 | C93: 02 | D93: 0220242190 | E93: 244 | F93: 345000 | G93: 254242190000219 | J93: 0.00 | M93: 0.00 | P93: 0.00
A94: Увеличение стоимости прочих оборотных запасов (материалов) | B94: 07 | C94: 02 | D94: 0220242190 | E94: 244 | F94: 346000 | G94: 254242190000219 | J94: 0.00 | K94: 0.00 | M94: 0.00 | N94: 0.00 | P94: 0.00
A95: Увеличение стоимости прочих материальных запасов однократного применения | B95: 07 | C95: 02 | D95: 0220242190 | E95: 244 | F95: 349100 | G95: 254242190000219 | J95: 0.00 | K95: 0.00 | M95: 0.00 | N95: 0.00 | P95: 0.00
A96: Мероприятия по переподготовке и повышению квалификации кадров | B96: 07 | C96: 05 | D96: 0220242190 | E96: 244 | F96: 226700 | G96: 254242190000219 | J96: 0.00 | K96: 0.00 | M96: 0.00 | N96: 0.00 | P96: 0.00
A97: Итого по КЦ 254242190000219 | H97: =SUM(H84:H96) -> 21,988,034.18 | I97: 0.00 | J97: 21,988,034.18 | K97: 0.00 | L97: 0.00 | M97: 0.00 | N97: 0.00 | O97: 0.00 | P97: 0.00
A98: Субсидия на проведение мероприятий по обеспечению деятельности советников директора по воспитанию и взаимодействию с детскими общественными объединениями в общеобразовательных организациях (КЦ 25-51790-00000-00000)
A99: Заработная плата | B99: 07 | C99: 02 | D99: 022Ю651790 | E99: 111 | F99: 211000 | G99: 25-51790-00000-00000 | H99: 251,508.00 | J99: =H99+I99 -> 251,508.00 | K99: 0.00 | M99: =K99+L99 -> 0.00 | N99: 0.00 | P99: =N99+O99 -> 0.00
A100: Начисления на выплаты по оплате труда | B100: 07 | C100: 02 | D100: 022Ю651790 | E100: 119 | F100: 213000 | G100: 25-51790-00000-00000 | H100: 75,955.41 | J100: =H100+I100 -> 75,955.41 | K100: 0.00 | M100: =K100+L100 -> 0.00 | N100: 0.00 | P100: =N100+O100 -> 0.00
A101: Итого по КЦ 25-51790-00000-00000 | H101: =SUM(H99:H100) -> 327,463.41 | I101: 0.00 | J101: 327,463.41 | K101: 0.00 | L101: 0.00 | M101: 0.00 | N101: 0.00 | O101: 0.00 | P101: 0.00
A102: Иные межбюджетные трансферты на обеспечение выплат ежемесячного денежного вознаграждения советникам директоров по воспитанию и взаимодействию с детскими общественными объединениями государственных общеобразовательных организаций, профессиональных образовательных организаций, муниципальных общеобразовательных организаций и профессиональных образовательных организаций (КЦ 2550500X298320000000)
A103: Заработная плата | B103: 07 | C103: 02 | D103: 022Ю650500 | E103: 111 | F103: 211000 | G103: 2550500X298320000000 | H103: 0.00 | I103: 99,000.00 | J103: =H103+I103 -> 99,000.00 | K103: 0.00 | M103: =K103+L103 -> 0.00 | N103: 0.00 | P103: =N103+O103 -> 0.00
A104: Начисления на выплаты по оплате труда | B104: 07 | C104: 02 | D104: 022Ю650500 | E104: 119 | F104: 213000 | G104: 2550500X298320000000 | H104: 0.00 | I104: 29,898.00 | J104: =H104+I104 -> 29,898.00 | K104: 0.00 | M104: =K104+L104 -> 0.00 | N104: 0.00 | P104: =N104+O104 -> 0.00
A105: Итого по КЦ 2550500X298320000000 | H105: =SUM(H103:H104) -> 0.00 | I105: 128,898.00 | J105: 128,898.00 | K105: 0.00 | L105: 0.00 | M105: 0.00 | N105: 0.00 | O105: 0.00 | P105: 0.00
A106: Иные межбюджетные трансферты на ежемесячное денежное вознаграждение за классное руководство педагогическим работникам государственных и муниципальных образовательных организаций, реализующих образовательные программы начального общего образования, образовательные программы основного общего образования, образовательные программы среднего общего образования (КЦ 2553030X298570000000)
A107: Заработная плата | B107: 07 | C107: 02 | D107: 022Ю653030 | E107: 111 | F107: 211000 | G107: 2553030X298570000000 | H107: 2,178,000.00 | J107: =H107+I107 -> 2,178,000.00 | K107: 0.00 | M107: =K107+L107 -> 0.00 | N107: 0.00 | P107: =N107+O107 -> 0.00
A108: Начисления на выплаты по оплате труда | B108: 07 | C108: 02 | D108: 022Ю653030 | E108: 119 | F108: 213000 | G108: 2553030X298570000000 | H108: 657,756.00 | J108: =H108+I108 -> 657,756.00 | K108: 0.00 | M108: =K108+L108 -> 0.00 | N108: 0.00 | P108: =N108+O108 -> 0.00
A109: Итого по КЦ 2553030X298570000000 | H109: =SUM(H107:H108) -> 2,835,756.00 | I109: 0.00 | J109: 2,835,756.00 | K109: 0.00 | L109: 0.00 | M109: 0.00 | N109: 0.00 | O109: 0.00 | P109: 0.00
A110: Субвенции на осуществление государственных полномочий РеспубликиКарелия по представлению предусмотренных пунктом 5 части 1 статьи 9 Закона Республики Карелия от 20 декабря 2013 гоа № 1755_ЗРК "Об образовании" мер социальной поддержки и социального обслуживания (КЦ 254242100000210)
A111: Увеличение стоимости прочих оборотных запасов (материалов) | B111: 07 | C111: 02 | D111: 0220242100 | E111: 244 | F111: 346000 | G111: 24424210000210 | J111: =H111+I111 -> 0.00 | K111: 0.00 | M111: =K111+L111 -> 0.00 | N111: 0.00 | P111: =N111+O111 -> 0.00
A112: Пособия по социальной помощи населению в натуральной форме | B112: 07 | C112: 02 | D112: 0220242100 | E112: 323 | F112: 263000 | G112: 254242100000210 | H112: 152,545.00 | J112: =H112+I112 -> 152,545.00 | K112: 0.00 | M112: =K112+L112 -> 0.00 | N112: 0.00 | P112: =N112+O112 -> 0.00
A113: Увеличение стоимости прочих оборотных запасов (материалов) | B113: 07 | C113: 02 | D113: 0220242100 | E113: 323 | F113: 346000 | G113: 23424210000210 | J113: =H113+I113 -> 0.00 | K113: 0.00 | M113: =K113+L113 -> 0.00 | N113: 0.00 | P113: =N113+O113 -> 0.00
A114: Итого по КЦ 254242100000210 | H114: =SUM(H111:H113) -> 152,545.00 | I114: 0.00 | J114: 152,545.00 | K114: 0.00 | L114: 0.00 | M114: 0.00 | N114: 0.00 | O114: 0.00 | P114: 0.00
A115: Субвенции на осуществление государственных полномочий Республики Карелия по выплате компенсации платы, взимаемой с родителей (законных представителей) за присмотр и уход за детьми, осваивающими образовательные программы дошкольного образования в организа
A116: Пособия по социальной помощи населению в натуральной форме | B116: 10 | C116: 04 | D116: 0220142030 | E116: 323 | F116: 263000 | G116: 23424203000203 | J116: =H116+I116 -> 0.00 | K116: 0.00 | M116: =K116+L116 -> 0.00 | N116: 0.00 | P116: =N116+O116 -> 0.00
A117: Итого по КЦ 23424203000203 | H117: =SUM(H116) -> 0.00 | I117: 0.00 | J117: 0.00 | K117: 0.00 | L117: 0.00 | M117: 0.00 | N117: 0.00 | O117: 0.00 | P117: 0.00
A118: Субсидии на организацию бесплатного горячего питания обучающихся, получающих начальное общее образование в государственных и муниципальных образовательных организациях (КЦ 25-53040-00000-00000)
A119: Другие расходы | B119: 07 | C119: 02 | D119: 02202L3040 | E119: 244 | F119: 226900 | G119: 25-53040-00000-00000 | H119: 800,000.00 | J119: =H119+I119 -> 800,000.00 | K119: 0.00 | M119: =K119+L119 -> 0.00 | N119: 0.00 | P119: =N119+O119 -> 0.00
A120: Итого по КЦ 25-53040-00000-00000 | H120: =SUM(H119:H119) -> 800,000.00 | I120: 0.00 | J120: 800,000.00 | K120: 0.00 | L120: 0.00 | M120: 0.00 | N120: 0.00 | O120: 0.00 | P120: 0.00
A121: Субсидия на реализацию мероприятий государственной программы Республики Карелия "Совершенствование социальной защиты граждан" в целях организации адресной социальной помощи семьям, имеющим детей (КЦ 254343210000316)
A122: Пособия по социальной помощи населению в натуральной форме | B122: 10 | C122: 03 | D122: 0320243210 | E122: 323 | F122: 263000 | G122: 254343210000316 | H122: 175,000.00 | J122: =H122+I122 -> 175,000.00 | K122: 0.00 | M122: =K122+L122 -> 0.00 | N122: 0.00 | P122: =N122+O122 -> 0.00
A123: Итого по КЦ 254343210000316 | H123: =SUM(H122:H122) -> 175,000.00 | I123: =SUM(I122:I122) -> 0.00 | J123: =SUM(J122:J122) -> 175,000.00 | K123: =SUM(K122:K122) -> 0.00 | L123: =SUM(L122:L122) -> 0.00 | M123: 0.00 | N123: 0.00 | O123: 0.00 | P123: 0.00
A124: Пособия по социальной помощи населению в натуральной форме | B124: 10 | C124: 03 | D124: 03202S3210 | E124: 323 | F124: 263000 | G124: 1000 | H124: 75,000.00 | J124: =H124+I124 -> 75,000.00 | K124: 0.00 | M124: 0.00 | N124: 0.00 | P124: 0.00
A125: Итого по КЦ 1000 | H125: =SUM(H124:H124) -> 75,000.00 | I125: 0.00 | J125: 75,000.00 | K125: 0.00 | L125: 0.00 | M125: 0.00 | N125: 0.00 | O125: 0.00 | P125: 0.00
A126: Субсидия местным бюджетам на реализацию мероприятий государственной программы Республики Карелия "Совершенствование социальной защиты граждан" (КЦ 2343432000321)
A127: Увеличение стоимости прочих оборотных запасов (материалов) | B127: 07 | C127: 09 | D127: 0220243210 | E127: 244 | F127: 346000 | G127: 2343432000321 | J127: =H127+I127 -> 0.00 | K127: 0.00 | M127: =K127+L127 -> 0.00 | N127: 0.00 | P127: =N127+O127 -> 0.00
A128: Другие расходы | B128: 07 | C128: 09 | D128: 0220243210 | E128: 244 | F128: 226900 | G128: 2343432000321 | J128: 0.00 | K128: 0.00 | M128: 0.00 | N128: 0.00 | P128: 0.00
A129: Транспортные услуги | B129: 07 | C129: 09 | D129: 0220243210 | E129: 244 | F129: 222000 | G129: 2343432000321 | J129: 0.00 | K129: 0.00 | M129: 0.00 | N129: 0.00 | P129: 0.00
A130: Увеличение стоимости прочих оборотных запасов (материалов) | B130: 07 | C130: 09 | D130: 02202S3210 | E130: 244 | F130: 346000 | G130: 1000 | J130: 0.00 | K130: 0.00 | M130: 0.00 | N130: 0.00 | P130: 0.00
A131: Другие расходы | B131: 07 | C131: 09 | D131: 02202S3210 | E131: 244 | F131: 226900 | G131: 1000 | J131: 0.00 | K131: 0.00 | M131: 0.00 | N131: 0.00 | P131: 0.00
A132: Транспортные услуги | B132: 07 | C132: 09 | D132: 02202S3210 | E132: 244 | F132: 222000 | G132: 1000 | J132: 0.00 | K132: 0.00 | M132: 0.00 | N132: 0.00 | P132: 0.00
A133: Итого по КЦ 2343432000321 | H133: =SUM(H127:H132) -> 0.00 | I133: 0.00 | J133: 0.00 | K133: 0.00 | L133: 0.00 | M133: 0.00 | N133: 0.00 | O133: 0.00 | P133: 0.00
A134: Иные межбюджетные трансферты на компенсацию затрат, связанных с освобождением членов семей постоянно проживающих на территории Республики Карелия граждан, призванных военным комиссариатом Республики Карелия на военную службу по мобилизации, а также гражд
A135: Продукты питания | B135: 07 | C135: 01 | D135: 0220175040 | E135: 244 | F135: 342000 | G135: 234475040П0514 | J135: =H135+I135 -> 0.00 | K135: 0.00 | M135: =K135+L135 -> 0.00 | N135: 0.00 | O135: =M135+N135 -> 0.00 | P135: =N135+O135 -> 0.00
A136: Итого по КЦ 234475040П0514 | H136: =SUM(H135) -> 0.00 | I136: 0.00 | J136: 0.00 | K136: 0.00 | L136: 0.00 | M136: 0.00 | N136: 0.00 | O136: 0.00 | P136: 0.00
G137: Всего | H137: =H82+H97+H114+H117+H120+H123+H125+H109+H101+H105 -> 30,275,472.13 | I137: =I82+I97+I114+I117+I120+I123+I125+I109+I101+I105 -> 128,898.00 | J137: 30,404,370.13 | K137: 4,480,346.67 | L137: 0.00 | M137: 4,480,346.67 | N137: 4,875,002.87 | O137: 0.00 | P137: 4,875,002.87
A141: Директор | F141: И.А. Сидорова
B142: (подпись) | F142: (расшифровка подписи)
A144: Гл.бухгалтер МУ "ЦБ № 1" | F144: И.В. Ананьева
A145: (уполномоченное лицо) | B145: (подпись) | F145: (расшифровка подписи)
A147: Главный экономист ПЭО МУ "ЦБ № 1" | F147: Е.Л. Герасимова
A148: (исполнитель) | B148: (подпись) | F148: (расшифровка подписи)
A150: =L18 -> "12" февраля 2025 г.

Sheet 13.02
P1: Приложение № 2
P2: к Порядку составления, утверждения
P3: и ведения бюджетных смет Администрации
P4: Прионежского муниципального района
P5: и казенных учреждений, находящихся
P6: в ведении Администрации Прионежского
P7: муниципального района
P8: от 09 августа 2022 № 831
L10: УТВЕРЖДАЮ
L11: Глава Администрации Прионежского муниципального района
L12: (наименование должности лица, согласующего бюджетную смету)
L13: Администрация Прионежского муниципального района
L14: (наименование главного распорядителя (распорядителя) бюджетных средств; учреждения)
L16: Г. Н. Шемет
L17: (подпись) | N17: (расшифровка подписи)
L18: "13" февраля 2025 г.
A20: ИЗМЕНЕНИЕ К БЮДЖЕТНОЙ СМЕТЕ НА 2025 ФИНАНСОВЫЙ ГОД И ПЛАНОВЫЙ ПЕРИОД 2026 И 2027 ГОДОВ
B22: №№ 015/00402/020, 015/00402/021 от | H22: =L18 -> "13" февраля 2025 г.
A23: (№, дата, справки об изменении ЛБО) | P23: КОДЫ
O24: Форма по ОКУД | P24: 0501012
O25: Дата | P25: =L18 -> "13" февраля 2025 г.
O26: по ОКПО | P26: 51326281
A27: Получатель бюджетных средств | B27: Муниципальное общеобразовательное учреждение "Средняя общеобразовательная школа № 44"
A28: Распорядитель бюджетных средств | B28: Администрация Прионежского муниципального района Республики Карелия
A29: Главный распорядитель бюджетных средств | B29: Администрация Прионежского муниципального района Республики Карелия | O29: Глава по БК | P29: 015
A30: Наименование бюджета | B30: Бюджет Прионежского муниципального района | O30: по ОКТМО | P30: 86636410
A31: Единица измерения: | B31: руб. | O31: по ОКЕЙ | P31: 383
A33: Наименование показателя (детализация кода бюджетной классификации) | B33: РЗ | C33: ПР | D33: ЦСР | E33: Вид расхода | F33: Детализация | G33: Вид целевых средств | H33: Сумма на текущий 2025 год | K33: Сумма на первый год планового периода | N33: Сумма на второй год планового периода
H34: на 12.02.2025 г | I34: изменения(+;-) | J34: Итого | K34: =H34 -> на 12.02.2025 г | L34: изменения(+;-) | M34: Итого | N34: =H34 -> на 12.02.2025 г | O34: изменения(+;-) | P34: Итого
A35: 1 | B35: =SUM(A35+1) -> 2 | C35: 3 | D35: 4 | E35: 5 | F35: 6 | G35: 7 | H35: 8 | I35: 9 | J35: 10 | K35: 11 | L35: 12 | M35: 13 | N35: 14 | O35: 15 | P35: 16
A36: Средства местного бюджета (КЦ 1000) 0702
A37: Заработная плата | B37: 07 | C37: 02 | D37: 0220270210 | E37: 111 | F37: 211000 | G37: 1000 | H37: 451,164.48 | J37: =H37+I37 -> 451,164.48 | K37: 451,164.48 | M37: =K37+L37 -> 451,164.48 | N37: 451,164.48 | P37: =N37+O37 -> 451,164.48
A38: Социальные пособия и компенсации персоналу в денежной форме (пособие за первые три дня временной нетрудоспособности за счет средств работодателя) | B38: 07 | C38: 02 | D38: 0220270210 | E38: 111 | F38: 266100 | G38: 1000 | H38: 0.00 | J38: 0.00 | K38: 0.00 | M38: 0.00 | N38: 0.00 | P38: 0.00
A39: Расходы по оплате проезда к месту отпуска и обратно отдельным категориям лиц (для лиц, работающих в районах Крайнего Севера и приравненных к ним местностям, и членов их семей) | B39: 07 | C39: 02 | D39: 0220270210 | E39: 112 | F39: 214000 | G39: 1000 | H39: 30,000.00 | J39: 30,000.00 | K39: 20,000.00 | M39: 20,000.00 | N39: 20,000.00 | P39: 20,000.00
A40: Начисления на выплаты по оплате труда | B40: 07 | C40: 02 | D40: 0220270210 | E40: 119 | F40: 213000 | G40: 1000 | H40: 136,251.67 | J40: 136,251.67 | K40: 136,261.67 | M40: 136,261.67 | N40: 136,251.67 | P40: 136,251.67
A41: Услуги связи (телефон) | B41: 07 | C41: 02 | D41: 0220270210 | E41: 244 | F41: 221100 | G41: 1000 | H41: 7,416.00 | I41: -812.37 | J41: 6,603.63 | K41: 9,270.00 | M41: 9,270.00 | N41: 11,587.50 | P41: 11,587.50
A42: Услуги связи (почта) | B42: 07 | C42: 02 | D42: 0220270210 | E42: 244 | F42: 221300 | G42: 1000 | H42: 0.00 | J42: 0.00 | K42: 0.00 | M42: 0.00 | N42: 0.00 | P42: 0.00
A43: Транспортные услуги | B43: 07 | C43: 02 | D43: 0220270210 | E43: 244 | F43: 222000 | G43: 1000 | H43: 46,442.50 | J43: =H43+I43 -> 46,442.50 | K43: 58,053.13 | M43: =K43+L43 -> 58,053.13 | N43: 67,566.41 | P43: =N43+O43 -> 67,566.41
A44: Холодное водоснабжение | B44: 07 | C44: 02 | D44: 0220270210 | E44: 244 | F44: 223300 | G44: 1000 | H44: 0.00 | J44: 0.00 | K44: 0.00 | M44: 0.00 | N44: 0.00 | P44: 0.00
A45: Водоотведение | B45: 07 | C45: 02 | D45: 0220270210 | E45: 244 | F45: 223400 | G45: 1000 | H45: 0.00 | J45: 0.00 | K45: 0.00 | M45: 0.00 | N45: 0.00 | P45: 0.00
A46: Обращение с твердыми коммунальными отходами (вывоз ТБО) | B46: 07 | C46: 02 | D46: 0220270210 | E46: 244 | F46: 223500 | G46: 1000 | H46: 36,117.96 | J46: 36,117.96 | K46: 39,466.11 | M46: 39,466.11 | N46: 41,301.62 | P46: 41,301.62
A47: Техническое обслуживание внутренних сетей отопления и горячего водоснабжения | B47: 07 | C47: 02 | D47: 0220270210 | E47: 244 | F47: 225200 | G47: 1000 | H47: 0.00 | J47: 0.00 | K47: 0.00 | M47: 0.00 | N47: 0.00 | P47: 0.00
A48: Санитарная и противопожарная (дезинфекция, дезинсекция, дератизация, газация, огнезащитная) обработка помещений | B48: 07 | C48: 02 | D48: 0220270210 | E48: 244 | F48: 225600 | G48: 1000 | H48: 39,096.90 | J48: 39,096.90 | K48: 48,871.13 | M48: 48,871.13 | N48: 61,088.91 | P48: 61,088.91
A49: Содержание, обслуживание помещений и сетей инженерно-технического обеспечения | B49: 07 | C49: 02 | D49: 0220270210 | E49: 244 | F49: 225700 | G49: 1000 | H49: 196,537.10 | J49: 196,537.10 | K49: 245,671.38 | M49: 245,671.38 | N49: 307,089.22 | P49: 307,089.22
A50: Текущий ремонт помещений и сетей инженерно-технического обеспечения | B50: 07 | C50: 02 | D50: 0220270210 | E50: 244 | F50: 225800 | G50: 1000 | H50: 46,750.00 | J50: 46,750.00 | K50: 0.00 | M50: 0.00 | N50: 0.00 | P50: 0.00
A51: Другие расходы | B51: 07 | C51: 02 | D51: 0220270210 | E51: 244 | F51: 225900 | G51: 1000 | H51: 93,625.00 | J51: 93,625.00 | K51: 86,875.00 | M51: 86,875.00 | N51: 102,921.88 | P51: 102,921.88
A52: Аттестация | B52: 07 | C52: 02 | D52: 0220270210 | E52: 244 | F52: 226200 | G52: 1000 | H52: 0.00 | J52: =H52+I52 -> 0.00 | K52: 0.00 | M52: =K52+L52 -> 0.00 | N52: 0.00 | P52: =N52+O52 -> 0.00
A53: Охрана ведомственная, вневедомственная, пожарная | B53: 07 | C53: 02 | D53: 0220270210 | E53: 244 | F53: 226400 | G53: 1000 | H53: 73,072.68 | J53: 73,072.68 | K53: 83,840.84 | M53: 83,840.84 | N53: 97,301.05 | P53: 97,301.05
A54: Мероприятия по переподготовке и повышению квалификации кадров | B54: 07 | C54: 02 | D54: 0220270210 | E54: 244 | F54: 226700 | G54: 1000 | H54: 0.00 | J54: 0.00 | K54: 0.00 | M54: 0.00 | N54: 0.00 | P54: 0.00
A55: Медицинский осмотр работников учреждения, за исключением водителей трансртных средств | B55: 07 | C55: 02 | D55: 0220270210 | E55: 244 | F55: 226800 | G55: 1000 | H55: 164,784.00 | J55: 164,784.00 | K55: 214,562.50 | M55: 214,562.50 | N55: 268,203.13 | P55: 268,203.13
A56: Другие расходы | B56: 07 | C56: 02 | D56: 0220270210 | E56: 244 | F56: 226900 | G56: 1000 | H56: 100,000.00 | J56: 100,000.00 | K56: 100,000.00 | M56: 100,000.00 | N56: 100,000.00 | P56: 100,000.00
A57: Обязательное страхование автогражданской ответственности | B57: 07 | C57: 02 | D57: 0220270210 | E57: 244 | F57: 227200 | G57: 1000 | H57: 0.00 | J57: =H57+I57 -> 0.00 | K57: 0.00 | M57: =K57+L57 -> 0.00 | N57: 0.00 | P57: =N57+O57 -> 0.00
A58: Расходы на оплату услуг по страхованию здоровья | B58: 07 | C58: 02 | D58: 0220270210 | E58: 244 | F58: 227300 | G58: 1000 | H58: 0.00 | J58: =H58+I58 -> 0.00 | K58: 0.00 | M58: =K58+L58 -> 0.00 | N58: 0.00 | P58: =N58+O58 -> 0.00
A59: Приобретение предметов длительного пользования (оборудование, мебель, компьютерная техника и т.п) стоимостью свыше 3000 рублей | B59: 07 | C59: 02 | D59: 0220270210 | E59: 244 | F59: 310100 | G59: 1000 | H59: 0.00 | J59: 0.00 | K59: 0.00 | M59: 0.00 | N59: 0.00 | P59: 0.00
A60: Другие расходы стоимостью до 3000,00 рублей | B60: 07 | C60: 02 | D60: 0220270210 | E60: 244 | F60: 310900 | G60: 1000 | H60: 0.00 | J60: 0.00 | K60: 0.00 | M60: 0.00 | N60: 0.00 | P60: 0.00
A61: Увеличение стоимости лекарственных препаратов и материалов, применяемых в медицинских целях | B61: 07 | C61: 02 | D61: 0220270210 | E61: 244 | F61: 341000 | G61: 1000 | H61: 9,900.00 | J61: =H61+I61 -> 9,900.00 | K61: 12,375.00 | M61: =K61+L61 -> 12,375.00 | N61: 15,468.75 | P61: =N61+O61 -> 15,468.75
A62: Приобретение строительных материалов | B62: 07 | C62: 02 | D62: 0220270210 | E62: 244 | F62: 344000 | G62: 1000 | H62: 20,000.00 | J62: 20,000.00 | K62: 20,000.00 | M62: 20,000.00 | N62: 20,000.00 | P62: 20,000.00
A63: Мягкий инвентарь | B63: 07 | C63: 02 | D63: 0220270210 | E63: 244 | F63: 345000 | G63: 1000 | H63: 10,000.00 | J63: =H63+I63 -> 10,000.00 | K63: 10,000.00 | M63: =K63+L63 -> 10,000.00 | N63: 10,000.00 | P63: =N63+O63 -> 10,000.00
A64: Увеличение стоимости прочих оборотных запасов (материалов) | B64: 07 | C64: 02 | D64: 0220270210 | E64: 244 | F64: 346000 | G64: 1000 | H64: 80,000.00 | J64: 80,000.00 | K64: 80,000.00 | M64: 80,000.00 | N64: 80,000.00 | P64: 80,000.00
A65: Увеличение стоимости прочих оборотных запасов однократного применения | B65: 07 | C65: 02 | D65: 0220270210 | E65: 244 | F65: 349100 | G65: 1000 | H65: 0.00 | J65: 0.00 | K65: 0.00 | M65: 0.00 | N65: 0.00 | P65: 0.00
A66: Отопление, горячее водоснабжение и газоснабжение | B66: 07 | C66: 02 | D66: 0220270210 | E66: 247 | F66: 223100 | G66: 1000 | H66: 1,670,000.00 | J66: 1,670,000.00 | K66: 2,040,114.43 | M66: 2,040,114.43 | N66: 2,197,930.77 | P66: 2,197,930.77
A67: Электроэнергия | B67: 07 | C67: 02 | D67: 0220270210 | E67: 247 | F67: 223200 | G67: 1000 | H67: 580,000.00 | J67: 580,000.00 | K67: 684,490.00 | M67: 684,490.00 | N67: 740,100.00 | P67: 740,100.00
A68: Холодное водоснабжение | B68: 07 | C68: 02 | D68: 0220270210 | E68: 247 | F68: 223300 | G68: 1000 | H68: 59,330.00 | J68: 59,330.00 | K68: 64,908.00 | M68: 64,908.00 | N68: 69,775.59 | P68: 69,775.59
A69: Водоотведение | B69: 07 | C69: 02 | D69: 0220270210 | E69: 247 | F69: 223400 | G69: 1000 | H69: 34,472.25 | J69: 34,472.25 | K69: 37,710.00 | M69: 37,710.00 | N69: 40,538.89 | P69: 40,538.89
A70: Пособия по социальной помощи населению в натуральной форме | B70: 07 | C70: 02 | D70: 0220270210 | E70: 323 | F70: 263000 | G70: 1000 | H70: 0.00 | J70: =H70+I70 -> 0.00 | K70: 0.00 | M70: 0.00 | N70: 0.00 | P70: 0.00
A71: Налог на имущство | B71: 07 | C71: 02 | D71: 0220270210 | E71: 851 | F71: 291200 | G71: 1000 | H71: 9,252.00 | J71: 9,252.00 | K71: 9,252.00 | M71: 9,252.00 | N71: 9,252.00 | P71: 9,252.00
A72: Земельный налог, в том числе в период строительства объекта | B72: 07 | C72: 02 | D72: 0220270210 | E72: 851 | F72: 291300 | G72: 1000 | H72: 27,461.00 | J72: 27,461.00 | K72: 27,461.00 | M72: 27,461.00 | N72: 27,461.00 | P72: 27,461.00
A73: Штрафы за нарушение законодательства о налогах и сборах, законодательства о страховых взносах | B73: 07 | C73: 02 | D73: 0220270210 | E73: 853 | F73: 292000 | G73: 1000 | J73: =H73+I73 -> 0.00 | M73: =K73+L73 -> 0.00 | P73: =N73+O73 -> 0.00
A74: Иные выплаты текущего характера физическим лицам (возмещение убытков, вреда и судебных издержек) | B74: 07 | C74: 02 | D74: 0220270210 | E74: 853 | F74: 296100 | G74: 1000 | H74: 0.00 | I74: 812.37 | J74: =H74+I74 -> 812.37 | K74: 0.00 | M74: =K74+L74 -> 0.00 | N74: 0.00 | P74: =N74+O74 -> 0.00
A75: Транспортный налог | B75: 07 | C75: 02 | D75: 0220270210 | E75: 852 | F75: 291400 | G75: 1000 | J75: 0.00 | M75: 0.00 | P75: 0.00
A76: Штрафы за нарушение законодательства о закупках и нарушенияе условий контракта (договоров) | B76: 07 | C76: 02 | D76: 0220270210 | E76: 831 | F76: 293000 | G76: 1000 | J76: 0.00 | M76: 0.00 | P76: 0.00
A77: Другие экономические санкции | B77: 07 | C77: 02 | D77: 0220270210 | E77: 853 | F77: 295000 | G77: 1000 | J77: 0.00 | M77: 0.00 | P77: 0.00
A78: Иные выплаты текущего характера организациям (возмещение убытков, вред и судебных издержек) | B78: 07 | C78: 02 | D78: 0220270210 | E78: 851 | F78: 297100 | G78: 1000 | J78: 0.00 | M78: 0.00 | P78: 0.00
A79: Другие расходы | B79: 07 | C79: 02 | D79: 0400072910 | E79: 244 | F79: 226900 | G79: 1000 | J79: 0.00 | M79: 0.00 | P79: 0.00
A80: Заработная плата | B80: 07 | C80: 02 | D80: 0920070260 | E80: 111 | F80: 211000 | G80: 1000 | J80: 0.00 | M80: 0.00 | P80: 0.00
A81: Начисления на выплаты по оплате труда | B81: 07 | C81: 02 | D81: 0920070260 | E81: 119 | F81: 213000 | G81: 1000 | J81: 0.00 | M81: 0.00 | P81: 0.00
A82: Итого по КЦ 1000 | H82: =SUM(H37:H81) -> 3,921,673.54 | I82: 0.00 | J82: 3,921,673.54 | K82: 4,480,346.67 | L82: 0.00 | M82: 4,480,346.67 | N82: 4,875,002.87 | O82: 0.00 | P82: 4,875,002.87
A83: Субвенция на обеспечение государственных гарантий реализации прав на получение общедоступного и бесплатного дошкольного образования в муниципальных дошкольных образовательных организациях, общедоступного и бесплатного дошкольного, начального общего, основного общего, среднего общего образования в муниципальных общеобразовательных организациях, обеспечение дополнительного образования детей в муниципальных общеобразовательных организациях (КЦ 254242190000219)
A84: Заработная плата | B84: 07 | C84: 02 | D84: 0220242190 | E84: 111 | F84: 211000 | G84: 254242190000219 | H84: 17,927,463.66 | J84: =H84+I84 -> 17,927,463.66 | K84: 0.00 | M84: =K84+L84 -> 0.00 | N84: 0.00 | P84: =N84+O84 -> 0.00
A85: Социальные пособия и компенсации персоналу в денежной форме (пособие за первые три дня временной нетрудоспособности за счет средств работодателя) | B85: 07 | C85: 02 | D85: 0220242190 | E85: 111 | F85: 266100 | G85: 254242190000219 | H85: 0.00 | J85: 0.00 | K85: 0.00 | M85: 0.00 | N85: 0.00 | P85: 0.00
A86: Начисления на выплаты по оплате труда | B86: 07 | C86: 02 | D86: 0220242190 | E86: 119 | F86: 213000 | G86: 254242190000219 | H86: 4,060,570.52 | J86: 4,060,570.52 | K86: 0.00 | M86: 0.00 | N86: 0.00 | P86: 0.00
A87: Услуги связи (интернет) | B87: 07 | C87: 02 | D87: 0220242190 | E87: 244 | F87: 221200 | G87: 254242190000219 | H87: 0.00 | J87: =H87+I87 -> 0.00 | K87: 0.00 | M87: =K87+L87 -> 0.00 | N87: 0.00 | P87: =N87+O87 -> 0.00
A88: Транспортные услуги | B88: 07 | C88: 02 | D88: 0220242190 | E88: 244 | F88: 222000 | G88: 254242190000219 | J88: 0.00 | K88: 0.00 | M88: 0.00 | N88: 0.00 | P88: 0.00
A89: Другие расходы | B89: 07 | C89: 02 | D89: 0220242190 | E89: 244 | F89: 226900 | G89: 254242190000219 | J89: =H89+I89 -> 0.00 | K89: 0.00 | M89: =K89+L89 -> 0.00 | N89: 0.00 | P89: =N89+O89 -> 0.00
A90: Приобретение предметов длительного пользования (оборудование, мебель, компьютерная техника и т.п.) стоимостью свыше 3000,00 руб. | B90: 07 | C90: 02 | D90: 0220242190 | E90: 244 | F90: 310100 | G90: 254242190000219 | J90: =H90+I90 -> 0.00 | K90: 0.00 | M90: =K90+L90 -> 0.00 | N90: 0.00 | P90: =N90+O90 -> 0.00
A91: Комплектование библиотечного фонда | B91: 07 | C91: 02 | D91: 0220242190 | E91: 244 | F91: 310200 | G91: 254242190000219 | J91: 0.00 | K91: 0.00 | M91: 0.00 | N91: 0.00 | P91: 0.00
A92: Другие расходы стоимостью до 3000,00 рублей | B92: 07 | C92: 02 | D92: 0220242190 | E92: 244 | F92: 310900 | G92: 254242190000219 | J92: 0.00 | K92: 0.00 | M92: 0.00 | N92: 0.00 | P92: 0.00
A93: Мягкий инвентарь | B93: 07 | C93: 02 | D93: 0220242190 | E93: 244 | F93: 345000 | G93: 254242190000219 | J93: 0.00 | M93: 0.00 | P93: 0.00
A94: Увеличение стоимости прочих оборотных запасов (материалов) | B94: 07 | C94: 02 | D94: 0220242190 | E94: 244 | F94: 346000 | G94: 254242190000219 | J94: 0.00 | K94: 0.00 | M94: 0.00 | N94: 0.00 | P94: 0.00
A95: Увеличение стоимости прочих материальных запасов однократного применения | B95: 07 | C95: 02 | D95: 0220242190 | E95: 244 | F95: 349100 | G95: 254242190000219 | J95: 0.00 | K95: 0.00 | M95: 0.00 | N95: 0.00 | P95: 0.00
A96: Мероприятия по переподготовке и повышению квалификации кадров | B96: 07 | C96: 05 | D96: 0220242190 | E96: 244 | F96: 226700 | G96: 254242190000219 | J96: 0.00 | K96: 0.00 | M96: 0.00 | N96: 0.00 | P96: 0.00
A97: Итого по КЦ 254242190000219 | H97: =SUM(H84:H96) -> 21,988,034.18 | I97: 0.00 | J97: 21,988,034.18 | K97: 0.00 | L97: 0.00 | M97: 0.00 | N97: 0.00 | O97: 0.00 | P97: 0.00
A98: Субсидия на проведение мероприятий по обеспечению деятельности советников директора по воспитанию и взаимодействию с детскими общественными объединениями в общеобразовательных организациях (КЦ 25-51790-00000-00000)
A99: Заработная плата | B99: 07 | C99: 02 | D99: 022Ю651790 | E99: 111 | F99: 211000 | G99: 25-51790-00000-00000 | H99: 251,508.00 | J99: =H99+I99 -> 251,508.00 | K99: 0.00 | M99: =K99+L99 -> 0.00 | N99: 0.00 | P99: =N99+O99 -> 0.00
A100: Начисления на выплаты по оплате труда | B100: 07 | C100: 02 | D100: 022Ю651790 | E100: 119 | F100: 213000 | G100: 25-51790-00000-00000 | H100: 75,955.41 | J100: =H100+I100 -> 75,955.41 | K100: 0.00 | M100: =K100+L100 -> 0.00 | N100: 0.00 | P100: =N100+O100 -> 0.00
A101: Итого по КЦ 25-51790-00000-00000 | H101: =SUM(H99:H100) -> 327,463.41 | I101: 0.00 | J101: 327,463.41 | K101: 0.00 | L101: 0.00 | M101: 0.00 | N101: 0.00 | O101: 0.00 | P101: 0.00
A102: Иные межбюджетные трансферты на обеспечение выплат ежемесячного денежного вознаграждения советникам директоров по воспитанию и взаимодействию с детскими общественными объединениями государственных общеобразовательных организаций, профессиональных образовательных организаций, муниципальных общеобразовательных организаций и профессиональных образовательных организаций (КЦ 2550500X298320000000)
A103: Заработная плата | B103: 07 | C103: 02 | D103: 022Ю650500 | E103: 111 | F103: 211000 | G103: 2550500X298320000000 | H103: 99,000.00 | J103: =H103+I103 -> 99,000.00 | K103: 0.00 | M103: =K103+L103 -> 0.00 | N103: 0.00 | P103: =N103+O103 -> 0.00
A104: Начисления на выплаты по оплате труда | B104: 07 | C104: 02 | D104: 022Ю650500 | E104: 119 | F104: 213000 | G104: 2550500X298320000000 | H104: 29,898.00 | J104: =H104+I104 -> 29,898.00 | K104: 0.00 | M104: =K104+L104 -> 0.00 | N104: 0.00 | P104: =N104+O104 -> 0.00
A105: Итого по КЦ 2550500X298320000000 | H105: =SUM(H103:H104) -> 128,898.00 | I105: 0.00 | J105: 128,898.00 | K105: 0.00 | L105: 0.00 | M105: 0.00 | N105: 0.00 | O105: 0.00 | P105: 0.00
A106: Иные межбюджетные трансферты на ежемесячное денежное вознаграждение за классное руководство педагогическим работникам государственных и муниципальных образовательных организаций, реализующих образовательные программы начального общего образования, образовательные программы основного общего образования, образовательные программы среднего общего образования (КЦ 2553030X298570000000)
A107: Заработная плата | B107: 07 | C107: 02 | D107: 022Ю653030 | E107: 111 | F107: 211000 | G107: 2553030X298570000000 | H107: 2,178,000.00 | J107: =H107+I107 -> 2,178,000.00 | K107: 0.00 | M107: =K107+L107 -> 0.00 | N107: 0.00 | P107: =N107+O107 -> 0.00
A108: Начисления на выплаты по оплате труда | B108: 07 | C108: 02 | D108: 022Ю653030 | E108: 119 | F108: 213000 | G108: 2553030X298570000000 | H108: 657,756.00 | J108: =H108+I108 -> 657,756.00 | K108: 0.00 | M108: =K108+L108 -> 0.00 | N108: 0.00 | P108: =N108+O108 -> 0.00
A109: Итого по КЦ 2553030X298570000000 | H109: =SUM(H107:H108) -> 2,835,756.00 | I109: 0.00 | J109: 2,835,756.00 | K109: 0.00 | L109: 0.00 | M109: 0.00 | N109: 0.00 | O109: 0.00 | P109: 0.00
A110: Субвенции на осуществление государственных полномочий РеспубликиКарелия по представлению предусмотренных пунктом 5 части 1 статьи 9 Закона Республики Карелия от 20 декабря 2013 гоа № 1755_ЗРК "Об образовании" мер социальной поддержки и социального обслуживания (КЦ 254242100000210)
A111: Увеличение стоимости прочих оборотных запасов (материалов) | B111: 07 | C111: 02 | D111: 0220242100 | E111: 244 | F111: 346000 | G111: 24424210000210 | J111: =H111+I111 -> 0.00 | K111: 0.00 | M111: =K111+L111 -> 0.00 | N111: 0.00 | P111: =N111+O111 -> 0.00
A112: Пособия по социальной помощи населению в натуральной форме | B112: 07 | C112: 02 | D112: 0220242100 | E112: 323 | F112: 263000 | G112: 254242100000210 | H112: 152,545.00 | J112: =H112+I112 -> 152,545.00 | K112: 0.00 | M112: =K112+L112 -> 0.00 | N112: 0.00 | P112: =N112+O112 -> 0.00
A113: Увеличение стоимости прочих оборотных запасов (материалов) | B113: 07 | C113: 02 | D113: 0220242100 | E113: 323 | F113: 346000 | G113: 23424210000210 | J113: =H113+I113 -> 0.00 | K113: 0.00 | M113: =K113+L113 -> 0.00 | N113: 0.00 | P113: =N113+O113 -> 0.00
A114: Итого по КЦ 254242100000210 | H114: =SUM(H111:H113) -> 152,545.00 | I114: 0.00 | J114: 152,545.00 | K114: 0.00 | L114: 0.00 | M114: 0.00 | N114: 0.00 | O114: 0.00 | P114: 0.00
A115: Субвенции на осуществление государственных полномочий Республики Карелия по выплате компенсации платы, взимаемой с родителей (законных представителей) за присмотр и уход за детьми, осваивающими образовательные программы дошкольного образования в организа
A116: Пособия по социальной помощи населению в натуральной форме | B116: 10 | C116: 04 | D116: 0220142030 | E116: 323 | F116: 263000 | G116: 23424203000203 | J116: =H116+I116 -> 0.00 | K116: 0.00 | M116: =K116+L116 -> 0.00 | N116: 0.00 | P116: =N116+O116 -> 0.00
A117: Итого по КЦ 23424203000203 | H117: =SUM(H116) -> 0.00 | I117: 0.00 | J117: 0.00 | K117: 0.00 | L117: 0.00 | M117: 0.00 | N117: 0.00 | O117: 0.00 | P117: 0.00
A118: Субсидии на организацию бесплатного горячего питания обучающихся, получающих начальное общее образование в государственных и муниципальных образовательных организациях (КЦ 25-53040-00000-00000)
A119: Другие расходы | B119: 07 | C119: 02 | D119: 02202L3040 | E119: 244 | F119: 226900 | G119: 25-53040-00000-00000 | H119: 800,000.00 | J119: =H119+I119 -> 800,000.00 | K119: 0.00 | M119: =K119+L119 -> 0.00 | N119: 0.00 | P119: =N119+O119 -> 0.00
A120: Итого по КЦ 25-53040-00000-00000 | H120: =SUM(H119:H119) -> 800,000.00 | I120: 0.00 | J120: 800,000.00 | K120: 0.00 | L120: 0.00 | M120: 0.00 | N120: 0.00 | O120: 0.00 | P120: 0.00
A121: Субсидия на реализацию мероприятий государственной программы Республики Карелия "Совершенствование социальной защиты граждан" в целях организации адресной социальной помощи семьям, имеющим детей (КЦ 254343210000316)
A122: Пособия по социальной помощи населению в натуральной форме | B122: 10 | C122: 03 | D122: 0320243210 | E122: 323 | F122: 263000 | G122: 254343210000316 | H122: 175,000.00 | J122: =H122+I122 -> 175,000.00 | K122: 0.00 | M122: =K122+L122 -> 0.00 | N122: 0.00 | P122: =N122+O122 -> 0.00
A123: Итого по КЦ 254343210000316 | H123: =SUM(H122:H122) -> 175,000.00 | I123: =SUM(I122:I122) -> 0.00 | J123: =SUM(J122:J122) -> 175,000.00 | K123: =SUM(K122:K122) -> 0.00 | L123: =SUM(L122:L122) -> 0.00 | M123: 0.00 | N123: 0.00 | O123: 0.00 | P123: 0.00
A124: Пособия по социальной помощи населению в натуральной форме | B124: 10 | C124: 03 | D124: 03202S3210 | E124: 323 | F124: 263000 | G124: 1000 | H124: 75,000.00 | J124: =H124+I124 -> 75,000.00 | K124: 0.00 | M124: 0.00 | N124: 0.00 | P124: 0.00
A125: Итого по КЦ 1000 | H125: =SUM(H124:H124) -> 75,000.00 | I125: 0.00 | J125: 75,000.00 | K125: 0.00 | L125: 0.00 | M125: 0.00 | N125: 0.00 | O125: 0.00 | P125: 0.00
A126: Субсидия местным бюджетам на реализацию мероприятий государственной программы Республики Карелия "Совершенствование социальной защиты граждан" (КЦ 2343432000321)
A127: Увеличение стоимости прочих оборотных запасов (материалов) | B127: 07 | C127: 09 | D127: 0220243210 | E127: 244 | F127: 346000 | G127: 2343432000321 | J127: =H127+I127 -> 0.00 | K127: 0.00 | M127: =K127+L127 -> 0.00 | N127: 0.00 | P127: =N127+O127 -> 0.00
A128: Другие расходы | B128: 07 | C128: 09 | D128: 0220243210 | E128: 244 | F128: 226900 | G128: 2343432000321 | J128: 0.00 | K128: 0.00 | M128: 0.00 | N128: 0.00 | P128: 0.00
A129: Транспортные услуги | B129: 07 | C129: 09 | D129: 0220243210 | E129: 244 | F129: 222000 | G129: 2343432000321 | J129: 0.00 | K129: 0.00 | M129: 0.00 | N129: 0.00 | P129: 0.00
A130: Увеличение стоимости прочих оборотных запасов (материалов) | B130: 07 | C130: 09 | D130: 02202S3210 | E130: 244 | F130: 346000 | G130: 1000 | J130: 0.00 | K130: 0.00 | M130: 0.00 | N130: 0.00 | P130: 0.00
A131: Другие расходы | B131: 07 | C131: 09 | D131: 02202S3210 | E131: 244 | F131: 226900 | G131: 1000 | J131: 0.00 | K131: 0.00 | M131: 0.00 | N131: 0.00 | P131: 0.00
A132: Транспортные услуги | B132: 07 | C132: 09 | D132: 02202S3210 | E132: 244 | F132: 222000 | G132: 1000 | J132: 0.00 | K132: 0.00 | M132: 0.00 | N132: 0.00 | P132: 0.00
A133: Итого по КЦ 2343432000321 | H133: =SUM(H127:H132) -> 0.00 | I133: 0.00 | J133: 0.00 | K133: 0.00 | L133: 0.00 | M133: 0.00 | N133: 0.00 | O133: 0.00 | P133: 0.00
A134: Иные межбюджетные трансферты на компенсацию затрат, связанных с освобождением членов семей постоянно проживающих на территории Республики Карелия граждан, призванных военным комиссариатом Республики Карелия на военную службу по мобилизации, а также гражд
A135: Продукты питания | B135: 07 | C135: 01 | D135: 0220175040 | E135: 244 | F135: 342000 | G135: 234475040П0514 | J135: =H135+I135 -> 0.00 | K135: 0.00 | M135: =K135+L135 -> 0.00 | N135: 0.00 | O135: =M135+N135 -> 0.00 | P135: =N135+O135 -> 0.00
A136: Итого по КЦ 234475040П0514 | H136: =SUM(H135) -> 0.00 | I136: 0.00 | J136: 0.00 | K136: 0.00 | L136: 0.00 | M136: 0.00 | N136: 0.00 | O136: 0.00 | P136: 0.00
G137: Всего | H137: =H82+H97+H114+H117+H120+H123+H125+H109+H101+H105 -> 30,404,370.13 | I137: =I82+I97+I114+I117+I120+I123+I125+I109+I101+I105 -> 0.00 | J137: 30,404,370.13 | K137: 4,480,346.67 | L137: 0.00 | M137: 4,480,346.67 | N137: 4,875,002.87 | O137: 0.00 | P137: 4,875,002.87
A141: Директор | F141: И.А. Сидорова
B142: (подпись) | F142: (расшифровка подписи)
A144: Гл.бухгалтер МУ "ЦБ № 1" | F144: И.В. Ананьева
A145: (уполномоченное лицо) | B145: (подпись) | F145: (расшифровка подписи)
A147: Главный экономист ПЭО МУ "ЦБ № 1" | F147: Е.Л. Герасимова
A148: (исполнитель) | B148: (подпись) | F148: (расшифровка подписи)
A150: =L18 -> "13" февраля 2025 г.

Sheet 18.02
P1: Приложение № 2
P2: к Порядку составления, утверждения
P3: и ведения бюджетных смет Администрации
P4: Прионежского муниципального района
P5: и казенных учреждений, находящихся
P6: в ведении Администрации Прионежского
P7: муниципального района
P8: от 09 августа 2022 № 831
L10: УТВЕРЖДАЮ
L11: Глава Администрации Прионежского муниципального района
L12: (наименование должности лица, согласующего бюджетную смету)
L13: Администрация Прионежского муниципального района
L14: (наименование главного распорядителя (распорядителя) бюджетных средств; учреждения)
L16: Г. Н. Шемет
L17: (подпись) | N17: (расшифровка подписи)
L18: "18" февраля 2025 г.
A20: ИЗМЕНЕНИЕ К БЮДЖЕТНОЙ СМЕТЕ НА 2025 ФИНАНСОВЫЙ ГОД И ПЛАНОВЫЙ ПЕРИОД 2026 И 2027 ГОДОВ
B22: № 015/00402/024 от | H22: =L18 -> "18" февраля 2025 г.
A23: (№, дата, справки об изменении ЛБО) | P23: КОДЫ
O24: Форма по ОКУД | P24: 0501012
O25: Дата | P25: =L18 -> "18" февраля 2025 г.
O26: по ОКПО | P26: 51326281
A27: Получатель бюджетных средств | B27: Муниципальное общеобразовательное учреждение "Средняя общеобразовательная школа № 44"
A28: Распорядитель бюджетных средств | B28: Администрация Прионежского муниципального района Республики Карелия
A29: Главный распорядитель бюджетных средств | B29: Администрация Прионежского муниципального района Республики Карелия | O29: Глава по БК | P29: 015
A30: Наименование бюджета | B30: Бюджет Прионежского муниципального района | O30: по ОКТМО | P30: 86636410
A31: Единица измерения: | B31: руб. | O31: по ОКЕЙ | P31: 383
A33: Наименование показателя (детализация кода бюджетной классификации) | B33: РЗ | C33: ПР | D33: ЦСР | E33: Вид расхода | F33: Детализация | G33: Вид целевых средств | H33: Сумма на текущий 2025 год | K33: Сумма на первый год планового периода | N33: Сумма на второй год планового периода
H34: на 13.02.2025 г | I34: изменения(+;-) | J34: Итого | K34: =H34 -> на 13.02.2025 г | L34: изменения(+;-) | M34: Итого | N34: =H34 -> на 13.02.2025 г | O34: изменения(+;-) | P34: Итого
A35: 1 | B35: =SUM(A35+1) -> 2 | C35: 3 | D35: 4 | E35: 5 | F35: 6 | G35: 7 | H35: 8 | I35: 9 | J35: 10 | K35: 11 | L35: 12 | M35: 13 | N35: 14 | O35: 15 | P35: 16
A36: Средства местного бюджета (КЦ 1000) 0702
A37: Заработная плата | B37: 07 | C37: 02 | D37: 0220270210 | E37: 111 | F37: 211000 | G37: 1000 | H37: 451,164.48 | J37: =H37+I37 -> 451,164.48 | K37: 451,164.48 | M37: =K37+L37 -> 451,164.48 | N37: 451,164.48 | P37: =N37+O37 -> 451,164.48
A38: Социальные пособия и компенсации персоналу в денежной форме (пособие за первые три дня временной нетрудоспособности за счет средств работодателя) | B38: 07 | C38: 02 | D38: 0220270210 | E38: 111 | F38: 266100 | G38: 1000 | H38: 0.00 | J38: 0.00 | K38: 0.00 | M38: 0.00 | N38: 0.00 | P38: 0.00
A39: Расходы по оплате проезда к месту отпуска и обратно отдельным категориям лиц (для лиц, работающих в районах Крайнего Севера и приравненных к ним местностям, и членов их семей) | B39: 07 | C39: 02 | D39: 0220270210 | E39: 112 | F39: 214000 | G39: 1000 | H39: 30,000.00 | J39: 30,000.00 | K39: 20,000.00 | M39: 20,000.00 | N39: 20,000.00 | P39: 20,000.00
A40: Начисления на выплаты по оплате труда | B40: 07 | C40: 02 | D40: 0220270210 | E40: 119 | F40: 213000 | G40: 1000 | H40: 136,251.67 | J40: 136,251.67 | K40: 136,261.67 | M40: 136,261.67 | N40: 136,251.67 | P40: 136,251.67
A41: Услуги связи (телефон) | B41: 07 | C41: 02 | D41: 0220270210 | E41: 244 | F41: 221100 | G41: 1000 | H41: 6,603.63 | J41: 6,603.63 | K41: 9,270.00 | M41: 9,270.00 | N41: 11,587.50 | P41: 11,587.50
A42: Услуги связи (почта) | B42: 07 | C42: 02 | D42: 0220270210 | E42: 244 | F42: 221300 | G42: 1000 | H42: 0.00 | J42: 0.00 | K42: 0.00 | M42: 0.00 | N42: 0.00 | P42: 0.00
A43: Транспортные услуги | B43: 07 | C43: 02 | D43: 0220270210 | E43: 244 | F43: 222000 | G43: 1000 | H43: 46,442.50 | J43: =H43+I43 -> 46,442.50 | K43: 58,053.13 | M43: =K43+L43 -> 58,053.13 | N43: 67,566.41 | P43: =N43+O43 -> 67,566.41
A44: Холодное водоснабжение | B44: 07 | C44: 02 | D44: 0220270210 | E44: 244 | F44: 223300 | G44: 1000 | H44: 0.00 | J44: 0.00 | K44: 0.00 | M44: 0.00 | N44: 0.00 | P44: 0.00
A45: Водоотведение | B45: 07 | C45: 02 | D45: 0220270210 | E45: 244 | F45: 223400 | G45: 1000 | H45: 0.00 | J45: 0.00 | K45: 0.00 | M45: 0.00 | N45: 0.00 | P45: 0.00
A46: Обращение с твердыми коммунальными отходами (вывоз ТБО) | B46: 07 | C46: 02 | D46: 0220270210 | E46: 244 | F46: 223500 | G46: 1000 | H46: 36,117.96 | J46: 36,117.96 | K46: 39,466.11 | M46: 39,466.11 | N46: 41,301.62 | P46: 41,301.62
A47: Техническое обслуживание внутренних сетей отопления и горячего водоснабжения | B47: 07 | C47: 02 | D47: 0220270210 | E47: 244 | F47: 225200 | G47: 1000 | H47: 0.00 | J47: 0.00 | K47: 0.00 | M47: 0.00 | N47: 0.00 | P47: 0.00
A48: Санитарная и противопожарная (дезинфекция, дезинсекция, дератизация, газация, огнезащитная) обработка помещений | B48: 07 | C48: 02 | D48: 0220270210 | E48: 244 | F48: 225600 | G48: 1000 | H48: 39,096.90 | J48: 39,096.90 | K48: 48,871.13 | M48: 48,871.13 | N48: 61,088.91 | P48: 61,088.91
A49: Содержание, обслуживание помещений и сетей инженерно-технического обеспечения | B49: 07 | C49: 02 | D49: 0220270210 | E49: 244 | F49: 225700 | G49: 1000 | H49: 196,537.10 | J49: 196,537.10 | K49: 245,671.38 | M49: 245,671.38 | N49: 307,089.22 | P49: 307,089.22
A50: Текущий ремонт помещений и сетей инженерно-технического обеспечения | B50: 07 | C50: 02 | D50: 0220270210 | E50: 244 | F50: 225800 | G50: 1000 | H50: 46,750.00 | J50: 46,750.00 | K50: 0.00 | M50: 0.00 | N50: 0.00 | P50: 0.00
A51: Другие расходы | B51: 07 | C51: 02 | D51: 0220270210 | E51: 244 | F51: 225900 | G51: 1000 | H51: 93,625.00 | J51: 93,625.00 | K51: 86,875.00 | M51: 86,875.00 | N51: 102,921.88 | P51: 102,921.88
A52: Аттестация | B52: 07 | C52: 02 | D52: 0220270210 | E52: 244 | F52: 226200 | G52: 1000 | H52: 0.00 | J52: =H52+I52 -> 0.00 | K52: 0.00 | M52: =K52+L52 -> 0.00 | N52: 0.00 | P52: =N52+O52 -> 0.00
A53: Охрана ведомственная, вневедомственная, пожарная | B53: 07 | C53: 02 | D53: 0220270210 | E53: 244 | F53: 226400 | G53: 1000 | H53: 73,072.68 | J53: 73,072.68 | K53: 83,840.84 | M53: 83,840.84 | N53: 97,301.05 | P53: 97,301.05
A54: Мероприятия по переподготовке и повышению квалификации кадров | B54: 07 | C54: 02 | D54: 0220270210 | E54: 244 | F54: 226700 | G54: 1000 | H54: 0.00 | J54: 0.00 | K54: 0.00 | M54: 0.00 | N54: 0.00 | P54: 0.00
A55: Медицинский осмотр работников учреждения, за исключением водителей трансртных средств | B55: 07 | C55: 02 | D55: 0220270210 | E55: 244 | F55: 226800 | G55: 1000 | H55: 164,784.00 | J55: 164,784.00 | K55: 214,562.50 | M55: 214,562.50 | N55: 268,203.13 | P55: 268,203.13
A56: Другие расходы | B56: 07 | C56: 02 | D56: 0220270210 | E56: 244 | F56: 226900 | G56: 1000 | H56: 100,000.00 | J56: 100,000.00 | K56: 100,000.00 | M56: 100,000.00 | N56: 100,000.00 | P56: 100,000.00
A57: Обязательное страхование автогражданской ответственности | B57: 07 | C57: 02 | D57: 0220270210 | E57: 244 | F57: 227200 | G57: 1000 | H57: 0.00 | J57: =H57+I57 -> 0.00 | K57: 0.00 | M57: =K57+L57 -> 0.00 | N57: 0.00 | P57: =N57+O57 -> 0.00
A58: Расходы на оплату услуг по страхованию здоровья | B58: 07 | C58: 02 | D58: 0220270210 | E58: 244 | F58: 227300 | G58: 1000 | H58: 0.00 | J58: =H58+I58 -> 0.00 | K58: 0.00 | M58: =K58+L58 -> 0.00 | N58: 0.00 | P58: =N58+O58 -> 0.00
A59: Приобретение предметов длительного пользования (оборудование, мебель, компьютерная техника и т.п) стоимостью свыше 3000 рублей | B59: 07 | C59: 02 | D59: 0220270210 | E59: 244 | F59: 310100 | G59: 1000 | H59: 0.00 | J59: 0.00 | K59: 0.00 | M59: 0.00 | N59: 0.00 | P59: 0.00
A60: Другие расходы стоимостью до 3000,00 рублей | B60: 07 | C60: 02 | D60: 0220270210 | E60: 244 | F60: 310900 | G60: 1000 | H60: 0.00 | J60: 0.00 | K60: 0.00 | M60: 0.00 | N60: 0.00 | P60: 0.00
A61: Увеличение стоимости лекарственных препаратов и материалов, применяемых в медицинских целях | B61: 07 | C61: 02 | D61: 0220270210 | E61: 244 | F61: 341000 | G61: 1000 | H61: 9,900.00 | J61: =H61+I61 -> 9,900.00 | K61: 12,375.00 | M61: =K61+L61 -> 12,375.00 | N61: 15,468.75 | P61: =N61+O61 -> 15,468.75
A62: Приобретение строительных материалов | B62: 07 | C62: 02 | D62: 0220270210 | E62: 244 | F62: 344000 | G62: 1000 | H62: 20,000.00 | J62: 20,000.00 | K62: 20,000.00 | M62: 20,000.00 | N62: 20,000.00 | P62: 20,000.00
A63: Мягкий инвентарь | B63: 07 | C63: 02 | D63: 0220270210 | E63: 244 | F63: 345000 | G63: 1000 | H63: 10,000.00 | J63: =H63+I63 -> 10,000.00 | K63: 10,000.00 | M63: =K63+L63 -> 10,000.00 | N63: 10,000.00 | P63: =N63+O63 -> 10,000.00
A64: Увеличение стоимости прочих оборотных запасов (материалов) | B64: 07 | C64: 02 | D64: 0220270210 | E64: 244 | F64: 346000 | G64: 1000 | H64: 80,000.00 | J64: 80,000.00 | K64: 80,000.00 | M64: 80,000.00 | N64: 80,000.00 | P64: 80,000.00
A65: Увеличение стоимости прочих оборотных запасов однократного применения | B65: 07 | C65: 02 | D65: 0220270210 | E65: 244 | F65: 349100 | G65: 1000 | H65: 0.00 | J65: 0.00 | K65: 0.00 | M65: 0.00 | N65: 0.00 | P65: 0.00
A66: Отопление, горячее водоснабжение и газоснабжение | B66: 07 | C66: 02 | D66: 0220270210 | E66: 247 | F66: 223100 | G66: 1000 | H66: 1,670,000.00 | J66: 1,670,000.00 | K66: 2,040,114.43 | M66: 2,040,114.43 | N66: 2,197,930.77 | P66: 2,197,930.77
A67: Электроэнергия | B67: 07 | C67: 02 | D67: 0220270210 | E67: 247 | F67: 223200 | G67: 1000 | H67: 580,000.00 | J67: 580,000.00 | K67: 684,490.00 | M67: 684,490.00 | N67: 740,100.00 | P67: 740,100.00
A68: Холодное водоснабжение | B68: 07 | C68: 02 | D68: 0220270210 | E68: 247 | F68: 223300 | G68: 1000 | H68: 59,330.00 | J68: 59,330.00 | K68: 64,908.00 | M68: 64,908.00 | N68: 69,775.59 | P68: 69,775.59
A69: Водоотведение | B69: 07 | C69: 02 | D69: 0220270210 | E69: 247 | F69: 223400 | G69: 1000 | H69: 34,472.25 | J69: 34,472.25 | K69: 37,710.00 | M69: 37,710.00 | N69: 40,538.89 | P69: 40,538.89
A70: Пособия по социальной помощи населению в натуральной форме | B70: 07 | C70: 02 | D70: 0220270210 | E70: 323 | F70: 263000 | G70: 1000 | H70: 0.00 | J70: =H70+I70 -> 0.00 | K70: 0.00 | M70: 0.00 | N70: 0.00 | P70: 0.00
A71: Налог на имущство | B71: 07 | C71: 02 | D71: 0220270210 | E71: 851 | F71: 291200 | G71: 1000 | H71: 9,252.00 | J71: 9,252.00 | K71: 9,252.00 | M71: 9,252.00 | N71: 9,252.00 | P71: 9,252.00
A72: Земельный налог, в том числе в период строительства объекта | B72: 07 | C72: 02 | D72: 0220270210 | E72: 851 | F72: 291300 | G72: 1000 | H72: 27,461.00 | J72: 27,461.00 | K72: 27,461.00 | M72: 27,461.00 | N72: 27,461.00 | P72: 27,461.00
A73: Штрафы за нарушение законодательства о налогах и сборах, законодательства о страховых взносах | B73: 07 | C73: 02 | D73: 0220270210 | E73: 853 | F73: 292000 | G73: 1000 | J73: =H73+I73 -> 0.00 | M73: =K73+L73 -> 0.00 | P73: =N73+O73 -> 0.00
A74: Иные выплаты текущего характера физическим лицам (возмещение убытков, вреда и судебных издержек) | B74: 07 | C74: 02 | D74: 0220270210 | E74: 853 | F74: 296100 | G74: 1000 | H74: 812.37 | J74: =H74+I74 -> 812.37 | K74: 0.00 | M74: =K74+L74 -> 0.00 | N74: 0.00 | P74: =N74+O74 -> 0.00
A75: Транспортный налог | B75: 07 | C75: 02 | D75: 0220270210 | E75: 852 | F75: 291400 | G75: 1000 | J75: 0.00 | M75: 0.00 | P75: 0.00
A76: Штрафы за нарушение законодательства о закупках и нарушенияе условий контракта (договоров) | B76: 07 | C76: 02 | D76: 0220270210 | E76: 831 | F76: 293000 | G76: 1000 | J76: 0.00 | M76: 0.00 | P76: 0.00
A77: Другие экономические санкции | B77: 07 | C77: 02 | D77: 0220270210 | E77: 853 | F77: 295000 | G77: 1000 | J77: 0.00 | M77: 0.00 | P77: 0.00
A78: Иные выплаты текущего характера организациям (возмещение убытков, вред и судебных издержек) | B78: 07 | C78: 02 | D78: 0220270210 | E78: 851 | F78: 297100 | G78: 1000 | J78: 0.00 | M78: 0.00 | P78: 0.00
A79: Другие расходы | B79: 07 | C79: 02 | D79: 0400072910 | E79: 244 | F79: 226900 | G79: 1000 | J79: 0.00 | M79: 0.00 | P79: 0.00
A80: Заработная плата | B80: 07 | C80: 02 | D80: 0920070260 | E80: 111 | F80: 211000 | G80: 1000 | J80: 0.00 | M80: 0.00 | P80: 0.00
A81: Начисления на выплаты по оплате труда | B81: 07 | C81: 02 | D81: 0920070260 | E81: 119 | F81: 213000 | G81: 1000 | J81: 0.00 | M81: 0.00 | P81: 0.00
A82: Итого по КЦ 1000 | H82: =SUM(H37:H81) -> 3,921,673.54 | I82: 0.00 | J82: 3,921,673.54 | K82: 4,480,346.67 | L82: 0.00 | M82: 4,480,346.67 | N82: 4,875,002.87 | O82: 0.00 | P82: 4,875,002.87
A83: Субвенция на обеспечение государственных гарантий реализации прав на получение общедоступного и бесплатного дошкольного образования в муниципальных дошкольных образовательных организациях, общедоступного и бесплатного дошкольного, начального общего, основного общего, среднего общего образования в муниципальных общеобразовательных организациях, обеспечение дополнительного образования детей в муниципальных общеобразовательных организациях (КЦ 254242190000219)
A84: Заработная плата | B84: 07 | C84: 02 | D84: 0220242190 | E84: 111 | F84: 211000 | G84: 254242190000219 | H84: 17,927,463.66 | J84: =H84+I84 -> 17,927,463.66 | K84: 0.00 | M84: =K84+L84 -> 0.00 | N84: 0.00 | P84: =N84+O84 -> 0.00
A85: Социальные пособия и компенсации персоналу в денежной форме (пособие за первые три дня временной нетрудоспособности за счет средств работодателя) | B85: 07 | C85: 02 | D85: 0220242190 | E85: 111 | F85: 266100 | G85: 254242190000219 | H85: 0.00 | J85: 0.00 | K85: 0.00 | M85: 0.00 | N85: 0.00 | P85: 0.00
A86: Начисления на выплаты по оплате труда | B86: 07 | C86: 02 | D86: 0220242190 | E86: 119 | F86: 213000 | G86: 254242190000219 | H86: 4,060,570.52 | J86: 4,060,570.52 | K86: 0.00 | M86: 0.00 | N86: 0.00 | P86: 0.00
A87: Услуги связи (интернет) | B87: 07 | C87: 02 | D87: 0220242190 | E87: 244 | F87: 221200 | G87: 254242190000219 | H87: 0.00 | J87: =H87+I87 -> 0.00 | K87: 0.00 | M87: =K87+L87 -> 0.00 | N87: 0.00 | P87: =N87+O87 -> 0.00
A88: Транспортные услуги | B88: 07 | C88: 02 | D88: 0220242190 | E88: 244 | F88: 222000 | G88: 254242190000219 | J88: 0.00 | K88: 0.00 | M88: 0.00 | N88: 0.00 | P88: 0.00
A89: Другие расходы | B89: 07 | C89: 02 | D89: 0220242190 | E89: 244 | F89: 226900 | G89: 254242190000219 | J89: =H89+I89 -> 0.00 | K89: 0.00 | M89: =K89+L89 -> 0.00 | N89: 0.00 | P89: =N89+O89 -> 0.00
A90: Приобретение предметов длительного пользования (оборудование, мебель, компьютерная техника и т.п.) стоимостью свыше 3000,00 руб. | B90: 07 | C90: 02 | D90: 0220242190 | E90: 244 | F90: 310100 | G90: 254242190000219 | J90: =H90+I90 -> 0.00 | K90: 0.00 | M90: =K90+L90 -> 0.00 | N90: 0.00 | P90: =N90+O90 -> 0.00
A91: Комплектование библиотечного фонда | B91: 07 | C91: 02 | D91: 0220242190 | E91: 244 | F91: 310200 | G91: 254242190000219 | H91: 0.00 | I91: 650,000.00 | J91: 650,000.00 | K91: 0.00 | M91: 0.00 | N91: 0.00 | P91: 0.00
A92: Другие расходы стоимостью до 3000,00 рублей | B92: 07 | C92: 02 | D92: 0220242190 | E92: 244 | F92: 310900 | G92: 254242190000219 | J92: 0.00 | K92: 0.00 | M92: 0.00 | N92: 0.00 | P92: 0.00
A93: Мягкий инвентарь | B93: 07 | C93: 02 | D93: 0220242190 | E93: 244 | F93: 345000 | G93: 254242190000219 | J93: 0.00 | M93: 0.00 | P93: 0.00
A94: Увеличение стоимости прочих оборотных запасов (материалов) | B94: 07 | C94: 02 | D94: 0220242190 | E94: 244 | F94: 346000 | G94: 254242190000219 | J94: 0.00 | K94: 0.00 | M94: 0.00 | N94: 0.00 | P94: 0.00
A95: Увеличение стоимости прочих материальных запасов однократного применения | B95: 07 | C95: 02 | D95: 0220242190 | E95: 244 | F95: 349100 | G95: 254242190000219 | H95: 0.00 | I95: 15,000.00 | J95: 15,000.00 | K95: 0.00 | M95: 0.00 | N95: 0.00 | P95: 0.00
A96: Мероприятия по переподготовке и повышению квалификации кадров | B96: 07 | C96: 05 | D96: 0220242190 | E96: 244 | F96: 226700 | G96: 254242190000219 | J96: 0.00 | K96: 0.00 | M96: 0.00 | N96: 0.00 | P96: 0.00
A97: Итого по КЦ 254242190000219 | H97: =SUM(H84:H96) -> 21,988,034.18 | I97: 665,000.00 | J97: 22,653,034.18 | K97: 0.00 | L97: 0.00 | M97: 0.00 | N97: 0.00 | O97: 0.00 | P97: 0.00
A98: Субсидия на проведение мероприятий по обеспечению деятельности советников директора по воспитанию и взаимодействию с детскими общественными объединениями в общеобразовательных организациях (КЦ 25-51790-00000-00000)
A99: Заработная плата | B99: 07 | C99: 02 | D99: 022Ю651790 | E99: 111 | F99: 211000 | G99: 25-51790-00000-00000 | H99: 251,508.00 | J99: =H99+I99 -> 251,508.00 | K99: 0.00 | M99: =K99+L99 -> 0.00 | N99: 0.00 | P99: =N99+O99 -> 0.00
A100: Начисления на выплаты по оплате труда | B100: 07 | C100: 02 | D100: 022Ю651790 | E100: 119 | F100: 213000 | G100: 25-51790-00000-00000 | H100: 75,955.41 | J100: =H100+I100 -> 75,955.41 | K100: 0.00 | M100: =K100+L100 -> 0.00 | N100: 0.00 | P100: =N100+O100 -> 0.00
A101: Итого по КЦ 25-51790-00000-00000 | H101: =SUM(H99:H100) -> 327,463.41 | I101: 0.00 | J101: 327,463.41 | K101: 0.00 | L101: 0.00 | M101: 0.00 | N101: 0.00 | O101: 0.00 | P101: 0.00
A102: Иные межбюджетные трансферты на обеспечение выплат ежемесячного денежного вознаграждения советникам директоров по воспитанию и взаимодействию с детскими общественными объединениями государственных общеобразовательных организаций, профессиональных образовательных организаций, муниципальных общеобразовательных организаций и профессиональных образовательных организаций (КЦ 2550500X298320000000)
A103: Заработная плата | B103: 07 | C103: 02 | D103: 022Ю650500 | E103: 111 | F103: 211000 | G103: 2550500X298320000000 | H103: 99,000.00 | J103: =H103+I103 -> 99,000.00 | K103: 0.00 | M103: =K103+L103 -> 0.00 | N103: 0.00 | P103: =N103+O103 -> 0.00
A104: Начисления на выплаты по оплате труда | B104: 07 | C104: 02 | D104: 022Ю650500 | E104: 119 | F104: 213000 | G104: 2550500X298320000000 | H104: 29,898.00 | J104: =H104+I104 -> 29,898.00 | K104: 0.00 | M104: =K104+L104 -> 0.00 | N104: 0.00 | P104: =N104+O104 -> 0.00
A105: Итого по КЦ 2550500X298320000000 | H105: =SUM(H103:H104) -> 128,898.00 | I105: 0.00 | J105: 128,898.00 | K105: 0.00 | L105: 0.00 | M105: 0.00 | N105: 0.00 | O105: 0.00 | P105: 0.00
A106: Иные межбюджетные трансферты на ежемесячное денежное вознаграждение за классное руководство педагогическим работникам государственных и муниципальных образовательных организаций, реализующих образовательные программы начального общего образования, образовательные программы основного общего образования, образовательные программы среднего общего образования (КЦ 2553030X298570000000)
A107: Заработная плата | B107: 07 | C107: 02 | D107: 022Ю653030 | E107: 111 | F107: 211000 | G107: 2553030X298570000000 | H107: 2,178,000.00 | J107: =H107+I107 -> 2,178,000.00 | K107: 0.00 | M107: =K107+L107 -> 0.00 | N107: 0.00 | P107: =N107+O107 -> 0.00
A108: Начисления на выплаты по оплате труда | B108: 07 | C108: 02 | D108: 022Ю653030 | E108: 119 | F108: 213000 | G108: 2553030X298570000000 | H108: 657,756.00 | J108: =H108+I108 -> 657,756.00 | K108: 0.00 | M108: =K108+L108 -> 0.00 | N108: 0.00 | P108: =N108+O108 -> 0.00
A109: Итого по КЦ 2553030X298570000000 | H109: =SUM(H107:H108) -> 2,835,756.00 | I109: 0.00 | J109: 2,835,756.00 | K109: 0.00 | L109: 0.00 | M109: 0.00 | N109: 0.00 | O109: 0.00 | P109: 0.00
A110: Субвенции на осуществление государственных полномочий РеспубликиКарелия по представлению предусмотренных пунктом 5 части 1 статьи 9 Закона Республики Карелия от 20 декабря 2013 гоа № 1755_ЗРК "Об образовании" мер социальной поддержки и социального обслуживания (КЦ 254242100000210)
A111: Увеличение стоимости прочих оборотных запасов (материалов) | B111: 07 | C111: 02 | D111: 0220242100 | E111: 244 | F111: 346000 | G111: 24424210000210 | J111: =H111+I111 -> 0.00 | K111: 0.00 | M111: =K111+L111 -> 0.00 | N111: 0.00 | P111: =N111+O111 -> 0.00
A112: Пособия по социальной помощи населению в натуральной форме | B112: 07 | C112: 02 | D112: 0220242100 | E112: 323 | F112: 263000 | G112: 254242100000210 | H112: 152,545.00 | J112: =H112+I112 -> 152,545.00 | K112: 0.00 | M112: =K112+L112 -> 0.00 | N112: 0.00 | P112: =N112+O112 -> 0.00
A113: Увеличение стоимости прочих оборотных запасов (материалов) | B113: 07 | C113: 02 | D113: 0220242100 | E113: 323 | F113: 346000 | G113: 23424210000210 | J113: =H113+I113 -> 0.00 | K113: 0.00 | M113: =K113+L113 -> 0.00 | N113: 0.00 | P113: =N113+O113 -> 0.00
A114: Итого по КЦ 254242100000210 | H114: =SUM(H111:H113) -> 152,545.00 | I114: 0.00 | J114: 152,545.00 | K114: 0.00 | L114: 0.00 | M114: 0.00 | N114: 0.00 | O114: 0.00 | P114: 0.00
A115: Субвенции на осуществление государственных полномочий Республики Карелия по выплате компенсации платы, взимаемой с родителей (законных представителей) за присмотр и уход за детьми, осваивающими образовательные программы дошкольного образования в организа
A116: Пособия по социальной помощи населению в натуральной форме | B116: 10 | C116: 04 | D116: 0220142030 | E116: 323 | F116: 263000 | G116: 23424203000203 | J116: =H116+I116 -> 0.00 | K116: 0.00 | M116: =K116+L116 -> 0.00 | N116: 0.00 | P116: =N116+O116 -> 0.00
A117: Итого по КЦ 23424203000203 | H117: =SUM(H116) -> 0.00 | I117: 0.00 | J117: 0.00 | K117: 0.00 | L117: 0.00 | M117: 0.00 | N117: 0.00 | O117: 0.00 | P117: 0.00
A118: Субсидии на организацию бесплатного горячего питания обучающихся, получающих начальное общее образование в государственных и муниципальных образовательных организациях (КЦ 25-53040-00000-00000)
A119: Другие расходы | B119: 07 | C119: 02 | D119: 02202L3040 | E119: 244 | F119: 226900 | G119: 25-53040-00000-00000 | H119: 800,000.00 | J119: =H119+I119 -> 800,000.00 | K119: 0.00 | M119: =K119+L119 -> 0.00 | N119: 0.00 | P119: =N119+O119 -> 0.00
A120: Итого по КЦ 25-53040-00000-00000 | H120: =SUM(H119:H119) -> 800,000.00 | I120: 0.00 | J120: 800,000.00 | K120: 0.00 | L120: 0.00 | M120: 0.00 | N120: 0.00 | O120: 0.00 | P120: 0.00
A121: Субсидия на реализацию мероприятий государственной программы Республики Карелия "Совершенствование социальной защиты граждан" в целях организации адресной социальной помощи семьям, имеющим детей (КЦ 254343210000316)
A122: Пособия по социальной помощи населению в натуральной форме | B122: 10 | C122: 03 | D122: 0320243210 | E122: 323 | F122: 263000 | G122: 254343210000316 | H122: 175,000.00 | J122: =H122+I122 -> 175,000.00 | K122: 0.00 | M122: =K122+L122 -> 0.00 | N122: 0.00 | P122: =N122+O122 -> 0.00
A123: Итого по КЦ 254343210000316 | H123: =SUM(H122:H122) -> 175,000.00 | I123: =SUM(I122:I122) -> 0.00 | J123: =SUM(J122:J122) -> 175,000.00 | K123: =SUM(K122:K122) -> 0.00 | L123: =SUM(L122:L122) -> 0.00 | M123: 0.00 | N123: 0.00 | O123: 0.00 | P123: 0.00
A124: Пособия по социальной помощи населению в натуральной форме | B124: 10 | C124: 03 | D124: 03202S3210 | E124: 323 | F124: 263000 | G124: 1000 | H124: 75,000.00 | J124: =H124+I124 -> 75,000.00 | K124: 0.00 | M124: 0.00 | N124: 0.00 | P124: 0.00
A125: Итого по КЦ 1000 | H125: =SUM(H124:H124) -> 75,000.00 | I125: 0.00 | J125: 75,000.00 | K125: 0.00 | L125: 0.00 | M125: 0.00 | N125: 0.00 | O125: 0.00 | P125: 0.00
A126: Субсидия местным бюджетам на реализацию мероприятий государственной программы Республики Карелия "Совершенствование социальной защиты граждан" (КЦ 2343432000321)
A127: Увеличение стоимости прочих оборотных запасов (материалов) | B127: 07 | C127: 09 | D127: 0220243210 | E127: 244 | F127: 346000 | G127: 2343432000321 | J127: =H127+I127 -> 0.00 | K127: 0.00 | M127: =K127+L127 -> 0.00 | N127: 0.00 | P127: =N127+O127 -> 0.00
A128: Другие расходы | B128: 07 | C128: 09 | D128: 0220243210 | E128: 244 | F128: 226900 | G128: 2343432000321 | J128: 0.00 | K128: 0.00 | M128: 0.00 | N128: 0.00 | P128: 0.00
A129: Транспортные услуги | B129: 07 | C129: 09 | D129: 0220243210 | E129: 244 | F129: 222000 | G129: 2343432000321 | J129: 0.00 | K129: 0.00 | M129: 0.00 | N129: 0.00 | P129: 0.00
A130: Увеличение стоимости прочих оборотных запасов (материалов) | B130: 07 | C130: 09 | D130: 02202S3210 | E130: 244 | F130: 346000 | G130: 1000 | J130: 0.00 | K130: 0.00 | M130: 0.00 | N130: 0.00 | P130: 0.00
A131: Другие расходы | B131: 07 | C131: 09 | D131: 02202S3210 | E131: 244 | F131: 226900 | G131: 1000 | J131: 0.00 | K131: 0.00 | M131: 0.00 | N131: 0.00 | P131: 0.00
A132: Транспортные услуги | B132: 07 | C132: 09 | D132: 02202S3210 | E132: 244 | F132: 222000 | G132: 1000 | J132: 0.00 | K132: 0.00 | M132: 0.00 | N132: 0.00 | P132: 0.00
A133: Итого по КЦ 2343432000321 | H133: =SUM(H127:H132) -> 0.00 | I133: 0.00 | J133: 0.00 | K133: 0.00 | L133: 0.00 | M133: 0.00 | N133: 0.00 | O133: 0.00 | P133: 0.00
A134: Иные межбюджетные трансферты на компенсацию затрат, связанных с освобождением членов семей постоянно проживающих на территории Республики Карелия граждан, призванных военным комиссариатом Республики Карелия на военную службу по мобилизации, а также гражд
A135: Продукты питания | B135: 07 | C135: 01 | D135: 0220175040 | E135: 244 | F135: 342000 | G135: 234475040П0514 | J135: =H135+I135 -> 0.00 | K135: 0.00 | M135: =K135+L135 -> 0.00 | N135: 0.00 | O135: =M135+N135 -> 0.00 | P135: =N135+O135 -> 0.00
A136: Итого по КЦ 234475040П0514 | H136: =SUM(H135) -> 0.00 | I136: 0.00 | J136: 0.00 | K136: 0.00 | L136: 0.00 | M136: 0.00 | N136: 0.00 | O136: 0.00 | P136: 0.00
G137: Всего | H137: =H82+H97+H114+H117+H120+H123+H125+H109+H101+H105 -> 30,404,370.13 | I137: =I82+I97+I114+I117+I120+I123+I125+I109+I101+I105 -> 665,000.00 | J137: 31,069,370.13 | K137: 4,480,346.67 | L137: 0.00 | M137: 4,480,346.67 | N137: 4,875,002.87 | O137: 0.00 | P137: 4,875,002.87
A141: Директор | F141: И.А. Сидорова
B142: (подпись) | F142: (расшифровка подписи)
A144: Гл.бухгалтер МУ "ЦБ № 1" | F144: И.В. Ананьева
A145: (уполномоченное лицо) | B145: (подпись) | F145: (расшифровка подписи)
A147: Главный экономист ПЭО МУ "ЦБ № 1" | F147: Е.Л. Герасимова
A148: (исполнитель) | B148: (подпись) | F148: (расшифровка подписи)
A150: =L18 -> "18" февраля 2025 г.

Sheet 24.02
P1: Приложение № 2
P2: к Порядку составления, утверждения
P3: и ведения бюджетных смет Администрации
P4: Прионежского муниципального района
P5: и казенных учреждений, находящихся
P6: в ведении Администрации Прионежского
P7: муниципального района
P8: от 09 августа 2022 № 831
L10: УТВЕРЖДАЮ
L11: Глава Администрации Прионежского муниципального района
L12: (наименование должности лица, согласующего бюджетную смету)
L13: Администрация Прионежского муниципального района
L14: (наименование главного распорядителя (распорядителя) бюджетных средств; учреждения)
L16: Г. Н. Шемет
L17: (подпись) | N17: (расшифровка подписи)
L18: "24" февраля 2025 г.
A20: ИЗМЕНЕНИЕ К БЮДЖЕТНОЙ СМЕТЕ НА 2025 ФИНАНСОВЫЙ ГОД И ПЛАНОВЫЙ ПЕРИОД 2026 И 2027 ГОДОВ
B22: №№ 015/00402/028, 015/00402/029 от | H22: =L18 -> "24" февраля 2025 г.
A23: (№, дата, справки об изменении ЛБО) | P23: КОДЫ
O24: Форма по ОКУД | P24: 0501012
O25: Дата | P25: =L18 -> "24" февраля 2025 г.
O26: по ОКПО | P26: 51326281
A27: Получатель бюджетных средств | B27: Муниципальное общеобразовательное учреждение "Средняя общеобразовательная школа № 44"
A28: Распорядитель бюджетных средств | B28: Администрация Прионежского муниципального района Республики Карелия
A29: Главный распорядитель бюджетных средств | B29: Администрация Прионежского муниципального района Республики Карелия | O29: Глава по БК | P29: 015
A30: Наименование бюджета | B30: Бюджет Прионежского муниципального района | O30: по ОКТМО | P30: 86636410
A31: Единица измерения: | B31: руб. | O31: по ОКЕЙ | P31: 383
A33: Наименование показателя (детализация кода бюджетной классификации) | B33: РЗ | C33: ПР | D33: ЦСР | E33: Вид расхода | F33: Детализация | G33: Вид целевых средств | H33: Сумма на текущий 2025 год | K33: Сумма на первый год планового периода | N33: Сумма на второй год планового периода
H34: на 18.02.2025 г | I34: изменения(+;-) | J34: Итого | K34: =H34 -> на 18.02.2025 г | L34: изменения(+;-) | M34: Итого | N34: =H34 -> на 18.02.2025 г | O34: изменения(+;-) | P34: Итого
A35: 1 | B35: =SUM(A35+1) -> 2 | C35: 3 | D35: 4 | E35: 5 | F35: 6 | G35: 7 | H35: 8 | I35: 9 | J35: 10 | K35: 11 | L35: 12 | M35: 13 | N35: 14 | O35: 15 | P35: 16
A36: Средства местного бюджета (КЦ 1000) 0702
A37: Заработная плата | B37: 07 | C37: 02 | D37: 0220270210 | E37: 111 | F37: 211000 | G37: 1000 | H37: 451,164.48 | J37: =H37+I37 -> 451,164.48 | K37: 451,164.48 | M37: =K37+L37 -> 451,164.48 | N37: 451,164.48 | P37: =N37+O37 -> 451,164.48
A38: Социальные пособия и компенсации персоналу в денежной форме (пособие за первые три дня временной нетрудоспособности за счет средств работодателя) | B38: 07 | C38: 02 | D38: 0220270210 | E38: 111 | F38: 266100 | G38: 1000 | H38: 0.00 | J38: 0.00 | K38: 0.00 | M38: 0.00 | N38: 0.00 | P38: 0.00
A39: Расходы по оплате проезда к месту отпуска и обратно отдельным категориям лиц (для лиц, работающих в районах Крайнего Севера и приравненных к ним местностям, и членов их семей) | B39: 07 | C39: 02 | D39: 0220270210 | E39: 112 | F39: 214000 | G39: 1000 | H39: 30,000.00 | J39: 30,000.00 | K39: 20,000.00 | M39: 20,000.00 | N39: 20,000.00 | P39: 20,000.00
A40: Начисления на выплаты по оплате труда | B40: 07 | C40: 02 | D40: 0220270210 | E40: 119 | F40: 213000 | G40: 1000 | H40: 136,251.67 | J40: 136,251.67 | K40: 136,261.67 | M40: 136,261.67 | N40: 136,251.67 | P40: 136,251.67
A41: Услуги связи (телефон) | B41: 07 | C41: 02 | D41: 0220270210 | E41: 244 | F41: 221100 | G41: 1000 | H41: 6,603.63 | I41: -65.43 | J41: 6,538.20 | K41: 9,270.00 | M41: 9,270.00 | N41: 11,587.50 | P41: 11,587.50
A42: Услуги связи (почта) | B42: 07 | C42: 02 | D42: 0220270210 | E42: 244 | F42: 221300 | G42: 1000 | H42: 0.00 | J42: 0.00 | K42: 0.00 | M42: 0.00 | N42: 0.00 | P42: 0.00
A43: Транспортные услуги | B43: 07 | C43: 02 | D43: 0220270210 | E43: 244 | F43: 222000 | G43: 1000 | H43: 46,442.50 | J43: =H43+I43 -> 46,442.50 | K43: 58,053.13 | M43: =K43+L43 -> 58,053.13 | N43: 67,566.41 | P43: =N43+O43 -> 67,566.41
A44: Холодное водоснабжение | B44: 07 | C44: 02 | D44: 0220270210 | E44: 244 | F44: 223300 | G44: 1000 | H44: 0.00 | J44: 0.00 | K44: 0.00 | M44: 0.00 | N44: 0.00 | P44: 0.00
A45: Водоотведение | B45: 07 | C45: 02 | D45: 0220270210 | E45: 244 | F45: 223400 | G45: 1000 | H45: 0.00 | J45: 0.00 | K45: 0.00 | M45: 0.00 | N45: 0.00 | P45: 0.00
A46: Обращение с твердыми коммунальными отходами (вывоз ТБО) | B46: 07 | C46: 02 | D46: 0220270210 | E46: 244 | F46: 223500 | G46: 1000 | H46: 36,117.96 | J46: 36,117.96 | K46: 39,466.11 | M46: 39,466.11 | N46: 41,301.62 | P46: 41,301.62
A47: Техническое обслуживание внутренних сетей отопления и горячего водоснабжения | B47: 07 | C47: 02 | D47: 0220270210 | E47: 244 | F47: 225200 | G47: 1000 | H47: 0.00 | J47: 0.00 | K47: 0.00 | M47: 0.00 | N47: 0.00 | P47: 0.00
A48: Санитарная и противопожарная (дезинфекция, дезинсекция, дератизация, газация, огнезащитная) обработка помещений | B48: 07 | C48: 02 | D48: 0220270210 | E48: 244 | F48: 225600 | G48: 1000 | H48: 39,096.90 | J48: 39,096.90 | K48: 48,871.13 | M48: 48,871.13 | N48: 61,088.91 | P48: 61,088.91
A49: Содержание, обслуживание помещений и сетей инженерно-технического обеспечения | B49: 07 | C49: 02 | D49: 0220270210 | E49: 244 | F49: 225700 | G49: 1000 | H49: 196,537.10 | J49: 196,537.10 | K49: 245,671.38 | M49: 245,671.38 | N49: 307,089.22 | P49: 307,089.22
A50: Текущий ремонт помещений и сетей инженерно-технического обеспечения | B50: 07 | C50: 02 | D50: 0220270210 | E50: 244 | F50: 225800 | G50: 1000 | H50: 46,750.00 | J50: 46,750.00 | K50: 0.00 | M50: 0.00 | N50: 0.00 | P50: 0.00
A51: Другие расходы | B51: 07 | C51: 02 | D51: 0220270210 | E51: 244 | F51: 225900 | G51: 1000 | H51: 93,625.00 | J51: 93,625.00 | K51: 86,875.00 | M51: 86,875.00 | N51: 102,921.88 | P51: 102,921.88
A52: Аттестация | B52: 07 | C52: 02 | D52: 0220270210 | E52: 244 | F52: 226200 | G52: 1000 | H52: 0.00 | J52: =H52+I52 -> 0.00 | K52: 0.00 | M52: =K52+L52 -> 0.00 | N52: 0.00 | P52: =N52+O52 -> 0.00
A53: Охрана ведомственная, вневедомственная, пожарная | B53: 07 | C53: 02 | D53: 0220270210 | E53: 244 | F53: 226400 | G53: 1000 | H53: 73,072.68 | J53: 73,072.68 | K53: 83,840.84 | M53: 83,840.84 | N53: 97,301.05 | P53: 97,301.05
A54: Мероприятия по переподготовке и повышению квалификации кадров | B54: 07 | C54: 02 | D54: 0220270210 | E54: 244 | F54: 226700 | G54: 1000 | H54: 0.00 | J54: 0.00 | K54: 0.00 | M54: 0.00 | N54: 0.00 | P54: 0.00
A55: Медицинский осмотр работников учреждения, за исключением водителей трансртных средств | B55: 07 | C55: 02 | D55: 0220270210 | E55: 244 | F55: 226800 | G55: 1000 | H55: 164,784.00 | J55: 164,784.00 | K55: 214,562.50 | M55: 214,562.50 | N55: 268,203.13 | P55: 268,203.13
A56: Другие расходы | B56: 07 | C56: 02 | D56: 0220270210 | E56: 244 | F56: 226900 | G56: 1000 | H56: 100,000.00 | J56: 100,000.00 | K56: 100,000.00 | M56: 100,000.00 | N56: 100,000.00 | P56: 100,000.00
A57: Обязательное страхование автогражданской ответственности | B57: 07 | C57: 02 | D57: 0220270210 | E57: 244 | F57: 227200 | G57: 1000 | H57: 0.00 | J57: =H57+I57 -> 0.00 | K57: 0.00 | M57: =K57+L57 -> 0.00 | N57: 0.00 | P57: =N57+O57 -> 0.00
A58: Расходы на оплату услуг по страхованию здоровья | B58: 07 | C58: 02 | D58: 0220270210 | E58: 244 | F58: 227300 | G58: 1000 | H58: 0.00 | J58: =H58+I58 -> 0.00 | K58: 0.00 | M58: =K58+L58 -> 0.00 | N58: 0.00 | P58: =N58+O58 -> 0.00
A59: Приобретение предметов длительного пользования (оборудование, мебель, компьютерная техника и т.п) стоимостью свыше 3000 рублей | B59: 07 | C59: 02 | D59: 0220270210 | E59: 244 | F59: 310100 | G59: 1000 | H59: 0.00 | J59: 0.00 | K59: 0.00 | M59: 0.00 | N59: 0.00 | P59: 0.00
A60: Другие расходы стоимостью до 3000,00 рублей | B60: 07 | C60: 02 | D60: 0220270210 | E60: 244 | F60: 310900 | G60: 1000 | H60: 0.00 | J60: 0.00 | K60: 0.00 | M60: 0.00 | N60: 0.00 | P60: 0.00
A61: Увеличение стоимости лекарственных препаратов и материалов, применяемых в медицинских целях | B61: 07 | C61: 02 | D61: 0220270210 | E61: 244 | F61: 341000 | G61: 1000 | H61: 9,900.00 | J61: =H61+I61 -> 9,900.00 | K61: 12,375.00 | M61: =K61+L61 -> 12,375.00 | N61: 15,468.75 | P61: =N61+O61 -> 15,468.75
A62: Приобретение строительных материалов | B62: 07 | C62: 02 | D62: 0220270210 | E62: 244 | F62: 344000 | G62: 1000 | H62: 20,000.00 | J62: 20,000.00 | K62: 20,000.00 | M62: 20,000.00 | N62: 20,000.00 | P62: 20,000.00
A63: Мягкий инвентарь | B63: 07 | C63: 02 | D63: 0220270210 | E63: 244 | F63: 345000 | G63: 1000 | H63: 10,000.00 | J63: =H63+I63 -> 10,000.00 | K63: 10,000.00 | M63: =K63+L63 -> 10,000.00 | N63: 10,000.00 | P63: =N63+O63 -> 10,000.00
A64: Увеличение стоимости прочих оборотных запасов (материалов) | B64: 07 | C64: 02 | D64: 0220270210 | E64: 244 | F64: 346000 | G64: 1000 | H64: 80,000.00 | J64: 80,000.00 | K64: 80,000.00 | M64: 80,000.00 | N64: 80,000.00 | P64: 80,000.00
A65: Увеличение стоимости прочих оборотных запасов однократного применения | B65: 07 | C65: 02 | D65: 0220270210 | E65: 244 | F65: 349100 | G65: 1000 | H65: 0.00 | J65: 0.00 | K65: 0.00 | M65: 0.00 | N65: 0.00 | P65: 0.00
A66: Отопление, горячее водоснабжение и газоснабжение | B66: 07 | C66: 02 | D66: 0220270210 | E66: 247 | F66: 223100 | G66: 1000 | H66: 1,670,000.00 | J66: 1,670,000.00 | K66: 2,040,114.43 | M66: 2,040,114.43 | N66: 2,197,930.77 | P66: 2,197,930.77
A67: Электроэнергия | B67: 07 | C67: 02 | D67: 0220270210 | E67: 247 | F67: 223200 | G67: 1000 | H67: 580,000.00 | J67: 580,000.00 | K67: 684,490.00 | M67: 684,490.00 | N67: 740,100.00 | P67: 740,100.00
A68: Холодное водоснабжение | B68: 07 | C68: 02 | D68: 0220270210 | E68: 247 | F68: 223300 | G68: 1000 | H68: 59,330.00 | J68: 59,330.00 | K68: 64,908.00 | M68: 64,908.00 | N68: 69,775.59 | P68: 69,775.59
A69: Водоотведение | B69: 07 | C69: 02 | D69: 0220270210 | E69: 247 | F69: 223400 | G69: 1000 | H69: 34,472.25 | J69: 34,472.25 | K69: 37,710.00 | M69: 37,710.00 | N69: 40,538.89 | P69: 40,538.89
A70: Пособия по социальной помощи населению в натуральной форме | B70: 07 | C70: 02 | D70: 0220270210 | E70: 323 | F70: 263000 | G70: 1000 | H70: 0.00 | J70: =H70+I70 -> 0.00 | K70: 0.00 | M70: 0.00 | N70: 0.00 | P70: 0.00
A71: Налог на имущство | B71: 07 | C71: 02 | D71: 0220270210 | E71: 851 | F71: 291200 | G71: 1000 | H71: 9,252.00 | J71: 9,252.00 | K71: 9,252.00 | M71: 9,252.00 | N71: 9,252.00 | P71: 9,252.00
A72: Земельный налог, в том числе в период строительства объекта | B72: 07 | C72: 02 | D72: 0220270210 | E72: 851 | F72: 291300 | G72: 1000 | H72: 27,461.00 | J72: 27,461.00 | K72: 27,461.00 | M72: 27,461.00 | N72: 27,461.00 | P72: 27,461.00
A73: Штрафы за нарушение законодательства о налогах и сборах, законодательства о страховых взносах | B73: 07 | C73: 02 | D73: 0220270210 | E73: 853 | F73: 292000 | G73: 1000 | J73: =H73+I73 -> 0.00 | M73: =K73+L73 -> 0.00 | P73: =N73+O73 -> 0.00
A74: Иные выплаты текущего характера физическим лицам (возмещение убытков, вреда и судебных издержек) | B74: 07 | C74: 02 | D74: 0220270210 | E74: 853 | F74: 296100 | G74: 1000 | H74: 812.37 | I74: 65.43 | J74: =H74+I74 -> 877.80 | K74: 0.00 | M74: =K74+L74 -> 0.00 | N74: 0.00 | P74: =N74+O74 -> 0.00
A75: Транспортный налог | B75: 07 | C75: 02 | D75: 0220270210 | E75: 852 | F75: 291400 | G75: 1000 | J75: 0.00 | M75: 0.00 | P75: 0.00
A76: Штрафы за нарушение законодательства о закупках и нарушенияе условий контракта (договоров) | B76: 07 | C76: 02 | D76: 0220270210 | E76: 831 | F76: 293000 | G76: 1000 | J76: 0.00 | M76: 0.00 | P76: 0.00
A77: Другие экономические санкции | B77: 07 | C77: 02 | D77: 0220270210 | E77: 853 | F77: 295000 | G77: 1000 | J77: 0.00 | M77: 0.00 | P77: 0.00
A78: Иные выплаты текущего характера организациям (возмещение убытков, вред и судебных издержек) | B78: 07 | C78: 02 | D78: 0220270210 | E78: 851 | F78: 297100 | G78: 1000 | J78: 0.00 | M78: 0.00 | P78: 0.00
A79: Другие расходы | B79: 07 | C79: 02 | D79: 0400072910 | E79: 244 | F79: 226900 | G79: 1000 | J79: 0.00 | M79: 0.00 | P79: 0.00
A80: Заработная плата | B80: 07 | C80: 02 | D80: 0920070260 | E80: 111 | F80: 211000 | G80: 1000 | J80: 0.00 | M80: 0.00 | P80: 0.00
A81: Начисления на выплаты по оплате труда | B81: 07 | C81: 02 | D81: 0920070260 | E81: 119 | F81: 213000 | G81: 1000 | J81: 0.00 | M81: 0.00 | P81: 0.00
A82: Итого по КЦ 1000 | H82: =SUM(H37:H81) -> 3,921,673.54 | I82: 0.00 | J82: 3,921,673.54 | K82: 4,480,346.67 | L82: 0.00 | M82: 4,480,346.67 | N82: 4,875,002.87 | O82: 0.00 | P82: 4,875,002.87
A83: Субвенция на обеспечение государственных гарантий реализации прав на получение общедоступного и бесплатного дошкольного образования в муниципальных дошкольных образовательных организациях, общедоступного и бесплатного дошкольного, начального общего, основного общего, среднего общего образования в муниципальных общеобразовательных организациях, обеспечение дополнительного образования детей в муниципальных общеобразовательных организациях (КЦ 254242190000219)
A84: Заработная плата | B84: 07 | C84: 02 | D84: 0220242190 | E84: 111 | F84: 211000 | G84: 254242190000219 | H84: 17,927,463.66 | J84: =H84+I84 -> 17,927,463.66 | K84: 0.00 | M84: =K84+L84 -> 0.00 | N84: 0.00 | P84: =N84+O84 -> 0.00
A85: Социальные пособия и компенсации персоналу в денежной форме (пособие за первые три дня временной нетрудоспособности за счет средств работодателя) | B85: 07 | C85: 02 | D85: 0220242190 | E85: 111 | F85: 266100 | G85: 254242190000219 | H85: 0.00 | J85: 0.00 | K85: 0.00 | M85: 0.00 | N85: 0.00 | P85: 0.00
A86: Начисления на выплаты по оплате труда | B86: 07 | C86: 02 | D86: 0220242190 | E86: 119 | F86: 213000 | G86: 254242190000219 | H86: 4,060,570.52 | J86: 4,060,570.52 | K86: 0.00 | M86: 0.00 | N86: 0.00 | P86: 0.00
A87: Услуги связи (интернет) | B87: 07 | C87: 02 | D87: 0220242190 | E87: 244 | F87: 221200 | G87: 254242190000219 | H87: 0.00 | J87: =H87+I87 -> 0.00 | K87: 0.00 | M87: =K87+L87 -> 0.00 | N87: 0.00 | P87: =N87+O87 -> 0.00
A88: Транспортные услуги | B88: 07 | C88: 02 | D88: 0220242190 | E88: 244 | F88: 222000 | G88: 254242190000219 | J88: 0.00 | K88: 0.00 | M88: 0.00 | N88: 0.00 | P88: 0.00
A89: Другие расходы | B89: 07 | C89: 02 | D89: 0220242190 | E89: 244 | F89: 226900 | G89: 254242190000219 | J89: =H89+I89 -> 0.00 | K89: 0.00 | M89: =K89+L89 -> 0.00 | N89: 0.00 | P89: =N89+O89 -> 0.00
A90: Приобретение предметов длительного пользования (оборудование, мебель, компьютерная техника и т.п.) стоимостью свыше 3000,00 руб. | B90: 07 | C90: 02 | D90: 0220242190 | E90: 244 | F90: 310100 | G90: 254242190000219 | J90: =H90+I90 -> 0.00 | K90: 0.00 | M90: =K90+L90 -> 0.00 | N90: 0.00 | P90: =N90+O90 -> 0.00
A91: Комплектование библиотечного фонда | B91: 07 | C91: 02 | D91: 0220242190 | E91: 244 | F91: 310200 | G91: 254242190000219 | H91: 650,000.00 | J91: 650,000.00 | K91: 0.00 | M91: 0.00 | N91: 0.00 | P91: 0.00
A92: Другие расходы стоимостью до 3000,00 рублей | B92: 07 | C92: 02 | D92: 0220242190 | E92: 244 | F92: 310900 | G92: 254242190000219 | H92: 0.00 | J92: 0.00 | K92: 0.00 | M92: 0.00 | N92: 0.00 | P92: 0.00
A93: Мягкий инвентарь | B93: 07 | C93: 02 | D93: 0220242190 | E93: 244 | F93: 345000 | G93: 254242190000219 | H93: 0.00 | J93: 0.00 | M93: 0.00 | P93: 0.00
A94: Увеличение стоимости прочих оборотных запасов (материалов) | B94: 07 | C94: 02 | D94: 0220242190 | E94: 244 | F94: 346000 | G94: 254242190000219 | H94: 0.00 | J94: 0.00 | K94: 0.00 | M94: 0.00 | N94: 0.00 | P94: 0.00
A95: Увеличение стоимости прочих материальных запасов однократного применения | B95: 07 | C95: 02 | D95: 0220242190 | E95: 244 | F95: 349100 | G95: 254242190000219 | H95: 15,000.00 | J95: 15,000.00 | K95: 0.00 | M95: 0.00 | N95: 0.00 | P95: 0.00
A96: Мероприятия по переподготовке и повышению квалификации кадров | B96: 07 | C96: 05 | D96: 0220242190 | E96: 244 | F96: 226700 | G96: 254242190000219 | J96: 0.00 | K96: 0.00 | M96: 0.00 | N96: 0.00 | P96: 0.00
A97: Итого по КЦ 254242190000219 | H97: =SUM(H84:H96) -> 22,653,034.18 | I97: 0.00 | J97: 22,653,034.18 | K97: 0.00 | L97: 0.00 | M97: 0.00 | N97: 0.00 | O97: 0.00 | P97: 0.00
A98: Субсидия на проведение мероприятий по обеспечению деятельности советников директора по воспитанию и взаимодействию с детскими общественными объединениями в общеобразовательных организациях (КЦ 25-51790-00000-00000)
A99: Заработная плата | B99: 07 | C99: 02 | D99: 022Ю651790 | E99: 111 | F99: 211000 | G99: 25-51790-00000-00000 | H99: 251,508.00 | J99: =H99+I99 -> 251,508.00 | K99: 0.00 | M99: =K99+L99 -> 0.00 | N99: 0.00 | P99: =N99+O99 -> 0.00
A100: Начисления на выплаты по оплате труда | B100: 07 | C100: 02 | D100: 022Ю651790 | E100: 119 | F100: 213000 | G100: 25-51790-00000-00000 | H100: 75,955.41 | J100: =H100+I100 -> 75,955.41 | K100: 0.00 | M100: =K100+L100 -> 0.00 | N100: 0.00 | P100: =N100+O100 -> 0.00
A101: Итого по КЦ 25-51790-00000-00000 | H101: =SUM(H99:H100) -> 327,463.41 | I101: 0.00 | J101: 327,463.41 | K101: 0.00 | L101: 0.00 | M101: 0.00 | N101: 0.00 | O101: 0.00 | P101: 0.00
A102: Иные межбюджетные трансферты на обеспечение выплат ежемесячного денежного вознаграждения советникам директоров по воспитанию и взаимодействию с детскими общественными объединениями государственных общеобразовательных организаций, профессиональных образовательных организаций, муниципальных общеобразовательных организаций и профессиональных образовательных организаций (КЦ 2550500X298320000000)
A103: Заработная плата | B103: 07 | C103: 02 | D103: 022Ю650500 | E103: 111 | F103: 211000 | G103: 2550500X298320000000 | H103: 99,000.00 | J103: =H103+I103 -> 99,000.00 | K103: 0.00 | M103: =K103+L103 -> 0.00 | N103: 0.00 | P103: =N103+O103 -> 0.00
A104: Начисления на выплаты по оплате труда | B104: 07 | C104: 02 | D104: 022Ю650500 | E104: 119 | F104: 213000 | G104: 2550500X298320000000 | H104: 29,898.00 | J104: =H104+I104 -> 29,898.00 | K104: 0.00 | M104: =K104+L104 -> 0.00 | N104: 0.00 | P104: =N104+O104 -> 0.00
A105: Итого по КЦ 2550500X298320000000 | H105: =SUM(H103:H104) -> 128,898.00 | I105: 0.00 | J105: 128,898.00 | K105: 0.00 | L105: 0.00 | M105: 0.00 | N105: 0.00 | O105: 0.00 | P105: 0.00
A106: Иные межбюджетные трансферты на ежемесячное денежное вознаграждение за классное руководство педагогическим работникам государственных и муниципальных образовательных организаций, реализующих образовательные программы начального общего образования, образовательные программы основного общего образования, образовательные программы среднего общего образования (КЦ 2553030X298570000000)
A107: Заработная плата | B107: 07 | C107: 02 | D107: 022Ю653030 | E107: 111 | F107: 211000 | G107: 2553030X298570000000 | H107: 2,178,000.00 | J107: =H107+I107 -> 2,178,000.00 | K107: 0.00 | M107: =K107+L107 -> 0.00 | N107: 0.00 | P107: =N107+O107 -> 0.00
A108: Начисления на выплаты по оплате труда | B108: 07 | C108: 02 | D108: 022Ю653030 | E108: 119 | F108: 213000 | G108: 2553030X298570000000 | H108: 657,756.00 | J108: =H108+I108 -> 657,756.00 | K108: 0.00 | M108: =K108+L108 -> 0.00 | N108: 0.00 | P108: =N108+O108 -> 0.00
A109: Итого по КЦ 2553030X298570000000 | H109: =SUM(H107:H108) -> 2,835,756.00 | I109: 0.00 | J109: 2,835,756.00 | K109: 0.00 | L109: 0.00 | M109: 0.00 | N109: 0.00 | O109: 0.00 | P109: 0.00
A110: Субвенции на осуществление государственных полномочий РеспубликиКарелия по представлению предусмотренных пунктом 5 части 1 статьи 9 Закона Республики Карелия от 20 декабря 2013 гоа № 1755_ЗРК "Об образовании" мер социальной поддержки и социального обслуживания (КЦ 254242100000210)
A111: Увеличение стоимости прочих оборотных запасов (материалов) | B111: 07 | C111: 02 | D111: 0220242100 | E111: 244 | F111: 346000 | G111: 24424210000210 | J111: =H111+I111 -> 0.00 | K111: 0.00 | M111: =K111+L111 -> 0.00 | N111: 0.00 | P111: =N111+O111 -> 0.00
A112: Пособия по социальной помощи населению в натуральной форме | B112: 07 | C112: 02 | D112: 0220242100 | E112: 323 | F112: 263000 | G112: 254242100000210 | H112: 152,545.00 | J112: =H112+I112 -> 152,545.00 | K112: 0.00 | M112: =K112+L112 -> 0.00 | N112: 0.00 | P112: =N112+O112 -> 0.00
A113: Увеличение стоимости прочих оборотных запасов (материалов) | B113: 07 | C113: 02 | D113: 0220242100 | E113: 323 | F113: 346000 | G113: 23424210000210 | J113: =H113+I113 -> 0.00 | K113: 0.00 | M113: =K113+L113 -> 0.00 | N113: 0.00 | P113: =N113+O113 -> 0.00
A114: Итого по КЦ 254242100000210 | H114: =SUM(H111:H113) -> 152,545.00 | I114: 0.00 | J114: 152,545.00 | K114: 0.00 | L114: 0.00 | M114: 0.00 | N114: 0.00 | O114: 0.00 | P114: 0.00
A115: Субвенции на осуществление государственных полномочий Республики Карелия по выплате компенсации платы, взимаемой с родителей (законных представителей) за присмотр и уход за детьми, осваивающими образовательные программы дошкольного образования в организа
A116: Пособия по социальной помощи населению в натуральной форме | B116: 10 | C116: 04 | D116: 0220142030 | E116: 323 | F116: 263000 | G116: 23424203000203 | J116: =H116+I116 -> 0.00 | K116: 0.00 | M116: =K116+L116 -> 0.00 | N116: 0.00 | P116: =N116+O116 -> 0.00
A117: Итого по КЦ 23424203000203 | H117: =SUM(H116) -> 0.00 | I117: 0.00 | J117: 0.00 | K117: 0.00 | L117: 0.00 | M117: 0.00 | N117: 0.00 | O117: 0.00 | P117: 0.00
A118: Субсидии на организацию бесплатного горячего питания обучающихся, получающих начальное общее образование в государственных и муниципальных образовательных организациях (КЦ 25-53040-00000-00000)
A119: Другие расходы | B119: 07 | C119: 02 | D119: 02202L3040 | E119: 244 | F119: 226900 | G119: 25-53040-00000-00000 | H119: 800,000.00 | J119: =H119+I119 -> 800,000.00 | K119: 0.00 | M119: =K119+L119 -> 0.00 | N119: 0.00 | P119: =N119+O119 -> 0.00
A120: Итого по КЦ 25-53040-00000-00000 | H120: =SUM(H119:H119) -> 800,000.00 | I120: 0.00 | J120: 800,000.00 | K120: 0.00 | L120: 0.00 | M120: 0.00 | N120: 0.00 | O120: 0.00 | P120: 0.00
A121: Субсидия на реализацию мероприятий государственной программы Республики Карелия "Совершенствование социальной защиты граждан" в целях организации адресной социальной помощи семьям, имеющим детей (КЦ 254343210000316)
A122: Пособия по социальной помощи населению в натуральной форме | B122: 10 | C122: 03 | D122: 0320243210 | E122: 323 | F122: 263000 | G122: 254343210000316 | H122: 175,000.00 | J122: =H122+I122 -> 175,000.00 | K122: 0.00 | M122: =K122+L122 -> 0.00 | N122: 0.00 | P122: =N122+O122 -> 0.00
A123: Итого по КЦ 254343210000316 | H123: =SUM(H122:H122) -> 175,000.00 | I123: =SUM(I122:I122) -> 0.00 | J123: =SUM(J122:J122) -> 175,000.00 | K123: =SUM(K122:K122) -> 0.00 | L123: =SUM(L122:L122) -> 0.00 | M123: 0.00 | N123: 0.00 | O123: 0.00 | P123: 0.00
A124: Пособия по социальной помощи населению в натуральной форме | B124: 10 | C124: 03 | D124: 03202S3210 | E124: 323 | F124: 263000 | G124: 1000 | H124: 75,000.00 | J124: =H124+I124 -> 75,000.00 | K124: 0.00 | M124: 0.00 | N124: 0.00 | P124: 0.00
A125: Итого по КЦ 1000 | H125: =SUM(H124:H124) -> 75,000.00 | I125: 0.00 | J125: 75,000.00 | K125: 0.00 | L125: 0.00 | M125: 0.00 | N125: 0.00 | O125: 0.00 | P125: 0.00
A126: Субсидия местным бюджетам на реализацию мероприятий государственной программы Республики Карелия "Совершенствование социальной защиты граждан" (КЦ 2343432000321)
A127: Увеличение стоимости прочих оборотных запасов (материалов) | B127: 07 | C127: 09 | D127: 0220243210 | E127: 244 | F127: 346000 | G127: 2343432000321 | J127: =H127+I127 -> 0.00 | K127: 0.00 | M127: =K127+L127 -> 0.00 | N127: 0.00 | P127: =N127+O127 -> 0.00
A128: Другие расходы | B128: 07 | C128: 09 | D128: 0220243210 | E128: 244 | F128: 226900 | G128: 2343432000321 | J128: 0.00 | K128: 0.00 | M128: 0.00 | N128: 0.00 | P128: 0.00
A129: Транспортные услуги | B129: 07 | C129: 09 | D129: 0220243210 | E129: 244 | F129: 222000 | G129: 2343432000321 | J129: 0.00 | K129: 0.00 | M129: 0.00 | N129: 0.00 | P129: 0.00
A130: Увеличение стоимости прочих оборотных запасов (материалов) | B130: 07 | C130: 09 | D130: 02202S3210 | E130: 244 | F130: 346000 | G130: 1000 | J130: 0.00 | K130: 0.00 | M130: 0.00 | N130: 0.00 | P130: 0.00
A131: Другие расходы | B131: 07 | C131: 09 | D131: 02202S3210 | E131: 244 | F131: 226900 | G131: 1000 | J131: 0.00 | K131: 0.00 | M131: 0.00 | N131: 0.00 | P131: 0.00
A132: Транспортные услуги | B132: 07 | C132: 09 | D132: 02202S3210 | E132: 244 | F132: 222000 | G132: 1000 | J132: 0.00 | K132: 0.00 | M132: 0.00 | N132: 0.00 | P132: 0.00
A133: Итого по КЦ 2343432000321 | H133: =SUM(H127:H132) -> 0.00 | I133: 0.00 | J133: 0.00 | K133: 0.00 | L133: 0.00 | M133: 0.00 | N133: 0.00 | O133: 0.00 | P133: 0.00
A134: Иные межбюджетные трансферты на компенсацию затрат, связанных с освобождением членов семей постоянно проживающих на территории Республики Карелия граждан, призванных военным комиссариатом Республики Карелия на военную службу по мобилизации, а также гражд
A135: Продукты питания | B135: 07 | C135: 01 | D135: 0220175040 | E135: 244 | F135: 342000 | G135: 234475040П0514 | J135: =H135+I135 -> 0.00 | K135: 0.00 | M135: =K135+L135 -> 0.00 | N135: 0.00 | O135: =M135+N135 -> 0.00 | P135: =N135+O135 -> 0.00
A136: Итого по КЦ 234475040П0514 | H136: =SUM(H135) -> 0.00 | I136: 0.00 | J136: 0.00 | K136: 0.00 | L136: 0.00 | M136: 0.00 | N136: 0.00 | O136: 0.00 | P136: 0.00
G137: Всего | H137: =H82+H97+H114+H117+H120+H123+H125+H109+H101+H105 -> 31,069,370.13 | I137: =I82+I97+I114+I117+I120+I123+I125+I109+I101+I105 -> 0.00 | J137: 31,069,370.13 | K137: 4,480,346.67 | L137: 0.00 | M137: 4,480,346.67 | N137: 4,875,002.87 | O137: 0.00 | P137: 4,875,002.87
A141: Директор | F141: И.А. Сидорова
B142: (подпись) | F142: (расшифровка подписи)
A144: Гл.бухгалтер МУ "ЦБ № 1" | F144: И.В. Ананьева
A145: (уполномоченное лицо) | B145: (подпись) | F145: (расшифровка подписи)
A147: Главный экономист ПЭО МУ "ЦБ № 1" | F147: Е.Л. Герасимова
A148: (исполнитель) | B148: (подпись) | F148: (расшифровка подписи)
A150: =L18 -> "24" февраля 2025 г.

Sheet 19.03
P1: Приложение № 2
P2: к Порядку составления, утверждения
P3: и ведения бюджетных смет Администрации
P4: Прионежского муниципального района
P5: и казенных учреждений, находящихся
P6: в ведении Администрации Прионежского
P7: муниципального района
P8: от 09 августа 2022 № 831
L10: УТВЕРЖДАЮ
L11: Глава Администрации Прионежского муниципального района
L12: (наименование должности лица, согласующего бюджетную смету)
L13: Администрация Прионежского муниципального района
L14: (наименование главного распорядителя (распорядителя) бюджетных средств; учреждения)
L16: Г. Н. Шемет
L17: (подпись) | N17: (расшифровка подписи)
L18: "19" марта 2025 г.
A20: ИЗМЕНЕНИЕ К БЮДЖЕТНОЙ СМЕТЕ НА 2025 ФИНАНСОВЫЙ ГОД И ПЛАНОВЫЙ ПЕРИОД 2026 И 2027 ГОДОВ
B22: №№ 015/00402/040 от | H22: =L18 -> "19" марта 2025 г.
A23: (№, дата, справки об изменении ЛБО) | P23: КОДЫ
O24: Форма по ОКУД | P24: 0501012
O25: Дата | P25: =L18 -> "19" марта 2025 г.
O26: по ОКПО | P26: 51326281
A27: Получатель бюджетных средств | B27: Муниципальное общеобразовательное учреждение "Средняя общеобразовательная школа № 44"
A28: Распорядитель бюджетных средств | B28: Администрация Прионежского муниципального района Республики Карелия
A29: Главный распорядитель бюджетных средств | B29: Администрация Прионежского муниципального района Республики Карелия | O29: Глава по БК | P29: 015
A30: Наименование бюджета | B30: Бюджет Прионежского муниципального района | O30: по ОКТМО | P30: 86636410
A31: Единица измерения: | B31: руб. | O31: по ОКЕЙ | P31: 383
A33: Наименование показателя (детализация кода бюджетной классификации) | B33: РЗ | C33: ПР | D33: ЦСР | E33: Вид расхода | F33: Детализация | G33: Вид целевых средств | H33: Сумма на текущий 2025 год | K33: Сумма на первый год планового периода | N33: Сумма на второй год планового периода
H34: на 24.02.2025 г | I34: изменения(+;-) | J34: Итого | K34: =H34 -> на 24.02.2025 г | L34: изменения(+;-) | M34: Итого | N34: =H34 -> на 24.02.2025 г | O34: изменения(+;-) | P34: Итого
A35: 1 | B35: =SUM(A35+1) -> 2 | C35: 3 | D35: 4 | E35: 5 | F35: 6 | G35: 7 | H35: 8 | I35: 9 | J35: 10 | K35: 11 | L35: 12 | M35: 13 | N35: 14 | O35: 15 | P35: 16
A36: Средства местного бюджета (КЦ 1000) 0702
A37: Заработная плата | B37: 07 | C37: 02 | D37: 0220270210 | E37: 111 | F37: 211000 | G37: 1000 | H37: 451,164.48 | J37: =H37+I37 -> 451,164.48 | K37: 451,164.48 | M37: =K37+L37 -> 451,164.48 | N37: 451,164.48 | P37: =N37+O37 -> 451,164.48
A38: Социальные пособия и компенсации персоналу в денежной форме (пособие за первые три дня временной нетрудоспособности за счет средств работодателя) | B38: 07 | C38: 02 | D38: 0220270210 | E38: 111 | F38: 266100 | G38: 1000 | H38: 0.00 | J38: 0.00 | K38: 0.00 | M38: 0.00 | N38: 0.00 | P38: 0.00
A39: Расходы по оплате проезда к месту отпуска и обратно отдельным категориям лиц (для лиц, работающих в районах Крайнего Севера и приравненных к ним местностям, и членов их семей) | B39: 07 | C39: 02 | D39: 0220270210 | E39: 112 | F39: 214000 | G39: 1000 | H39: 30,000.00 | J39: 30,000.00 | K39: 20,000.00 | M39: 20,000.00 | N39: 20,000.00 | P39: 20,000.00
A40: Начисления на выплаты по оплате труда | B40: 07 | C40: 02 | D40: 0220270210 | E40: 119 | F40: 213000 | G40: 1000 | H40: 136,251.67 | J40: 136,251.67 | K40: 136,261.67 | M40: 136,261.67 | N40: 136,251.67 | P40: 136,251.67
A41: Услуги связи (телефон) | B41: 07 | C41: 02 | D41: 0220270210 | E41: 244 | F41: 221100 | G41: 1000 | H41: 6,538.20 | J41: 6,538.20 | K41: 9,270.00 | M41: 9,270.00 | N41: 11,587.50 | P41: 11,587.50
A42: Услуги связи (почта) | B42: 07 | C42: 02 | D42: 0220270210 | E42: 244 | F42: 221300 | G42: 1000 | H42: 0.00 | J42: 0.00 | K42: 0.00 | M42: 0.00 | N42: 0.00 | P42: 0.00
A43: Транспортные услуги | B43: 07 | C43: 02 | D43: 0220270210 | E43: 244 | F43: 222000 | G43: 1000 | H43: 46,442.50 | J43: =H43+I43 -> 46,442.50 | K43: 58,053.13 | M43: =K43+L43 -> 58,053.13 | N43: 67,566.41 | P43: =N43+O43 -> 67,566.41
A44: Холодное водоснабжение | B44: 07 | C44: 02 | D44: 0220270210 | E44: 244 | F44: 223300 | G44: 1000 | H44: 0.00 | J44: 0.00 | K44: 0.00 | M44: 0.00 | N44: 0.00 | P44: 0.00
A45: Водоотведение | B45: 07 | C45: 02 | D45: 0220270210 | E45: 244 | F45: 223400 | G45: 1000 | H45: 0.00 | J45: 0.00 | K45: 0.00 | M45: 0.00 | N45: 0.00 | P45: 0.00
A46: Обращение с твердыми коммунальными отходами (вывоз ТБО) | B46: 07 | C46: 02 | D46: 0220270210 | E46: 244 | F46: 223500 | G46: 1000 | H46: 36,117.96 | J46: 36,117.96 | K46: 39,466.11 | M46: 39,466.11 | N46: 41,301.62 | P46: 41,301.62
A47: Техническое обслуживание внутренних сетей отопления и горячего водоснабжения | B47: 07 | C47: 02 | D47: 0220270210 | E47: 244 | F47: 225200 | G47: 1000 | H47: 0.00 | J47: 0.00 | K47: 0.00 | M47: 0.00 | N47: 0.00 | P47: 0.00
A48: Санитарная и противопожарная (дезинфекция, дезинсекция, дератизация, газация, огнезащитная) обработка помещений | B48: 07 | C48: 02 | D48: 0220270210 | E48: 244 | F48: 225600 | G48: 1000 | H48: 39,096.90 | J48: 39,096.90 | K48: 48,871.13 | M48: 48,871.13 | N48: 61,088.91 | P48: 61,088.91
A49: Содержание, обслуживание помещений и сетей инженерно-технического обеспечения | B49: 07 | C49: 02 | D49: 0220270210 | E49: 244 | F49: 225700 | G49: 1000 | H49: 196,537.10 | J49: 196,537.10 | K49: 245,671.38 | M49: 245,671.38 | N49: 307,089.22 | P49: 307,089.22
A50: Текущий ремонт помещений и сетей инженерно-технического обеспечения | B50: 07 | C50: 02 | D50: 0220270210 | E50: 244 | F50: 225800 | G50: 1000 | H50: 46,750.00 | J50: 46,750.00 | K50: 0.00 | M50: 0.00 | N50: 0.00 | P50: 0.00
A51: Другие расходы | B51: 07 | C51: 02 | D51: 0220270210 | E51: 244 | F51: 225900 | G51: 1000 | H51: 93,625.00 | J51: 93,625.00 | K51: 86,875.00 | M51: 86,875.00 | N51: 102,921.88 | P51: 102,921.88
A52: Аттестация | B52: 07 | C52: 02 | D52: 0220270210 | E52: 244 | F52: 226200 | G52: 1000 | H52: 0.00 | J52: =H52+I52 -> 0.00 | K52: 0.00 | M52: =K52+L52 -> 0.00 | N52: 0.00 | P52: =N52+O52 -> 0.00
A53: Охрана ведомственная, вневедомственная, пожарная | B53: 07 | C53: 02 | D53: 0220270210 | E53: 244 | F53: 226400 | G53: 1000 | H53: 73,072.68 | J53: 73,072.68 | K53: 83,840.84 | M53: 83,840.84 | N53: 97,301.05 | P53: 97,301.05
A54: Мероприятия по переподготовке и повышению квалификации кадров | B54: 07 | C54: 02 | D54: 0220270210 | E54: 244 | F54: 226700 | G54: 1000 | H54: 0.00 | J54: 0.00 | K54: 0.00 | M54: 0.00 | N54: 0.00 | P54: 0.00
A55: Медицинский осмотр работников учреждения, за исключением водителей трансртных средств | B55: 07 | C55: 02 | D55: 0220270210 | E55: 244 | F55: 226800 | G55: 1000 | H55: 164,784.00 | J55: 164,784.00 | K55: 214,562.50 | M55: 214,562.50 | N55: 268,203.13 | P55: 268,203.13
A56: Другие расходы | B56: 07 | C56: 02 | D56: 0220270210 | E56: 244 | F56: 226900 | G56: 1000 | H56: 100,000.00 | I56: 33,000.00 | J56: 133,000.00 | K56: 100,000.00 | M56: 100,000.00 | N56: 100,000.00 | P56: 100,000.00
A57: Обязательное страхование автогражданской ответственности | B57: 07 | C57: 02 | D57: 0220270210 | E57: 244 | F57: 227200 | G57: 1000 | H57: 0.00 | J57: =H57+I57 -> 0.00 | K57: 0.00 | M57: =K57+L57 -> 0.00 | N57: 0.00 | P57: =N57+O57 -> 0.00
A58: Расходы на оплату услуг по страхованию здоровья | B58: 07 | C58: 02 | D58: 0220270210 | E58: 244 | F58: 227300 | G58: 1000 | H58: 0.00 | J58: =H58+I58 -> 0.00 | K58: 0.00 | M58: =K58+L58 -> 0.00 | N58: 0.00 | P58: =N58+O58 -> 0.00
A59: Приобретение предметов длительного пользования (оборудование, мебель, компьютерная техника и т.п) стоимостью свыше 3000 рублей | B59: 07 | C59: 02 | D59: 0220270210 | E59: 244 | F59: 310100 | G59: 1000 | H59: 0.00 | J59: 0.00 | K59: 0.00 | M59: 0.00 | N59: 0.00 | P59: 0.00
A60: Другие расходы стоимостью до 3000,00 рублей | B60: 07 | C60: 02 | D60: 0220270210 | E60: 244 | F60: 310900 | G60: 1000 | H60: 0.00 | J60: 0.00 | K60: 0.00 | M60: 0.00 | N60: 0.00 | P60: 0.00
A61: Увеличение стоимости лекарственных препаратов и материалов, применяемых в медицинских целях | B61: 07 | C61: 02 | D61: 0220270210 | E61: 244 | F61: 341000 | G61: 1000 | H61: 9,900.00 | J61: =H61+I61 -> 9,900.00 | K61: 12,375.00 | M61: =K61+L61 -> 12,375.00 | N61: 15,468.75 | P61: =N61+O61 -> 15,468.75
A62: Приобретение строительных материалов | B62: 07 | C62: 02 | D62: 0220270210 | E62: 244 | F62: 344000 | G62: 1000 | H62: 20,000.00 | J62: 20,000.00 | K62: 20,000.00 | M62: 20,000.00 | N62: 20,000.00 | P62: 20,000.00
A63: Мягкий инвентарь | B63: 07 | C63: 02 | D63: 0220270210 | E63: 244 | F63: 345000 | G63: 1000 | H63: 10,000.00 | J63: =H63+I63 -> 10,000.00 | K63: 10,000.00 | M63: =K63+L63 -> 10,000.00 | N63: 10,000.00 | P63: =N63+O63 -> 10,000.00
A64: Увеличение стоимости прочих оборотных запасов (материалов) | B64: 07 | C64: 02 | D64: 0220270210 | E64: 244 | F64: 346000 | G64: 1000 | H64: 80,000.00 | J64: 80,000.00 | K64: 80,000.00 | M64: 80,000.00 | N64: 80,000.00 | P64: 80,000.00
A65: Увеличение стоимости прочих оборотных запасов однократного применения | B65: 07 | C65: 02 | D65: 0220270210 | E65: 244 | F65: 349100 | G65: 1000 | H65: 0.00 | J65: 0.00 | K65: 0.00 | M65: 0.00 | N65: 0.00 | P65: 0.00
A66: Отопление, горячее водоснабжение и газоснабжение | B66: 07 | C66: 02 | D66: 0220270210 | E66: 247 | F66: 223100 | G66: 1000 | H66: 1,670,000.00 | J66: 1,670,000.00 | K66: 2,040,114.43 | M66: 2,040,114.43 | N66: 2,197,930.77 | P66: 2,197,930.77
A67: Электроэнергия | B67: 07 | C67: 02 | D67: 0220270210 | E67: 247 | F67: 223200 | G67: 1000 | H67: 580,000.00 | J67: 580,000.00 | K67: 684,490.00 | M67: 684,490.00 | N67: 740,100.00 | P67: 740,100.00
A68: Холодное водоснабжение | B68: 07 | C68: 02 | D68: 0220270210 | E68: 247 | F68: 223300 | G68: 1000 | H68: 59,330.00 | J68: 59,330.00 | K68: 64,908.00 | M68: 64,908.00 | N68: 69,775.59 | P68: 69,775.59
A69: Водоотведение | B69: 07 | C69: 02 | D69: 0220270210 | E69: 247 | F69: 223400 | G69: 1000 | H69: 34,472.25 | J69: 34,472.25 | K69: 37,710.00 | M69: 37,710.00 | N69: 40,538.89 | P69: 40,538.89
A70: Пособия по социальной помощи населению в натуральной форме | B70: 07 | C70: 02 | D70: 0220270210 | E70: 323 | F70: 263000 | G70: 1000 | H70: 0.00 | J70: =H70+I70 -> 0.00 | K70: 0.00 | M70: 0.00 | N70: 0.00 | P70: 0.00
A71: Налог на имущство | B71: 07 | C71: 02 | D71: 0220270210 | E71: 851 | F71: 291200 | G71: 1000 | H71: 9,252.00 | J71: 9,252.00 | K71: 9,252.00 | M71: 9,252.00 | N71: 9,252.00 | P71: 9,252.00
A72: Земельный налог, в том числе в период строительства объекта | B72: 07 | C72: 02 | D72: 0220270210 | E72: 851 | F72: 291300 | G72: 1000 | H72: 27,461.00 | J72: 27,461.00 | K72: 27,461.00 | M72: 27,461.00 | N72: 27,461.00 | P72: 27,461.00
A73: Штрафы за нарушение законодательства о налогах и сборах, законодательства о страховых взносах | B73: 07 | C73: 02 | D73: 0220270210 | E73: 853 | F73: 292000 | G73: 1000 | J73: =H73+I73 -> 0.00 | M73: =K73+L73 -> 0.00 | P73: =N73+O73 -> 0.00
A74: Иные выплаты текущего характера физическим лицам (возмещение убытков, вреда и судебных издержек) | B74: 07 | C74: 02 | D74: 0220270210 | E74: 853 | F74: 296100 | G74: 1000 | H74: 877.80 | J74: =H74+I74 -> 877.80 | K74: 0.00 | M74: =K74+L74 -> 0.00 | N74: 0.00 | P74: =N74+O74 -> 0.00
A75: Транспортный налог | B75: 07 | C75: 02 | D75: 0220270210 | E75: 852 | F75: 291400 | G75: 1000 | J75: 0.00 | M75: 0.00 | P75: 0.00
A76: Штрафы за нарушение законодательства о закупках и нарушенияе условий контракта (договоров) | B76: 07 | C76: 02 | D76: 0220270210 | E76: 831 | F76: 293000 | G76: 1000 | J76: 0.00 | M76: 0.00 | P76: 0.00
A77: Другие экономические санкции | B77: 07 | C77: 02 | D77: 0220270210 | E77: 853 | F77: 295000 | G77: 1000 | J77: 0.00 | M77: 0.00 | P77: 0.00
A78: Иные выплаты текущего характера организациям (возмещение убытков, вред и судебных издержек) | B78: 07 | C78: 02 | D78: 0220270210 | E78: 851 | F78: 297100 | G78: 1000 | J78: 0.00 | M78: 0.00 | P78: 0.00
A79: Другие расходы | B79: 07 | C79: 02 | D79: 0400072910 | E79: 244 | F79: 226900 | G79: 1000 | J79: 0.00 | M79: 0.00 | P79: 0.00
A80: Заработная плата | B80: 07 | C80: 02 | D80: 0920070260 | E80: 111 | F80: 211000 | G80: 1000 | J80: 0.00 | M80: 0.00 | P80: 0.00
A81: Начисления на выплаты по оплате труда | B81: 07 | C81: 02 | D81: 0920070260 | E81: 119 | F81: 213000 | G81: 1000 | J81: 0.00 | M81: 0.00 | P81: 0.00
A82: Итого по КЦ 1000 | H82: =SUM(H37:H81) -> 3,921,673.54 | I82: 33,000.00 | J82: 3,954,673.54 | K82: 4,480,346.67 | L82: 0.00 | M82: 4,480,346.67 | N82: 4,875,002.87 | O82: 0.00 | P82: 4,875,002.87
A83: Субвенция на обеспечение государственных гарантий реализации прав на получение общедоступного и бесплатного дошкольного образования в муниципальных дошкольных образовательных организациях, общедоступного и бесплатного дошкольного, начального общего, основного общего, среднего общего образования в муниципальных общеобразовательных организациях, обеспечение дополнительного образования детей в муниципальных общеобразовательных организациях (КЦ 254242190000219)
A84: Заработная плата | B84: 07 | C84: 02 | D84: 0220242190 | E84: 111 | F84: 211000 | G84: 254242190000219 | H84: 17,927,463.66 | J84: =H84+I84 -> 17,927,463.66 | K84: 0.00 | M84: =K84+L84 -> 0.00 | N84: 0.00 | P84: =N84+O84 -> 0.00
A85: Социальные пособия и компенсации персоналу в денежной форме (пособие за первые три дня временной нетрудоспособности за счет средств работодателя) | B85: 07 | C85: 02 | D85: 0220242190 | E85: 111 | F85: 266100 | G85: 254242190000219 | H85: 0.00 | J85: 0.00 | K85: 0.00 | M85: 0.00 | N85: 0.00 | P85: 0.00
A86: Начисления на выплаты по оплате труда | B86: 07 | C86: 02 | D86: 0220242190 | E86: 119 | F86: 213000 | G86: 254242190000219 | H86: 4,060,570.52 | J86: 4,060,570.52 | K86: 0.00 | M86: 0.00 | N86: 0.00 | P86: 0.00
A87: Услуги связи (интернет) | B87: 07 | C87: 02 | D87: 0220242190 | E87: 244 | F87: 221200 | G87: 254242190000219 | H87: 0.00 | J87: =H87+I87 -> 0.00 | K87: 0.00 | M87: =K87+L87 -> 0.00 | N87: 0.00 | P87: =N87+O87 -> 0.00
A88: Транспортные услуги | B88: 07 | C88: 02 | D88: 0220242190 | E88: 244 | F88: 222000 | G88: 254242190000219 | J88: 0.00 | K88: 0.00 | M88: 0.00 | N88: 0.00 | P88: 0.00
A89: Другие расходы | B89: 07 | C89: 02 | D89: 0220242190 | E89: 244 | F89: 226900 | G89: 254242190000219 | J89: =H89+I89 -> 0.00 | K89: 0.00 | M89: =K89+L89 -> 0.00 | N89: 0.00 | P89: =N89+O89 -> 0.00
A90: Приобретение предметов длительного пользования (оборудование, мебель, компьютерная техника и т.п.) стоимостью свыше 3000,00 руб. | B90: 07 | C90: 02 | D90: 0220242190 | E90: 244 | F90: 310100 | G90: 254242190000219 | J90: =H90+I90 -> 0.00 | K90: 0.00 | M90: =K90+L90 -> 0.00 | N90: 0.00 | P90: =N90+O90 -> 0.00
A91: Комплектование библиотечного фонда | B91: 07 | C91: 02 | D91: 0220242190 | E91: 244 | F91: 310200 | G91: 254242190000219 | H91: 650,000.00 | J91: 650,000.00 | K91: 0.00 | M91: 0.00 | N91: 0.00 | P91: 0.00
A92: Другие расходы стоимостью до 3000,00 рублей | B92: 07 | C92: 02 | D92: 0220242190 | E92: 244 | F92: 310900 | G92: 254242190000219 | H92: 0.00 | J92: 0.00 | K92: 0.00 | M92: 0.00 | N92: 0.00 | P92: 0.00
A93: Мягкий инвентарь | B93: 07 | C93: 02 | D93: 0220242190 | E93: 244 | F93: 345000 | G93: 254242190000219 | H93: 0.00 | J93: 0.00 | M93: 0.00 | P93: 0.00
A94: Увеличение стоимости прочих оборотных запасов (материалов) | B94: 07 | C94: 02 | D94: 0220242190 | E94: 244 | F94: 346000 | G94: 254242190000219 | H94: 0.00 | J94: 0.00 | K94: 0.00 | M94: 0.00 | N94: 0.00 | P94: 0.00
A95: Увеличение стоимости прочих материальных запасов однократного применения | B95: 07 | C95: 02 | D95: 0220242190 | E95: 244 | F95: 349100 | G95: 254242190000219 | H95: 15,000.00 | J95: 15,000.00 | K95: 0.00 | M95: 0.00 | N95: 0.00 | P95: 0.00
A96: Мероприятия по переподготовке и повышению квалификации кадров | B96: 07 | C96: 05 | D96: 0220242190 | E96: 244 | F96: 226700 | G96: 254242190000219 | J96: 0.00 | K96: 0.00 | M96: 0.00 | N96: 0.00 | P96: 0.00
A97: Итого по КЦ 254242190000219 | H97: =SUM(H84:H96) -> 22,653,034.18 | I97: 0.00 | J97: 22,653,034.18 | K97: 0.00 | L97: 0.00 | M97: 0.00 | N97: 0.00 | O97: 0.00 | P97: 0.00
A98: Субсидия на проведение мероприятий по обеспечению деятельности советников директора по воспитанию и взаимодействию с детскими общественными объединениями в общеобразовательных организациях (КЦ 25-51790-00000-00000)
A99: Заработная плата | B99: 07 | C99: 02 | D99: 022Ю651790 | E99: 111 | F99: 211000 | G99: 25-51790-00000-00000 | H99: 251,508.00 | J99: =H99+I99 -> 251,508.00 | K99: 0.00 | M99: =K99+L99 -> 0.00 | N99: 0.00 | P99: =N99+O99 -> 0.00
A100: Начисления на выплаты по оплате труда | B100: 07 | C100: 02 | D100: 022Ю651790 | E100: 119 | F100: 213000 | G100: 25-51790-00000-00000 | H100: 75,955.41 | J100: =H100+I100 -> 75,955.41 | K100: 0.00 | M100: =K100+L100 -> 0.00 | N100: 0.00 | P100: =N100+O100 -> 0.00
A101: Итого по КЦ 25-51790-00000-00000 | H101: =SUM(H99:H100) -> 327,463.41 | I101: 0.00 | J101: 327,463.41 | K101: 0.00 | L101: 0.00 | M101: 0.00 | N101: 0.00 | O101: 0.00 | P101: 0.00
A102: Иные межбюджетные трансферты на обеспечение выплат ежемесячного денежного вознаграждения советникам директоров по воспитанию и взаимодействию с детскими общественными объединениями государственных общеобразовательных организаций, профессиональных образовательных организаций, муниципальных общеобразовательных организаций и профессиональных образовательных организаций (КЦ 2550500X298320000000)
A103: Заработная плата | B103: 07 | C103: 02 | D103: 022Ю650500 | E103: 111 | F103: 211000 | G103: 2550500X298320000000 | H103: 99,000.00 | J103: =H103+I103 -> 99,000.00 | K103: 0.00 | M103: =K103+L103 -> 0.00 | N103: 0.00 | P103: =N103+O103 -> 0.00
A104: Начисления на выплаты по оплате труда | B104: 07 | C104: 02 | D104: 022Ю650500 | E104: 119 | F104: 213000 | G104: 2550500X298320000000 | H104: 29,898.00 | J104: =H104+I104 -> 29,898.00 | K104: 0.00 | M104: =K104+L104 -> 0.00 | N104: 0.00 | P104: =N104+O104 -> 0.00
A105: Итого по КЦ 2550500X298320000000 | H105: =SUM(H103:H104) -> 128,898.00 | I105: 0.00 | J105: 128,898.00 | K105: 0.00 | L105: 0.00 | M105: 0.00 | N105: 0.00 | O105: 0.00 | P105: 0.00
A106: Иные межбюджетные трансферты на ежемесячное денежное вознаграждение за классное руководство педагогическим работникам государственных и муниципальных образовательных организаций, реализующих образовательные программы начального общего образования, образовательные программы основного общего образования, образовательные программы среднего общего образования (КЦ 2553030X298570000000)
A107: Заработная плата | B107: 07 | C107: 02 | D107: 022Ю653030 | E107: 111 | F107: 211000 | G107: 2553030X298570000000 | H107: 2,178,000.00 | J107: =H107+I107 -> 2,178,000.00 | K107: 0.00 | M107: =K107+L107 -> 0.00 | N107: 0.00 | P107: =N107+O107 -> 0.00
A108: Начисления на выплаты по оплате труда | B108: 07 | C108: 02 | D108: 022Ю653030 | E108: 119 | F108: 213000 | G108: 2553030X298570000000 | H108: 657,756.00 | J108: =H108+I108 -> 657,756.00 | K108: 0.00 | M108: =K108+L108 -> 0.00 | N108: 0.00 | P108: =N108+O108 -> 0.00
A109: Итого по КЦ 2553030X298570000000 | H109: =SUM(H107:H108) -> 2,835,756.00 | I109: 0.00 | J109: 2,835,756.00 | K109: 0.00 | L109: 0.00 | M109: 0.00 | N109: 0.00 | O109: 0.00 | P109: 0.00
A110: Субвенции на осуществление государственных полномочий РеспубликиКарелия по представлению предусмотренных пунктом 5 части 1 статьи 9 Закона Республики Карелия от 20 декабря 2013 гоа № 1755_ЗРК "Об образовании" мер социальной поддержки и социального обслуживания (КЦ 254242100000210)
A111: Увеличение стоимости прочих оборотных запасов (материалов) | B111: 07 | C111: 02 | D111: 0220242100 | E111: 244 | F111: 346000 | G111: 24424210000210 | J111: =H111+I111 -> 0.00 | K111: 0.00 | M111: =K111+L111 -> 0.00 | N111: 0.00 | P111: =N111+O111 -> 0.00
A112: Пособия по социальной помощи населению в натуральной форме | B112: 07 | C112: 02 | D112: 0220242100 | E112: 323 | F112: 263000 | G112: 254242100000210 | H112: 152,545.00 | J112: =H112+I112 -> 152,545.00 | K112: 0.00 | M112: =K112+L112 -> 0.00 | N112: 0.00 | P112: =N112+O112 -> 0.00
A113: Увеличение стоимости прочих оборотных запасов (материалов) | B113: 07 | C113: 02 | D113: 0220242100 | E113: 323 | F113: 346000 | G113: 23424210000210 | J113: =H113+I113 -> 0.00 | K113: 0.00 | M113: =K113+L113 -> 0.00 | N113: 0.00 | P113: =N113+O113 -> 0.00
A114: Итого по КЦ 254242100000210 | H114: =SUM(H111:H113) -> 152,545.00 | I114: 0.00 | J114: 152,545.00 | K114: 0.00 | L114: 0.00 | M114: 0.00 | N114: 0.00 | O114: 0.00 | P114: 0.00
A115: Субвенции на осуществление государственных полномочий Республики Карелия по выплате компенсации платы, взимаемой с родителей (законных представителей) за присмотр и уход за детьми, осваивающими образовательные программы дошкольного образования в организа
A116: Пособия по социальной помощи населению в натуральной форме | B116: 10 | C116: 04 | D116: 0220142030 | E116: 323 | F116: 263000 | G116: 23424203000203 | J116: =H116+I116 -> 0.00 | K116: 0.00 | M116: =K116+L116 -> 0.00 | N116: 0.00 | P116: =N116+O116 -> 0.00
A117: Итого по КЦ 23424203000203 | H117: =SUM(H116) -> 0.00 | I117: 0.00 | J117: 0.00 | K117: 0.00 | L117: 0.00 | M117: 0.00 | N117: 0.00 | O117: 0.00 | P117: 0.00
A118: Субсидии на организацию бесплатного горячего питания обучающихся, получающих начальное общее образование в государственных и муниципальных образовательных организациях (КЦ 25-53040-00000-00000)
A119: Другие расходы | B119: 07 | C119: 02 | D119: 02202L3040 | E119: 244 | F119: 226900 | G119: 25-53040-00000-00000 | H119: 800,000.00 | J119: =H119+I119 -> 800,000.00 | K119: 0.00 | M119: =K119+L119 -> 0.00 | N119: 0.00 | P119: =N119+O119 -> 0.00
A120: Итого по КЦ 25-53040-00000-00000 | H120: =SUM(H119:H119) -> 800,000.00 | I120: 0.00 | J120: 800,000.00 | K120: 0.00 | L120: 0.00 | M120: 0.00 | N120: 0.00 | O120: 0.00 | P120: 0.00
A121: Субсидия на реализацию мероприятий государственной программы Республики Карелия "Совершенствование социальной защиты граждан" в целях организации адресной социальной помощи семьям, имеющим детей (КЦ 254343210000316)
A122: Пособия по социальной помощи населению в натуральной форме | B122: 10 | C122: 03 | D122: 0320243210 | E122: 323 | F122: 263000 | G122: 254343210000316 | H122: 175,000.00 | J122: =H122+I122 -> 175,000.00 | K122: 0.00 | M122: =K122+L122 -> 0.00 | N122: 0.00 | P122: =N122+O122 -> 0.00
A123: Итого по КЦ 254343210000316 | H123: =SUM(H122:H122) -> 175,000.00 | I123: =SUM(I122:I122) -> 0.00 | J123: =SUM(J122:J122) -> 175,000.00 | K123: =SUM(K122:K122) -> 0.00 | L123: =SUM(L122:L122) -> 0.00 | M123: 0.00 | N123: 0.00 | O123: 0.00 | P123: 0.00
A124: Пособия по социальной помощи населению в натуральной форме | B124: 10 | C124: 03 | D124: 03202S3210 | E124: 323 | F124: 263000 | G124: 1000 | H124: 75,000.00 | J124: =H124+I124 -> 75,000.00 | K124: 0.00 | M124: 0.00 | N124: 0.00 | P124: 0.00
A125: Итого по КЦ 1000 | H125: =SUM(H124:H124) -> 75,000.00 | I125: 0.00 | J125: 75,000.00 | K125: 0.00 | L125: 0.00 | M125: 0.00 | N125: 0.00 | O125: 0.00 | P125: 0.00
A126: Субсидия местным бюджетам на реализацию мероприятий государственной программы Республики Карелия "Совершенствование социальной защиты граждан" (КЦ 2343432000321)
A127: Увеличение стоимости прочих оборотных запасов (материалов) | B127: 07 | C127: 09 | D127: 0220243210 | E127: 244 | F127: 346000 | G127: 2343432000321 | J127: =H127+I127 -> 0.00 | K127: 0.00 | M127: =K127+L127 -> 0.00 | N127: 0.00 | P127: =N127+O127 -> 0.00
A128: Другие расходы | B128: 07 | C128: 09 | D128: 0220243210 | E128: 244 | F128: 226900 | G128: 2343432000321 | J128: 0.00 | K128: 0.00 | M128: 0.00 | N128: 0.00 | P128: 0.00
A129: Транспортные услуги | B129: 07 | C129: 09 | D129: 0220243210 | E129: 244 | F129: 222000 | G129: 2343432000321 | J129: 0.00 | K129: 0.00 | M129: 0.00 | N129: 0.00 | P129: 0.00
A130: Увеличение стоимости прочих оборотных запасов (материалов) | B130: 07 | C130: 09 | D130: 02202S3210 | E130: 244 | F130: 346000 | G130: 1000 | J130: 0.00 | K130: 0.00 | M130: 0.00 | N130: 0.00 | P130: 0.00
A131: Другие расходы | B131: 07 | C131: 09 | D131: 02202S3210 | E131: 244 | F131: 226900 | G131: 1000 | J131: 0.00 | K131: 0.00 | M131: 0.00 | N131: 0.00 | P131: 0.00
A132: Транспортные услуги | B132: 07 | C132: 09 | D132: 02202S3210 | E132: 244 | F132: 222000 | G132: 1000 | J132: 0.00 | K132: 0.00 | M132: 0.00 | N132: 0.00 | P132: 0.00
A133: Итого по КЦ 2343432000321 | H133: =SUM(H127:H132) -> 0.00 | I133: 0.00 | J133: 0.00 | K133: 0.00 | L133: 0.00 | M133: 0.00 | N133: 0.00 | O133: 0.00 | P133: 0.00
A134: Иные межбюджетные трансферты на компенсацию затрат, связанных с освобождением членов семей постоянно проживающих на территории Республики Карелия граждан, призванных военным комиссариатом Республики Карелия на военную службу по мобилизации, а также гражд
A135: Продукты питания | B135: 07 | C135: 01 | D135: 0220175040 | E135: 244 | F135: 342000 | G135: 234475040П0514 | J135: =H135+I135 -> 0.00 | K135: 0.00 | M135: =K135+L135 -> 0.00 | N135: 0.00 | O135: =M135+N135 -> 0.00 | P135: =N135+O135 -> 0.00
A136: Итого по КЦ 234475040П0514 | H136: =SUM(H135) -> 0.00 | I136: 0.00 | J136: 0.00 | K136: 0.00 | L136: 0.00 | M136: 0.00 | N136: 0.00 | O136: 0.00 | P136: 0.00
G137: Всего | H137: =H82+H97+H114+H117+H120+H123+H125+H109+H101+H105 -> 31,069,370.13 | I137: =I82+I97+I114+I117+I120+I123+I125+I109+I101+I105 -> 33,000.00 | J137: 31,102,370.13 | K137: 4,480,346.67 | L137: 0.00 | M137: 4,480,346.67 | N137: 4,875,002.87 | O137: 0.00 | P137: 4,875,002.87
A141: Директор | F141: И.А. Сидорова
B142: (подпись) | F142: (расшифровка подписи)
A144: Гл.бухгалтер МУ "ЦБ № 1" | F144: И.В. Ананьева
A145: (уполномоченное лицо) | B145: (подпись) | F145: (расшифровка подписи)
A147: Главный экономист ПЭО МУ "ЦБ № 1" | F147: Е.Л. Герасимова
A148: (исполнитель) | B148: (подпись) | F148: (расшифровка подписи)
A150: =L18 -> "19" марта 2025 г.

Sheet 26.03
P1: Приложение № 2
P2: к Порядку составления, утверждения
P3: и ведения бюджетных смет Администрации
P4: Прионежского муниципального района
P5: и казенных учреждений, находящихся
P6: в ведении Администрации Прионежского
P7: муниципального района
P8: от 09 августа 2022 № 831
L10: УТВЕРЖДАЮ
L11: Глава Администрации Прионежского муниципального района
L12: (наименование должности лица, согласующего бюджетную смету)
L13: Администрация Прионежского муниципального района
L14: (наименование главного распорядителя (распорядителя) бюджетных средств; учреждения)
L16: Г. Н. Шемет
L17: (подпись) | N17: (расшифровка подписи)
L18: "26" марта 2025 г.
A20: ИЗМЕНЕНИЕ К БЮДЖЕТНОЙ СМЕТЕ НА 2025 ФИНАНСОВЫЙ ГОД И ПЛАНОВЫЙ ПЕРИОД 2026 И 2027 ГОДОВ
B22: № 015/00402/047 от | H22: =L18 -> "26" марта 2025 г.
A23: (№, дата, справки об изменении ЛБО) | P23: КОДЫ
O24: Форма по ОКУД | P24: 0501012
O25: Дата | P25: =L18 -> "26" марта 2025 г.
O26: по ОКПО | P26: 51326281
A27: Получатель бюджетных средств | B27: Муниципальное общеобразовательное учреждение "Средняя общеобразовательная школа № 44"
A28: Распорядитель бюджетных средств | B28: Администрация Прионежского муниципального района Республики Карелия
A29: Главный распорядитель бюджетных средств | B29: Администрация Прионежского муниципального района Республики Карелия | O29: Глава по БК | P29: 015
A30: Наименование бюджета | B30: Бюджет Прионежского муниципального района | O30: по ОКТМО | P30: 86636410
A31: Единица измерения: | B31: руб. | O31: по ОКЕЙ | P31: 383
A33: Наименование показателя (детализация кода бюджетной классификации) | B33: РЗ | C33: ПР | D33: ЦСР | E33: Вид расхода | F33: Детализация | G33: Вид целевых средств | H33: Сумма на текущий 2025 год | K33: Сумма на первый год планового периода | N33: Сумма на второй год планового периода
H34: на 19.03.2025 г | I34: изменения(+;-) | J34: Итого | K34: =H34 -> на 19.03.2025 г | L34: изменения(+;-) | M34: Итого | N34: =H34 -> на 19.03.2025 г | O34: изменения(+;-) | P34: Итого
A35: 1 | B35: =SUM(A35+1) -> 2 | C35: 3 | D35: 4 | E35: 5 | F35: 6 | G35: 7 | H35: 8 | I35: 9 | J35: 10 | K35: 11 | L35: 12 | M35: 13 | N35: 14 | O35: 15 | P35: 16
A36: Средства местного бюджета (КЦ 1000) 0702
A37: Заработная плата | B37: 07 | C37: 02 | D37: 0220270210 | E37: 111 | F37: 211000 | G37: 1000 | H37: 451,164.48 | J37: =H37+I37 -> 451,164.48 | K37: 451,164.48 | M37: =K37+L37 -> 451,164.48 | N37: 451,164.48 | P37: =N37+O37 -> 451,164.48
A38: Социальные пособия и компенсации персоналу в денежной форме (пособие за первые три дня временной нетрудоспособности за счет средств работодателя) | B38: 07 | C38: 02 | D38: 0220270210 | E38: 111 | F38: 266100 | G38: 1000 | H38: 0.00 | J38: 0.00 | K38: 0.00 | M38: 0.00 | N38: 0.00 | P38: 0.00
A39: Расходы по оплате проезда к месту отпуска и обратно отдельным категориям лиц (для лиц, работающих в районах Крайнего Севера и приравненных к ним местностям, и членов их семей) | B39: 07 | C39: 02 | D39: 0220270210 | E39: 112 | F39: 214000 | G39: 1000 | H39: 30,000.00 | J39: 30,000.00 | K39: 20,000.00 | M39: 20,000.00 | N39: 20,000.00 | P39: 20,000.00
A40: Начисления на выплаты по оплате труда | B40: 07 | C40: 02 | D40: 0220270210 | E40: 119 | F40: 213000 | G40: 1000 | H40: 136,251.67 | J40: 136,251.67 | K40: 136,261.67 | M40: 136,261.67 | N40: 136,251.67 | P40: 136,251.67
A41: Услуги связи (телефон) | B41: 07 | C41: 02 | D41: 0220270210 | E41: 244 | F41: 221100 | G41: 1000 | H41: 6,538.20 | J41: 6,538.20 | K41: 9,270.00 | M41: 9,270.00 | N41: 11,587.50 | P41: 11,587.50
A42: Услуги связи (почта) | B42: 07 | C42: 02 | D42: 0220270210 | E42: 244 | F42: 221300 | G42: 1000 | H42: 0.00 | J42: 0.00 | K42: 0.00 | M42: 0.00 | N42: 0.00 | P42: 0.00
A43: Транспортные услуги | B43: 07 | C43: 02 | D43: 0220270210 | E43: 244 | F43: 222000 | G43: 1000 | H43: 46,442.50 | J43: =H43+I43 -> 46,442.50 | K43: 58,053.13 | M43: =K43+L43 -> 58,053.13 | N43: 67,566.41 | P43: =N43+O43 -> 67,566.41
A44: Холодное водоснабжение | B44: 07 | C44: 02 | D44: 0220270210 | E44: 244 | F44: 223300 | G44: 1000 | H44: 0.00 | J44: 0.00 | K44: 0.00 | M44: 0.00 | N44: 0.00 | P44: 0.00
A45: Водоотведение | B45: 07 | C45: 02 | D45: 0220270210 | E45: 244 | F45: 223400 | G45: 1000 | H45: 0.00 | J45: 0.00 | K45: 0.00 | M45: 0.00 | N45: 0.00 | P45: 0.00
A46: Обращение с твердыми коммунальными отходами (вывоз ТБО) | B46: 07 | C46: 02 | D46: 0220270210 | E46: 244 | F46: 223500 | G46: 1000 | H46: 36,117.96 | J46: 36,117.96 | K46: 39,466.11 | M46: 39,466.11 | N46: 41,301.62 | P46: 41,301.62
A47: Техническое обслуживание внутренних сетей отопления и горячего водоснабжения | B47: 07 | C47: 02 | D47: 0220270210 | E47: 244 | F47: 225200 | G47: 1000 | H47: 0.00 | J47: 0.00 | K47: 0.00 | M47: 0.00 | N47: 0.00 | P47: 0.00
A48: Санитарная и противопожарная (дезинфекция, дезинсекция, дератизация, газация, огнезащитная) обработка помещений | B48: 07 | C48: 02 | D48: 0220270210 | E48: 244 | F48: 225600 | G48: 1000 | H48: 39,096.90 | J48: 39,096.90 | K48: 48,871.13 | M48: 48,871.13 | N48: 61,088.91 | P48: 61,088.91
A49: Содержание, обслуживание помещений и сетей инженерно-технического обеспечения | B49: 07 | C49: 02 | D49: 0220270210 | E49: 244 | F49: 225700 | G49: 1000 | H49: 196,537.10 | J49: 196,537.10 | K49: 245,671.38 | M49: 245,671.38 | N49: 307,089.22 | P49: 307,089.22
A50: Текущий ремонт помещений и сетей инженерно-технического обеспечения | B50: 07 | C50: 02 | D50: 0220270210 | E50: 244 | F50: 225800 | G50: 1000 | H50: 46,750.00 | J50: 46,750.00 | K50: 0.00 | M50: 0.00 | N50: 0.00 | P50: 0.00
A51: Другие расходы | B51: 07 | C51: 02 | D51: 0220270210 | E51: 244 | F51: 225900 | G51: 1000 | H51: 93,625.00 | J51: 93,625.00 | K51: 86,875.00 | M51: 86,875.00 | N51: 102,921.88 | P51: 102,921.88
A52: Аттестация | B52: 07 | C52: 02 | D52: 0220270210 | E52: 244 | F52: 226200 | G52: 1000 | H52: 0.00 | J52: =H52+I52 -> 0.00 | K52: 0.00 | M52: =K52+L52 -> 0.00 | N52: 0.00 | P52: =N52+O52 -> 0.00
A53: Охрана ведомственная, вневедомственная, пожарная | B53: 07 | C53: 02 | D53: 0220270210 | E53: 244 | F53: 226400 | G53: 1000 | H53: 73,072.68 | J53: 73,072.68 | K53: 83,840.84 | M53: 83,840.84 | N53: 97,301.05 | P53: 97,301.05
A54: Мероприятия по переподготовке и повышению квалификации кадров | B54: 07 | C54: 02 | D54: 0220270210 | E54: 244 | F54: 226700 | G54: 1000 | H54: 0.00 | J54: 0.00 | K54: 0.00 | M54: 0.00 | N54: 0.00 | P54: 0.00
A55: Медицинский осмотр работников учреждения, за исключением водителей трансртных средств | B55: 07 | C55: 02 | D55: 0220270210 | E55: 244 | F55: 226800 | G55: 1000 | H55: 164,784.00 | J55: 164,784.00 | K55: 214,562.50 | M55: 214,562.50 | N55: 268,203.13 | P55: 268,203.13
